Workbook

Sheet Intro
A1: This workbook has our final sample (see EIN or IPEDS sheets).
A2: n=50
A3: Does not include Soka or King's College from our criteria.
B4: http://990s.foundationcenter.org/990_pdf_archive/131/131810448/131810448_201508_990.pdf
B5: https://www.tkc.edu/
A7: 2015 is year in the AWS database and in the EIN sheet presumably because that is when the file was put there, but the return is from
A8: 2013 tax year filing which is 7/1/2013 to 6/30/2014 fiscal year (except Beloit, Gettysburg, and Macalester who are 5/31/2014)
A12: Corrections Made Endowments
A13: Agnes Scott | B13: blanks in data fields, e.g., Administrative Expenses in Current Year Endowment
A14: Allegheny
A15: Beloit
... 16 more rows

Sheet EIN
A1: EIN | B1: TAXPAYER NAME | D1: Please follow these steps in order:
A2: 580566116 | B2: AGNES SCOTT COLLEGE | D2: 1) Click the Get CSV button to import a CSV file from Amazon S3 into a new sheet that has a listing of taxpayers for that year.
A3: 381359081 | B3: ALBION COLLEGE | D3: 2015
A4: 250965212 | B4: ALLEGHENY COLLEGE
A5: 042103542 | B5: TRUSTEES OF AMHERST COLLEGE
A6: 131628149 | B6: BARNARD COLLEGE | D6: 2) Enter EINs starting in cell A2: search or scroll (sorted by insitution name) in the index_xxxx sheet dowloaded in Step 1.
A7: 010211781 | B7: BATES COLLEGE
A8: 390808497 | B8: BELOIT COLLEGE | D8: 3) Click the Get XML button to download Form 990s for the EINs in column A.
A9: 010215213 | B9: BOWDOIN COLLEGE | E9: Click OK as Excel displays messages (e.g., "No XML Schema") and read the error logs after each organization's 990 is downloaded.
A10: 410694747 | B10: CARLETON COLLEGE
A11: 610444671 | B11: CENTRE COLLEGE
A12: 010211497 | B12: COLBY COLLEGE | D12: 4) After data are downloaded, use these buttons for further analysis.
A13: 042103558 | B13: COLLEGE OF THE HOLY CROSS | E13: Each button pulls a few variables from each taxpayer's Form 990 sheet.
A14: 420680335 | B14: CORNELL COLLEGE | E14: Comments (marked by a little red triangle like in this cell) have been added to those cells in the taxpayer's Form 990 that were selected for analysis.
A15: 560529961 | B15: DAVIDSON COLLEGE | E15: To examine individual observations and correct data errors, do this from the Endowments, Compensation, or Tuition sheets:
... 18 more rows

Sheet IPEDS
A1: IPEDS uid | B1: Name | C1: City | D1: State | F1: EIN | G1: TAXPAYER NAME
A2: 138600 | B2: Agnes Scott College | C2: Decatur | D2: GA | F2: 580566116 | G2: AGNES SCOTT COLLEGE
A3: 168546 | B3: Albion College | C3: Albion | D3: MI | F3: 381359081 | G3: ALBION COLLEGE
A4: 210669 | B4: Allegheny College | C4: Meadville | D4: PA | F4: 250965212 | G4: ALLEGHENY COLLEGE
A5: 164465 | B5: Amherst College | C5: Amherst | D5: MA | F5: 042103542 | G5: TRUSTEES OF AMHERST COLLEGE
A6: 189097 | B6: Barnard College | C6: New York | D6: NY | F6: 131628149 | G6: BARNARD COLLEGE
A7: 160977 | B7: Bates College | C7: Lewiston | D7: ME | F7: 010211781 | G7: BATES COLLEGE
A8: 238333 | B8: Beloit College | C8: Beloit | D8: WI | F8: 390808497 | G8: BELOIT COLLEGE
A9: 161004 | B9: Bowdoin College | C9: Brunswick | D9: ME | F9: 010215213 | G9: BOWDOIN COLLEGE
A10: 173258 | B10: Carleton College | C10: Northfield | D10: MN | F10: 410694747 | G10: CARLETON COLLEGE
A11: 156408 | B11: Centre College | C11: Danville | D11: KY | F11: 610444671 | G11: CENTRE COLLEGE
A12: 161086 | B12: Colby College | C12: Waterville | D12: ME | F12: 010211497 | G12: COLBY COLLEGE
A13: 166124 | B13: College of the Holy Cross | C13: Worcester | D13: MA | F13: 042103558 | G13: COLLEGE OF THE HOLY CROSS
A14: 153162 | B14: Cornell College | C14: Mount Vernon | D14: IA | F14: 420680335 | G14: CORNELL COLLEGE
A15: 198385 | B15: Davidson College | C15: Davidson | D15: NC | F15: 560529961 | G15: DAVIDSON COLLEGE
... 18 more rows

Sheet Histogram
A1: Variable | B1: 5 YR % change | D1: 13 | E1: 13 | AK1: -0.1 | AL1: 0
A2: Number Obs | B2: 50 | AK2: -0.1 | AL2: 1
A3: Number Non-missing | B3: 50 | AK3: 0 | AL3: 1
A4: Number Missing | B4: 0 | AK4: 0 | AL4: 0
A5: Number of Unique values | B5: 50 | AK5: 0.1 | AL5: 0
A6: Mean | B6: 0.5148765838 | AK6: 0.1 | AL6: 2
A7: SD | B7: 0.2034720317 | AK7: 0.2 | AL7: 2
A8: Min | B8: -0.002047537184 | AK8: 0.2 | AL8: 3
A9: 25th Percentile | B9: 0.4035572924 | AK9: 0.3 | AL9: 3
A10: Median | B10: 0.4803073261 | AK10: 0.3 | AL10: 6
A11: 75th Percentile | B11: 0.6174459532 | AK11: 0.4 | AL11: 6
A12: Max | B12: 1.162076157 | AK12: 0.4 | AL12: 17
AK13: 0.5 | AL13: 17
AK14: 0.5 | AL14: 7
C15: Data Source: Endowments!$AO$2:$AO$52 | AK15: 0.6 | AL15: 7
C16: Note: Class intervals include the left endpoint, but not the right endpoint. | AK16: 0.6 | AL16: 5
AK17: 0.7 | AL17: 5
AK18: 0.7 | AL18: 5
AK19: 0.8 | AL19: 5
AK20: 0.8 | AL20: 2
AK21: 0.9 | AL21: 2
AK22: 0.9 | AL22: 1
AK23: 1 | AL23: 1
AK24: 1 | AL24: 0
AK25: 1.1 | AL25: 0
AK26: 1.1 | AL26: 1
AK27: 1.2 | AL27: 1
AK28: 1.2 | AL28: 0

Sheet Endowments
A1: Explore data --> | B1: 48 | C1: ns1:BeginningYearBalanceAmt | D1: ns1:ContributionsAmt | E1: ns1:InvestmentEarningsOrLossesAmt | F1: ns1:GrantsOrScholarshipsAmt | G1: ns1:OtherExpendituresAmt | H1: ns1:AdministrativeExpensesAmt | I1: ns1:EndYearBalanceAmt | J1: ns1:BeginningYearBalanceAmtxxx | K1: ns1:ContributionsAmtxxx | L1: ns1:InvestmentEarningsOrLossesAmtxxx | M1: ns1:GrantsOrScholarshipsAmtxxx | N1: ns1:OtherExpendituresAmtxxx | O1: ns1:AdministrativeExpensesAmtxxx | P1: ns1:EndYearBalanceAmtxxx | Q1: ns1:BeginningYearBalanceAMTxxx | R1: ns1:ContributionsAMTxxx | S1: ns1:InvestmentEarningsOrLossesAMTxxx | T1: ns1:GrantsOrScholarshipsAMTxxx | U1: ns1:OtherExpendituresAMTxxx | V1: ns1:AdministrativeExpensesAMTxxx | W1: ns1:EndYearBalanceAMTxxx | X1: ns1:BeginningYearBalanceAMTxxx | Y1: ns1:ContributionsAMTxxx | Z1: ns1:InvestmentEarningsOrLossesAMTxxx | AA1: ns1:GrantsOrScholarshipsAMTxxx | AB1: ns1:OtherExpendituresAMTxxx | AC1: ns1:AdministrativeExpensesAMTxxx | AD1: ns1:EndYearBalanceAMTxxx | AE1: ns1:BeginningYearBalanceAMTxxx | AF1: ns1:ContributionsAMTxxx | AG1: ns1:InvestmentEarningsOrLossesAMTxxx | AH1: ns1:GrantsOrScholarshipsAMTxxx | AI1: ns1:OtherExpendituresAMTxxx | AJ1: ns1:AdministrativeExpensesAMTxxx | AK1: ns1:EndYearBalanceAMTxxx | AL1: ns1:BoardDesignatedBalanceEOYPct | AM1: ns1:PrmnntEndowmentBalanceEOYPct | AN1: ns1:TermEndowmentBalanceEOYPct
A2: EIN | B2: Taxpayer Name | C2: CYBeginYearEndow | D2: CYContributions | E2: CYInvEarnLoss | F2: CYGrantsScholarships | G2: CYOtherExpenditures | H2: CYAdminExpenses | I2: CYEndYearEndow | J2: PYBeginYearEndow | K2: PYContributions | L2: PYInvEarnLoss | M2: PYGrantsScholarships | N2: PYOtherExpenditures | O2: PYAdminExpenses | P2: PYEndYearEndow | Q2: 2YBeginYearEndow | R2: 2YContributions | S2: 2YInvEarnLoss | T2: 2YGrantsScholarships | U2: 2YOtherExpenditures | V2: 2YAdminExpenses | W2: 2YEndYearEndow | X2: 3YBeginYearEndow | Y2: 3YContributions | Z2: 3YInvEarnLoss | AA2: 3YGrantsScholarships | AB2: 3YOtherExpenditures | AC2: 3YAdminExpenses | AD2: 3YEndYearEndow | AE2: 4YBeginYearEndow | AF2: 4YContributions | AG2: 4YInvEarnLoss | AH2: 4YGrantsScholarships | AI2: 4YOtherExpenditures | AJ2: 4YAdminExpenses | AK2: 4YEndYearEndow | AL2: CYEndYear%Quasi | AM2: CYEndYear%Perm | AN2: CYEndYear%Temp | AO2: 5 YR % change | AP2: CAGR
A3: 580566116 | B3: AGNES SCOTT COLLEGE | C3: 251001216 | D3: 2358576 | E3: 36189929 | F3: 2354044 | G3: 14864272 | I3: 272331405 | J3: 240857513 | K3: 1441400 | L3: 29017058 | M3: 2346424 | N3: 17968331 | P3: 251001216 | Q3: 259283516 | R3: 2647946 | S3: -3247659 | T3: 17826290 | W3: 240857513 | X3: 234972872 | Y3: 5069868 | Z3: 37511483 | AA3: 18270707 | AD3: 259283516 | AE3: 230611586 | AF3: 2008260 | AG3: 22234207 | AH3: 18544300 | AI3: 1336881 | AK3: 234972872 | AL3: 0.0799 | AM3: 0.2574 | AN3: 0.6627 | AO3: =(I3-AE3)/AE3 -> 0.1809094665 | AP3: =(I3/AE3)^(1/5)-1 -> 0.03381617022
A4: 381359081 | B4: ALBION COLLEGE | C4: 175131823 | D4: 1658010 | E4: 29406236 | F4: 5995412 | G4: 6569929 | H4: 400791 | I4: 193229937 | J4: 166697848 | K4: 940844 | L4: 19816237 | M4: 3816358 | N4: 7967748 | O4: 539000 | P4: 175131823 | Q4: 173225293 | R4: 10169421 | S4: -8168957 | T4: 3802378 | U4: 4294531 | V4: 431000 | W4: 166697848 | X4: 143511577 | Y4: 6310362 | Z4: 30918290 | AA4: 3360143 | AB4: 3713793 | AC4: 441000 | AD4: 173225293 | AE4: 132545362 | AF4: 6051070 | AG4: 11865766 | AH4: 2654203 | AI4: 3852418 | AJ4: 444000 | AK4: 143511577 | AL4: 0.1881 | AM4: 0.3866 | AN4: 0.4253 | AO4: =(I4-AE4)/AE4 -> 0.4578400488 | AP4: =(I4/AE4)^(1/5)-1 -> 0.07830588475
A5: 250965212 | B5: ALLEGHENY COLLEGE | C5: 164309138 | D5: 11848013 | E5: 28535017 | F5: 4286645 | G5: 4180210 | H5: 230424 | I5: 195994889 | J5: 148141117 | K5: 6152500 | L5: 17961986 | M5: 3972546 | N5: 3302436 | O5: 671483 | P5: 164309138 | Q5: 153772505 | R5: 2866881 | S5: -467028 | T5: 3250719 | U5: 4074191 | V5: 706331 | W5: 148141117 | X5: 133943713 | Y5: 1298944 | Z5: 26441351 | AB5: 7911503 | AD5: 153772505 | AE5: 125126189 | AF5: 1254779 | AG5: 15684406 | AI5: 8091000 | AJ5: 30661 | AK5: 133943713 | AL5: 0.1629 | AM5: 0.3961 | AN5: 0.441 | AO5: =(I5-AE5)/AE5 -> 0.5663778348 | AP5: =(I5/AE5)^(1/5)-1 -> 0.0939042403
A6: 42103542 | B6: TRUSTEES OF AMHERST COLLEGE | C6: 2105519441 | D6: 34254078 | E6: 468227787 | F6: 20877097 | G6: 70301497 | H6: 44116535 | I6: 2472706177 | J6: 1900875662 | K6: 39091783 | L6: 290035253 | M6: 18355857 | N6: 65134459 | O6: 40992941 | P6: 2105519441 | Q6: 1908682734 | R6: 39801634 | S6: 66177662 | T6: 17133650 | U6: 55245023 | V6: 41407695 | W6: 1900875662 | X6: 1617434763 | Y6: 38148374 | Z6: 353265789 | AA6: 15317468 | AB6: 47564416 | AC6: 37284308 | AD6: 1908682734 | AE6: 1528772057 | AF6: 37726786 | AG6: 163262077 | AH6: 15407641 | AI6: 65082445 | AJ6: 31836071 | AK6: 1617434763 | AL6: 0.26 | AM6: 0.73 | AN6: 0.01 | AO6: 0.6174459532 | AP6: 0.1009458419
A7: 131628149 | B7: BARNARD COLLEGE | C7: 240710000 | D7: 13732348 | E7: 39368149 | F7: 5741252 | G7: 4842748 | H7: 1178328 | I7: 282048169 | J7: 213516000 | K7: 6855381 | L7: 31712887 | M7: 5366622 | N7: 4584844 | O7: 1422802 | P7: 240710000 | Q7: 215488726 | R7: 3771498 | S7: 4717370 | T7: 4968942 | U7: 4179058 | V7: 1313594 | W7: 213516000 | X7: 184014662 | Y7: 3637098 | Z7: 37263758 | AA7: 4393254 | AB7: 4488747 | AC7: 544791 | AD7: 215488726 | AE7: 165305949 | AF7: 2562445 | AG7: 25699698 | AH7: 3297095 | AI7: 5584906 | AJ7: 671429 | AK7: 184014662 | AL7: 0.14 | AM7: 0.5 | AN7: 0.36 | AO7: 0.7062191089 | AP7: 0.1127739757
A8: 10211781 | B8: BATES COLLEGE | C8: 233803986 | D8: 2225629 | E8: 38893910 | F8: 4537044 | G8: 6494356 | H8: 0 | I8: 263892125 | J8: 216156213 | K8: 2436269 | L8: 25761413 | M8: 4389891 | N8: 6160018 | O8: 0 | P8: 233803986 | Q8: 231451110 | R8: 2176458 | S8: -6246499 | T8: 4406836 | U8: 6818020 | V8: 0 | W8: 216156213 | X8: 198547532 | Y8: 4693542 | Z8: 39499054 | AA8: 4671603 | AB8: 6617415 | AC8: 0 | AD8: 231451110 | AE8: 183848236 | AF8: 2126729 | AG8: 24566052 | AH8: 4981733 | AI8: 7011752 | AJ8: 0 | AK8: 198547532 | AL8: 0.147 | AM8: 0.487 | AN8: 0.366 | AO8: 0.4353802394 | AP8: 0.07496269415
A9: 390808497 | B9: BELOIT COLLEGE | C9: 129711883 | D9: 6825933 | E9: 13941212 | F9: 1338607 | G9: 6862797 | I9: 142277624 | J9: 113282605 | K9: 2651213 | L9: 19722487 | M9: 1307842 | N9: 4636580 | P9: 129711883 | Q9: 118664445 | R9: 2774411 | S9: -2634589 | T9: 1206005 | U9: 4315657 | W9: 113282605 | X9: 102942506 | Y9: 4474866 | Z9: 15831503 | AA9: 1238397 | AB9: 3346033 | AD9: 118664445 | AE9: 89083136 | AF9: 6038079 | AG9: 12660647 | AH9: 1345392 | AI9: 3493964 | AK9: 102942506 | AL9: 0.34 | AM9: 0.53 | AN9: 0.13 | AO9: =(I9-AE9)/AE9 -> 0.597133087 | AP9: =(I9/AE9)^(1/5)-1 -> 0.09816657615
A10: 10215213 | B10: BOWDOIN COLLEGE | C10: 1038640000 | D10: 24142000 | E10: 198495000 | F10: 18135000 | G10: 23423000 | H10: 3689000 | I10: 1216030000 | J10: 902364000 | K10: 32465000 | L10: 145634000 | M10: 16808000 | N10: 21283000 | O10: 3732000 | P10: 1038640000 | Q10: 904215000 | R10: 15333000 | S10: 23497000 | T10: 16543000 | U10: 21341000 | V10: 2797000 | W10: 902364000 | X10: 753525000 | Y10: 24697000 | Z10: 166150000 | AA10: 16436000 | AB10: 21595000 | AC10: 2126000 | AD10: 904215000 | AE10: 688384000 | AF10: 30940000 | AG10: 73857000 | AH10: 16335000 | AI10: 21151000 | AJ10: 2170000 | AK10: 753525000 | AL10: 0.075 | AM10: 0.356 | AN10: 0.569 | AO10: 0.7664995119 | AP10: 0.120527977
A11: 410694747 | B11: CARLETON COLLEGE | C11: 704714660 | D11: 13311856 | E11: 116344123 | F11: 7949318 | G11: 25719295 | H11: 6393849 | I11: 794308177 | J11: 651655398 | K11: 11900109 | L11: 78960412 | M11: 7611873 | N11: 25229420 | O11: 4959966 | P11: 704714660 | Q11: 666402763 | R11: 2774503 | S11: 17724826 | T11: 7387060 | U11: 24422145 | V11: 3437489 | W11: 651655398 | X11: 582570193 | Y11: 9469250 | Z11: 109737985 | AA11: 7355446 | AB11: 24886524 | AC11: 3132695 | AD11: 666402763 | AE11: 540722300 | AF11: 17555876 | AG11: 58848146 | AH11: 7240689 | AI11: 24872470 | AJ11: 2442970 | AK11: 582570193 | AL11: 0.34 | AM11: 0.43 | AN11: 0.23 | AO11: 0.4689761769 | AP11: 0.07994826365
A12: 610444671 | B12: CENTRE COLLEGE | C12: 231243960 | D12: 5820759 | E12: 39580474 | F12: 4191749 | G12: 4066799 | H12: 1221458 | I12: 267165187 | J12: 207316357 | K12: 2487888 | L12: 31785282 | M12: 3920656 | N12: 5089145 | O12: 1335766 | P12: 231243960 | Q12: 214120391 | R12: 2468520 | S12: 554365 | T12: 4677418 | U12: 4116292 | V12: 1033209 | W12: 207316357 | X12: 176142486 | Y12: 6960309 | Z12: 41046587 | AA12: 4570373 | AB12: 4182857 | AC12: 1275761 | AD12: 214120391 | AE12: 159479194 | AF12: 4858754 | AG12: 21320374 | AH12: 4445423 | AI12: 4072249 | AJ12: 998164 | AK12: 176142486 | AL12: 0.3663 | AM12: 0.5549 | AN12: 0.0788 | AO12: 0.6752353727 | AP12: 0.1087028577
A13: 10211497 | B13: COLBY COLLEGE | C13: 649992000 | D13: 11053000 | E13: 111503000 | F13: 8740000 | G13: 18618000 | H13: 4559000 | I13: 740631000 | J13: 599557000 | K13: 8558000 | L13: 71383000 | M13: 8626000 | N13: 15993000 | O13: 4887000 | P13: 649992000 | Q13: 611441000 | R13: 5639000 | S13: 9876000 | T13: 8308000 | U13: 14482000 | V13: 4609000 | W13: 599557000 | X13: 502076000 | Y13: 13587000 | Z13: 125042000 | AA13: 7418000 | AB13: 16566000 | AC13: 5280000 | AD13: 611441000 | AE13: 452990000 | AF13: 8014000 | AG13: 67154000 | AH13: 7484000 | AI13: 13244000 | AJ13: 5354000 | AK13: 502076000 | AL13: 0.291 | AM13: 0.283 | AN13: 0.426 | AO13: 0.6349831122 | AP13: 0.1033229558
A14: 42103558 | B14: COLLEGE OF THE HOLY CROSS | C14: 634912204 | D14: 18820480 | E14: 99769028 | F14: 6107435 | G14: 17903295 | H14: 3438823 | I14: 726052159 | J14: 589769388 | K14: 13139372 | L14: 57900198 | M14: 5726411 | N14: 16737983 | O14: 3432360 | P14: 634912204 | Q14: 607712688 | R14: 6853564 | S14: -831072 | T14: 5509500 | U14: 15738086 | V14: 2718206 | W14: 589769388 | X14: 522493344 | Y14: 8654234 | Z14: 100650889 | AA14: 5436053 | AB14: 16230869 | AC14: 2418857 | AD14: 607712688 | AE14: 492679761 | AF14: 4789778 | AG14: 48461840 | AH14: 4669581 | AI14: 16081612 | AJ14: 2686842 | AK14: 522493344 | AL14: 0.49 | AM14: 0.25 | AN14: 0.26 | AO14: 0.4736796931 | AP14: 0.08063895709
A15: 420680335 | B15: CORNELL COLLEGE | C15: 66999430 | D15: 2022993 | E15: 7503131 | G15: 2752285 | I15: 73773269 | J15: 63666636 | K15: 2087182 | L15: 3898357 | N15: 2652745 | P15: 66999430 | Q15: 65046494 | R15: 245098 | S15: 761164 | U15: 2386120 | W15: 63666636 | X15: 59668619 | Y15: -131810 | Z15: 7868988 | AB15: 2359303 | AD15: 65046494 | AE15: 57977908 | AF15: 368194 | AG15: 4800105 | AI15: 3477588 | AK15: 59668619 | AL15: 0 | AM15: 0.8699 | AN15: 0.1301 | AO15: =(I15-AE15)/AE15 -> 0.2724375809 | AP15: =(I15/AE15)^(1/5)-1 -> 0.04936674599
... 18 more rows

Sheet Compensation
A1: Explore data --> | B1: 2 | C1: ns1:TotalEmployeeCnt | D1: ns1:CYSalariesCompEmpBnftPaidAmt | E1: ns1:PYSalariesCompEmpBnftPaidAmt | F1: ns1:TotalCompensationFilingOrgAmt
A2: EIN | B2: Taxpayer Name | C2: CYEmpCount | D2: CYEmpTotalComp | E2: PYEmpTotalComp | F2: CYPresTotalComp | G2: AvgEmpTotal Comp | H2: Pres to Avg Ratio | I2: Interim\Partial Year on Form 990
A3: 580566116 | B3: AGNES SCOTT COLLEGE | C3: 961 | D3: 22263459 | E3: 20405978 | F3: 310687 | G3: =(D3-F3)/(C3-1) -> 22867.47083 | H3: =F3/G3 -> 13.58641724
A4: 381359081 | B4: ALBION COLLEGE | C4: 1435 | D4: 26573639 | E4: 26876677 | F4: 224805 | G4: 18374.36123 | H4: 12.23471103 | I4: Yes
A5: 250965212 | B5: ALLEGHENY COLLEGE | C5: 2407 | D5: 41406699 | E5: 39748349 | F5: 447208 | G5: 17023.89485 | H5: 26.26942918
A6: 42103542 | B6: TRUSTEES OF AMHERST COLLEGE | C6: 3153 | D6: 102298899 | E6: 94710255 | F6: 668799 | G6: 32243.05203 | H6: 20.74242225
A7: 131628149 | B7: BARNARD COLLEGE | C7: 2567 | D7: 89962568 | E7: 77752754 | F7: 597549 | G7: 34826.58574 | H7: 17.15784041
A8: 10211781 | B8: BATES COLLEGE | C8: 2394 | D8: 60754022 | E8: 60599625 | F8: 495205 | G8: 25181.28583 | H8: 19.66559624
A9: 390808497 | B9: BELOIT COLLEGE | C9: 1630 | D9: 27646618 | E9: 27193890 | F9: 469714 | G9: 16683.18232 | H9: 28.15494017
A10: 10215213 | B10: BOWDOIN COLLEGE | C10: 2990 | D10: 87713000 | E10: 83211000 | F10: 517297 | G10: 29172.19906 | H10: 17.7325336
A11: 410694747 | B11: CARLETON COLLEGE | C11: 3009 | D11: 71715351 | E11: 69789417 | F11: 510648 | G11: 23671.77626 | H11: 21.57201869
A12: 610444671 | B12: CENTRE COLLEGE | C12: 1430 | D12: 25924434 | E12: 25674976 | F12: 334754 | G12: 17907.40378 | H12: 18.69360875
A13: 10211497 | B13: COLBY COLLEGE | C13: 2754 | D13: 67976000 | E13: 65164000 | F13: 535257 | G13: 24497.18235 | H13: 21.84973735
A14: 42103558 | B14: COLLEGE OF THE HOLY CROSS | C14: 3285 | D14: 95406240 | E14: 94543355 | F14: 500337 | G14: 28899.48325 | H14: 17.31300853
A15: 420680335 | B15: CORNELL COLLEGE | C15: 1170 | D15: 19127257 | E15: 18181844 | F15: 297269 | G15: 16107.77417 | H15: 18.45500172
... 18 more rows

Sheet CompTop
B1: ns1:PersonNm255 | C1: ns1:TitleTxt256 | D1: ns1:BaseCompensationFilingOrgAmt | E1: ns1:CompensationBasedOnRltdOrgsAmt | F1: ns1:BonusFilingOrganizationAmount | G1: ns1:BonusRelatedOrganizationsAmt | H1: ns1:OtherCompensationFilingOrgAmt | I1: ns1:OtherCompensationRltdOrgsAmt | J1: ns1:DeferredCompensationFlngOrgAmt | K1: ns1:DeferredCompRltdOrgsAmt | L1: ns1:NontaxableBenefitsFilingOrgAmt | M1: ns1:NontaxableBenefitsRltdOrgsAmt | N1: ns1:TotalCompensationFilingOrgAmt | O1: ns1:TotalCompensationRltdOrgsAmt | P1: ns1:CompReportPrior990FilingOrgAmt | Q1: ns1:CompReportPrior990RltdOrgsAmt
A2: TaxPayer Name | B2: Name | C2: Title | D2: Base Compensation | E2: Base Compensation Related Org | F2: Bonus | G2: Bonus Related Org | H2: Other Compensation | I2: Other Compensation Related Org | J2: Deferred Compensation | K2: Deferred Compensation Related Org | L2: Nontaxable Benefits | M2: Nontaxable Benefits Related Org | N2: Total Compensation | O2: Total Compensation Related Org | P2: Compensation Prior 990 | Q2: Compensation Prior 990 Related Org
A3: AGNES SCOTT COLLEGE | B3: ELIZABETH KISS | C3: COLLEGE PRESIDENT & TRUSTEE | D3: 261535 | E3: 0 | F3: 0 | G3: 0 | H3: 0 | I3: 0 | J3: 16609 | K3: 0 | L3: 32543 | M3: 0 | N3: 310687 | O3: 0 | P3: 0 | Q3: 0
A4: AGNES SCOTT COLLEGE | B4: CAROLYN J STEFANCO | C4: VP FOR ACADEMIC AFFAIRS & | D4: 153872 | E4: 0 | F4: 0 | G4: 0 | H4: 0 | I4: 0 | J4: 9595 | K4: 0 | L4: 20824 | M4: 0 | N4: 184291 | O4: 0 | P4: 0 | Q4: 0
A5: AGNES SCOTT COLLEGE | B5: JOHN P HEGMAN | C5: VP FOR BUSINESS & FINANCE | D5: 169351 | E5: 0 | F5: 0 | G5: 0 | H5: 0 | I5: 0 | J5: 10787 | K5: 0 | L5: 31298 | M5: 0 | N5: 211436 | O5: 0 | P5: 0 | Q5: 0
A6: AGNES SCOTT COLLEGE | B6: LAURA MARTIN | C6: VP ENROLLMENT/DEAN OF ADMI | D6: 145037 | E6: 0 | F6: 0 | G6: 0 | H6: 0 | I6: 0 | J6: 9153 | K6: 0 | L6: 24520 | M6: 0 | N6: 178710 | O6: 0 | P6: 0 | Q6: 0
A7: AGNES SCOTT COLLEGE | B7: ROBERT PARKER | C7: VP FOR COLLEGE ADVANCEMENT | D7: 152478 | E7: 0 | F7: 0 | G7: 0 | H7: 0 | I7: 0 | J7: 10044 | K7: 0 | L7: 33522 | M7: 0 | N7: 196044 | O7: 0 | P7: 0 | Q7: 0
A8: ALBION COLLEGE | B8: MICHAEL L FRANDSEN | C8: PRESIDENT - INTERIM | D8: 200945 | E8: 0 | F8: 0 | G8: 0 | H8: 1903 | I8: 0 | J8: 12195 | K8: 0 | L8: 9762 | M8: 0 | N8: 224805 | O8: 0 | P8: 0 | Q8: 0
A9: ALBION COLLEGE | B9: SALLY J WALKER | C9: VP STUDENT AFFRS & DEAN OF STDTS | D9: 137630 | E9: 0 | F9: 0 | G9: 0 | H9: 2113 | I9: 0 | J9: 8787 | K9: 0 | L9: 8971 | M9: 0 | N9: 157501 | O9: 0 | P9: 0 | Q9: 0
A10: ALBION COLLEGE | B10: SUSAN P CONNER | C10: VP FOR FACULTY & PROVOST | D10: 150172 | E10: 0 | F10: 0 | G10: 0 | H10: 4498 | I10: 0 | J10: 22357 | K10: 0 | L10: 9093 | M10: 0 | N10: 186120 | O10: 0 | P10: 0 | Q10: 0
A11: ALBION COLLEGE | B11: JOSHUA D MERCHANT | C11: VP FOR INSTITUTIONAL ADVANCEMENT | D11: 163291 | E11: 0 | F11: 0 | G11: 0 | H11: 290 | I11: 0 | J11: 9435 | K11: 0 | L11: 1339 | M11: 0 | N11: 174355 | O11: 0 | P11: 0 | Q11: 0
A12: ALBION COLLEGE | B12: MADELEINE E RHYNEER | C12: VP FOR ENROLLMENT | D12: 162082 | E12: 0 | F12: 0 | G12: 0 | H12: 1336 | I12: 0 | J12: 19193 | K12: 0 | L12: 8536 | M12: 0 | N12: 191147 | O12: 0 | P12: 0 | Q12: 0
A13: ALBION COLLEGE | B13: DONNA M RANDALL | C13: CHANCELLOR | D13: 268261 | E13: 0 | F13: 0 | G13: 0 | H13: 3564 | I13: 0 | J13: 23886 | K13: 0 | L13: 9806 | M13: 0 | N13: 305517 | O13: 0 | P13: 0 | Q13: 0
A14: ALLEGHENY COLLEGE | B14: JAMES H MULLEN JR | C14: PRESIDENT | D14: 317695 | E14: 0 | F14: 19500 | G14: 0 | H14: 2595 | I14: 0 | J14: 22950 | K14: 0 | L14: 84468 | M14: 0 | N14: 447208 | O14: 0 | P14: 0 | Q14: 0
A15: ALLEGHENY COLLEGE | B15: LINDA C DEMERITT | C15: PROVOST | D15: 202456 | E15: 0 | F15: 0 | G15: 0 | H15: 1584 | I15: 0 | J15: 19025 | K15: 0 | L15: 18771 | M15: 0 | N15: 241836 | O15: 0 | P15: 0 | Q15: 0
... 18 more rows

Sheet Tuition
A1: Explore data --> | B1: 6 | C1: ns1:BusinessCd | D1: ns1:TotalRevenueColumnAmt | E1: ns1:CYGrantsAndSimilarPaidAmt | G1: ns1:TotalAmt
A2: EIN | B2: Taxpayer Name | C2: Description | D2: Tuition Revenue | E2: Student Grants | F2: %Tuition Subsidized | G2: Dom Student Grants | H2: Int Student Grants | I2: Dom/Int incorrectly reported?
A3: 580566116 | B3: AGNES SCOTT COLLEGE | C3: TUITION & FEE INCOME | D3: 30344801 | E3: 18803175 | F3: =E3/D3 -> 0.6196506281 | G3: 86874 | H3: 18716301 | I3: =IF(H3=E3,1,"") -> 
A4: 381359081 | B4: ALBION COLLEGE | C4: TUITION AND FEES | D4: 46521102 | E4: 24469460 | F4: 0.5259862503 | G4: 63000 | H4: 24273172 | I4: =IF(H4=E4,1,"") ->  | J4: these last two variables are unreliable, so delete after starting a Tuition workbook
A5: 250965212 | B5: ALLEGHENY COLLEGE | C5: TUITION AND FEES | D5: 82164260 | E5: 41783109 | F5: 0.5085314345 | G5: 65000 | H5: 41142451 | J5: could potentially fix dom student values,
A6: 42103542 | B6: TRUSTEES OF AMHERST COLLEGE | C6: Tuition and other student fees | D6: 82305289 | E6: 50091101 | F6: 0.6086012407 | G6: 451128 | H6: 49466097 | J6: but too many schools don't break it out:
A7: 131628149 | B7: BARNARD COLLEGE | C7: Tuition and Fees | D7: 106466699 | E7: 31746035 | F7: 0.2981780716 | G7: 0 | H7: 31094380 | J7: =SUM(I:I) -> 6
A8: 10211781 | B8: BATES COLLEGE | C8: Student Tuition and Fees | D8: 102795760 | E8: 30887424 | F8: 0.300473716 | G8: 12299 | H8: 29422923 | J8: I just don't trust it.
A9: 390808497 | B9: BELOIT COLLEGE | C9: TUITION & FEES | D9: 49706833 | E9: 26305673 | F9: 0.5292164359 | G9: 24745628 | H9: 1560045 | J9: I think the sum of the three into "Student Grants"
A10: 10215213 | B10: BOWDOIN COLLEGE | C10: TUITION AND FEES | D10: 83579000 | E10: 33785000 | F10: 0.4042283349 | G10: 428000 | H10: 33193000 | J10: is fine and this is the financial fraction we want.
A11: 410694747 | B11: CARLETON COLLEGE | C11: estimated | D11: 89965167 | E11: 33983589 | F11: =E11/Intro!A80 -> 0.2999053783 | G11: 0 | H11: 33983589 | I11: 1
A12: 610444671 | B12: CENTRE COLLEGE | C12: estimated | D12: 49283736.66 | E12: 24691721 | F12: =E12/D12 -> 0.501011544 | G12: 0 | H12: 23241203
A13: 10211497 | B13: COLBY COLLEGE | C13: Tuition and fees | D13: 86326000 | E13: 28367148 | F13: 0.3286049162 | G13: 145148 | H13: 25574000
A14: 42103558 | B14: COLLEGE OF THE HOLY CROSS | C14: Tuition and fees | D14: 127917832 | E14: 46205787 | F14: 0.3612145881 | G14: 171100 | H14: 45064796
A15: 420680335 | B15: CORNELL COLLEGE | C15: TUITION AND FEES | D15: 40149236 | E15: 23522324 | F15: 0.5858722692 | G15: 23522324 | H15: 429582
... 18 more rows

Sheet AGNES SCOTT COLLEGE
A1: returnVersion | B1: binaryAttachmentCnt | C1: ns1:ReturnTs | D1: ns1:TaxPeriodEndDt | E1: ns1:PreparerFirmEIN | F1: ns1:BusinessNameLine1 | G1: ns1:AddressLine1 | H1: ns1:City | I1: ns1:State | J1: ns1:ZIPCode | K1: ns1:ReturnTypeCd | L1: ns1:TaxPeriodBeginDt | M1: ns1:EIN | N1: ns1:BusinessNameLine12 | O1: ns1:BusinessNameControlTxt | P1: ns1:PhoneNum | Q1: ns1:AddressLine13 | R1: ns1:City4 | S1: ns1:State5 | T1: ns1:ZIPCode6 | U1: ns1:PersonNm | V1: ns1:PersonTitleTxt | W1: ns1:PhoneNum7 | X1: ns1:SignatureDt | Y1: ns1:DiscussWithPaidPreparerInd | Z1: ns1:PreparerPersonNm | AA1: ns1:PTIN | AB1: ns1:PhoneNum8 | AC1: ns1:PreparationDt | AD1: ns1:TaxYr | AE1: ns1:BuildTS | AF1: documentCount | AG1: documentId | AH1: referenceDocumentId | AI1: ns1:PrincipalOfficerNm | AJ1: ns1:AddressLine19 | AK1: ns1:City10 | AL1: ns1:State11 | AM1: ns1:ZIPCode12 | AN1: ns1:GrossReceiptsAmt | AO1: ns1:GroupReturnForAffiliatesInd | AP1: ns1:Organization501c3Ind | AQ1: ns1:WebsiteAddressTxt | AR1: ns1:TypeOfOrganizationCorpInd | AS1: ns1:FormationYr | AT1: ns1:LegalDomicileStateCd | AU1: ns1:ActivityOrMissionDesc | AV1: ns1:VotingMembersGoverningBodyCnt | AW1: ns1:VotingMembersIndependentCnt | AX1: ns1:TotalEmployeeCnt | AY1: ns1:TotalVolunteersCnt | AZ1: ns1:TotalGrossUBIAmt | BA1: ns1:NetUnrelatedBusTxblIncmAmt | BB1: ns1:PYContributionsGrantsAmt | BC1: ns1:CYContributionsGrantsAmt | BD1: ns1:PYProgramServiceRevenueAmt | BE1: ns1:CYProgramServiceRevenueAmt | BF1: ns1:PYInvestmentIncomeAmt | BG1: ns1:CYInvestmentIncomeAmt | BH1: ns1:PYOtherRevenueAmt | BI1: ns1:CYOtherRevenueAmt | BJ1: ns1:PYTotalRevenueAmt | BK1: ns1:CYTotalRevenueAmt | BL1: ns1:PYGrantsAndSimilarPaidAmt | BM1: ns1:CYGrantsAndSimilarPaidAmt | BN1: ns1:PYBenefitsPaidToMembersAmt | BO1: ns1:CYBenefitsPaidToMembersAmt | BP1: ns1:PYSalariesCompEmpBnftPaidAmt | BQ1: ns1:CYSalariesCompEmpBnftPaidAmt | BR1: ns1:PYTotalProfFndrsngExpnsAmt | BS1: ns1:CYTotalProfFndrsngExpnsAmt | BT1: ns1:CYTotalFundraisingExpenseAmt | BU1: ns1:PYOtherExpensesAmt | BV1: ns1:CYOtherExpensesAmt | BW1: ns1:PYTotalExpensesAmt | BX1: ns1:CYTotalExpensesAmt | BY1: ns1:PYRevenuesLessExpensesAmt | BZ1: ns1:CYRevenuesLessExpensesAmt | CA1: ns1:TotalAssetsBOYAmt | CB1: ns1:TotalAssetsEOYAmt | CC1: ns1:TotalLiabilitiesBOYAmt | CD1: ns1:TotalLiabilitiesEOYAmt | CE1: ns1:NetAssetsOrFundBalancesBOYAmt | CF1: ns1:NetAssetsOrFundBalancesEOYAmt | CG1: ns1:MissionDesc | CH1: ns1:SignificantNewProgramSrvcInd | CI1: ns1:SignificantChangeInd | CJ1: ns1:ExpenseAmt | CK1: ns1:GrantAmt | CL1: ns1:Desc | CM1: ns1:ExpenseAmt13 | CN1: ns1:GrantAmt14 | CO1: ns1:RevenueAmt | CP1: ns1:Desc15 | CQ1: ns1:ExpenseAmt16 | CR1: ns1:GrantAmt17 | CS1: ns1:RevenueAmt18 | CT1: ns1:Desc19 | CU1: ns1:ExpenseAmt20 | CV1: ns1:GrantAmt21 | CW1: ns1:RevenueAmt22 | CX1: ns1:TotalOtherProgSrvcExpenseAmt | CY1: ns1:TotalOtherProgSrvcGrantAmt | CZ1: ns1:TotalOtherProgSrvcRevenueAmt | DA1: ns1:TotalProgramServiceExpensesAmt | DB1: ns1:DescribedInSection501c3Ind | DC1: referenceDocumentId23 | DD1: ns1:ScheduleBRequiredInd | DE1: referenceDocumentId24 | DF1: ns1:PoliticalCampaignActyInd | DG1: ns1:LobbyingActivitiesInd | DH1: ns1:SubjectToProxyTaxInd | DI1: ns1:DonorAdvisedFundInd | DJ1: referenceDocumentId25 | DK1: ns1:ConservationEasementsInd | DL1: referenceDocumentId26 | DM1: ns1:CollectionsOfArtInd | DN1: referenceDocumentId27 | DO1: ns1:CreditCounselingInd | DP1: referenceDocumentId28 | DQ1: ns1:TempOrPermanentEndowmentsInd | DR1: referenceDocumentId29 | DS1: ns1:ReportLandBuildingEquipmentInd | DT1: referenceDocumentId30 | DU1: ns1:ReportInvestmentsOtherSecInd | DV1: referenceDocumentId31 | DW1: ns1:ReportProgramRelatedInvstInd | DX1: referenceDocumentId32 | DY1: ns1:ReportOtherAssetsInd | DZ1: referenceDocumentId33 | EA1: ns1:ReportOtherLiabilitiesInd | EB1: referenceDocumentId34 | EC1: ns1:IncludeFIN48FootnoteInd | ED1: referenceDocumentId35 | EE1: ns1:IndependentAuditFinclStmtInd | EF1: referenceDocumentId36 | EG1: ns1:ConsolidatedAuditFinclStmtInd | EH1: referenceDocumentId37 | EI1: ns1:SchoolOperatingInd | EJ1: referenceDocumentId38 | EK1: ns1:ForeignOfficeInd | EL1: ns1:ForeignActivitiesInd | EM1: referenceDocumentId39 | EN1: ns1:MoreThan5000KToOrgInd | EO1: referenceDocumentId40 | EP1: ns1:MoreThan5000KToIndividualsInd | EQ1: referenceDocumentId41 | ER1: ns1:ProfessionalFundraisingInd | ES1: ns1:FundraisingActivitiesInd | ET1: ns1:GamingActivitiesInd | EU1: ns1:OperateHospitalInd | EV1: ns1:GrantsToOrganizationsInd | EW1: referenceDocumentId42 | EX1: ns1:GrantsToIndividualsInd | EY1: referenceDocumentId43 | EZ1: ns1:ScheduleJRequiredInd | FA1: referenceDocumentId44 | FB1: ns1:TaxExemptBondsInd | FC1: referenceDocumentId45 | FD1: ns1:InvestTaxExemptBondsInd | FE1: ns1:EscrowAccountInd | FF1: ns1:OnBehalfOfIssuerInd | FG1: ns1:EngagedInExcessBenefitTransInd | FH1: ns1:PYExcessBenefitTransInd | FI1: ns1:LoanOutstandingInd | FJ1: ns1:GrantToRelatedPersonInd | FK1: ns1:BusinessRlnWithOrgMemInd | FL1: ns1:BusinessRlnWithFamMemInd | FM1: ns1:BusinessRlnWithOfficerEntInd | FN1: ns1:DeductibleNonCashContriInd | FO1: referenceDocumentId46 | FP1: ns1:DeductibleArtContributionInd | FQ1: referenceDocumentId47 | FR1: ns1:TerminateOperationsInd | FS1: ns1:PartialLiquidationInd | FT1: ns1:DisregardedEntityInd | FU1: referenceDocumentId48 | FV1: ns1:RelatedEntityInd | FW1: referenceDocumentId49 | FX1: ns1:RelatedOrganizationCtrlEntInd | FY1: ns1:TrnsfrExmptNonChrtblRltdOrgInd | FZ1: referenceDocumentId50 | GA1: ns1:ActivitiesConductedPrtshpInd | GB1: referenceDocumentId51 | GC1: ns1:ScheduleORequiredInd | GD1: ns1:IRPDocumentCnt | GE1: ns1:IRPDocumentW2GCnt | GF1: ns1:BackupWthldComplianceInd | GG1: ns1:EmployeeCnt | GH1: ns1:EmploymentTaxReturnsFiledInd | GI1: ns1:UnrelatedBusIncmOverLimitInd | GJ1: ns1:Form990TFiledInd | GK1: ns1:ForeignFinancialAccountInd | GL1: ns1:ProhibitedTaxShelterTransInd | GM1: ns1:TaxablePartyNotificationInd | GN1: ns1:NondeductibleContributionsInd | GO1: ns1:QuidProQuoContributionsInd | GP1: ns1:Form8282PropertyDisposedOfInd | GQ1: ns1:RcvFndsToPayPrsnlBnftCntrctInd | GR1: ns1:PayPremiumsPrsnlBnftCntrctInd | GS1: ns1:IndoorTanningServicesInd | GT1: ns1:InfoInScheduleOPartVIInd | GU1: ns1:GoverningBodyVotingMembersCnt | GV1: ns1:IndependentVotingMemberCnt | GW1: ns1:FamilyOrBusinessRlnInd | GX1: ns1:DelegationOfMgmtDutiesInd | GY1: ns1:ChangeToOrgDocumentsInd | GZ1: ns1:MaterialDiversionOrMisuseInd | HA1: ns1:MembersOrStockholdersInd | HB1: ns1:ElectionOfBoardMembersInd | HC1: ns1:DecisionsSubjectToApprovaInd | HD1: ns1:MinutesOfGoverningBodyInd | HE1: ns1:MinutesOfCommitteesInd | HF1: ns1:OfficerMailingAddressInd | HG1: ns1:LocalChaptersInd | HH1: ns1:Form990ProvidedToGvrnBodyInd | HI1: ns1:ConflictOfInterestPolicyInd | HJ1: ns1:AnnualDisclosureCoveredPrsnInd | HK1: ns1:RegularMonitoringEnfrcInd | HL1: ns1:WhistleblowerPolicyInd | HM1: ns1:DocumentRetentionPolicyInd | HN1: ns1:CompensationProcessCEOInd | HO1: ns1:CompensationProcessOtherInd | HP1: ns1:InvestmentInJointVentureInd | HQ1: ns1:StatesWhereCopyOfReturnIsFldCd | HR1: ns1:UponRequestInd | HS1: ns1:BusinessNameLine152 | HT1: ns1:PhoneNum53 | HU1: ns1:AddressLine154 | HV1: ns1:City55 | HW1: ns1:State56 | HX1: ns1:ZIPCode57 | HY1: ns1:PersonNm58 | HZ1: ns1:TitleTxt | IA1: ns1:AverageHoursPerWeekRt | IB1: ns1:IndividualTrusteeOrDirectorInd | IC1: ns1:ReportableCompFromOrgAmt | ID1: ns1:ReportableCompFromRltdOrgAmt | IE1: ns1:OtherCompensationAmt | IF1: ns1:OfficerInd | IG1: ns1:HighestCompensatedEmployeeInd | IH1: ns1:TotalReportableCompFromOrgAmt | II1: ns1:TotReportableCompRltdOrgAmt | IJ1: ns1:TotalOtherCompensationAmt | IK1: ns1:IndivRcvdGreaterThan100KCnt | IL1: ns1:FormerOfcrEmployeesListedInd | IM1: ns1:TotalCompGreaterThan150KInd | IN1: ns1:CompensationFromOtherSrcsInd | IO1: ns1:BusinessNameLine159 | IP1: ns1:AddressLine160 | IQ1: ns1:City61 | IR1: ns1:State62 | IS1: ns1:ZIPCode63 | IT1: ns1:ServicesDesc | IU1: ns1:CompensationAmt | IV1: ns1:CntrctRcvdGreaterThan100KCnt | IW1: ns1:AllOtherContributionsAmt | IX1: ns1:NoncashContributionsAmt | IY1: ns1:TotalContributionsAmt | IZ1: ns1:Desc64 | JA1: ns1:BusinessCd | JB1: ns1:TotalRevenueColumnAmt | JC1: ns1:RelatedOrExemptFuncIncomeAmt | JD1: ns1:TotalProgramServiceRevenueAmt | JE1: ns1:TotalRevenueColumnAmt65 | JF1: ns1:UnrelatedBusinessRevenueAmt | JG1: ns1:ExclusionAmt | JH1: ns1:RealAmt | JI1: ns1:RealAmt66 | JJ1: ns1:RealAmt67 | JK1: ns1:TotalRevenueColumnAmt68 | JL1: ns1:ExclusionAmt69 | JM1: ns1:SecuritiesAmt | JN1: ns1:OtherAmt | JO1: ns1:SecuritiesAmt70 | JP1: ns1:OtherAmt71 | JQ1: ns1:SecuritiesAmt72 | JR1: ns1:OtherAmt73 | JS1: ns1:TotalRevenueColumnAmt74 | JT1: ns1:ExclusionAmt75 | JU1: ns1:Desc76 | JV1: ns1:BusinessCd77 | JW1: ns1:TotalRevenueColumnAmt78 | JX1: ns1:RelatedOrExemptFuncIncomeAmt79 | JY1: ns1:UnrelatedBusinessRevenueAmt80 | JZ1: ns1:TotalRevenueColumnAmt81 | KA1: ns1:RelatedOrExemptFuncIncomeAmt82 | KB1: ns1:OtherRevenueTotalAmt | KC1: ns1:TotalRevenueColumnAmt83 | KD1: ns1:RelatedOrExemptFuncIncomeAmt84 | KE1: ns1:UnrelatedBusinessRevenueAmt85 | KF1: ns1:ExclusionAmt86 | KG1: ns1:TotalAmt | KH1: ns1:ProgramServicesAmt | KI1: ns1:TotalAmt87 | KJ1: ns1:ProgramServicesAmt88 | KK1: ns1:TotalAmt89 | KL1: ns1:ProgramServicesAmt90 | KM1: ns1:ManagementAndGeneralAmt | KN1: ns1:FundraisingAmt | KO1: ns1:TotalAmt91 | KP1: ns1:ProgramServicesAmt92 | KQ1: ns1:ManagementAndGeneralAmt93 | KR1: ns1:FundraisingAmt94 | KS1: ns1:TotalAmt95 | KT1: ns1:ProgramServicesAmt96 | KU1: ns1:ManagementAndGeneralAmt97 | KV1: ns1:FundraisingAmt98 | KW1: ns1:TotalAmt99 | KX1: ns1:ProgramServicesAmt100 | KY1: ns1:ManagementAndGeneralAmt101 | KZ1: ns1:FundraisingAmt102 | LA1: ns1:TotalAmt103 | LB1: ns1:ProgramServicesAmt104 | LC1: ns1:ManagementAndGeneralAmt105 | LD1: ns1:FundraisingAmt106 | LE1: ns1:TotalAmt107 | LF1: ns1:ManagementAndGeneralAmt108 | LG1: ns1:TotalAmt109 | LH1: ns1:ManagementAndGeneralAmt110 | LI1: ns1:TotalAmt111 | LJ1: ns1:ManagementAndGeneralAmt112 | LK1: ns1:TotalAmt113 | LL1: ns1:ProgramServicesAmt114 | LM1: ns1:ManagementAndGeneralAmt115 | LN1: ns1:FundraisingAmt116 | LO1: ns1:TotalAmt117 | LP1: ns1:ProgramServicesAmt118 | LQ1: ns1:ManagementAndGeneralAmt119 | LR1: ns1:FundraisingAmt120 | LS1: ns1:TotalAmt121 | LT1: ns1:ProgramServicesAmt122 | LU1: ns1:ManagementAndGeneralAmt123 | LV1: ns1:FundraisingAmt124 | LW1: ns1:TotalAmt125 | LX1: ns1:ProgramServicesAmt126 | LY1: ns1:ManagementAndGeneralAmt127 | LZ1: ns1:FundraisingAmt128 | MA1: ns1:TotalAmt129 | MB1: ns1:ProgramServicesAmt130 | MC1: ns1:ManagementAndGeneralAmt131 | MD1: ns1:FundraisingAmt132 | ME1: ns1:TotalAmt133 | MF1: ns1:ProgramServicesAmt134 | MG1: ns1:ManagementAndGeneralAmt135 | MH1: ns1:TotalAmt136 | MI1: ns1:ProgramServicesAmt137 | MJ1: ns1:ManagementAndGeneralAmt138 | MK1: ns1:TotalAmt139 | ML1: ns1:ProgramServicesAmt140 | MM1: ns1:ManagementAndGeneralAmt141 | MN1: ns1:Desc142 | MO1: ns1:TotalAmt143 | MP1: ns1:ProgramServicesAmt144 | MQ1: ns1:ManagementAndGeneralAmt145 | MR1: ns1:FundraisingAmt146 | MS1: ns1:TotalAmt147 | MT1: ns1:ProgramServicesAmt148 | MU1: ns1:ManagementAndGeneralAmt149 | MV1: ns1:TotalAmt150 | MW1: ns1:ProgramServicesAmt151 | MX1: ns1:ManagementAndGeneralAmt152 | MY1: ns1:FundraisingAmt153 | MZ1: ns1:BOYAmt | NA1: ns1:EOYAmt | NB1: ns1:BOYAmt154 | NC1: ns1:EOYAmt155 | ND1: ns1:BOYAmt156 | NE1: ns1:EOYAmt157 | NF1: ns1:BOYAmt158 | NG1: ns1:EOYAmt159 | NH1: ns1:LandBldgEquipCostOrOtherBssAmt | NI1: ns1:LandBldgEquipAccumDeprecAmt | NJ1: ns1:BOYAmt160 | NK1: ns1:EOYAmt161 | NL1: ns1:BOYAmt162 | NM1: ns1:EOYAmt163 | NN1: ns1:BOYAmt164 | NO1: ns1:EOYAmt165 | NP1: ns1:BOYAmt166 | NQ1: ns1:EOYAmt167 | NR1: ns1:BOYAmt168 | NS1: ns1:EOYAmt169 | NT1: ns1:BOYAmt170 | NU1: ns1:EOYAmt171 | NV1: ns1:BOYAmt172 | NW1: ns1:EOYAmt173 | NX1: ns1:BOYAmt174 | NY1: ns1:EOYAmt175 | NZ1: ns1:BOYAmt176 | OA1: ns1:EOYAmt177 | OB1: ns1:BOYAmt178 | OC1: ns1:EOYAmt179 | OD1: ns1:BOYAmt180 | OE1: ns1:EOYAmt181 | OF1: ns1:OrganizationFollowsSFAS117Ind | OG1: ns1:BOYAmt182 | OH1: ns1:EOYAmt183 | OI1: ns1:BOYAmt184 | OJ1: ns1:EOYAmt185 | OK1: ns1:BOYAmt186 | OL1: ns1:EOYAmt187 | OM1: ns1:BOYAmt188 | ON1: ns1:EOYAmt189 | OO1: ns1:BOYAmt190 | OP1: ns1:EOYAmt191 | OQ1: ns1:InfoInScheduleOPartXIInd | OR1: ns1:ReconcilationRevenueExpnssAmt | OS1: ns1:NetUnrlzdGainsLossesInvstAmt | OT1: ns1:DonatedServicesAndUseFcltsAmt | OU1: ns1:OtherChangesInNetAssetsAmt | OV1: ns1:MethodOfAccountingAccrualInd | OW1: ns1:AccountantCompileOrReviewInd | OX1: ns1:FSAuditedInd | OY1: ns1:ConsolidatedBasisFinclStmtInd | OZ1: ns1:AuditCommitteeInd | PA1: ns1:FederalGrantAuditRequiredInd | PB1: ns1:FederalGrantAuditPerformedInd | PC1: documentId192 | PD1: ns1:SchoolInd | PE1: documentId193 | PF1: ns1:ContributorNum | PG1: ns1:BusinessNameLine1194 | PH1: ns1:AddressLine1195 | PI1: ns1:AddressLine2 | PJ1: ns1:City196 | PK1: ns1:State197 | PL1: ns1:ZIPCode198 | PM1: ns1:TotalContributionsAmt199 | PN1: documentId200 | PO1: ns1:CollectionUsedPubExhibitionInd | PP1: ns1:CollUsedScholarlyRsrchInd | PQ1: ns1:CollectionUsedPreservationInd | PR1: ns1:SolicitedAssetsSaleInd | PS1: ns1:BeginningYearBalanceAmt | PT1: ns1:ContributionsAmt | PU1: ns1:InvestmentEarningsOrLossesAmt | PV1: ns1:GrantsOrScholarshipsAmt | PW1: ns1:OtherExpendituresAmt | PX1: ns1:EndYearBalanceAmt | PY1: ns1:BeginningYearBalanceAmt201 | PZ1: ns1:ContributionsAmt202 | QA1: ns1:InvestmentEarningsOrLossesAmt203 | QB1: ns1:GrantsOrScholarshipsAmt204 | QC1: ns1:OtherExpendituresAmt205 | QD1: ns1:EndYearBalanceAmt206 | QE1: ns1:BeginningYearBalanceAmt207 | QF1: ns1:ContributionsAmt208 | QG1: ns1:InvestmentEarningsOrLossesAmt209 | QH1: ns1:GrantsOrScholarshipsAmt210 | QI1: ns1:EndYearBalanceAmt211 | QJ1: ns1:BeginningYearBalanceAmt212 | QK1: ns1:ContributionsAmt213 | QL1: ns1:InvestmentEarningsOrLossesAmt214 | QM1: ns1:GrantsOrScholarshipsAmt215 | QN1: ns1:EndYearBalanceAmt216 | QO1: ns1:BeginningYearBalanceAmt217 | QP1: ns1:ContributionsAmt218 | QQ1: ns1:InvestmentEarningsOrLossesAmt219 | QR1: ns1:GrantsOrScholarshipsAmt220 | QS1: ns1:OtherExpendituresAmt221 | QT1: ns1:EndYearBalanceAmt222 | QU1: ns1:BoardDesignatedBalanceEOYPct | QV1: ns1:PrmnntEndowmentBalanceEOYPct | QW1: ns1:TermEndowmentBalanceEOYPct | QX1: ns1:EndowmentsHeldUnrelatedOrgInd | QY1: ns1:EndowmentsHeldRelatedOrgInd | QZ1: ns1:InvestmentCostOrOtherBasisAmt | RA1: ns1:BookValueAmt | RB1: ns1:InvestmentCostOrOtherBasisAmt223 | RC1: ns1:DepreciationAmt | RD1: ns1:BookValueAmt224 | RE1: ns1:InvestmentCostOrOtherBasisAmt225 | RF1: ns1:DepreciationAmt226 | RG1: ns1:BookValueAmt227 | RH1: ns1:InvestmentCostOrOtherBasisAmt228 | RI1: ns1:DepreciationAmt229 | RJ1: ns1:BookValueAmt230 | RK1: ns1:InvestmentCostOrOtherBasisAmt231 | RL1: ns1:DepreciationAmt232 | RM1: ns1:BookValueAmt233 | RN1: ns1:TotalBookValueLandBuildingsAmt | RO1: ns1:BookValueAmt234 | RP1: ns1:MethodValuationCd | RQ1: ns1:Desc235 | RR1: ns1:BookValueAmt236 | RS1: ns1:MethodValuationCd237 | RT1: ns1:TotalBookValueSecuritiesAmt | RU1: ns1:Desc238 | RV1: ns1:Amt | RW1: ns1:TotalLiabilityAmt | RX1: ns1:FootnoteTextInd | RY1: ns1:TotalRevEtcAuditedFinclStmtAmt | RZ1: ns1:NetUnrealizedGainsInvstAmt | SA1: ns1:DonatedServicesAndUseFcltsAmt239 | SB1: ns1:OtherRevenueAmt | SC1: ns1:RevenueNotReportedAmt | SD1: ns1:RevenueSubtotalAmt | SE1: ns1:InvestmentExpensesNotIncldAmt | SF1: ns1:OtherRevenuesNotIncludedAmt | SG1: ns1:RevenueNotReportedFinclStmtAmt | SH1: ns1:TotalRevenuePerForm990Amt | SI1: ns1:TotExpnsEtcAuditedFinclStmtAmt | SJ1: ns1:OtherExpensesIncludedAmt | SK1: ns1:ExpensesNotReportedAmt | SL1: ns1:ExpensesSubtotalAmt | SM1: ns1:InvestmentExpensesNotIncld2Amt | SN1: ns1:OtherExpensesNotIncludedAmt | SO1: ns1:ExpensesNotRptFinclStmtAmt | SP1: ns1:TotalExpensesPerForm990Amt | SQ1: ns1:FormAndLineReferenceDesc | SR1: ns1:ExplanationTxt | SS1: documentId240 | ST1: ns1:NondiscriminatoryPolicyStmtInd | SU1: ns1:PolicyStmtInBrochuresEtcInd | SV1: ns1:PlcyPblczdViaBroadcastMediaInd | SW1: ns1:MaintainRacialCompRecsInd | SX1: ns1:MaintainScholarshipsRecsInd | SY1: ns1:MaintainCpyOfBrochuresEtcInd | SZ1: ns1:MaintainCpyOfAllSolInd | TA1: ns1:DiscriminateRaceStdntsRghtsInd | TB1: ns1:DiscriminateRaceAdmissPlcyInd | TC1: ns1:DiscriminateRaceEmplmFcultyInd | TD1: ns1:DiscriminateRaceSchsInd | TE1: ns1:DiscriminateRaceEducPlcyInd | TF1: ns1:DiscriminateRaceUseOfFcltsInd | TG1: ns1:DiscriminateRaceAthltProgInd | TH1: ns1:DiscriminateRaceOtherActyInd | TI1: ns1:GovernmentFinancialAidRcvdInd | TJ1: ns1:GovernmentFinancialAidRvkdInd | TK1: ns1:ComplianceWithRevProc7550Ind | TL1: ns1:FormAndLineReferenceDesc241 | TM1: ns1:ExplanationTxt242 | TN1: documentId243 | TO1: ns1:RegionTxt | TP1: ns1:SubtotalOfficesCnt | TQ1: ns1:SubtotalEmployeesCnt | TR1: ns1:ContinutationTotalOfficeCnt | TS1: ns1:ContinutationTotalEmployeeCnt | TT1: ns1:TotalOfficeCnt | TU1: ns1:TotalEmployeeCnt244 | TV1: ns1:SubtotalSpentAmt | TW1: ns1:ContinuationSpentAmt | TX1: ns1:TotalSpentAmt | TY1: ns1:TransferToForeignCorpInd | TZ1: ns1:InterestInForeignTrustInd | UA1: ns1:ForeignCorpOwnershipInd | UB1: ns1:PassiveForeignInvestmestCoInd | UC1: ns1:ForeignPartnershipInd | UD1: ns1:BoycottCountriesInd | UE1: documentId245 | UF1: ns1:GrantRecordsMaintainedInd | UG1: ns1:BusinessNameLine1246 | UH1: ns1:AddressLine1247 | UI1: ns1:City248 | UJ1: ns1:State249 | UK1: ns1:ZIPCode250 | UL1: ns1:RecipientEIN | UM1: ns1:IRCSectionDesc | UN1: ns1:CashGrantAmt | UO1: ns1:PurposeOfGrantTxt | UP1: ns1:Total501c3OrgCnt | UQ1: ns1:GrantTypeTxt | UR1: ns1:RecipientCnt | US1: ns1:CashGrantAmt251 | UT1: ns1:NonCashAssistanceDesc | UU1: ns1:FormAndLineReferenceDesc252 | UV1: ns1:ExplanationTxt253 | UW1: documentId254 | UX1: ns1:HousingAllowanceOrResidenceInd | UY1: ns1:WrittenPolicyRefTAndEExpnssInd | UZ1: ns1:SubstantiationRequiredInd | VA1: ns1:WrittenEmploymentContractInd | VB1: ns1:CompensationSurveyInd | VC1: ns1:BoardOrCommitteeApprovalInd | VD1: ns1:SeverancePaymentInd | VE1: ns1:SupplementalNonqualRtrPlanInd | VF1: ns1:EquityBasedCompArrngmInd | VG1: ns1:CompBasedOnRevenueOfFlngOrgInd | VH1: ns1:CompBsdOnRevRelatedOrgsInd | VI1: ns1:CompBsdNetEarnsFlngOrgInd | VJ1: ns1:CompBsdNetEarnsRltdOrgsInd | VK1: ns1:AnyNonFixedPaymentsInd | VL1: ns1:InitialContractExceptionInd | VM1: ns1:PersonNm255 | VN1: ns1:TitleTxt256 | VO1: ns1:BaseCompensationFilingOrgAmt | VP1: ns1:CompensationBasedOnRltdOrgsAmt | VQ1: ns1:BonusFilingOrganizationAmount | VR1: ns1:BonusRelatedOrganizationsAmt | VS1: ns1:OtherCompensationFilingOrgAmt | VT1: ns1:OtherCompensationRltdOrgsAmt | VU1: ns1:DeferredCompensationFlngOrgAmt | VV1: ns1:DeferredCompRltdOrgsAmt | VW1: ns1:NontaxableBenefitsFilingOrgAmt | VX1: ns1:NontaxableBenefitsRltdOrgsAmt | VY1: ns1:TotalCompensationFilingOrgAmt | VZ1: ns1:TotalCompensationRltdOrgsAmt | WA1: ns1:CompReportPrior990FilingOrgAmt | WB1: ns1:CompReportPrior990RltdOrgsAmt | WC1: ns1:FormAndLineReferenceDesc257 | WD1: ns1:ExplanationTxt258 | WE1: documentId259 | WF1: ns1:BondReferenceCd | WG1: ns1:BusinessNameLine1260 | WH1: ns1:BondIssuerEIN | WI1: ns1:CUSIPNum | WJ1: ns1:BondIssuedDt | WK1: ns1:IssuePriceAmt | WL1: ns1:PurposeDesc | WM1: ns1:DefeasedInd | WN1: ns1:OnBehalfOfIssuerInd261 | WO1: ns1:PoolFinancingInd | WP1: ns1:BondReferenceCd262 | WQ1: ns1:RefundingEscrowAmt | WR1: ns1:IssuanceCostsFromProceedsAmt | WS1: ns1:OtherSpentProceedsAmt | WT1: ns1:SubstantialCompletionYr | WU1: ns1:CurrentRefundingInd | WV1: ns1:AdvanceRefundingInd | WW1: ns1:FinalAllocationMadeInd | WX1: ns1:AdequateBooksAndRecMaintInd | WY1: ns1:BondReferenceCd263 | WZ1: ns1:OwningBondFinancedPropertyInd | XA1: ns1:AnyLeaseArrangementsInd | XB1: ns1:MgmtContractBondFincdPropInd | XC1: ns1:AnyResearchAgreementsInd | XD1: ns1:BondIssMeetPrvtSecPymtTestInd | XE1: ns1:ChangeInUseBondFinancedPropInd | XF1: ns1:ProcsNonqualifiedBondRemdtdInd | XG1: ns1:BondReferenceCd264 | XH1: ns1:Form8038TFiledInd | XI1: ns1:RebateNotDueYetInd | XJ1: ns1:ExceptionToRebateInd | XK1: ns1:NoRebateDueInd | XL1: ns1:VariableRateIssueInd | XM1: ns1:HedgeIdentifiedInBksAndRecInd | XN1: ns1:GrossProceedsInvestedInGICInd | XO1: ns1:GrossProceedsInvestedInd | XP1: ns1:WrittenProcToMonitorReqsInd | XQ1: ns1:BondReferenceCd265 | XR1: ns1:ProceduresCorrectiveActionInd | XS1: ns1:FormAndLineReferenceDesc266 | XT1: ns1:ExplanationTxt267 | XU1: documentId268 | XV1: ns1:NonCashCheckboxInd | XW1: ns1:NoncashContributionsRptF990Amt | XX1: ns1:MethodOfDeterminingRevenuesTxt | XY1: ns1:NonCashCheckboxInd269 | XZ1: ns1:ContributionCnt | YA1: ns1:NoncashContributionsRptF990Amt270 | YB1: ns1:MethodOfDeterminingRevenuesTxt271 | YC1: ns1:NonCashCheckboxInd272 | YD1: ns1:Desc273 | YE1: ns1:ContributionCnt274 | YF1: ns1:NoncashContributionsRptF990Amt275 | YG1: ns1:MethodOfDeterminingRevenuesTxt276 | YH1: ns1:Form8283ReceivedCnt | YI1: ns1:AnyPropertyThatMustBeHeldInd | YJ1: ns1:ReviewProcessUnusualNCGiftsInd | YK1: ns1:ThirdPartiesUsedInd | YL1: ns1:FormAndLineReferenceDesc277 | YM1: ns1:ExplanationTxt278 | YN1: documentId279 | YO1: ns1:FormAndLineReferenceDesc280 | YP1: ns1:ExplanationTxt281 | YQ1: documentId282 | YR1: ns1:BusinessNameLine1283 | YS1: ns1:AddressLine1284 | YT1: ns1:City285 | YU1: ns1:State286 | YV1: ns1:ZIPCode287 | YW1: ns1:EIN288 | YX1: ns1:PrimaryActivitiesTxt | YY1: ns1:LegalDomicileStateCd289 | YZ1: ns1:ExemptCodeSectionTxt | ZA1: ns1:PublicCharityStatusTxt | ZB1: ns1:DirectControllingNACd | ZC1: ns1:ControlledOrganizationInd | ZD1: ns1:ReceiptOfIntAnntsRntsRyltsInd | ZE1: ns1:GiftGrntOrCapContriToOthOrgInd | ZF1: ns1:GiftGrntCapContriFromOthOrgInd | ZG1: ns1:LoansOrGuaranteesToOtherOrgInd | ZH1: ns1:LoansOrGuaranteesFromOthOrgInd | ZI1: ns1:DivRelatedOrganizationInd | ZJ1: ns1:AssetSaleToOtherOrgInd | ZK1: ns1:AssetPurchaseFromOtherOrgInd | ZL1: ns1:AssetExchangeInd | ZM1: ns1:RentalOfFacilitiesToOthOrgInd | ZN1: ns1:RentalOfFcltsFromOthOrgInd | ZO1: ns1:PerformOfServicesForOthOrgInd | ZP1: ns1:PerformOfServicesByOtherOrgInd | ZQ1: ns1:SharingOfFacilitiesInd | ZR1: ns1:PaidEmployeesSharingInd | ZS1: ns1:ReimbursementPaidToOtherOrgInd | ZT1: ns1:ReimbursementPaidByOtherOrgInd | ZU1: ns1:TransferToOtherOrgInd | ZV1: ns1:TransferFromOtherOrgInd | ZW1: ns1:BusinessNameLine1290 | ZX1: ns1:TransactionTypeTxt | ZY1: ns1:InvolvedAmt | ZZ1: ns1:MethodOfAmountDeterminationTxt
A2: 2013v4.0 | B2: 0 | C2: 2015-05-15T12:21:23-05:00 | D2: 2014-06-30 | E2: 581763439 | F2: WINDHAM BRANNON PC | G2: 3630 PEACHTREE RD NE SUITE 600 | H2: ATLANTA | I2: GA | J2: 30326 | K2: 990 | L2: 2013-07-01 | M2: 580566116 | N2: AGNES SCOTT COLLEGE | O2: AGNE | P2: 4044716308 | Q2: 141 EAST COLLEGE AVENUE | R2: DECATUR | S2: GA | T2: 30030 | U2: JOHN P HEGMAN | V2: VP FOR BUSINESS & FINANCE | W2: 4044716308 | X2: 2015-05-04 | Y2: 1 | Z2: CARLYE W DOOLEY | AA2: P00292964 | AB2: 4048982000 | AC2: 2015-05-04 | AD2: 2013 | AE2: 2016-02-25 16:41:14Z | AF2: 12 | AG2: RetDoc1038000001 | AH2: RetDoc1044400001 | AI2: ELIZABETH KISS | AJ2: 141 EAST COLLEGE AVENUE | AK2: DECATUR | AL2: GA | AM2: 30030 | AN2: 193572082 | AO2: 0 | AP2: X | AQ2: WWW.AGNESSCOTT.EDU | AR2: X | AS2: 1889 | AT2: GA | AU2: A PRIVATE LIBERAL ARTS COLLEGE WITH THE MISSION TO EDUCATE WOMEN TO THINK DEEPLY, LIVE HONORABLY AND ENGAGE THE INTELLECTUAL AND SOCIAL CHALLENGES OF THEIR TIMES. | AV2: 31 | AW2: 31 | AX2: 961 | AY2: 695 | AZ2: -399305 | BA2: -726713 | BB2: 6466087 | BC2: 14657044 | BD2: 28366057 | BE2: 30344801 | BF2: 15997222 | BG2: 15908378 | BH2: 9325491 | BI2: 9339950 | BJ2: 60154857 | BK2: 70250173 | BL2: 17611632 | BM2: 18803175 | BN2: 0 | BO2: 0 | BP2: 20405978 | BQ2: 22263459 | BR2: 0 | BS2: 0 | BT2: 2461804 | BU2: 27056111 | BV2: 27435683 | BW2: 65073721 | BX2: 68502317 | BY2: -4918864 | BZ2: 1747856 | CA2: 379863176 | CB2: 414992333 | CC2: 84120854 | CD2: 87530057 | CE2: 295742322 | CF2: 327462276 | CG2: FOUNDED IN 1889, AGNES SCOTT COLLEGE IS AN INDEPENDENT LIBERAL ARTS COLLEGE FOR WOMEN WHOSE MISSION IS TO EDUCATE WOMEN TO THINK DEEPLY, LIVE HONORABLY AND ENGAGE THE INTELLECTUAL AND SOCIAL CHALLENGES OF THEIR TIMES. | CH2: 0 | CI2: 0 | CJ2: 18716301 | CK2: 18716301 | CL2: STUDENT AID ENCOMPASSES DIRECT FINANCIAL AID PROVIDED BY THE COLLEGE TO FACILITATE ITS STUDENTS' PURSUIT OF A COLLEGE EDUCATION. | CM2: 13788795 | CN2: 0 | CO2: 30344801 | CP2: INSTRUCTION IS PROVIDED BY FULL-TIME FACULTY AND PART-TIME FACULTY MEMBERS REPRESENTING NUMEROUS ACADEMIC DEPARTMENTS. | CQ2: 6524141 | CR2: 0 | CS2: 0 | CT2: ACADEMIC SUPPORT COMPRISES INFORMATION TECHNOLOGY SERVICES, REGISTRAR, ACADEMIC ADVISING, FACULTY SERVICES, LIBRARY, ETC. THESE ADMINISTRATIVE OFFICES ASSIST THE COLLEGE IN ITS EDUCATIONAL MISSION. | CU2: 7728841 | CV2: 86874 | CW2: 9686083 | CX2: 7728841 | CY2: 86874 | CZ2: 9686083 | DA2: 46758078 | DB2: 1 | DC2: RetDoc1039100001 | DD2: 1 | DE2: RetDoc1234500001 | DF2: 0 | DG2: 0 | DH2: 0 | DI2: 0 | DJ2: RetDoc1040000001 | DK2: 0 | DL2: RetDoc1040000001 | DM2: 1 | DN2: RetDoc1040000001 | DO2: 0 | DP2: RetDoc1040000001 | DQ2: 1 | DR2: RetDoc1040000001 | DS2: 1 | DT2: RetDoc1040000001 | DU2: 1 | DV2: RetDoc1040000001 | DW2: 0 | DX2: RetDoc1040000001 | DY2: 0 | DZ2: RetDoc1040000001 | EA2: 1 | EB2: RetDoc1040000001 | EC2: 1 | ED2: RetDoc1040000001 | EE2: 0 | EF2: RetDoc1040000001 | EG2: 1 | EH2: RetDoc1040000001 | EI2: 1 | EJ2: RetDoc1040400001 | EK2: 0 | EL2: 1 | EM2: RetDoc1040500001 | EN2: 0 | EO2: RetDoc1040500001 | EP2: 0 | EQ2: RetDoc1040500001 | ER2: 0 | ES2: 0 | ET2: 0 | EU2: 0 | EV2: 1 | EW2: RetDoc1041900001 | EX2: 1 | EY2: RetDoc1041900001 | EZ2: 1 | FA2: RetDoc1042400001 | FB2: 1 | FC2: RetDoc1053100001 | FD2: 0 | FE2: 0 | FF2: 0 | FG2: 0 | FH2: 0 | FI2: 0 | FJ2: 0 | FK2: 0 | FL2: 0 | FM2: 0 | FN2: 1 | FO2: RetDoc1042900001 | FP2: 0 | FQ2: RetDoc1042900001 | FR2: 0 | FS2: 0 | FT2: 0 | FU2: RetDoc1043400001 | FV2: 1 | FW2: RetDoc1043400001 | FX2: 0 | FY2: 0 | FZ2: RetDoc1043400001 | GA2: 0 | GB2: RetDoc1043400001 | GC2: 1 | GD2: 146 | GE2: 0 | GF2: 1 | GG2: 961 | GH2: 0 | GI2: 1 | GJ2: 1 | GK2: 0 | GL2: 0 | GM2: 0 | GN2: 0 | GO2: 0 | GP2: 0 | GQ2: 0 | GR2: 0 | GS2: 0 | GT2: X | GU2: 31 | GV2: 31 | GW2: 0 | GX2: 0 | GY2: 0 | GZ2: 0 | HA2: 0 | HB2: 0 | HC2: 0 | HD2: 1 | HE2: 1 | HF2: 0 | HG2: 0 | HH2: 1 | HI2: 1 | HJ2: 1 | HK2: 1 | HL2: 1 | HM2: 1 | HN2: 1 | HO2: 1 | HP2: 0 | HQ2: GA | HR2: X | HS2: LAI CHAN CONTROLLER | HT2: 4044716308 | HU2: 141 EAST COLLEGE AVENUE | HV2: DECATUR | HW2: GA | HX2: 30030 | IH2: 1641191 | II2: 0 | IJ2: 324250 | IK2: 11 | IL2: 0 | IM2: 1 | IN2: 0 | IV2: 7 | IW2: 14657044 | IX2: 2568431 | IY2: 14657044 | IZ2: TUITION & FEE INCOME | JA2: 611600 | JB2: 30344801 | JC2: 30344801 | JD2: 30344801 | JE2: 3007830 | JF2: -760612 | JG2: 3768442 | JH2: 574009 | JI2: 233936 | JJ2: 340073 | JK2: 340073 | JL2: 340073 | JM2: 134733439 | JN2: 1255082 | JO2: 122880403 | JP2: 207570 | JQ2: 11853036 | JR2: 1047512 | JS2: 12900548 | JT2: 12900548 | JZ2: 69725 | KA2: 69725 | KB2: 8999877 | KC2: 70250173 | KD2: 38983371 | KE2: -399305 | KF2: 17009063 | KG2: 86874 | KH2: 86874 | KI2: 18716301 | KJ2: 18716301 | KK2: 992132 | KL2: 408768 | KM2: 430886 | KN2: 152478 | KO2: 16953243 | KP2: 12429905 | KQ2: 3233423 | KR2: 1289915 | KS2: 822868 | KT2: 574485 | KU2: 181441 | KV2: 66942 | KW2: 2252122 | KX2: 1311519 | KY2: 751957 | KZ2: 188646 | LA2: 1243094 | LB2: 893836 | LC2: 255371 | LD2: 93887 | LE2: 58849 | LF2: 58849 | LG2: 249260 | LH2: 249260 | LI2: 3831158 | LJ2: 3831158 | LK2: 5227678 | LL2: 1508386 | LM2: 3492122 | LN2: 227170 | LO2: 3139770 | LP2: 2090453 | LQ2: 839923 | LR2: 209394 | LS2: 162108 | LT2: 93180 | LU2: 50928 | LV2: 18000 | LW2: 1052126 | LX2: 908506 | LY2: 53608 | LZ2: 90012 | MA2: 316801 | MB2: 219125 | MC2: 93288 | MD2: 4388 | ME2: 1972010 | MF2: 1096440 | MG2: 875570 | MH2: 4336643 | MI2: 2411179 | MJ2: 1925464 | MK2: 1400404 | ML2: 890713 | MM2: 509691 | MS2: 340110 | MT2: 238654 | MU2: 101456 | MV2: 68502317 | MW2: 46758078 | MX2: 19282435 | MY2: 2461804 | MZ2: 12399014 | NA2: 15410504 | NB2: 3617523 | NC2: 7147632 | ND2: 231591 | NE2: 274481 | NF2: 1174150 | NG2: 1508180 | NH2: 180680364 | NI2: 74610457 | NJ2: 99297520 | NK2: 106069907 | NL2: 79194985 | NM2: 93071982 | NN2: 176273435 | NO2: 184164810 | NP2: 7674958 | NQ2: 7344837 | NR2: 379863176 | NS2: 414992333 | NT2: 4902704 | NU2: 7888947 | NV2: 891104 | NW2: 744547 | NX2: 66321787 | NY2: 63224623 | NZ2: 1058937 | OA2: 4603656 | OB2: 10946322 | OC2: 11068284 | OD2: 84120854 | OE2: 87530057 | OF2: X | OG2: 51043628 | OH2: 60064599 | OI2: 168083974 | OJ2: 188841091 | OK2: 76614720 | OL2: 78556586 | OM2: 295742322 | ON2: 327462276 | OO2: 379863176 | OP2: 414992333 | OQ2: X | OR2: 1747856 | OS2: 26040018 | OT2: 37161 | OU2: 3894919 | OV2: X | OW2: 0 | OX2: 1 | OY2: X | OZ2: 1 | PA2: 1 | PB2: 1 | PC2: RetDoc1039100001 | PD2: X | PE2: RetDoc1234500001 | PF2: RESTRICTED | PG2: RESTRICTED | PH2: RESTRICTED | PI2: RESTRICTED | PJ2: RESTRICTED | PK2: RESTRICTED | PL2: RESTRICTED | PM2: RESTRICTED | TN2: RetDoc1040500001 | TO2: N/A | TP2: 0 | TQ2: 0 | TR2: 0 | TS2: 0 | TT2: 0 | TU2: 0 | TV2: 0 | TW2: 0 | TX2: 0 | TY2: 1 | TZ2: 0 | UA2: 0 | UB2: 1 | UC2: 0 | UD2: 0
A3: 2013v4.0 | B3: 0 | C3: 2015-05-15T12:21:23-05:00 | D3: 2014-06-30 | E3: 581763439 | F3: WINDHAM BRANNON PC | G3: 3630 PEACHTREE RD NE SUITE 600 | H3: ATLANTA | I3: GA | J3: 30326 | K3: 990 | L3: 2013-07-01 | M3: 580566116 | N3: AGNES SCOTT COLLEGE | O3: AGNE | P3: 4044716308 | Q3: 141 EAST COLLEGE AVENUE | R3: DECATUR | S3: GA | T3: 30030 | U3: JOHN P HEGMAN | V3: VP FOR BUSINESS & FINANCE | W3: 4044716308 | X3: 2015-05-04 | Y3: 1 | Z3: CARLYE W DOOLEY | AA3: P00292964 | AB3: 4048982000 | AC3: 2015-05-04 | AD3: 2013 | AE3: 2016-02-25 16:41:14Z | AF3: 12 | AG3: RetDoc1038000001 | AH3: RetDoc1044400001 | AI3: ELIZABETH KISS | AJ3: 141 EAST COLLEGE AVENUE | AK3: DECATUR | AL3: GA | AM3: 30030 | AN3: 193572082 | AO3: 0 | AP3: X | AQ3: WWW.AGNESSCOTT.EDU | AR3: X | AS3: 1889 | AT3: GA | AU3: A PRIVATE LIBERAL ARTS COLLEGE WITH THE MISSION TO EDUCATE WOMEN TO THINK DEEPLY, LIVE HONORABLY AND ENGAGE THE INTELLECTUAL AND SOCIAL CHALLENGES OF THEIR TIMES. | AV3: 31 | AW3: 31 | AX3: 961 | AY3: 695 | AZ3: -399305 | BA3: -726713 | BB3: 6466087 | BC3: 14657044 | BD3: 28366057 | BE3: 30344801 | BF3: 15997222 | BG3: 15908378 | BH3: 9325491 | BI3: 9339950 | BJ3: 60154857 | BK3: 70250173 | BL3: 17611632 | BM3: 18803175 | BN3: 0 | BO3: 0 | BP3: 20405978 | BQ3: 22263459 | BR3: 0 | BS3: 0 | BT3: 2461804 | BU3: 27056111 | BV3: 27435683 | BW3: 65073721 | BX3: 68502317 | BY3: -4918864 | BZ3: 1747856 | CA3: 379863176 | CB3: 414992333 | CC3: 84120854 | CD3: 87530057 | CE3: 295742322 | CF3: 327462276 | CG3: FOUNDED IN 1889, AGNES SCOTT COLLEGE IS AN INDEPENDENT LIBERAL ARTS COLLEGE FOR WOMEN WHOSE MISSION IS TO EDUCATE WOMEN TO THINK DEEPLY, LIVE HONORABLY AND ENGAGE THE INTELLECTUAL AND SOCIAL CHALLENGES OF THEIR TIMES. | CH3: 0 | CI3: 0 | CJ3: 18716301 | CK3: 18716301 | CL3: STUDENT AID ENCOMPASSES DIRECT FINANCIAL AID PROVIDED BY THE COLLEGE TO FACILITATE ITS STUDENTS' PURSUIT OF A COLLEGE EDUCATION. | CM3: 13788795 | CN3: 0 | CO3: 30344801 | CP3: INSTRUCTION IS PROVIDED BY FULL-TIME FACULTY AND PART-TIME FACULTY MEMBERS REPRESENTING NUMEROUS ACADEMIC DEPARTMENTS. | CQ3: 6524141 | CR3: 0 | CS3: 0 | CT3: ACADEMIC SUPPORT COMPRISES INFORMATION TECHNOLOGY SERVICES, REGISTRAR, ACADEMIC ADVISING, FACULTY SERVICES, LIBRARY, ETC. THESE ADMINISTRATIVE OFFICES ASSIST THE COLLEGE IN ITS EDUCATIONAL MISSION. | CU3: 7728841 | CV3: 86874 | CW3: 9686083 | CX3: 7728841 | CY3: 86874 | CZ3: 9686083 | DA3: 46758078 | DB3: 1 | DC3: RetDoc1039100001 | DD3: 1 | DE3: RetDoc1234500001 | DF3: 0 | DG3: 0 | DH3: 0 | DI3: 0 | DJ3: RetDoc1040000001 | DK3: 0 | DL3: RetDoc1040000001 | DM3: 1 | DN3: RetDoc1040000001 | DO3: 0 | DP3: RetDoc1040000001 | DQ3: 1 | DR3: RetDoc1040000001 | DS3: 1 | DT3: RetDoc1040000001 | DU3: 1 | DV3: RetDoc1040000001 | DW3: 0 | DX3: RetDoc1040000001 | DY3: 0 | DZ3: RetDoc1040000001 | EA3: 1 | EB3: RetDoc1040000001 | EC3: 1 | ED3: RetDoc1040000001 | EE3: 0 | EF3: RetDoc1040000001 | EG3: 1 | EH3: RetDoc1040000001 | EI3: 1 | EJ3: RetDoc1040400001 | EK3: 0 | EL3: 1 | EM3: RetDoc1040500001 | EN3: 0 | EO3: RetDoc1040500001 | EP3: 0 | EQ3: RetDoc1040500001 | ER3: 0 | ES3: 0 | ET3: 0 | EU3: 0 | EV3: 1 | EW3: RetDoc1041900001 | EX3: 1 | EY3: RetDoc1041900001 | EZ3: 1 | FA3: RetDoc1042400001 | FB3: 1 | FC3: RetDoc1053100001 | FD3: 0 | FE3: 0 | FF3: 0 | FG3: 0 | FH3: 0 | FI3: 0 | FJ3: 0 | FK3: 0 | FL3: 0 | FM3: 0 | FN3: 1 | FO3: RetDoc1042900001 | FP3: 0 | FQ3: RetDoc1042900001 | FR3: 0 | FS3: 0 | FT3: 0 | FU3: RetDoc1043400001 | FV3: 1 | FW3: RetDoc1043400001 | FX3: 0 | FY3: 0 | FZ3: RetDoc1043400001 | GA3: 0 | GB3: RetDoc1043400001 | GC3: 1 | GD3: 146 | GE3: 0 | GF3: 1 | GG3: 961 | GH3: 0 | GI3: 1 | GJ3: 1 | GK3: 0 | GL3: 0 | GM3: 0 | GN3: 0 | GO3: 0 | GP3: 0 | GQ3: 0 | GR3: 0 | GS3: 0 | GT3: X | GU3: 31 | GV3: 31 | GW3: 0 | GX3: 0 | GY3: 0 | GZ3: 0 | HA3: 0 | HB3: 0 | HC3: 0 | HD3: 1 | HE3: 1 | HF3: 0 | HG3: 0 | HH3: 1 | HI3: 1 | HJ3: 1 | HK3: 1 | HL3: 1 | HM3: 1 | HN3: 1 | HO3: 1 | HP3: 0 | HQ3: NY | HR3: X | HS3: LAI CHAN CONTROLLER | HT3: 4044716308 | HU3: 141 EAST COLLEGE AVENUE | HV3: DECATUR | HW3: GA | HX3: 30030 | IH3: 1641191 | II3: 0 | IJ3: 324250 | IK3: 11 | IL3: 0 | IM3: 1 | IN3: 0 | IV3: 7 | IW3: 14657044 | IX3: 2568431 | IY3: 14657044 | IZ3: TUITION & FEE INCOME | JA3: 611600 | JB3: 30344801 | JC3: 30344801 | JD3: 30344801 | JE3: 3007830 | JF3: -760612 | JG3: 3768442 | JH3: 574009 | JI3: 233936 | JJ3: 340073 | JK3: 340073 | JL3: 340073 | JM3: 134733439 | JN3: 1255082 | JO3: 122880403 | JP3: 207570 | JQ3: 11853036 | JR3: 1047512 | JS3: 12900548 | JT3: 12900548 | JZ3: 69725 | KA3: 69725 | KB3: 8999877 | KC3: 70250173 | KD3: 38983371 | KE3: -399305 | KF3: 17009063 | KG3: 86874 | KH3: 86874 | KI3: 18716301 | KJ3: 18716301 | KK3: 992132 | KL3: 408768 | KM3: 430886 | KN3: 152478 | KO3: 16953243 | KP3: 12429905 | KQ3: 3233423 | KR3: 1289915 | KS3: 822868 | KT3: 574485 | KU3: 181441 | KV3: 66942 | KW3: 2252122 | KX3: 1311519 | KY3: 751957 | KZ3: 188646 | LA3: 1243094 | LB3: 893836 | LC3: 255371 | LD3: 93887 | LE3: 58849 | LF3: 58849 | LG3: 249260 | LH3: 249260 | LI3: 3831158 | LJ3: 3831158 | LK3: 5227678 | LL3: 1508386 | LM3: 3492122 | LN3: 227170 | LO3: 3139770 | LP3: 2090453 | LQ3: 839923 | LR3: 209394 | LS3: 162108 | LT3: 93180 | LU3: 50928 | LV3: 18000 | LW3: 1052126 | LX3: 908506 | LY3: 53608 | LZ3: 90012 | MA3: 316801 | MB3: 219125 | MC3: 93288 | MD3: 4388 | ME3: 1972010 | MF3: 1096440 | MG3: 875570 | MH3: 4336643 | MI3: 2411179 | MJ3: 1925464 | MK3: 1400404 | ML3: 890713 | MM3: 509691 | MS3: 340110 | MT3: 238654 | MU3: 101456 | MV3: 68502317 | MW3: 46758078 | MX3: 19282435 | MY3: 2461804 | MZ3: 12399014 | NA3: 15410504 | NB3: 3617523 | NC3: 7147632 | ND3: 231591 | NE3: 274481 | NF3: 1174150 | NG3: 1508180 | NH3: 180680364 | NI3: 74610457 | NJ3: 99297520 | NK3: 106069907 | NL3: 79194985 | NM3: 93071982 | NN3: 176273435 | NO3: 184164810 | NP3: 7674958 | NQ3: 7344837 | NR3: 379863176 | NS3: 414992333 | NT3: 4902704 | NU3: 7888947 | NV3: 891104 | NW3: 744547 | NX3: 66321787 | NY3: 63224623 | NZ3: 1058937 | OA3: 4603656 | OB3: 10946322 | OC3: 11068284 | OD3: 84120854 | OE3: 87530057 | OF3: X | OG3: 51043628 | OH3: 60064599 | OI3: 168083974 | OJ3: 188841091 | OK3: 76614720 | OL3: 78556586 | OM3: 295742322 | ON3: 327462276 | OO3: 379863176 | OP3: 414992333 | OQ3: X | OR3: 1747856 | OS3: 26040018 | OT3: 37161 | OU3: 3894919 | OV3: X | OW3: 0 | OX3: 1 | OY3: X | OZ3: 1 | PA3: 1 | PB3: 1 | PC3: RetDoc1039100001 | PD3: X | PE3: RetDoc1234500001 | PF3: RESTRICTED | PG3: RESTRICTED | PH3: RESTRICTED | PI3: RESTRICTED | PJ3: RESTRICTED | PK3: RESTRICTED | PL3: RESTRICTED | PM3: RESTRICTED | TN3: RetDoc1040500001 | TO3: N/A | TP3: 0 | TQ3: 0 | TR3: 0 | TS3: 0 | TT3: 0 | TU3: 0 | TV3: 0 | TW3: 0 | TX3: 0 | TY3: 1 | TZ3: 0 | UA3: 0 | UB3: 1 | UC3: 0 | UD3: 0
A4: 2013v4.0 | B4: 0 | C4: 2015-05-15T12:21:23-05:00 | D4: 2014-06-30 | E4: 581763439 | F4: WINDHAM BRANNON PC | G4: 3630 PEACHTREE RD NE SUITE 600 | H4: ATLANTA | I4: GA | J4: 30326 | K4: 990 | L4: 2013-07-01 | M4: 580566116 | N4: AGNES SCOTT COLLEGE | O4: AGNE | P4: 4044716308 | Q4: 141 EAST COLLEGE AVENUE | R4: DECATUR | S4: GA | T4: 30030 | U4: JOHN P HEGMAN | V4: VP FOR BUSINESS & FINANCE | W4: 4044716308 | X4: 2015-05-04 | Y4: 1 | Z4: CARLYE W DOOLEY | AA4: P00292964 | AB4: 4048982000 | AC4: 2015-05-04 | AD4: 2013 | AE4: 2016-02-25 16:41:14Z | AF4: 12 | AG4: RetDoc1038000001 | AH4: RetDoc1044400001 | AI4: ELIZABETH KISS | AJ4: 141 EAST COLLEGE AVENUE | AK4: DECATUR | AL4: GA | AM4: 30030 | AN4: 193572082 | AO4: 0 | AP4: X | AQ4: WWW.AGNESSCOTT.EDU | AR4: X | AS4: 1889 | AT4: GA | AU4: A PRIVATE LIBERAL ARTS COLLEGE WITH THE MISSION TO EDUCATE WOMEN TO THINK DEEPLY, LIVE HONORABLY AND ENGAGE THE INTELLECTUAL AND SOCIAL CHALLENGES OF THEIR TIMES. | AV4: 31 | AW4: 31 | AX4: 961 | AY4: 695 | AZ4: -399305 | BA4: -726713 | BB4: 6466087 | BC4: 14657044 | BD4: 28366057 | BE4: 30344801 | BF4: 15997222 | BG4: 15908378 | BH4: 9325491 | BI4: 9339950 | BJ4: 60154857 | BK4: 70250173 | BL4: 17611632 | BM4: 18803175 | BN4: 0 | BO4: 0 | BP4: 20405978 | BQ4: 22263459 | BR4: 0 | BS4: 0 | BT4: 2461804 | BU4: 27056111 | BV4: 27435683 | BW4: 65073721 | BX4: 68502317 | BY4: -4918864 | BZ4: 1747856 | CA4: 379863176 | CB4: 414992333 | CC4: 84120854 | CD4: 87530057 | CE4: 295742322 | CF4: 327462276 | CG4: FOUNDED IN 1889, AGNES SCOTT COLLEGE IS AN INDEPENDENT LIBERAL ARTS COLLEGE FOR WOMEN WHOSE MISSION IS TO EDUCATE WOMEN TO THINK DEEPLY, LIVE HONORABLY AND ENGAGE THE INTELLECTUAL AND SOCIAL CHALLENGES OF THEIR TIMES. | CH4: 0 | CI4: 0 | CJ4: 18716301 | CK4: 18716301 | CL4: STUDENT AID ENCOMPASSES DIRECT FINANCIAL AID PROVIDED BY THE COLLEGE TO FACILITATE ITS STUDENTS' PURSUIT OF A COLLEGE EDUCATION. | CM4: 13788795 | CN4: 0 | CO4: 30344801 | CP4: INSTRUCTION IS PROVIDED BY FULL-TIME FACULTY AND PART-TIME FACULTY MEMBERS REPRESENTING NUMEROUS ACADEMIC DEPARTMENTS. | CQ4: 6524141 | CR4: 0 | CS4: 0 | CT4: ACADEMIC SUPPORT COMPRISES INFORMATION TECHNOLOGY SERVICES, REGISTRAR, ACADEMIC ADVISING, FACULTY SERVICES, LIBRARY, ETC. THESE ADMINISTRATIVE OFFICES ASSIST THE COLLEGE IN ITS EDUCATIONAL MISSION. | CU4: 7728841 | CV4: 86874 | CW4: 9686083 | CX4: 7728841 | CY4: 86874 | CZ4: 9686083 | DA4: 46758078 | DB4: 1 | DC4: RetDoc1039100001 | DD4: 1 | DE4: RetDoc1234500001 | DF4: 0 | DG4: 0 | DH4: 0 | DI4: 0 | DJ4: RetDoc1040000001 | DK4: 0 | DL4: RetDoc1040000001 | DM4: 1 | DN4: RetDoc1040000001 | DO4: 0 | DP4: RetDoc1040000001 | DQ4: 1 | DR4: RetDoc1040000001 | DS4: 1 | DT4: RetDoc1040000001 | DU4: 1 | DV4: RetDoc1040000001 | DW4: 0 | DX4: RetDoc1040000001 | DY4: 0 | DZ4: RetDoc1040000001 | EA4: 1 | EB4: RetDoc1040000001 | EC4: 1 | ED4: RetDoc1040000001 | EE4: 0 | EF4: RetDoc1040000001 | EG4: 1 | EH4: RetDoc1040000001 | EI4: 1 | EJ4: RetDoc1040400001 | EK4: 0 | EL4: 1 | EM4: RetDoc1040500001 | EN4: 0 | EO4: RetDoc1040500001 | EP4: 0 | EQ4: RetDoc1040500001 | ER4: 0 | ES4: 0 | ET4: 0 | EU4: 0 | EV4: 1 | EW4: RetDoc1041900001 | EX4: 1 | EY4: RetDoc1041900001 | EZ4: 1 | FA4: RetDoc1042400001 | FB4: 1 | FC4: RetDoc1053100001 | FD4: 0 | FE4: 0 | FF4: 0 | FG4: 0 | FH4: 0 | FI4: 0 | FJ4: 0 | FK4: 0 | FL4: 0 | FM4: 0 | FN4: 1 | FO4: RetDoc1042900001 | FP4: 0 | FQ4: RetDoc1042900001 | FR4: 0 | FS4: 0 | FT4: 0 | FU4: RetDoc1043400001 | FV4: 1 | FW4: RetDoc1043400001 | FX4: 0 | FY4: 0 | FZ4: RetDoc1043400001 | GA4: 0 | GB4: RetDoc1043400001 | GC4: 1 | GD4: 146 | GE4: 0 | GF4: 1 | GG4: 961 | GH4: 0 | GI4: 1 | GJ4: 1 | GK4: 0 | GL4: 0 | GM4: 0 | GN4: 0 | GO4: 0 | GP4: 0 | GQ4: 0 | GR4: 0 | GS4: 0 | GT4: X | GU4: 31 | GV4: 31 | GW4: 0 | GX4: 0 | GY4: 0 | GZ4: 0 | HA4: 0 | HB4: 0 | HC4: 0 | HD4: 1 | HE4: 1 | HF4: 0 | HG4: 0 | HH4: 1 | HI4: 1 | HJ4: 1 | HK4: 1 | HL4: 1 | HM4: 1 | HN4: 1 | HO4: 1 | HP4: 0 | HQ4: CA | HR4: X | HS4: LAI CHAN CONTROLLER | HT4: 4044716308 | HU4: 141 EAST COLLEGE AVENUE | HV4: DECATUR | HW4: GA | HX4: 30030 | IH4: 1641191 | II4: 0 | IJ4: 324250 | IK4: 11 | IL4: 0 | IM4: 1 | IN4: 0 | IV4: 7 | IW4: 14657044 | IX4: 2568431 | IY4: 14657044 | IZ4: TUITION & FEE INCOME | JA4: 611600 | JB4: 30344801 | JC4: 30344801 | JD4: 30344801 | JE4: 3007830 | JF4: -760612 | JG4: 3768442 | JH4: 574009 | JI4: 233936 | JJ4: 340073 | JK4: 340073 | JL4: 340073 | JM4: 134733439 | JN4: 1255082 | JO4: 122880403 | JP4: 207570 | JQ4: 11853036 | JR4: 1047512 | JS4: 12900548 | JT4: 12900548 | JZ4: 69725 | KA4: 69725 | KB4: 8999877 | KC4: 70250173 | KD4: 38983371 | KE4: -399305 | KF4: 17009063 | KG4: 86874 | KH4: 86874 | KI4: 18716301 | KJ4: 18716301 | KK4: 992132 | KL4: 408768 | KM4: 430886 | KN4: 152478 | KO4: 16953243 | KP4: 12429905 | KQ4: 3233423 | KR4: 1289915 | KS4: 822868 | KT4: 574485 | KU4: 181441 | KV4: 66942 | KW4: 2252122 | KX4: 1311519 | KY4: 751957 | KZ4: 188646 | LA4: 1243094 | LB4: 893836 | LC4: 255371 | LD4: 93887 | LE4: 58849 | LF4: 58849 | LG4: 249260 | LH4: 249260 | LI4: 3831158 | LJ4: 3831158 | LK4: 5227678 | LL4: 1508386 | LM4: 3492122 | LN4: 227170 | LO4: 3139770 | LP4: 2090453 | LQ4: 839923 | LR4: 209394 | LS4: 162108 | LT4: 93180 | LU4: 50928 | LV4: 18000 | LW4: 1052126 | LX4: 908506 | LY4: 53608 | LZ4: 90012 | MA4: 316801 | MB4: 219125 | MC4: 93288 | MD4: 4388 | ME4: 1972010 | MF4: 1096440 | MG4: 875570 | MH4: 4336643 | MI4: 2411179 | MJ4: 1925464 | MK4: 1400404 | ML4: 890713 | MM4: 509691 | MS4: 340110 | MT4: 238654 | MU4: 101456 | MV4: 68502317 | MW4: 46758078 | MX4: 19282435 | MY4: 2461804 | MZ4: 12399014 | NA4: 15410504 | NB4: 3617523 | NC4: 7147632 | ND4: 231591 | NE4: 274481 | NF4: 1174150 | NG4: 1508180 | NH4: 180680364 | NI4: 74610457 | NJ4: 99297520 | NK4: 106069907 | NL4: 79194985 | NM4: 93071982 | NN4: 176273435 | NO4: 184164810 | NP4: 7674958 | NQ4: 7344837 | NR4: 379863176 | NS4: 414992333 | NT4: 4902704 | NU4: 7888947 | NV4: 891104 | NW4: 744547 | NX4: 66321787 | NY4: 63224623 | NZ4: 1058937 | OA4: 4603656 | OB4: 10946322 | OC4: 11068284 | OD4: 84120854 | OE4: 87530057 | OF4: X | OG4: 51043628 | OH4: 60064599 | OI4: 168083974 | OJ4: 188841091 | OK4: 76614720 | OL4: 78556586 | OM4: 295742322 | ON4: 327462276 | OO4: 379863176 | OP4: 414992333 | OQ4: X | OR4: 1747856 | OS4: 26040018 | OT4: 37161 | OU4: 3894919 | OV4: X | OW4: 0 | OX4: 1 | OY4: X | OZ4: 1 | PA4: 1 | PB4: 1 | PC4: RetDoc1039100001 | PD4: X | PE4: RetDoc1234500001 | PF4: RESTRICTED | PG4: RESTRICTED | PH4: RESTRICTED | PI4: RESTRICTED | PJ4: RESTRICTED | PK4: RESTRICTED | PL4: RESTRICTED | PM4: RESTRICTED | TN4: RetDoc1040500001 | TO4: N/A | TP4: 0 | TQ4: 0 | TR4: 0 | TS4: 0 | TT4: 0 | TU4: 0 | TV4: 0 | TW4: 0 | TX4: 0 | TY4: 1 | TZ4: 0 | UA4: 0 | UB4: 1 | UC4: 0 | UD4: 0
A5: 2013v4.0 | B5: 0 | C5: 2015-05-15T12:21:23-05:00 | D5: 2014-06-30 | E5: 581763439 | F5: WINDHAM BRANNON PC | G5: 3630 PEACHTREE RD NE SUITE 600 | H5: ATLANTA | I5: GA | J5: 30326 | K5: 990 | L5: 2013-07-01 | M5: 580566116 | N5: AGNES SCOTT COLLEGE | O5: AGNE | P5: 4044716308 | Q5: 141 EAST COLLEGE AVENUE | R5: DECATUR | S5: GA | T5: 30030 | U5: JOHN P HEGMAN | V5: VP FOR BUSINESS & FINANCE | W5: 4044716308 | X5: 2015-05-04 | Y5: 1 | Z5: CARLYE W DOOLEY | AA5: P00292964 | AB5: 4048982000 | AC5: 2015-05-04 | AD5: 2013 | AE5: 2016-02-25 16:41:14Z | AF5: 12 | AG5: RetDoc1038000001 | AH5: RetDoc1044400001 | AI5: ELIZABETH KISS | AJ5: 141 EAST COLLEGE AVENUE | AK5: DECATUR | AL5: GA | AM5: 30030 | AN5: 193572082 | AO5: 0 | AP5: X | AQ5: WWW.AGNESSCOTT.EDU | AR5: X | AS5: 1889 | AT5: GA | AU5: A PRIVATE LIBERAL ARTS COLLEGE WITH THE MISSION TO EDUCATE WOMEN TO THINK DEEPLY, LIVE HONORABLY AND ENGAGE THE INTELLECTUAL AND SOCIAL CHALLENGES OF THEIR TIMES. | AV5: 31 | AW5: 31 | AX5: 961 | AY5: 695 | AZ5: -399305 | BA5: -726713 | BB5: 6466087 | BC5: 14657044 | BD5: 28366057 | BE5: 30344801 | BF5: 15997222 | BG5: 15908378 | BH5: 9325491 | BI5: 9339950 | BJ5: 60154857 | BK5: 70250173 | BL5: 17611632 | BM5: 18803175 | BN5: 0 | BO5: 0 | BP5: 20405978 | BQ5: 22263459 | BR5: 0 | BS5: 0 | BT5: 2461804 | BU5: 27056111 | BV5: 27435683 | BW5: 65073721 | BX5: 68502317 | BY5: -4918864 | BZ5: 1747856 | CA5: 379863176 | CB5: 414992333 | CC5: 84120854 | CD5: 87530057 | CE5: 295742322 | CF5: 327462276 | CG5: FOUNDED IN 1889, AGNES SCOTT COLLEGE IS AN INDEPENDENT LIBERAL ARTS COLLEGE FOR WOMEN WHOSE MISSION IS TO EDUCATE WOMEN TO THINK DEEPLY, LIVE HONORABLY AND ENGAGE THE INTELLECTUAL AND SOCIAL CHALLENGES OF THEIR TIMES. | CH5: 0 | CI5: 0 | CJ5: 18716301 | CK5: 18716301 | CL5: STUDENT AID ENCOMPASSES DIRECT FINANCIAL AID PROVIDED BY THE COLLEGE TO FACILITATE ITS STUDENTS' PURSUIT OF A COLLEGE EDUCATION. | CM5: 13788795 | CN5: 0 | CO5: 30344801 | CP5: INSTRUCTION IS PROVIDED BY FULL-TIME FACULTY AND PART-TIME FACULTY MEMBERS REPRESENTING NUMEROUS ACADEMIC DEPARTMENTS. | CQ5: 6524141 | CR5: 0 | CS5: 0 | CT5: ACADEMIC SUPPORT COMPRISES INFORMATION TECHNOLOGY SERVICES, REGISTRAR, ACADEMIC ADVISING, FACULTY SERVICES, LIBRARY, ETC. THESE ADMINISTRATIVE OFFICES ASSIST THE COLLEGE IN ITS EDUCATIONAL MISSION. | CU5: 7728841 | CV5: 86874 | CW5: 9686083 | CX5: 7728841 | CY5: 86874 | CZ5: 9686083 | DA5: 46758078 | DB5: 1 | DC5: RetDoc1039100001 | DD5: 1 | DE5: RetDoc1234500001 | DF5: 0 | DG5: 0 | DH5: 0 | DI5: 0 | DJ5: RetDoc1040000001 | DK5: 0 | DL5: RetDoc1040000001 | DM5: 1 | DN5: RetDoc1040000001 | DO5: 0 | DP5: RetDoc1040000001 | DQ5: 1 | DR5: RetDoc1040000001 | DS5: 1 | DT5: RetDoc1040000001 | DU5: 1 | DV5: RetDoc1040000001 | DW5: 0 | DX5: RetDoc1040000001 | DY5: 0 | DZ5: RetDoc1040000001 | EA5: 1 | EB5: RetDoc1040000001 | EC5: 1 | ED5: RetDoc1040000001 | EE5: 0 | EF5: RetDoc1040000001 | EG5: 1 | EH5: RetDoc1040000001 | EI5: 1 | EJ5: RetDoc1040400001 | EK5: 0 | EL5: 1 | EM5: RetDoc1040500001 | EN5: 0 | EO5: RetDoc1040500001 | EP5: 0 | EQ5: RetDoc1040500001 | ER5: 0 | ES5: 0 | ET5: 0 | EU5: 0 | EV5: 1 | EW5: RetDoc1041900001 | EX5: 1 | EY5: RetDoc1041900001 | EZ5: 1 | FA5: RetDoc1042400001 | FB5: 1 | FC5: RetDoc1053100001 | FD5: 0 | FE5: 0 | FF5: 0 | FG5: 0 | FH5: 0 | FI5: 0 | FJ5: 0 | FK5: 0 | FL5: 0 | FM5: 0 | FN5: 1 | FO5: RetDoc1042900001 | FP5: 0 | FQ5: RetDoc1042900001 | FR5: 0 | FS5: 0 | FT5: 0 | FU5: RetDoc1043400001 | FV5: 1 | FW5: RetDoc1043400001 | FX5: 0 | FY5: 0 | FZ5: RetDoc1043400001 | GA5: 0 | GB5: RetDoc1043400001 | GC5: 1 | GD5: 146 | GE5: 0 | GF5: 1 | GG5: 961 | GH5: 0 | GI5: 1 | GJ5: 1 | GK5: 0 | GL5: 0 | GM5: 0 | GN5: 0 | GO5: 0 | GP5: 0 | GQ5: 0 | GR5: 0 | GS5: 0 | GT5: X | GU5: 31 | GV5: 31 | GW5: 0 | GX5: 0 | GY5: 0 | GZ5: 0 | HA5: 0 | HB5: 0 | HC5: 0 | HD5: 1 | HE5: 1 | HF5: 0 | HG5: 0 | HH5: 1 | HI5: 1 | HJ5: 1 | HK5: 1 | HL5: 1 | HM5: 1 | HN5: 1 | HO5: 1 | HP5: 0 | HR5: X | HS5: LAI CHAN CONTROLLER | HT5: 4044716308 | HU5: 141 EAST COLLEGE AVENUE | HV5: DECATUR | HW5: GA | HX5: 30030 | HY5: ANN GLENDINNING | HZ5: TRUSTEE | IA5: 2 | IB5: X | IC5: 0 | ID5: 0 | IE5: 0 | IH5: 1641191 | II5: 0 | IJ5: 324250 | IK5: 11 | IL5: 0 | IM5: 1 | IN5: 0 | IV5: 7 | IW5: 14657044 | IX5: 2568431 | IY5: 14657044 | IZ5: TUITION & FEE INCOME | JA5: 611600 | JB5: 30344801 | JC5: 30344801 | JD5: 30344801 | JE5: 3007830 | JF5: -760612 | JG5: 3768442 | JH5: 574009 | JI5: 233936 | JJ5: 340073 | JK5: 340073 | JL5: 340073 | JM5: 134733439 | JN5: 1255082 | JO5: 122880403 | JP5: 207570 | JQ5: 11853036 | JR5: 1047512 | JS5: 12900548 | JT5: 12900548 | JZ5: 69725 | KA5: 69725 | KB5: 8999877 | KC5: 70250173 | KD5: 38983371 | KE5: -399305 | KF5: 17009063 | KG5: 86874 | KH5: 86874 | KI5: 18716301 | KJ5: 18716301 | KK5: 992132 | KL5: 408768 | KM5: 430886 | KN5: 152478 | KO5: 16953243 | KP5: 12429905 | KQ5: 3233423 | KR5: 1289915 | KS5: 822868 | KT5: 574485 | KU5: 181441 | KV5: 66942 | KW5: 2252122 | KX5: 1311519 | KY5: 751957 | KZ5: 188646 | LA5: 1243094 | LB5: 893836 | LC5: 255371 | LD5: 93887 | LE5: 58849 | LF5: 58849 | LG5: 249260 | LH5: 249260 | LI5: 3831158 | LJ5: 3831158 | LK5: 5227678 | LL5: 1508386 | LM5: 3492122 | LN5: 227170 | LO5: 3139770 | LP5: 2090453 | LQ5: 839923 | LR5: 209394 | LS5: 162108 | LT5: 93180 | LU5: 50928 | LV5: 18000 | LW5: 1052126 | LX5: 908506 | LY5: 53608 | LZ5: 90012 | MA5: 316801 | MB5: 219125 | MC5: 93288 | MD5: 4388 | ME5: 1972010 | MF5: 1096440 | MG5: 875570 | MH5: 4336643 | MI5: 2411179 | MJ5: 1925464 | MK5: 1400404 | ML5: 890713 | MM5: 509691 | MS5: 340110 | MT5: 238654 | MU5: 101456 | MV5: 68502317 | MW5: 46758078 | MX5: 19282435 | MY5: 2461804 | MZ5: 12399014 | NA5: 15410504 | NB5: 3617523 | NC5: 7147632 | ND5: 231591 | NE5: 274481 | NF5: 1174150 | NG5: 1508180 | NH5: 180680364 | NI5: 74610457 | NJ5: 99297520 | NK5: 106069907 | NL5: 79194985 | NM5: 93071982 | NN5: 176273435 | NO5: 184164810 | NP5: 7674958 | NQ5: 7344837 | NR5: 379863176 | NS5: 414992333 | NT5: 4902704 | NU5: 7888947 | NV5: 891104 | NW5: 744547 | NX5: 66321787 | NY5: 63224623 | NZ5: 1058937 | OA5: 4603656 | OB5: 10946322 | OC5: 11068284 | OD5: 84120854 | OE5: 87530057 | OF5: X | OG5: 51043628 | OH5: 60064599 | OI5: 168083974 | OJ5: 188841091 | OK5: 76614720 | OL5: 78556586 | OM5: 295742322 | ON5: 327462276 | OO5: 379863176 | OP5: 414992333 | OQ5: X | OR5: 1747856 | OS5: 26040018 | OT5: 37161 | OU5: 3894919 | OV5: X | OW5: 0 | OX5: 1 | OY5: X | OZ5: 1 | PA5: 1 | PB5: 1 | PC5: RetDoc1039100001 | PD5: X | PE5: RetDoc1234500001 | PF5: RESTRICTED | PG5: RESTRICTED | PH5: RESTRICTED | PI5: RESTRICTED | PJ5: RESTRICTED | PK5: RESTRICTED | PL5: RESTRICTED | PM5: RESTRICTED | TN5: RetDoc1040500001 | TO5: N/A | TP5: 0 | TQ5: 0 | TR5: 0 | TS5: 0 | TT5: 0 | TU5: 0 | TV5: 0 | TW5: 0 | TX5: 0 | TY5: 1 | TZ5: 0 | UA5: 0 | UB5: 1 | UC5: 0 | UD5: 0
A6: 2013v4.0 | B6: 0 | C6: 2015-05-15T12:21:23-05:00 | D6: 2014-06-30 | E6: 581763439 | F6: WINDHAM BRANNON PC | G6: 3630 PEACHTREE RD NE SUITE 600 | H6: ATLANTA | I6: GA | J6: 30326 | K6: 990 | L6: 2013-07-01 | M6: 580566116 | N6: AGNES SCOTT COLLEGE | O6: AGNE | P6: 4044716308 | Q6: 141 EAST COLLEGE AVENUE | R6: DECATUR | S6: GA | T6: 30030 | U6: JOHN P HEGMAN | V6: VP FOR BUSINESS & FINANCE | W6: 4044716308 | X6: 2015-05-04 | Y6: 1 | Z6: CARLYE W DOOLEY | AA6: P00292964 | AB6: 4048982000 | AC6: 2015-05-04 | AD6: 2013 | AE6: 2016-02-25 16:41:14Z | AF6: 12 | AG6: RetDoc1038000001 | AH6: RetDoc1044400001 | AI6: ELIZABETH KISS | AJ6: 141 EAST COLLEGE AVENUE | AK6: DECATUR | AL6: GA | AM6: 30030 | AN6: 193572082 | AO6: 0 | AP6: X | AQ6: WWW.AGNESSCOTT.EDU | AR6: X | AS6: 1889 | AT6: GA | AU6: A PRIVATE LIBERAL ARTS COLLEGE WITH THE MISSION TO EDUCATE WOMEN TO THINK DEEPLY, LIVE HONORABLY AND ENGAGE THE INTELLECTUAL AND SOCIAL CHALLENGES OF THEIR TIMES. | AV6: 31 | AW6: 31 | AX6: 961 | AY6: 695 | AZ6: -399305 | BA6: -726713 | BB6: 6466087 | BC6: 14657044 | BD6: 28366057 | BE6: 30344801 | BF6: 15997222 | BG6: 15908378 | BH6: 9325491 | BI6: 9339950 | BJ6: 60154857 | BK6: 70250173 | BL6: 17611632 | BM6: 18803175 | BN6: 0 | BO6: 0 | BP6: 20405978 | BQ6: 22263459 | BR6: 0 | BS6: 0 | BT6: 2461804 | BU6: 27056111 | BV6: 27435683 | BW6: 65073721 | BX6: 68502317 | BY6: -4918864 | BZ6: 1747856 | CA6: 379863176 | CB6: 414992333 | CC6: 84120854 | CD6: 87530057 | CE6: 295742322 | CF6: 327462276 | CG6: FOUNDED IN 1889, AGNES SCOTT COLLEGE IS AN INDEPENDENT LIBERAL ARTS COLLEGE FOR WOMEN WHOSE MISSION IS TO EDUCATE WOMEN TO THINK DEEPLY, LIVE HONORABLY AND ENGAGE THE INTELLECTUAL AND SOCIAL CHALLENGES OF THEIR TIMES. | CH6: 0 | CI6: 0 | CJ6: 18716301 | CK6: 18716301 | CL6: STUDENT AID ENCOMPASSES DIRECT FINANCIAL AID PROVIDED BY THE COLLEGE TO FACILITATE ITS STUDENTS' PURSUIT OF A COLLEGE EDUCATION. | CM6: 13788795 | CN6: 0 | CO6: 30344801 | CP6: INSTRUCTION IS PROVIDED BY FULL-TIME FACULTY AND PART-TIME FACULTY MEMBERS REPRESENTING NUMEROUS ACADEMIC DEPARTMENTS. | CQ6: 6524141 | CR6: 0 | CS6: 0 | CT6: ACADEMIC SUPPORT COMPRISES INFORMATION TECHNOLOGY SERVICES, REGISTRAR, ACADEMIC ADVISING, FACULTY SERVICES, LIBRARY, ETC. THESE ADMINISTRATIVE OFFICES ASSIST THE COLLEGE IN ITS EDUCATIONAL MISSION. | CU6: 7728841 | CV6: 86874 | CW6: 9686083 | CX6: 7728841 | CY6: 86874 | CZ6: 9686083 | DA6: 46758078 | DB6: 1 | DC6: RetDoc1039100001 | DD6: 1 | DE6: RetDoc1234500001 | DF6: 0 | DG6: 0 | DH6: 0 | DI6: 0 | DJ6: RetDoc1040000001 | DK6: 0 | DL6: RetDoc1040000001 | DM6: 1 | DN6: RetDoc1040000001 | DO6: 0 | DP6: RetDoc1040000001 | DQ6: 1 | DR6: RetDoc1040000001 | DS6: 1 | DT6: RetDoc1040000001 | DU6: 1 | DV6: RetDoc1040000001 | DW6: 0 | DX6: RetDoc1040000001 | DY6: 0 | DZ6: RetDoc1040000001 | EA6: 1 | EB6: RetDoc1040000001 | EC6: 1 | ED6: RetDoc1040000001 | EE6: 0 | EF6: RetDoc1040000001 | EG6: 1 | EH6: RetDoc1040000001 | EI6: 1 | EJ6: RetDoc1040400001 | EK6: 0 | EL6: 1 | EM6: RetDoc1040500001 | EN6: 0 | EO6: RetDoc1040500001 | EP6: 0 | EQ6: RetDoc1040500001 | ER6: 0 | ES6: 0 | ET6: 0 | EU6: 0 | EV6: 1 | EW6: RetDoc1041900001 | EX6: 1 | EY6: RetDoc1041900001 | EZ6: 1 | FA6: RetDoc1042400001 | FB6: 1 | FC6: RetDoc1053100001 | FD6: 0 | FE6: 0 | FF6: 0 | FG6: 0 | FH6: 0 | FI6: 0 | FJ6: 0 | FK6: 0 | FL6: 0 | FM6: 0 | FN6: 1 | FO6: RetDoc1042900001 | FP6: 0 | FQ6: RetDoc1042900001 | FR6: 0 | FS6: 0 | FT6: 0 | FU6: RetDoc1043400001 | FV6: 1 | FW6: RetDoc1043400001 | FX6: 0 | FY6: 0 | FZ6: RetDoc1043400001 | GA6: 0 | GB6: RetDoc1043400001 | GC6: 1 | GD6: 146 | GE6: 0 | GF6: 1 | GG6: 961 | GH6: 0 | GI6: 1 | GJ6: 1 | GK6: 0 | GL6: 0 | GM6: 0 | GN6: 0 | GO6: 0 | GP6: 0 | GQ6: 0 | GR6: 0 | GS6: 0 | GT6: X | GU6: 31 | GV6: 31 | GW6: 0 | GX6: 0 | GY6: 0 | GZ6: 0 | HA6: 0 | HB6: 0 | HC6: 0 | HD6: 1 | HE6: 1 | HF6: 0 | HG6: 0 | HH6: 1 | HI6: 1 | HJ6: 1 | HK6: 1 | HL6: 1 | HM6: 1 | HN6: 1 | HO6: 1 | HP6: 0 | HR6: X | HS6: LAI CHAN CONTROLLER | HT6: 4044716308 | HU6: 141 EAST COLLEGE AVENUE | HV6: DECATUR | HW6: GA | HX6: 30030 | HY6: BERNARD TAYLOR SR | HZ6: TRUSTEE | IA6: 2 | IB6: X | IC6: 0 | ID6: 0 | IE6: 0 | IH6: 1641191 | II6: 0 | IJ6: 324250 | IK6: 11 | IL6: 0 | IM6: 1 | IN6: 0 | IV6: 7 | IW6: 14657044 | IX6: 2568431 | IY6: 14657044 | IZ6: TUITION & FEE INCOME | JA6: 611600 | JB6: 30344801 | JC6: 30344801 | JD6: 30344801 | JE6: 3007830 | JF6: -760612 | JG6: 3768442 | JH6: 574009 | JI6: 233936 | JJ6: 340073 | JK6: 340073 | JL6: 340073 | JM6: 134733439 | JN6: 1255082 | JO6: 122880403 | JP6: 207570 | JQ6: 11853036 | JR6: 1047512 | JS6: 12900548 | JT6: 12900548 | JZ6: 69725 | KA6: 69725 | KB6: 8999877 | KC6: 70250173 | KD6: 38983371 | KE6: -399305 | KF6: 17009063 | KG6: 86874 | KH6: 86874 | KI6: 18716301 | KJ6: 18716301 | KK6: 992132 | KL6: 408768 | KM6: 430886 | KN6: 152478 | KO6: 16953243 | KP6: 12429905 | KQ6: 3233423 | KR6: 1289915 | KS6: 822868 | KT6: 574485 | KU6: 181441 | KV6: 66942 | KW6: 2252122 | KX6: 1311519 | KY6: 751957 | KZ6: 188646 | LA6: 1243094 | LB6: 893836 | LC6: 255371 | LD6: 93887 | LE6: 58849 | LF6: 58849 | LG6: 249260 | LH6: 249260 | LI6: 3831158 | LJ6: 3831158 | LK6: 5227678 | LL6: 1508386 | LM6: 3492122 | LN6: 227170 | LO6: 3139770 | LP6: 2090453 | LQ6: 839923 | LR6: 209394 | LS6: 162108 | LT6: 93180 | LU6: 50928 | LV6: 18000 | LW6: 1052126 | LX6: 908506 | LY6: 53608 | LZ6: 90012 | MA6: 316801 | MB6: 219125 | MC6: 93288 | MD6: 4388 | ME6: 1972010 | MF6: 1096440 | MG6: 875570 | MH6: 4336643 | MI6: 2411179 | MJ6: 1925464 | MK6: 1400404 | ML6: 890713 | MM6: 509691 | MS6: 340110 | MT6: 238654 | MU6: 101456 | MV6: 68502317 | MW6: 46758078 | MX6: 19282435 | MY6: 2461804 | MZ6: 12399014 | NA6: 15410504 | NB6: 3617523 | NC6: 7147632 | ND6: 231591 | NE6: 274481 | NF6: 1174150 | NG6: 1508180 | NH6: 180680364 | NI6: 74610457 | NJ6: 99297520 | NK6: 106069907 | NL6: 79194985 | NM6: 93071982 | NN6: 176273435 | NO6: 184164810 | NP6: 7674958 | NQ6: 7344837 | NR6: 379863176 | NS6: 414992333 | NT6: 4902704 | NU6: 7888947 | NV6: 891104 | NW6: 744547 | NX6: 66321787 | NY6: 63224623 | NZ6: 1058937 | OA6: 4603656 | OB6: 10946322 | OC6: 11068284 | OD6: 84120854 | OE6: 87530057 | OF6: X | OG6: 51043628 | OH6: 60064599 | OI6: 168083974 | OJ6: 188841091 | OK6: 76614720 | OL6: 78556586 | OM6: 295742322 | ON6: 327462276 | OO6: 379863176 | OP6: 414992333 | OQ6: X | OR6: 1747856 | OS6: 26040018 | OT6: 37161 | OU6: 3894919 | OV6: X | OW6: 0 | OX6: 1 | OY6: X | OZ6: 1 | PA6: 1 | PB6: 1 | PC6: RetDoc1039100001 | PD6: X | PE6: RetDoc1234500001 | PF6: RESTRICTED | PG6: RESTRICTED | PH6: RESTRICTED | PI6: RESTRICTED | PJ6: RESTRICTED | PK6: RESTRICTED | PL6: RESTRICTED | PM6: RESTRICTED | TN6: RetDoc1040500001 | TO6: N/A | TP6: 0 | TQ6: 0 | TR6: 0 | TS6: 0 | TT6: 0 | TU6: 0 | TV6: 0 | TW6: 0 | TX6: 0 | TY6: 1 | TZ6: 0 | UA6: 0 | UB6: 1 | UC6: 0 | UD6: 0
A7: 2013v4.0 | B7: 0 | C7: 2015-05-15T12:21:23-05:00 | D7: 2014-06-30 | E7: 581763439 | F7: WINDHAM BRANNON PC | G7: 3630 PEACHTREE RD NE SUITE 600 | H7: ATLANTA | I7: GA | J7: 30326 | K7: 990 | L7: 2013-07-01 | M7: 580566116 | N7: AGNES SCOTT COLLEGE | O7: AGNE | P7: 4044716308 | Q7: 141 EAST COLLEGE AVENUE | R7: DECATUR | S7: GA | T7: 30030 | U7: JOHN P HEGMAN | V7: VP FOR BUSINESS & FINANCE | W7: 4044716308 | X7: 2015-05-04 | Y7: 1 | Z7: CARLYE W DOOLEY | AA7: P00292964 | AB7: 4048982000 | AC7: 2015-05-04 | AD7: 2013 | AE7: 2016-02-25 16:41:14Z | AF7: 12 | AG7: RetDoc1038000001 | AH7: RetDoc1044400001 | AI7: ELIZABETH KISS | AJ7: 141 EAST COLLEGE AVENUE | AK7: DECATUR | AL7: GA | AM7: 30030 | AN7: 193572082 | AO7: 0 | AP7: X | AQ7: WWW.AGNESSCOTT.EDU | AR7: X | AS7: 1889 | AT7: GA | AU7: A PRIVATE LIBERAL ARTS COLLEGE WITH THE MISSION TO EDUCATE WOMEN TO THINK DEEPLY, LIVE HONORABLY AND ENGAGE THE INTELLECTUAL AND SOCIAL CHALLENGES OF THEIR TIMES. | AV7: 31 | AW7: 31 | AX7: 961 | AY7: 695 | AZ7: -399305 | BA7: -726713 | BB7: 6466087 | BC7: 14657044 | BD7: 28366057 | BE7: 30344801 | BF7: 15997222 | BG7: 15908378 | BH7: 9325491 | BI7: 9339950 | BJ7: 60154857 | BK7: 70250173 | BL7: 17611632 | BM7: 18803175 | BN7: 0 | BO7: 0 | BP7: 20405978 | BQ7: 22263459 | BR7: 0 | BS7: 0 | BT7: 2461804 | BU7: 27056111 | BV7: 27435683 | BW7: 65073721 | BX7: 68502317 | BY7: -4918864 | BZ7: 1747856 | CA7: 379863176 | CB7: 414992333 | CC7: 84120854 | CD7: 87530057 | CE7: 295742322 | CF7: 327462276 | CG7: FOUNDED IN 1889, AGNES SCOTT COLLEGE IS AN INDEPENDENT LIBERAL ARTS COLLEGE FOR WOMEN WHOSE MISSION IS TO EDUCATE WOMEN TO THINK DEEPLY, LIVE HONORABLY AND ENGAGE THE INTELLECTUAL AND SOCIAL CHALLENGES OF THEIR TIMES. | CH7: 0 | CI7: 0 | CJ7: 18716301 | CK7: 18716301 | CL7: STUDENT AID ENCOMPASSES DIRECT FINANCIAL AID PROVIDED BY THE COLLEGE TO FACILITATE ITS STUDENTS' PURSUIT OF A COLLEGE EDUCATION. | CM7: 13788795 | CN7: 0 | CO7: 30344801 | CP7: INSTRUCTION IS PROVIDED BY FULL-TIME FACULTY AND PART-TIME FACULTY MEMBERS REPRESENTING NUMEROUS ACADEMIC DEPARTMENTS. | CQ7: 6524141 | CR7: 0 | CS7: 0 | CT7: ACADEMIC SUPPORT COMPRISES INFORMATION TECHNOLOGY SERVICES, REGISTRAR, ACADEMIC ADVISING, FACULTY SERVICES, LIBRARY, ETC. THESE ADMINISTRATIVE OFFICES ASSIST THE COLLEGE IN ITS EDUCATIONAL MISSION. | CU7: 7728841 | CV7: 86874 | CW7: 9686083 | CX7: 7728841 | CY7: 86874 | CZ7: 9686083 | DA7: 46758078 | DB7: 1 | DC7: RetDoc1039100001 | DD7: 1 | DE7: RetDoc1234500001 | DF7: 0 | DG7: 0 | DH7: 0 | DI7: 0 | DJ7: RetDoc1040000001 | DK7: 0 | DL7: RetDoc1040000001 | DM7: 1 | DN7: RetDoc1040000001 | DO7: 0 | DP7: RetDoc1040000001 | DQ7: 1 | DR7: RetDoc1040000001 | DS7: 1 | DT7: RetDoc1040000001 | DU7: 1 | DV7: RetDoc1040000001 | DW7: 0 | DX7: RetDoc1040000001 | DY7: 0 | DZ7: RetDoc1040000001 | EA7: 1 | EB7: RetDoc1040000001 | EC7: 1 | ED7: RetDoc1040000001 | EE7: 0 | EF7: RetDoc1040000001 | EG7: 1 | EH7: RetDoc1040000001 | EI7: 1 | EJ7: RetDoc1040400001 | EK7: 0 | EL7: 1 | EM7: RetDoc1040500001 | EN7: 0 | EO7: RetDoc1040500001 | EP7: 0 | EQ7: RetDoc1040500001 | ER7: 0 | ES7: 0 | ET7: 0 | EU7: 0 | EV7: 1 | EW7: RetDoc1041900001 | EX7: 1 | EY7: RetDoc1041900001 | EZ7: 1 | FA7: RetDoc1042400001 | FB7: 1 | FC7: RetDoc1053100001 | FD7: 0 | FE7: 0 | FF7: 0 | FG7: 0 | FH7: 0 | FI7: 0 | FJ7: 0 | FK7: 0 | FL7: 0 | FM7: 0 | FN7: 1 | FO7: RetDoc1042900001 | FP7: 0 | FQ7: RetDoc1042900001 | FR7: 0 | FS7: 0 | FT7: 0 | FU7: RetDoc1043400001 | FV7: 1 | FW7: RetDoc1043400001 | FX7: 0 | FY7: 0 | FZ7: RetDoc1043400001 | GA7: 0 | GB7: RetDoc1043400001 | GC7: 1 | GD7: 146 | GE7: 0 | GF7: 1 | GG7: 961 | GH7: 0 | GI7: 1 | GJ7: 1 | GK7: 0 | GL7: 0 | GM7: 0 | GN7: 0 | GO7: 0 | GP7: 0 | GQ7: 0 | GR7: 0 | GS7: 0 | GT7: X | GU7: 31 | GV7: 31 | GW7: 0 | GX7: 0 | GY7: 0 | GZ7: 0 | HA7: 0 | HB7: 0 | HC7: 0 | HD7: 1 | HE7: 1 | HF7: 0 | HG7: 0 | HH7: 1 | HI7: 1 | HJ7: 1 | HK7: 1 | HL7: 1 | HM7: 1 | HN7: 1 | HO7: 1 | HP7: 0 | HR7: X | HS7: LAI CHAN CONTROLLER | HT7: 4044716308 | HU7: 141 EAST COLLEGE AVENUE | HV7: DECATUR | HW7: GA | HX7: 30030 | HY7: BERNIE TODD SMITH | HZ7: TRUSTEE | IA7: 2 | IB7: X | IC7: 0 | ID7: 0 | IE7: 0 | IH7: 1641191 | II7: 0 | IJ7: 324250 | IK7: 11 | IL7: 0 | IM7: 1 | IN7: 0 | IV7: 7 | IW7: 14657044 | IX7: 2568431 | IY7: 14657044 | IZ7: TUITION & FEE INCOME | JA7: 611600 | JB7: 30344801 | JC7: 30344801 | JD7: 30344801 | JE7: 3007830 | JF7: -760612 | JG7: 3768442 | JH7: 574009 | JI7: 233936 | JJ7: 340073 | JK7: 340073 | JL7: 340073 | JM7: 134733439 | JN7: 1255082 | JO7: 122880403 | JP7: 207570 | JQ7: 11853036 | JR7: 1047512 | JS7: 12900548 | JT7: 12900548 | JZ7: 69725 | KA7: 69725 | KB7: 8999877 | KC7: 70250173 | KD7: 38983371 | KE7: -399305 | KF7: 17009063 | KG7: 86874 | KH7: 86874 | KI7: 18716301 | KJ7: 18716301 | KK7: 992132 | KL7: 408768 | KM7: 430886 | KN7: 152478 | KO7: 16953243 | KP7: 12429905 | KQ7: 3233423 | KR7: 1289915 | KS7: 822868 | KT7: 574485 | KU7: 181441 | KV7: 66942 | KW7: 2252122 | KX7: 1311519 | KY7: 751957 | KZ7: 188646 | LA7: 1243094 | LB7: 893836 | LC7: 255371 | LD7: 93887 | LE7: 58849 | LF7: 58849 | LG7: 249260 | LH7: 249260 | LI7: 3831158 | LJ7: 3831158 | LK7: 5227678 | LL7: 1508386 | LM7: 3492122 | LN7: 227170 | LO7: 3139770 | LP7: 2090453 | LQ7: 839923 | LR7: 209394 | LS7: 162108 | LT7: 93180 | LU7: 50928 | LV7: 18000 | LW7: 1052126 | LX7: 908506 | LY7: 53608 | LZ7: 90012 | MA7: 316801 | MB7: 219125 | MC7: 93288 | MD7: 4388 | ME7: 1972010 | MF7: 1096440 | MG7: 875570 | MH7: 4336643 | MI7: 2411179 | MJ7: 1925464 | MK7: 1400404 | ML7: 890713 | MM7: 509691 | MS7: 340110 | MT7: 238654 | MU7: 101456 | MV7: 68502317 | MW7: 46758078 | MX7: 19282435 | MY7: 2461804 | MZ7: 12399014 | NA7: 15410504 | NB7: 3617523 | NC7: 7147632 | ND7: 231591 | NE7: 274481 | NF7: 1174150 | NG7: 1508180 | NH7: 180680364 | NI7: 74610457 | NJ7: 99297520 | NK7: 106069907 | NL7: 79194985 | NM7: 93071982 | NN7: 176273435 | NO7: 184164810 | NP7: 7674958 | NQ7: 7344837 | NR7: 379863176 | NS7: 414992333 | NT7: 4902704 | NU7: 7888947 | NV7: 891104 | NW7: 744547 | NX7: 66321787 | NY7: 63224623 | NZ7: 1058937 | OA7: 4603656 | OB7: 10946322 | OC7: 11068284 | OD7: 84120854 | OE7: 87530057 | OF7: X | OG7: 51043628 | OH7: 60064599 | OI7: 168083974 | OJ7: 188841091 | OK7: 76614720 | OL7: 78556586 | OM7: 295742322 | ON7: 327462276 | OO7: 379863176 | OP7: 414992333 | OQ7: X | OR7: 1747856 | OS7: 26040018 | OT7: 37161 | OU7: 3894919 | OV7: X | OW7: 0 | OX7: 1 | OY7: X | OZ7: 1 | PA7: 1 | PB7: 1 | PC7: RetDoc1039100001 | PD7: X | PE7: RetDoc1234500001 | PF7: RESTRICTED | PG7: RESTRICTED | PH7: RESTRICTED | PI7: RESTRICTED | PJ7: RESTRICTED | PK7: RESTRICTED | PL7: RESTRICTED | PM7: RESTRICTED | TN7: RetDoc1040500001 | TO7: N/A | TP7: 0 | TQ7: 0 | TR7: 0 | TS7: 0 | TT7: 0 | TU7: 0 | TV7: 0 | TW7: 0 | TX7: 0 | TY7: 1 | TZ7: 0 | UA7: 0 | UB7: 1 | UC7: 0 | UD7: 0
A8: 2013v4.0 | B8: 0 | C8: 2015-05-15T12:21:23-05:00 | D8: 2014-06-30 | E8: 581763439 | F8: WINDHAM BRANNON PC | G8: 3630 PEACHTREE RD NE SUITE 600 | H8: ATLANTA | I8: GA | J8: 30326 | K8: 990 | L8: 2013-07-01 | M8: 580566116 | N8: AGNES SCOTT COLLEGE | O8: AGNE | P8: 4044716308 | Q8: 141 EAST COLLEGE AVENUE | R8: DECATUR | S8: GA | T8: 30030 | U8: JOHN P HEGMAN | V8: VP FOR BUSINESS & FINANCE | W8: 4044716308 | X8: 2015-05-04 | Y8: 1 | Z8: CARLYE W DOOLEY | AA8: P00292964 | AB8: 4048982000 | AC8: 2015-05-04 | AD8: 2013 | AE8: 2016-02-25 16:41:14Z | AF8: 12 | AG8: RetDoc1038000001 | AH8: RetDoc1044400001 | AI8: ELIZABETH KISS | AJ8: 141 EAST COLLEGE AVENUE | AK8: DECATUR | AL8: GA | AM8: 30030 | AN8: 193572082 | AO8: 0 | AP8: X | AQ8: WWW.AGNESSCOTT.EDU | AR8: X | AS8: 1889 | AT8: GA | AU8: A PRIVATE LIBERAL ARTS COLLEGE WITH THE MISSION TO EDUCATE WOMEN TO THINK DEEPLY, LIVE HONORABLY AND ENGAGE THE INTELLECTUAL AND SOCIAL CHALLENGES OF THEIR TIMES. | AV8: 31 | AW8: 31 | AX8: 961 | AY8: 695 | AZ8: -399305 | BA8: -726713 | BB8: 6466087 | BC8: 14657044 | BD8: 28366057 | BE8: 30344801 | BF8: 15997222 | BG8: 15908378 | BH8: 9325491 | BI8: 9339950 | BJ8: 60154857 | BK8: 70250173 | BL8: 17611632 | BM8: 18803175 | BN8: 0 | BO8: 0 | BP8: 20405978 | BQ8: 22263459 | BR8: 0 | BS8: 0 | BT8: 2461804 | BU8: 27056111 | BV8: 27435683 | BW8: 65073721 | BX8: 68502317 | BY8: -4918864 | BZ8: 1747856 | CA8: 379863176 | CB8: 414992333 | CC8: 84120854 | CD8: 87530057 | CE8: 295742322 | CF8: 327462276 | CG8: FOUNDED IN 1889, AGNES SCOTT COLLEGE IS AN INDEPENDENT LIBERAL ARTS COLLEGE FOR WOMEN WHOSE MISSION IS TO EDUCATE WOMEN TO THINK DEEPLY, LIVE HONORABLY AND ENGAGE THE INTELLECTUAL AND SOCIAL CHALLENGES OF THEIR TIMES. | CH8: 0 | CI8: 0 | CJ8: 18716301 | CK8: 18716301 | CL8: STUDENT AID ENCOMPASSES DIRECT FINANCIAL AID PROVIDED BY THE COLLEGE TO FACILITATE ITS STUDENTS' PURSUIT OF A COLLEGE EDUCATION. | CM8: 13788795 | CN8: 0 | CO8: 30344801 | CP8: INSTRUCTION IS PROVIDED BY FULL-TIME FACULTY AND PART-TIME FACULTY MEMBERS REPRESENTING NUMEROUS ACADEMIC DEPARTMENTS. | CQ8: 6524141 | CR8: 0 | CS8: 0 | CT8: ACADEMIC SUPPORT COMPRISES INFORMATION TECHNOLOGY SERVICES, REGISTRAR, ACADEMIC ADVISING, FACULTY SERVICES, LIBRARY, ETC. THESE ADMINISTRATIVE OFFICES ASSIST THE COLLEGE IN ITS EDUCATIONAL MISSION. | CU8: 7728841 | CV8: 86874 | CW8: 9686083 | CX8: 7728841 | CY8: 86874 | CZ8: 9686083 | DA8: 46758078 | DB8: 1 | DC8: RetDoc1039100001 | DD8: 1 | DE8: RetDoc1234500001 | DF8: 0 | DG8: 0 | DH8: 0 | DI8: 0 | DJ8: RetDoc1040000001 | DK8: 0 | DL8: RetDoc1040000001 | DM8: 1 | DN8: RetDoc1040000001 | DO8: 0 | DP8: RetDoc1040000001 | DQ8: 1 | DR8: RetDoc1040000001 | DS8: 1 | DT8: RetDoc1040000001 | DU8: 1 | DV8: RetDoc1040000001 | DW8: 0 | DX8: RetDoc1040000001 | DY8: 0 | DZ8: RetDoc1040000001 | EA8: 1 | EB8: RetDoc1040000001 | EC8: 1 | ED8: RetDoc1040000001 | EE8: 0 | EF8: RetDoc1040000001 | EG8: 1 | EH8: RetDoc1040000001 | EI8: 1 | EJ8: RetDoc1040400001 | EK8: 0 | EL8: 1 | EM8: RetDoc1040500001 | EN8: 0 | EO8: RetDoc1040500001 | EP8: 0 | EQ8: RetDoc1040500001 | ER8: 0 | ES8: 0 | ET8: 0 | EU8: 0 | EV8: 1 | EW8: RetDoc1041900001 | EX8: 1 | EY8: RetDoc1041900001 | EZ8: 1 | FA8: RetDoc1042400001 | FB8: 1 | FC8: RetDoc1053100001 | FD8: 0 | FE8: 0 | FF8: 0 | FG8: 0 | FH8: 0 | FI8: 0 | FJ8: 0 | FK8: 0 | FL8: 0 | FM8: 0 | FN8: 1 | FO8: RetDoc1042900001 | FP8: 0 | FQ8: RetDoc1042900001 | FR8: 0 | FS8: 0 | FT8: 0 | FU8: RetDoc1043400001 | FV8: 1 | FW8: RetDoc1043400001 | FX8: 0 | FY8: 0 | FZ8: RetDoc1043400001 | GA8: 0 | GB8: RetDoc1043400001 | GC8: 1 | GD8: 146 | GE8: 0 | GF8: 1 | GG8: 961 | GH8: 0 | GI8: 1 | GJ8: 1 | GK8: 0 | GL8: 0 | GM8: 0 | GN8: 0 | GO8: 0 | GP8: 0 | GQ8: 0 | GR8: 0 | GS8: 0 | GT8: X | GU8: 31 | GV8: 31 | GW8: 0 | GX8: 0 | GY8: 0 | GZ8: 0 | HA8: 0 | HB8: 0 | HC8: 0 | HD8: 1 | HE8: 1 | HF8: 0 | HG8: 0 | HH8: 1 | HI8: 1 | HJ8: 1 | HK8: 1 | HL8: 1 | HM8: 1 | HN8: 1 | HO8: 1 | HP8: 0 | HR8: X | HS8: LAI CHAN CONTROLLER | HT8: 4044716308 | HU8: 141 EAST COLLEGE AVENUE | HV8: DECATUR | HW8: GA | HX8: 30030 | HY8: BOLLING P SPALDING | HZ8: TRUSTEE | IA8: 2 | IB8: X | IC8: 0 | ID8: 0 | IE8: 0 | IH8: 1641191 | II8: 0 | IJ8: 324250 | IK8: 11 | IL8: 0 | IM8: 1 | IN8: 0 | IV8: 7 | IW8: 14657044 | IX8: 2568431 | IY8: 14657044 | IZ8: TUITION & FEE INCOME | JA8: 611600 | JB8: 30344801 | JC8: 30344801 | JD8: 30344801 | JE8: 3007830 | JF8: -760612 | JG8: 3768442 | JH8: 574009 | JI8: 233936 | JJ8: 340073 | JK8: 340073 | JL8: 340073 | JM8: 134733439 | JN8: 1255082 | JO8: 122880403 | JP8: 207570 | JQ8: 11853036 | JR8: 1047512 | JS8: 12900548 | JT8: 12900548 | JZ8: 69725 | KA8: 69725 | KB8: 8999877 | KC8: 70250173 | KD8: 38983371 | KE8: -399305 | KF8: 17009063 | KG8: 86874 | KH8: 86874 | KI8: 18716301 | KJ8: 18716301 | KK8: 992132 | KL8: 408768 | KM8: 430886 | KN8: 152478 | KO8: 16953243 | KP8: 12429905 | KQ8: 3233423 | KR8: 1289915 | KS8: 822868 | KT8: 574485 | KU8: 181441 | KV8: 66942 | KW8: 2252122 | KX8: 1311519 | KY8: 751957 | KZ8: 188646 | LA8: 1243094 | LB8: 893836 | LC8: 255371 | LD8: 93887 | LE8: 58849 | LF8: 58849 | LG8: 249260 | LH8: 249260 | LI8: 3831158 | LJ8: 3831158 | LK8: 5227678 | LL8: 1508386 | LM8: 3492122 | LN8: 227170 | LO8: 3139770 | LP8: 2090453 | LQ8: 839923 | LR8: 209394 | LS8: 162108 | LT8: 93180 | LU8: 50928 | LV8: 18000 | LW8: 1052126 | LX8: 908506 | LY8: 53608 | LZ8: 90012 | MA8: 316801 | MB8: 219125 | MC8: 93288 | MD8: 4388 | ME8: 1972010 | MF8: 1096440 | MG8: 875570 | MH8: 4336643 | MI8: 2411179 | MJ8: 1925464 | MK8: 1400404 | ML8: 890713 | MM8: 509691 | MS8: 340110 | MT8: 238654 | MU8: 101456 | MV8: 68502317 | MW8: 46758078 | MX8: 19282435 | MY8: 2461804 | MZ8: 12399014 | NA8: 15410504 | NB8: 3617523 | NC8: 7147632 | ND8: 231591 | NE8: 274481 | NF8: 1174150 | NG8: 1508180 | NH8: 180680364 | NI8: 74610457 | NJ8: 99297520 | NK8: 106069907 | NL8: 79194985 | NM8: 93071982 | NN8: 176273435 | NO8: 184164810 | NP8: 7674958 | NQ8: 7344837 | NR8: 379863176 | NS8: 414992333 | NT8: 4902704 | NU8: 7888947 | NV8: 891104 | NW8: 744547 | NX8: 66321787 | NY8: 63224623 | NZ8: 1058937 | OA8: 4603656 | OB8: 10946322 | OC8: 11068284 | OD8: 84120854 | OE8: 87530057 | OF8: X | OG8: 51043628 | OH8: 60064599 | OI8: 168083974 | OJ8: 188841091 | OK8: 76614720 | OL8: 78556586 | OM8: 295742322 | ON8: 327462276 | OO8: 379863176 | OP8: 414992333 | OQ8: X | OR8: 1747856 | OS8: 26040018 | OT8: 37161 | OU8: 3894919 | OV8: X | OW8: 0 | OX8: 1 | OY8: X | OZ8: 1 | PA8: 1 | PB8: 1 | PC8: RetDoc1039100001 | PD8: X | PE8: RetDoc1234500001 | PF8: RESTRICTED | PG8: RESTRICTED | PH8: RESTRICTED | PI8: RESTRICTED | PJ8: RESTRICTED | PK8: RESTRICTED | PL8: RESTRICTED | PM8: RESTRICTED | TN8: RetDoc1040500001 | TO8: N/A | TP8: 0 | TQ8: 0 | TR8: 0 | TS8: 0 | TT8: 0 | TU8: 0 | TV8: 0 | TW8: 0 | TX8: 0 | TY8: 1 | TZ8: 0 | UA8: 0 | UB8: 1 | UC8: 0 | UD8: 0
A9: 2013v4.0 | B9: 0 | C9: 2015-05-15T12:21:23-05:00 | D9: 2014-06-30 | E9: 581763439 | F9: WINDHAM BRANNON PC | G9: 3630 PEACHTREE RD NE SUITE 600 | H9: ATLANTA | I9: GA | J9: 30326 | K9: 990 | L9: 2013-07-01 | M9: 580566116 | N9: AGNES SCOTT COLLEGE | O9: AGNE | P9: 4044716308 | Q9: 141 EAST COLLEGE AVENUE | R9: DECATUR | S9: GA | T9: 30030 | U9: JOHN P HEGMAN | V9: VP FOR BUSINESS & FINANCE | W9: 4044716308 | X9: 2015-05-04 | Y9: 1 | Z9: CARLYE W DOOLEY | AA9: P00292964 | AB9: 4048982000 | AC9: 2015-05-04 | AD9: 2013 | AE9: 2016-02-25 16:41:14Z | AF9: 12 | AG9: RetDoc1038000001 | AH9: RetDoc1044400001 | AI9: ELIZABETH KISS | AJ9: 141 EAST COLLEGE AVENUE | AK9: DECATUR | AL9: GA | AM9: 30030 | AN9: 193572082 | AO9: 0 | AP9: X | AQ9: WWW.AGNESSCOTT.EDU | AR9: X | AS9: 1889 | AT9: GA | AU9: A PRIVATE LIBERAL ARTS COLLEGE WITH THE MISSION TO EDUCATE WOMEN TO THINK DEEPLY, LIVE HONORABLY AND ENGAGE THE INTELLECTUAL AND SOCIAL CHALLENGES OF THEIR TIMES. | AV9: 31 | AW9: 31 | AX9: 961 | AY9: 695 | AZ9: -399305 | BA9: -726713 | BB9: 6466087 | BC9: 14657044 | BD9: 28366057 | BE9: 30344801 | BF9: 15997222 | BG9: 15908378 | BH9: 9325491 | BI9: 9339950 | BJ9: 60154857 | BK9: 70250173 | BL9: 17611632 | BM9: 18803175 | BN9: 0 | BO9: 0 | BP9: 20405978 | BQ9: 22263459 | BR9: 0 | BS9: 0 | BT9: 2461804 | BU9: 27056111 | BV9: 27435683 | BW9: 65073721 | BX9: 68502317 | BY9: -4918864 | BZ9: 1747856 | CA9: 379863176 | CB9: 414992333 | CC9: 84120854 | CD9: 87530057 | CE9: 295742322 | CF9: 327462276 | CG9: FOUNDED IN 1889, AGNES SCOTT COLLEGE IS AN INDEPENDENT LIBERAL ARTS COLLEGE FOR WOMEN WHOSE MISSION IS TO EDUCATE WOMEN TO THINK DEEPLY, LIVE HONORABLY AND ENGAGE THE INTELLECTUAL AND SOCIAL CHALLENGES OF THEIR TIMES. | CH9: 0 | CI9: 0 | CJ9: 18716301 | CK9: 18716301 | CL9: STUDENT AID ENCOMPASSES DIRECT FINANCIAL AID PROVIDED BY THE COLLEGE TO FACILITATE ITS STUDENTS' PURSUIT OF A COLLEGE EDUCATION. | CM9: 13788795 | CN9: 0 | CO9: 30344801 | CP9: INSTRUCTION IS PROVIDED BY FULL-TIME FACULTY AND PART-TIME FACULTY MEMBERS REPRESENTING NUMEROUS ACADEMIC DEPARTMENTS. | CQ9: 6524141 | CR9: 0 | CS9: 0 | CT9: ACADEMIC SUPPORT COMPRISES INFORMATION TECHNOLOGY SERVICES, REGISTRAR, ACADEMIC ADVISING, FACULTY SERVICES, LIBRARY, ETC. THESE ADMINISTRATIVE OFFICES ASSIST THE COLLEGE IN ITS EDUCATIONAL MISSION. | CU9: 7728841 | CV9: 86874 | CW9: 9686083 | CX9: 7728841 | CY9: 86874 | CZ9: 9686083 | DA9: 46758078 | DB9: 1 | DC9: RetDoc1039100001 | DD9: 1 | DE9: RetDoc1234500001 | DF9: 0 | DG9: 0 | DH9: 0 | DI9: 0 | DJ9: RetDoc1040000001 | DK9: 0 | DL9: RetDoc1040000001 | DM9: 1 | DN9: RetDoc1040000001 | DO9: 0 | DP9: RetDoc1040000001 | DQ9: 1 | DR9: RetDoc1040000001 | DS9: 1 | DT9: RetDoc1040000001 | DU9: 1 | DV9: RetDoc1040000001 | DW9: 0 | DX9: RetDoc1040000001 | DY9: 0 | DZ9: RetDoc1040000001 | EA9: 1 | EB9: RetDoc1040000001 | EC9: 1 | ED9: RetDoc1040000001 | EE9: 0 | EF9: RetDoc1040000001 | EG9: 1 | EH9: RetDoc1040000001 | EI9: 1 | EJ9: RetDoc1040400001 | EK9: 0 | EL9: 1 | EM9: RetDoc1040500001 | EN9: 0 | EO9: RetDoc1040500001 | EP9: 0 | EQ9: RetDoc1040500001 | ER9: 0 | ES9: 0 | ET9: 0 | EU9: 0 | EV9: 1 | EW9: RetDoc1041900001 | EX9: 1 | EY9: RetDoc1041900001 | EZ9: 1 | FA9: RetDoc1042400001 | FB9: 1 | FC9: RetDoc1053100001 | FD9: 0 | FE9: 0 | FF9: 0 | FG9: 0 | FH9: 0 | FI9: 0 | FJ9: 0 | FK9: 0 | FL9: 0 | FM9: 0 | FN9: 1 | FO9: RetDoc1042900001 | FP9: 0 | FQ9: RetDoc1042900001 | FR9: 0 | FS9: 0 | FT9: 0 | FU9: RetDoc1043400001 | FV9: 1 | FW9: RetDoc1043400001 | FX9: 0 | FY9: 0 | FZ9: RetDoc1043400001 | GA9: 0 | GB9: RetDoc1043400001 | GC9: 1 | GD9: 146 | GE9: 0 | GF9: 1 | GG9: 961 | GH9: 0 | GI9: 1 | GJ9: 1 | GK9: 0 | GL9: 0 | GM9: 0 | GN9: 0 | GO9: 0 | GP9: 0 | GQ9: 0 | GR9: 0 | GS9: 0 | GT9: X | GU9: 31 | GV9: 31 | GW9: 0 | GX9: 0 | GY9: 0 | GZ9: 0 | HA9: 0 | HB9: 0 | HC9: 0 | HD9: 1 | HE9: 1 | HF9: 0 | HG9: 0 | HH9: 1 | HI9: 1 | HJ9: 1 | HK9: 1 | HL9: 1 | HM9: 1 | HN9: 1 | HO9: 1 | HP9: 0 | HR9: X | HS9: LAI CHAN CONTROLLER | HT9: 4044716308 | HU9: 141 EAST COLLEGE AVENUE | HV9: DECATUR | HW9: GA | HX9: 30030 | HY9: CLAIRE HODGES BURDETT | HZ9: TRUSTEE | IA9: 2 | IB9: X | IC9: 0 | ID9: 0 | IE9: 0 | IH9: 1641191 | II9: 0 | IJ9: 324250 | IK9: 11 | IL9: 0 | IM9: 1 | IN9: 0 | IV9: 7 | IW9: 14657044 | IX9: 2568431 | IY9: 14657044 | IZ9: TUITION & FEE INCOME | JA9: 611600 | JB9: 30344801 | JC9: 30344801 | JD9: 30344801 | JE9: 3007830 | JF9: -760612 | JG9: 3768442 | JH9: 574009 | JI9: 233936 | JJ9: 340073 | JK9: 340073 | JL9: 340073 | JM9: 134733439 | JN9: 1255082 | JO9: 122880403 | JP9: 207570 | JQ9: 11853036 | JR9: 1047512 | JS9: 12900548 | JT9: 12900548 | JZ9: 69725 | KA9: 69725 | KB9: 8999877 | KC9: 70250173 | KD9: 38983371 | KE9: -399305 | KF9: 17009063 | KG9: 86874 | KH9: 86874 | KI9: 18716301 | KJ9: 18716301 | KK9: 992132 | KL9: 408768 | KM9: 430886 | KN9: 152478 | KO9: 16953243 | KP9: 12429905 | KQ9: 3233423 | KR9: 1289915 | KS9: 822868 | KT9: 574485 | KU9: 181441 | KV9: 66942 | KW9: 2252122 | KX9: 1311519 | KY9: 751957 | KZ9: 188646 | LA9: 1243094 | LB9: 893836 | LC9: 255371 | LD9: 93887 | LE9: 58849 | LF9: 58849 | LG9: 249260 | LH9: 249260 | LI9: 3831158 | LJ9: 3831158 | LK9: 5227678 | LL9: 1508386 | LM9: 3492122 | LN9: 227170 | LO9: 3139770 | LP9: 2090453 | LQ9: 839923 | LR9: 209394 | LS9: 162108 | LT9: 93180 | LU9: 50928 | LV9: 18000 | LW9: 1052126 | LX9: 908506 | LY9: 53608 | LZ9: 90012 | MA9: 316801 | MB9: 219125 | MC9: 93288 | MD9: 4388 | ME9: 1972010 | MF9: 1096440 | MG9: 875570 | MH9: 4336643 | MI9: 2411179 | MJ9: 1925464 | MK9: 1400404 | ML9: 890713 | MM9: 509691 | MS9: 340110 | MT9: 238654 | MU9: 101456 | MV9: 68502317 | MW9: 46758078 | MX9: 19282435 | MY9: 2461804 | MZ9: 12399014 | NA9: 15410504 | NB9: 3617523 | NC9: 7147632 | ND9: 231591 | NE9: 274481 | NF9: 1174150 | NG9: 1508180 | NH9: 180680364 | NI9: 74610457 | NJ9: 99297520 | NK9: 106069907 | NL9: 79194985 | NM9: 93071982 | NN9: 176273435 | NO9: 184164810 | NP9: 7674958 | NQ9: 7344837 | NR9: 379863176 | NS9: 414992333 | NT9: 4902704 | NU9: 7888947 | NV9: 891104 | NW9: 744547 | NX9: 66321787 | NY9: 63224623 | NZ9: 1058937 | OA9: 4603656 | OB9: 10946322 | OC9: 11068284 | OD9: 84120854 | OE9: 87530057 | OF9: X | OG9: 51043628 | OH9: 60064599 | OI9: 168083974 | OJ9: 188841091 | OK9: 76614720 | OL9: 78556586 | OM9: 295742322 | ON9: 327462276 | OO9: 379863176 | OP9: 414992333 | OQ9: X | OR9: 1747856 | OS9: 26040018 | OT9: 37161 | OU9: 3894919 | OV9: X | OW9: 0 | OX9: 1 | OY9: X | OZ9: 1 | PA9: 1 | PB9: 1 | PC9: RetDoc1039100001 | PD9: X | PE9: RetDoc1234500001 | PF9: RESTRICTED | PG9: RESTRICTED | PH9: RESTRICTED | PI9: RESTRICTED | PJ9: RESTRICTED | PK9: RESTRICTED | PL9: RESTRICTED | PM9: RESTRICTED | TN9: RetDoc1040500001 | TO9: N/A | TP9: 0 | TQ9: 0 | TR9: 0 | TS9: 0 | TT9: 0 | TU9: 0 | TV9: 0 | TW9: 0 | TX9: 0 | TY9: 1 | TZ9: 0 | UA9: 0 | UB9: 1 | UC9: 0 | UD9: 0
A10: 2013v4.0 | B10: 0 | C10: 2015-05-15T12:21:23-05:00 | D10: 2014-06-30 | E10: 581763439 | F10: WINDHAM BRANNON PC | G10: 3630 PEACHTREE RD NE SUITE 600 | H10: ATLANTA | I10: GA | J10: 30326 | K10: 990 | L10: 2013-07-01 | M10: 580566116 | N10: AGNES SCOTT COLLEGE | O10: AGNE | P10: 4044716308 | Q10: 141 EAST COLLEGE AVENUE | R10: DECATUR | S10: GA | T10: 30030 | U10: JOHN P HEGMAN | V10: VP FOR BUSINESS & FINANCE | W10: 4044716308 | X10: 2015-05-04 | Y10: 1 | Z10: CARLYE W DOOLEY | AA10: P00292964 | AB10: 4048982000 | AC10: 2015-05-04 | AD10: 2013 | AE10: 2016-02-25 16:41:14Z | AF10: 12 | AG10: RetDoc1038000001 | AH10: RetDoc1044400001 | AI10: ELIZABETH KISS | AJ10: 141 EAST COLLEGE AVENUE | AK10: DECATUR | AL10: GA | AM10: 30030 | AN10: 193572082 | AO10: 0 | AP10: X | AQ10: WWW.AGNESSCOTT.EDU | AR10: X | AS10: 1889 | AT10: GA | AU10: A PRIVATE LIBERAL ARTS COLLEGE WITH THE MISSION TO EDUCATE WOMEN TO THINK DEEPLY, LIVE HONORABLY AND ENGAGE THE INTELLECTUAL AND SOCIAL CHALLENGES OF THEIR TIMES. | AV10: 31 | AW10: 31 | AX10: 961 | AY10: 695 | AZ10: -399305 | BA10: -726713 | BB10: 6466087 | BC10: 14657044 | BD10: 28366057 | BE10: 30344801 | BF10: 15997222 | BG10: 15908378 | BH10: 9325491 | BI10: 9339950 | BJ10: 60154857 | BK10: 70250173 | BL10: 17611632 | BM10: 18803175 | BN10: 0 | BO10: 0 | BP10: 20405978 | BQ10: 22263459 | BR10: 0 | BS10: 0 | BT10: 2461804 | BU10: 27056111 | BV10: 27435683 | BW10: 65073721 | BX10: 68502317 | BY10: -4918864 | BZ10: 1747856 | CA10: 379863176 | CB10: 414992333 | CC10: 84120854 | CD10: 87530057 | CE10: 295742322 | CF10: 327462276 | CG10: FOUNDED IN 1889, AGNES SCOTT COLLEGE IS AN INDEPENDENT LIBERAL ARTS COLLEGE FOR WOMEN WHOSE MISSION IS TO EDUCATE WOMEN TO THINK DEEPLY, LIVE HONORABLY AND ENGAGE THE INTELLECTUAL AND SOCIAL CHALLENGES OF THEIR TIMES. | CH10: 0 | CI10: 0 | CJ10: 18716301 | CK10: 18716301 | CL10: STUDENT AID ENCOMPASSES DIRECT FINANCIAL AID PROVIDED BY THE COLLEGE TO FACILITATE ITS STUDENTS' PURSUIT OF A COLLEGE EDUCATION. | CM10: 13788795 | CN10: 0 | CO10: 30344801 | CP10: INSTRUCTION IS PROVIDED BY FULL-TIME FACULTY AND PART-TIME FACULTY MEMBERS REPRESENTING NUMEROUS ACADEMIC DEPARTMENTS. | CQ10: 6524141 | CR10: 0 | CS10: 0 | CT10: ACADEMIC SUPPORT COMPRISES INFORMATION TECHNOLOGY SERVICES, REGISTRAR, ACADEMIC ADVISING, FACULTY SERVICES, LIBRARY, ETC. THESE ADMINISTRATIVE OFFICES ASSIST THE COLLEGE IN ITS EDUCATIONAL MISSION. | CU10: 7728841 | CV10: 86874 | CW10: 9686083 | CX10: 7728841 | CY10: 86874 | CZ10: 9686083 | DA10: 46758078 | DB10: 1 | DC10: RetDoc1039100001 | DD10: 1 | DE10: RetDoc1234500001 | DF10: 0 | DG10: 0 | DH10: 0 | DI10: 0 | DJ10: RetDoc1040000001 | DK10: 0 | DL10: RetDoc1040000001 | DM10: 1 | DN10: RetDoc1040000001 | DO10: 0 | DP10: RetDoc1040000001 | DQ10: 1 | DR10: RetDoc1040000001 | DS10: 1 | DT10: RetDoc1040000001 | DU10: 1 | DV10: RetDoc1040000001 | DW10: 0 | DX10: RetDoc1040000001 | DY10: 0 | DZ10: RetDoc1040000001 | EA10: 1 | EB10: RetDoc1040000001 | EC10: 1 | ED10: RetDoc1040000001 | EE10: 0 | EF10: RetDoc1040000001 | EG10: 1 | EH10: RetDoc1040000001 | EI10: 1 | EJ10: RetDoc1040400001 | EK10: 0 | EL10: 1 | EM10: RetDoc1040500001 | EN10: 0 | EO10: RetDoc1040500001 | EP10: 0 | EQ10: RetDoc1040500001 | ER10: 0 | ES10: 0 | ET10: 0 | EU10: 0 | EV10: 1 | EW10: RetDoc1041900001 | EX10: 1 | EY10: RetDoc1041900001 | EZ10: 1 | FA10: RetDoc1042400001 | FB10: 1 | FC10: RetDoc1053100001 | FD10: 0 | FE10: 0 | FF10: 0 | FG10: 0 | FH10: 0 | FI10: 0 | FJ10: 0 | FK10: 0 | FL10: 0 | FM10: 0 | FN10: 1 | FO10: RetDoc1042900001 | FP10: 0 | FQ10: RetDoc1042900001 | FR10: 0 | FS10: 0 | FT10: 0 | FU10: RetDoc1043400001 | FV10: 1 | FW10: RetDoc1043400001 | FX10: 0 | FY10: 0 | FZ10: RetDoc1043400001 | GA10: 0 | GB10: RetDoc1043400001 | GC10: 1 | GD10: 146 | GE10: 0 | GF10: 1 | GG10: 961 | GH10: 0 | GI10: 1 | GJ10: 1 | GK10: 0 | GL10: 0 | GM10: 0 | GN10: 0 | GO10: 0 | GP10: 0 | GQ10: 0 | GR10: 0 | GS10: 0 | GT10: X | GU10: 31 | GV10: 31 | GW10: 0 | GX10: 0 | GY10: 0 | GZ10: 0 | HA10: 0 | HB10: 0 | HC10: 0 | HD10: 1 | HE10: 1 | HF10: 0 | HG10: 0 | HH10: 1 | HI10: 1 | HJ10: 1 | HK10: 1 | HL10: 1 | HM10: 1 | HN10: 1 | HO10: 1 | HP10: 0 | HR10: X | HS10: LAI CHAN CONTROLLER | HT10: 4044716308 | HU10: 141 EAST COLLEGE AVENUE | HV10: DECATUR | HW10: GA | HX10: 30030 | HY10: CLYDE C TUGGLE | HZ10: CHAIRPERSON | IA10: 2 | IB10: X | IC10: 0 | ID10: 0 | IE10: 0 | IF10: X | IH10: 1641191 | II10: 0 | IJ10: 324250 | IK10: 11 | IL10: 0 | IM10: 1 | IN10: 0 | IV10: 7 | IW10: 14657044 | IX10: 2568431 | IY10: 14657044 | IZ10: TUITION & FEE INCOME | JA10: 611600 | JB10: 30344801 | JC10: 30344801 | JD10: 30344801 | JE10: 3007830 | JF10: -760612 | JG10: 3768442 | JH10: 574009 | JI10: 233936 | JJ10: 340073 | JK10: 340073 | JL10: 340073 | JM10: 134733439 | JN10: 1255082 | JO10: 122880403 | JP10: 207570 | JQ10: 11853036 | JR10: 1047512 | JS10: 12900548 | JT10: 12900548 | JZ10: 69725 | KA10: 69725 | KB10: 8999877 | KC10: 70250173 | KD10: 38983371 | KE10: -399305 | KF10: 17009063 | KG10: 86874 | KH10: 86874 | KI10: 18716301 | KJ10: 18716301 | KK10: 992132 | KL10: 408768 | KM10: 430886 | KN10: 152478 | KO10: 16953243 | KP10: 12429905 | KQ10: 3233423 | KR10: 1289915 | KS10: 822868 | KT10: 574485 | KU10: 181441 | KV10: 66942 | KW10: 2252122 | KX10: 1311519 | KY10: 751957 | KZ10: 188646 | LA10: 1243094 | LB10: 893836 | LC10: 255371 | LD10: 93887 | LE10: 58849 | LF10: 58849 | LG10: 249260 | LH10: 249260 | LI10: 3831158 | LJ10: 3831158 | LK10: 5227678 | LL10: 1508386 | LM10: 3492122 | LN10: 227170 | LO10: 3139770 | LP10: 2090453 | LQ10: 839923 | LR10: 209394 | LS10: 162108 | LT10: 93180 | LU10: 50928 | LV10: 18000 | LW10: 1052126 | LX10: 908506 | LY10: 53608 | LZ10: 90012 | MA10: 316801 | MB10: 219125 | MC10: 93288 | MD10: 4388 | ME10: 1972010 | MF10: 1096440 | MG10: 875570 | MH10: 4336643 | MI10: 2411179 | MJ10: 1925464 | MK10: 1400404 | ML10: 890713 | MM10: 509691 | MS10: 340110 | MT10: 238654 | MU10: 101456 | MV10: 68502317 | MW10: 46758078 | MX10: 19282435 | MY10: 2461804 | MZ10: 12399014 | NA10: 15410504 | NB10: 3617523 | NC10: 7147632 | ND10: 231591 | NE10: 274481 | NF10: 1174150 | NG10: 1508180 | NH10: 180680364 | NI10: 74610457 | NJ10: 99297520 | NK10: 106069907 | NL10: 79194985 | NM10: 93071982 | NN10: 176273435 | NO10: 184164810 | NP10: 7674958 | NQ10: 7344837 | NR10: 379863176 | NS10: 414992333 | NT10: 4902704 | NU10: 7888947 | NV10: 891104 | NW10: 744547 | NX10: 66321787 | NY10: 63224623 | NZ10: 1058937 | OA10: 4603656 | OB10: 10946322 | OC10: 11068284 | OD10: 84120854 | OE10: 87530057 | OF10: X | OG10: 51043628 | OH10: 60064599 | OI10: 168083974 | OJ10: 188841091 | OK10: 76614720 | OL10: 78556586 | OM10: 295742322 | ON10: 327462276 | OO10: 379863176 | OP10: 414992333 | OQ10: X | OR10: 1747856 | OS10: 26040018 | OT10: 37161 | OU10: 3894919 | OV10: X | OW10: 0 | OX10: 1 | OY10: X | OZ10: 1 | PA10: 1 | PB10: 1 | PC10: RetDoc1039100001 | PD10: X | PE10: RetDoc1234500001 | PF10: RESTRICTED | PG10: RESTRICTED | PH10: RESTRICTED | PI10: RESTRICTED | PJ10: RESTRICTED | PK10: RESTRICTED | PL10: RESTRICTED | PM10: RESTRICTED | TN10: RetDoc1040500001 | TO10: N/A | TP10: 0 | TQ10: 0 | TR10: 0 | TS10: 0 | TT10: 0 | TU10: 0 | TV10: 0 | TW10: 0 | TX10: 0 | TY10: 1 | TZ10: 0 | UA10: 0 | UB10: 1 | UC10: 0 | UD10: 0
A11: 2013v4.0 | B11: 0 | C11: 2015-05-15T12:21:23-05:00 | D11: 2014-06-30 | E11: 581763439 | F11: WINDHAM BRANNON PC | G11: 3630 PEACHTREE RD NE SUITE 600 | H11: ATLANTA | I11: GA | J11: 30326 | K11: 990 | L11: 2013-07-01 | M11: 580566116 | N11: AGNES SCOTT COLLEGE | O11: AGNE | P11: 4044716308 | Q11: 141 EAST COLLEGE AVENUE | R11: DECATUR | S11: GA | T11: 30030 | U11: JOHN P HEGMAN | V11: VP FOR BUSINESS & FINANCE | W11: 4044716308 | X11: 2015-05-04 | Y11: 1 | Z11: CARLYE W DOOLEY | AA11: P00292964 | AB11: 4048982000 | AC11: 2015-05-04 | AD11: 2013 | AE11: 2016-02-25 16:41:14Z | AF11: 12 | AG11: RetDoc1038000001 | AH11: RetDoc1044400001 | AI11: ELIZABETH KISS | AJ11: 141 EAST COLLEGE AVENUE | AK11: DECATUR | AL11: GA | AM11: 30030 | AN11: 193572082 | AO11: 0 | AP11: X | AQ11: WWW.AGNESSCOTT.EDU | AR11: X | AS11: 1889 | AT11: GA | AU11: A PRIVATE LIBERAL ARTS COLLEGE WITH THE MISSION TO EDUCATE WOMEN TO THINK DEEPLY, LIVE HONORABLY AND ENGAGE THE INTELLECTUAL AND SOCIAL CHALLENGES OF THEIR TIMES. | AV11: 31 | AW11: 31 | AX11: 961 | AY11: 695 | AZ11: -399305 | BA11: -726713 | BB11: 6466087 | BC11: 14657044 | BD11: 28366057 | BE11: 30344801 | BF11: 15997222 | BG11: 15908378 | BH11: 9325491 | BI11: 9339950 | BJ11: 60154857 | BK11: 70250173 | BL11: 17611632 | BM11: 18803175 | BN11: 0 | BO11: 0 | BP11: 20405978 | BQ11: 22263459 | BR11: 0 | BS11: 0 | BT11: 2461804 | BU11: 27056111 | BV11: 27435683 | BW11: 65073721 | BX11: 68502317 | BY11: -4918864 | BZ11: 1747856 | CA11: 379863176 | CB11: 414992333 | CC11: 84120854 | CD11: 87530057 | CE11: 295742322 | CF11: 327462276 | CG11: FOUNDED IN 1889, AGNES SCOTT COLLEGE IS AN INDEPENDENT LIBERAL ARTS COLLEGE FOR WOMEN WHOSE MISSION IS TO EDUCATE WOMEN TO THINK DEEPLY, LIVE HONORABLY AND ENGAGE THE INTELLECTUAL AND SOCIAL CHALLENGES OF THEIR TIMES. | CH11: 0 | CI11: 0 | CJ11: 18716301 | CK11: 18716301 | CL11: STUDENT AID ENCOMPASSES DIRECT FINANCIAL AID PROVIDED BY THE COLLEGE TO FACILITATE ITS STUDENTS' PURSUIT OF A COLLEGE EDUCATION. | CM11: 13788795 | CN11: 0 | CO11: 30344801 | CP11: INSTRUCTION IS PROVIDED BY FULL-TIME FACULTY AND PART-TIME FACULTY MEMBERS REPRESENTING NUMEROUS ACADEMIC DEPARTMENTS. | CQ11: 6524141 | CR11: 0 | CS11: 0 | CT11: ACADEMIC SUPPORT COMPRISES INFORMATION TECHNOLOGY SERVICES, REGISTRAR, ACADEMIC ADVISING, FACULTY SERVICES, LIBRARY, ETC. THESE ADMINISTRATIVE OFFICES ASSIST THE COLLEGE IN ITS EDUCATIONAL MISSION. | CU11: 7728841 | CV11: 86874 | CW11: 9686083 | CX11: 7728841 | CY11: 86874 | CZ11: 9686083 | DA11: 46758078 | DB11: 1 | DC11: RetDoc1039100001 | DD11: 1 | DE11: RetDoc1234500001 | DF11: 0 | DG11: 0 | DH11: 0 | DI11: 0 | DJ11: RetDoc1040000001 | DK11: 0 | DL11: RetDoc1040000001 | DM11: 1 | DN11: RetDoc1040000001 | DO11: 0 | DP11: RetDoc1040000001 | DQ11: 1 | DR11: RetDoc1040000001 | DS11: 1 | DT11: RetDoc1040000001 | DU11: 1 | DV11: RetDoc1040000001 | DW11: 0 | DX11: RetDoc1040000001 | DY11: 0 | DZ11: RetDoc1040000001 | EA11: 1 | EB11: RetDoc1040000001 | EC11: 1 | ED11: RetDoc1040000001 | EE11: 0 | EF11: RetDoc1040000001 | EG11: 1 | EH11: RetDoc1040000001 | EI11: 1 | EJ11: RetDoc1040400001 | EK11: 0 | EL11: 1 | EM11: RetDoc1040500001 | EN11: 0 | EO11: RetDoc1040500001 | EP11: 0 | EQ11: RetDoc1040500001 | ER11: 0 | ES11: 0 | ET11: 0 | EU11: 0 | EV11: 1 | EW11: RetDoc1041900001 | EX11: 1 | EY11: RetDoc1041900001 | EZ11: 1 | FA11: RetDoc1042400001 | FB11: 1 | FC11: RetDoc1053100001 | FD11: 0 | FE11: 0 | FF11: 0 | FG11: 0 | FH11: 0 | FI11: 0 | FJ11: 0 | FK11: 0 | FL11: 0 | FM11: 0 | FN11: 1 | FO11: RetDoc1042900001 | FP11: 0 | FQ11: RetDoc1042900001 | FR11: 0 | FS11: 0 | FT11: 0 | FU11: RetDoc1043400001 | FV11: 1 | FW11: RetDoc1043400001 | FX11: 0 | FY11: 0 | FZ11: RetDoc1043400001 | GA11: 0 | GB11: RetDoc1043400001 | GC11: 1 | GD11: 146 | GE11: 0 | GF11: 1 | GG11: 961 | GH11: 0 | GI11: 1 | GJ11: 1 | GK11: 0 | GL11: 0 | GM11: 0 | GN11: 0 | GO11: 0 | GP11: 0 | GQ11: 0 | GR11: 0 | GS11: 0 | GT11: X | GU11: 31 | GV11: 31 | GW11: 0 | GX11: 0 | GY11: 0 | GZ11: 0 | HA11: 0 | HB11: 0 | HC11: 0 | HD11: 1 | HE11: 1 | HF11: 0 | HG11: 0 | HH11: 1 | HI11: 1 | HJ11: 1 | HK11: 1 | HL11: 1 | HM11: 1 | HN11: 1 | HO11: 1 | HP11: 0 | HR11: X | HS11: LAI CHAN CONTROLLER | HT11: 4044716308 | HU11: 141 EAST COLLEGE AVENUE | HV11: DECATUR | HW11: GA | HX11: 30030 | HY11: DAVID D WEITNAUER | HZ11: TRUSTEE | IA11: 2 | IB11: X | IC11: 0 | ID11: 0 | IE11: 0 | IH11: 1641191 | II11: 0 | IJ11: 324250 | IK11: 11 | IL11: 0 | IM11: 1 | IN11: 0 | IV11: 7 | IW11: 14657044 | IX11: 2568431 | IY11: 14657044 | IZ11: TUITION & FEE INCOME | JA11: 611600 | JB11: 30344801 | JC11: 30344801 | JD11: 30344801 | JE11: 3007830 | JF11: -760612 | JG11: 3768442 | JH11: 574009 | JI11: 233936 | JJ11: 340073 | JK11: 340073 | JL11: 340073 | JM11: 134733439 | JN11: 1255082 | JO11: 122880403 | JP11: 207570 | JQ11: 11853036 | JR11: 1047512 | JS11: 12900548 | JT11: 12900548 | JZ11: 69725 | KA11: 69725 | KB11: 8999877 | KC11: 70250173 | KD11: 38983371 | KE11: -399305 | KF11: 17009063 | KG11: 86874 | KH11: 86874 | KI11: 18716301 | KJ11: 18716301 | KK11: 992132 | KL11: 408768 | KM11: 430886 | KN11: 152478 | KO11: 16953243 | KP11: 12429905 | KQ11: 3233423 | KR11: 1289915 | KS11: 822868 | KT11: 574485 | KU11: 181441 | KV11: 66942 | KW11: 2252122 | KX11: 1311519 | KY11: 751957 | KZ11: 188646 | LA11: 1243094 | LB11: 893836 | LC11: 255371 | LD11: 93887 | LE11: 58849 | LF11: 58849 | LG11: 249260 | LH11: 249260 | LI11: 3831158 | LJ11: 3831158 | LK11: 5227678 | LL11: 1508386 | LM11: 3492122 | LN11: 227170 | LO11: 3139770 | LP11: 2090453 | LQ11: 839923 | LR11: 209394 | LS11: 162108 | LT11: 93180 | LU11: 50928 | LV11: 18000 | LW11: 1052126 | LX11: 908506 | LY11: 53608 | LZ11: 90012 | MA11: 316801 | MB11: 219125 | MC11: 93288 | MD11: 4388 | ME11: 1972010 | MF11: 1096440 | MG11: 875570 | MH11: 4336643 | MI11: 2411179 | MJ11: 1925464 | MK11: 1400404 | ML11: 890713 | MM11: 509691 | MS11: 340110 | MT11: 238654 | MU11: 101456 | MV11: 68502317 | MW11: 46758078 | MX11: 19282435 | MY11: 2461804 | MZ11: 12399014 | NA11: 15410504 | NB11: 3617523 | NC11: 7147632 | ND11: 231591 | NE11: 274481 | NF11: 1174150 | NG11: 1508180 | NH11: 180680364 | NI11: 74610457 | NJ11: 99297520 | NK11: 106069907 | NL11: 79194985 | NM11: 93071982 | NN11: 176273435 | NO11: 184164810 | NP11: 7674958 | NQ11: 7344837 | NR11: 379863176 | NS11: 414992333 | NT11: 4902704 | NU11: 7888947 | NV11: 891104 | NW11: 744547 | NX11: 66321787 | NY11: 63224623 | NZ11: 1058937 | OA11: 4603656 | OB11: 10946322 | OC11: 11068284 | OD11: 84120854 | OE11: 87530057 | OF11: X | OG11: 51043628 | OH11: 60064599 | OI11: 168083974 | OJ11: 188841091 | OK11: 76614720 | OL11: 78556586 | OM11: 295742322 | ON11: 327462276 | OO11: 379863176 | OP11: 414992333 | OQ11: X | OR11: 1747856 | OS11: 26040018 | OT11: 37161 | OU11: 3894919 | OV11: X | OW11: 0 | OX11: 1 | OY11: X | OZ11: 1 | PA11: 1 | PB11: 1 | PC11: RetDoc1039100001 | PD11: X | PE11: RetDoc1234500001 | PF11: RESTRICTED | PG11: RESTRICTED | PH11: RESTRICTED | PI11: RESTRICTED | PJ11: RESTRICTED | PK11: RESTRICTED | PL11: RESTRICTED | PM11: RESTRICTED | TN11: RetDoc1040500001 | TO11: N/A | TP11: 0 | TQ11: 0 | TR11: 0 | TS11: 0 | TT11: 0 | TU11: 0 | TV11: 0 | TW11: 0 | TX11: 0 | TY11: 1 | TZ11: 0 | UA11: 0 | UB11: 1 | UC11: 0 | UD11: 0
A12: 2013v4.0 | B12: 0 | C12: 2015-05-15T12:21:23-05:00 | D12: 2014-06-30 | E12: 581763439 | F12: WINDHAM BRANNON PC | G12: 3630 PEACHTREE RD NE SUITE 600 | H12: ATLANTA | I12: GA | J12: 30326 | K12: 990 | L12: 2013-07-01 | M12: 580566116 | N12: AGNES SCOTT COLLEGE | O12: AGNE | P12: 4044716308 | Q12: 141 EAST COLLEGE AVENUE | R12: DECATUR | S12: GA | T12: 30030 | U12: JOHN P HEGMAN | V12: VP FOR BUSINESS & FINANCE | W12: 4044716308 | X12: 2015-05-04 | Y12: 1 | Z12: CARLYE W DOOLEY | AA12: P00292964 | AB12: 4048982000 | AC12: 2015-05-04 | AD12: 2013 | AE12: 2016-02-25 16:41:14Z | AF12: 12 | AG12: RetDoc1038000001 | AH12: RetDoc1044400001 | AI12: ELIZABETH KISS | AJ12: 141 EAST COLLEGE AVENUE | AK12: DECATUR | AL12: GA | AM12: 30030 | AN12: 193572082 | AO12: 0 | AP12: X | AQ12: WWW.AGNESSCOTT.EDU | AR12: X | AS12: 1889 | AT12: GA | AU12: A PRIVATE LIBERAL ARTS COLLEGE WITH THE MISSION TO EDUCATE WOMEN TO THINK DEEPLY, LIVE HONORABLY AND ENGAGE THE INTELLECTUAL AND SOCIAL CHALLENGES OF THEIR TIMES. | AV12: 31 | AW12: 31 | AX12: 961 | AY12: 695 | AZ12: -399305 | BA12: -726713 | BB12: 6466087 | BC12: 14657044 | BD12: 28366057 | BE12: 30344801 | BF12: 15997222 | BG12: 15908378 | BH12: 9325491 | BI12: 9339950 | BJ12: 60154857 | BK12: 70250173 | BL12: 17611632 | BM12: 18803175 | BN12: 0 | BO12: 0 | BP12: 20405978 | BQ12: 22263459 | BR12: 0 | BS12: 0 | BT12: 2461804 | BU12: 27056111 | BV12: 27435683 | BW12: 65073721 | BX12: 68502317 | BY12: -4918864 | BZ12: 1747856 | CA12: 379863176 | CB12: 414992333 | CC12: 84120854 | CD12: 87530057 | CE12: 295742322 | CF12: 327462276 | CG12: FOUNDED IN 1889, AGNES SCOTT COLLEGE IS AN INDEPENDENT LIBERAL ARTS COLLEGE FOR WOMEN WHOSE MISSION IS TO EDUCATE WOMEN TO THINK DEEPLY, LIVE HONORABLY AND ENGAGE THE INTELLECTUAL AND SOCIAL CHALLENGES OF THEIR TIMES. | CH12: 0 | CI12: 0 | CJ12: 18716301 | CK12: 18716301 | CL12: STUDENT AID ENCOMPASSES DIRECT FINANCIAL AID PROVIDED BY THE COLLEGE TO FACILITATE ITS STUDENTS' PURSUIT OF A COLLEGE EDUCATION. | CM12: 13788795 | CN12: 0 | CO12: 30344801 | CP12: INSTRUCTION IS PROVIDED BY FULL-TIME FACULTY AND PART-TIME FACULTY MEMBERS REPRESENTING NUMEROUS ACADEMIC DEPARTMENTS. | CQ12: 6524141 | CR12: 0 | CS12: 0 | CT12: ACADEMIC SUPPORT COMPRISES INFORMATION TECHNOLOGY SERVICES, REGISTRAR, ACADEMIC ADVISING, FACULTY SERVICES, LIBRARY, ETC. THESE ADMINISTRATIVE OFFICES ASSIST THE COLLEGE IN ITS EDUCATIONAL MISSION. | CU12: 7728841 | CV12: 86874 | CW12: 9686083 | CX12: 7728841 | CY12: 86874 | CZ12: 9686083 | DA12: 46758078 | DB12: 1 | DC12: RetDoc1039100001 | DD12: 1 | DE12: RetDoc1234500001 | DF12: 0 | DG12: 0 | DH12: 0 | DI12: 0 | DJ12: RetDoc1040000001 | DK12: 0 | DL12: RetDoc1040000001 | DM12: 1 | DN12: RetDoc1040000001 | DO12: 0 | DP12: RetDoc1040000001 | DQ12: 1 | DR12: RetDoc1040000001 | DS12: 1 | DT12: RetDoc1040000001 | DU12: 1 | DV12: RetDoc1040000001 | DW12: 0 | DX12: RetDoc1040000001 | DY12: 0 | DZ12: RetDoc1040000001 | EA12: 1 | EB12: RetDoc1040000001 | EC12: 1 | ED12: RetDoc1040000001 | EE12: 0 | EF12: RetDoc1040000001 | EG12: 1 | EH12: RetDoc1040000001 | EI12: 1 | EJ12: RetDoc1040400001 | EK12: 0 | EL12: 1 | EM12: RetDoc1040500001 | EN12: 0 | EO12: RetDoc1040500001 | EP12: 0 | EQ12: RetDoc1040500001 | ER12: 0 | ES12: 0 | ET12: 0 | EU12: 0 | EV12: 1 | EW12: RetDoc1041900001 | EX12: 1 | EY12: RetDoc1041900001 | EZ12: 1 | FA12: RetDoc1042400001 | FB12: 1 | FC12: RetDoc1053100001 | FD12: 0 | FE12: 0 | FF12: 0 | FG12: 0 | FH12: 0 | FI12: 0 | FJ12: 0 | FK12: 0 | FL12: 0 | FM12: 0 | FN12: 1 | FO12: RetDoc1042900001 | FP12: 0 | FQ12: RetDoc1042900001 | FR12: 0 | FS12: 0 | FT12: 0 | FU12: RetDoc1043400001 | FV12: 1 | FW12: RetDoc1043400001 | FX12: 0 | FY12: 0 | FZ12: RetDoc1043400001 | GA12: 0 | GB12: RetDoc1043400001 | GC12: 1 | GD12: 146 | GE12: 0 | GF12: 1 | GG12: 961 | GH12: 0 | GI12: 1 | GJ12: 1 | GK12: 0 | GL12: 0 | GM12: 0 | GN12: 0 | GO12: 0 | GP12: 0 | GQ12: 0 | GR12: 0 | GS12: 0 | GT12: X | GU12: 31 | GV12: 31 | GW12: 0 | GX12: 0 | GY12: 0 | GZ12: 0 | HA12: 0 | HB12: 0 | HC12: 0 | HD12: 1 | HE12: 1 | HF12: 0 | HG12: 0 | HH12: 1 | HI12: 1 | HJ12: 1 | HK12: 1 | HL12: 1 | HM12: 1 | HN12: 1 | HO12: 1 | HP12: 0 | HR12: X | HS12: LAI CHAN CONTROLLER | HT12: 4044716308 | HU12: 141 EAST COLLEGE AVENUE | HV12: DECATUR | HW12: GA | HX12: 30030 | HY12: DENNIS P LOCKHART | HZ12: TRUSTEE | IA12: 2 | IB12: X | IC12: 0 | ID12: 0 | IE12: 0 | IH12: 1641191 | II12: 0 | IJ12: 324250 | IK12: 11 | IL12: 0 | IM12: 1 | IN12: 0 | IV12: 7 | IW12: 14657044 | IX12: 2568431 | IY12: 14657044 | IZ12: TUITION & FEE INCOME | JA12: 611600 | JB12: 30344801 | JC12: 30344801 | JD12: 30344801 | JE12: 3007830 | JF12: -760612 | JG12: 3768442 | JH12: 574009 | JI12: 233936 | JJ12: 340073 | JK12: 340073 | JL12: 340073 | JM12: 134733439 | JN12: 1255082 | JO12: 122880403 | JP12: 207570 | JQ12: 11853036 | JR12: 1047512 | JS12: 12900548 | JT12: 12900548 | JZ12: 69725 | KA12: 69725 | KB12: 8999877 | KC12: 70250173 | KD12: 38983371 | KE12: -399305 | KF12: 17009063 | KG12: 86874 | KH12: 86874 | KI12: 18716301 | KJ12: 18716301 | KK12: 992132 | KL12: 408768 | KM12: 430886 | KN12: 152478 | KO12: 16953243 | KP12: 12429905 | KQ12: 3233423 | KR12: 1289915 | KS12: 822868 | KT12: 574485 | KU12: 181441 | KV12: 66942 | KW12: 2252122 | KX12: 1311519 | KY12: 751957 | KZ12: 188646 | LA12: 1243094 | LB12: 893836 | LC12: 255371 | LD12: 93887 | LE12: 58849 | LF12: 58849 | LG12: 249260 | LH12: 249260 | LI12: 3831158 | LJ12: 3831158 | LK12: 5227678 | LL12: 1508386 | LM12: 3492122 | LN12: 227170 | LO12: 3139770 | LP12: 2090453 | LQ12: 839923 | LR12: 209394 | LS12: 162108 | LT12: 93180 | LU12: 50928 | LV12: 18000 | LW12: 1052126 | LX12: 908506 | LY12: 53608 | LZ12: 90012 | MA12: 316801 | MB12: 219125 | MC12: 93288 | MD12: 4388 | ME12: 1972010 | MF12: 1096440 | MG12: 875570 | MH12: 4336643 | MI12: 2411179 | MJ12: 1925464 | MK12: 1400404 | ML12: 890713 | MM12: 509691 | MS12: 340110 | MT12: 238654 | MU12: 101456 | MV12: 68502317 | MW12: 46758078 | MX12: 19282435 | MY12: 2461804 | MZ12: 12399014 | NA12: 15410504 | NB12: 3617523 | NC12: 7147632 | ND12: 231591 | NE12: 274481 | NF12: 1174150 | NG12: 1508180 | NH12: 180680364 | NI12: 74610457 | NJ12: 99297520 | NK12: 106069907 | NL12: 79194985 | NM12: 93071982 | NN12: 176273435 | NO12: 184164810 | NP12: 7674958 | NQ12: 7344837 | NR12: 379863176 | NS12: 414992333 | NT12: 4902704 | NU12: 7888947 | NV12: 891104 | NW12: 744547 | NX12: 66321787 | NY12: 63224623 | NZ12: 1058937 | OA12: 4603656 | OB12: 10946322 | OC12: 11068284 | OD12: 84120854 | OE12: 87530057 | OF12: X | OG12: 51043628 | OH12: 60064599 | OI12: 168083974 | OJ12: 188841091 | OK12: 76614720 | OL12: 78556586 | OM12: 295742322 | ON12: 327462276 | OO12: 379863176 | OP12: 414992333 | OQ12: X | OR12: 1747856 | OS12: 26040018 | OT12: 37161 | OU12: 3894919 | OV12: X | OW12: 0 | OX12: 1 | OY12: X | OZ12: 1 | PA12: 1 | PB12: 1 | PC12: RetDoc1039100001 | PD12: X | PE12: RetDoc1234500001 | PF12: RESTRICTED | PG12: RESTRICTED | PH12: RESTRICTED | PI12: RESTRICTED | PJ12: RESTRICTED | PK12: RESTRICTED | PL12: RESTRICTED | PM12: RESTRICTED | TN12: RetDoc1040500001 | TO12: N/A | TP12: 0 | TQ12: 0 | TR12: 0 | TS12: 0 | TT12: 0 | TU12: 0 | TV12: 0 | TW12: 0 | TX12: 0 | TY12: 1 | TZ12: 0 | UA12: 0 | UB12: 1 | UC12: 0 | UD12: 0
A13: 2013v4.0 | B13: 0 | C13: 2015-05-15T12:21:23-05:00 | D13: 2014-06-30 | E13: 581763439 | F13: WINDHAM BRANNON PC | G13: 3630 PEACHTREE RD NE SUITE 600 | H13: ATLANTA | I13: GA | J13: 30326 | K13: 990 | L13: 2013-07-01 | M13: 580566116 | N13: AGNES SCOTT COLLEGE | O13: AGNE | P13: 4044716308 | Q13: 141 EAST COLLEGE AVENUE | R13: DECATUR | S13: GA | T13: 30030 | U13: JOHN P HEGMAN | V13: VP FOR BUSINESS & FINANCE | W13: 4044716308 | X13: 2015-05-04 | Y13: 1 | Z13: CARLYE W DOOLEY | AA13: P00292964 | AB13: 4048982000 | AC13: 2015-05-04 | AD13: 2013 | AE13: 2016-02-25 16:41:14Z | AF13: 12 | AG13: RetDoc1038000001 | AH13: RetDoc1044400001 | AI13: ELIZABETH KISS | AJ13: 141 EAST COLLEGE AVENUE | AK13: DECATUR | AL13: GA | AM13: 30030 | AN13: 193572082 | AO13: 0 | AP13: X | AQ13: WWW.AGNESSCOTT.EDU | AR13: X | AS13: 1889 | AT13: GA | AU13: A PRIVATE LIBERAL ARTS COLLEGE WITH THE MISSION TO EDUCATE WOMEN TO THINK DEEPLY, LIVE HONORABLY AND ENGAGE THE INTELLECTUAL AND SOCIAL CHALLENGES OF THEIR TIMES. | AV13: 31 | AW13: 31 | AX13: 961 | AY13: 695 | AZ13: -399305 | BA13: -726713 | BB13: 6466087 | BC13: 14657044 | BD13: 28366057 | BE13: 30344801 | BF13: 15997222 | BG13: 15908378 | BH13: 9325491 | BI13: 9339950 | BJ13: 60154857 | BK13: 70250173 | BL13: 17611632 | BM13: 18803175 | BN13: 0 | BO13: 0 | BP13: 20405978 | BQ13: 22263459 | BR13: 0 | BS13: 0 | BT13: 2461804 | BU13: 27056111 | BV13: 27435683 | BW13: 65073721 | BX13: 68502317 | BY13: -4918864 | BZ13: 1747856 | CA13: 379863176 | CB13: 414992333 | CC13: 84120854 | CD13: 87530057 | CE13: 295742322 | CF13: 327462276 | CG13: FOUNDED IN 1889, AGNES SCOTT COLLEGE IS AN INDEPENDENT LIBERAL ARTS COLLEGE FOR WOMEN WHOSE MISSION IS TO EDUCATE WOMEN TO THINK DEEPLY, LIVE HONORABLY AND ENGAGE THE INTELLECTUAL AND SOCIAL CHALLENGES OF THEIR TIMES. | CH13: 0 | CI13: 0 | CJ13: 18716301 | CK13: 18716301 | CL13: STUDENT AID ENCOMPASSES DIRECT FINANCIAL AID PROVIDED BY THE COLLEGE TO FACILITATE ITS STUDENTS' PURSUIT OF A COLLEGE EDUCATION. | CM13: 13788795 | CN13: 0 | CO13: 30344801 | CP13: INSTRUCTION IS PROVIDED BY FULL-TIME FACULTY AND PART-TIME FACULTY MEMBERS REPRESENTING NUMEROUS ACADEMIC DEPARTMENTS. | CQ13: 6524141 | CR13: 0 | CS13: 0 | CT13: ACADEMIC SUPPORT COMPRISES INFORMATION TECHNOLOGY SERVICES, REGISTRAR, ACADEMIC ADVISING, FACULTY SERVICES, LIBRARY, ETC. THESE ADMINISTRATIVE OFFICES ASSIST THE COLLEGE IN ITS EDUCATIONAL MISSION. | CU13: 7728841 | CV13: 86874 | CW13: 9686083 | CX13: 7728841 | CY13: 86874 | CZ13: 9686083 | DA13: 46758078 | DB13: 1 | DC13: RetDoc1039100001 | DD13: 1 | DE13: RetDoc1234500001 | DF13: 0 | DG13: 0 | DH13: 0 | DI13: 0 | DJ13: RetDoc1040000001 | DK13: 0 | DL13: RetDoc1040000001 | DM13: 1 | DN13: RetDoc1040000001 | DO13: 0 | DP13: RetDoc1040000001 | DQ13: 1 | DR13: RetDoc1040000001 | DS13: 1 | DT13: RetDoc1040000001 | DU13: 1 | DV13: RetDoc1040000001 | DW13: 0 | DX13: RetDoc1040000001 | DY13: 0 | DZ13: RetDoc1040000001 | EA13: 1 | EB13: RetDoc1040000001 | EC13: 1 | ED13: RetDoc1040000001 | EE13: 0 | EF13: RetDoc1040000001 | EG13: 1 | EH13: RetDoc1040000001 | EI13: 1 | EJ13: RetDoc1040400001 | EK13: 0 | EL13: 1 | EM13: RetDoc1040500001 | EN13: 0 | EO13: RetDoc1040500001 | EP13: 0 | EQ13: RetDoc1040500001 | ER13: 0 | ES13: 0 | ET13: 0 | EU13: 0 | EV13: 1 | EW13: RetDoc1041900001 | EX13: 1 | EY13: RetDoc1041900001 | EZ13: 1 | FA13: RetDoc1042400001 | FB13: 1 | FC13: RetDoc1053100001 | FD13: 0 | FE13: 0 | FF13: 0 | FG13: 0 | FH13: 0 | FI13: 0 | FJ13: 0 | FK13: 0 | FL13: 0 | FM13: 0 | FN13: 1 | FO13: RetDoc1042900001 | FP13: 0 | FQ13: RetDoc1042900001 | FR13: 0 | FS13: 0 | FT13: 0 | FU13: RetDoc1043400001 | FV13: 1 | FW13: RetDoc1043400001 | FX13: 0 | FY13: 0 | FZ13: RetDoc1043400001 | GA13: 0 | GB13: RetDoc1043400001 | GC13: 1 | GD13: 146 | GE13: 0 | GF13: 1 | GG13: 961 | GH13: 0 | GI13: 1 | GJ13: 1 | GK13: 0 | GL13: 0 | GM13: 0 | GN13: 0 | GO13: 0 | GP13: 0 | GQ13: 0 | GR13: 0 | GS13: 0 | GT13: X | GU13: 31 | GV13: 31 | GW13: 0 | GX13: 0 | GY13: 0 | GZ13: 0 | HA13: 0 | HB13: 0 | HC13: 0 | HD13: 1 | HE13: 1 | HF13: 0 | HG13: 0 | HH13: 1 | HI13: 1 | HJ13: 1 | HK13: 1 | HL13: 1 | HM13: 1 | HN13: 1 | HO13: 1 | HP13: 0 | HR13: X | HS13: LAI CHAN CONTROLLER | HT13: 4044716308 | HU13: 141 EAST COLLEGE AVENUE | HV13: DECATUR | HW13: GA | HX13: 30030 | HY13: ELIZABETH DANIEL HOLDER | HZ13: TRUSTEE | IA13: 2 | IB13: X | IC13: 0 | ID13: 0 | IE13: 0 | IH13: 1641191 | II13: 0 | IJ13: 324250 | IK13: 11 | IL13: 0 | IM13: 1 | IN13: 0 | IV13: 7 | IW13: 14657044 | IX13: 2568431 | IY13: 14657044 | IZ13: TUITION & FEE INCOME | JA13: 611600 | JB13: 30344801 | JC13: 30344801 | JD13: 30344801 | JE13: 3007830 | JF13: -760612 | JG13: 3768442 | JH13: 574009 | JI13: 233936 | JJ13: 340073 | JK13: 340073 | JL13: 340073 | JM13: 134733439 | JN13: 1255082 | JO13: 122880403 | JP13: 207570 | JQ13: 11853036 | JR13: 1047512 | JS13: 12900548 | JT13: 12900548 | JZ13: 69725 | KA13: 69725 | KB13: 8999877 | KC13: 70250173 | KD13: 38983371 | KE13: -399305 | KF13: 17009063 | KG13: 86874 | KH13: 86874 | KI13: 18716301 | KJ13: 18716301 | KK13: 992132 | KL13: 408768 | KM13: 430886 | KN13: 152478 | KO13: 16953243 | KP13: 12429905 | KQ13: 3233423 | KR13: 1289915 | KS13: 822868 | KT13: 574485 | KU13: 181441 | KV13: 66942 | KW13: 2252122 | KX13: 1311519 | KY13: 751957 | KZ13: 188646 | LA13: 1243094 | LB13: 893836 | LC13: 255371 | LD13: 93887 | LE13: 58849 | LF13: 58849 | LG13: 249260 | LH13: 249260 | LI13: 3831158 | LJ13: 3831158 | LK13: 5227678 | LL13: 1508386 | LM13: 3492122 | LN13: 227170 | LO13: 3139770 | LP13: 2090453 | LQ13: 839923 | LR13: 209394 | LS13: 162108 | LT13: 93180 | LU13: 50928 | LV13: 18000 | LW13: 1052126 | LX13: 908506 | LY13: 53608 | LZ13: 90012 | MA13: 316801 | MB13: 219125 | MC13: 93288 | MD13: 4388 | ME13: 1972010 | MF13: 1096440 | MG13: 875570 | MH13: 4336643 | MI13: 2411179 | MJ13: 1925464 | MK13: 1400404 | ML13: 890713 | MM13: 509691 | MS13: 340110 | MT13: 238654 | MU13: 101456 | MV13: 68502317 | MW13: 46758078 | MX13: 19282435 | MY13: 2461804 | MZ13: 12399014 | NA13: 15410504 | NB13: 3617523 | NC13: 7147632 | ND13: 231591 | NE13: 274481 | NF13: 1174150 | NG13: 1508180 | NH13: 180680364 | NI13: 74610457 | NJ13: 99297520 | NK13: 106069907 | NL13: 79194985 | NM13: 93071982 | NN13: 176273435 | NO13: 184164810 | NP13: 7674958 | NQ13: 7344837 | NR13: 379863176 | NS13: 414992333 | NT13: 4902704 | NU13: 7888947 | NV13: 891104 | NW13: 744547 | NX13: 66321787 | NY13: 63224623 | NZ13: 1058937 | OA13: 4603656 | OB13: 10946322 | OC13: 11068284 | OD13: 84120854 | OE13: 87530057 | OF13: X | OG13: 51043628 | OH13: 60064599 | OI13: 168083974 | OJ13: 188841091 | OK13: 76614720 | OL13: 78556586 | OM13: 295742322 | ON13: 327462276 | OO13: 379863176 | OP13: 414992333 | OQ13: X | OR13: 1747856 | OS13: 26040018 | OT13: 37161 | OU13: 3894919 | OV13: X | OW13: 0 | OX13: 1 | OY13: X | OZ13: 1 | PA13: 1 | PB13: 1 | PC13: RetDoc1039100001 | PD13: X | PE13: RetDoc1234500001 | PF13: RESTRICTED | PG13: RESTRICTED | PH13: RESTRICTED | PI13: RESTRICTED | PJ13: RESTRICTED | PK13: RESTRICTED | PL13: RESTRICTED | PM13: RESTRICTED | TN13: RetDoc1040500001 | TO13: N/A | TP13: 0 | TQ13: 0 | TR13: 0 | TS13: 0 | TT13: 0 | TU13: 0 | TV13: 0 | TW13: 0 | TX13: 0 | TY13: 1 | TZ13: 0 | UA13: 0 | UB13: 1 | UC13: 0 | UD13: 0
A14: 2013v4.0 | B14: 0 | C14: 2015-05-15T12:21:23-05:00 | D14: 2014-06-30 | E14: 581763439 | F14: WINDHAM BRANNON PC | G14: 3630 PEACHTREE RD NE SUITE 600 | H14: ATLANTA | I14: GA | J14: 30326 | K14: 990 | L14: 2013-07-01 | M14: 580566116 | N14: AGNES SCOTT COLLEGE | O14: AGNE | P14: 4044716308 | Q14: 141 EAST COLLEGE AVENUE | R14: DECATUR | S14: GA | T14: 30030 | U14: JOHN P HEGMAN | V14: VP FOR BUSINESS & FINANCE | W14: 4044716308 | X14: 2015-05-04 | Y14: 1 | Z14: CARLYE W DOOLEY | AA14: P00292964 | AB14: 4048982000 | AC14: 2015-05-04 | AD14: 2013 | AE14: 2016-02-25 16:41:14Z | AF14: 12 | AG14: RetDoc1038000001 | AH14: RetDoc1044400001 | AI14: ELIZABETH KISS | AJ14: 141 EAST COLLEGE AVENUE | AK14: DECATUR | AL14: GA | AM14: 30030 | AN14: 193572082 | AO14: 0 | AP14: X | AQ14: WWW.AGNESSCOTT.EDU | AR14: X | AS14: 1889 | AT14: GA | AU14: A PRIVATE LIBERAL ARTS COLLEGE WITH THE MISSION TO EDUCATE WOMEN TO THINK DEEPLY, LIVE HONORABLY AND ENGAGE THE INTELLECTUAL AND SOCIAL CHALLENGES OF THEIR TIMES. | AV14: 31 | AW14: 31 | AX14: 961 | AY14: 695 | AZ14: -399305 | BA14: -726713 | BB14: 6466087 | BC14: 14657044 | BD14: 28366057 | BE14: 30344801 | BF14: 15997222 | BG14: 15908378 | BH14: 9325491 | BI14: 9339950 | BJ14: 60154857 | BK14: 70250173 | BL14: 17611632 | BM14: 18803175 | BN14: 0 | BO14: 0 | BP14: 20405978 | BQ14: 22263459 | BR14: 0 | BS14: 0 | BT14: 2461804 | BU14: 27056111 | BV14: 27435683 | BW14: 65073721 | BX14: 68502317 | BY14: -4918864 | BZ14: 1747856 | CA14: 379863176 | CB14: 414992333 | CC14: 84120854 | CD14: 87530057 | CE14: 295742322 | CF14: 327462276 | CG14: FOUNDED IN 1889, AGNES SCOTT COLLEGE IS AN INDEPENDENT LIBERAL ARTS COLLEGE FOR WOMEN WHOSE MISSION IS TO EDUCATE WOMEN TO THINK DEEPLY, LIVE HONORABLY AND ENGAGE THE INTELLECTUAL AND SOCIAL CHALLENGES OF THEIR TIMES. | CH14: 0 | CI14: 0 | CJ14: 18716301 | CK14: 18716301 | CL14: STUDENT AID ENCOMPASSES DIRECT FINANCIAL AID PROVIDED BY THE COLLEGE TO FACILITATE ITS STUDENTS' PURSUIT OF A COLLEGE EDUCATION. | CM14: 13788795 | CN14: 0 | CO14: 30344801 | CP14: INSTRUCTION IS PROVIDED BY FULL-TIME FACULTY AND PART-TIME FACULTY MEMBERS REPRESENTING NUMEROUS ACADEMIC DEPARTMENTS. | CQ14: 6524141 | CR14: 0 | CS14: 0 | CT14: ACADEMIC SUPPORT COMPRISES INFORMATION TECHNOLOGY SERVICES, REGISTRAR, ACADEMIC ADVISING, FACULTY SERVICES, LIBRARY, ETC. THESE ADMINISTRATIVE OFFICES ASSIST THE COLLEGE IN ITS EDUCATIONAL MISSION. | CU14: 7728841 | CV14: 86874 | CW14: 9686083 | CX14: 7728841 | CY14: 86874 | CZ14: 9686083 | DA14: 46758078 | DB14: 1 | DC14: RetDoc1039100001 | DD14: 1 | DE14: RetDoc1234500001 | DF14: 0 | DG14: 0 | DH14: 0 | DI14: 0 | DJ14: RetDoc1040000001 | DK14: 0 | DL14: RetDoc1040000001 | DM14: 1 | DN14: RetDoc1040000001 | DO14: 0 | DP14: RetDoc1040000001 | DQ14: 1 | DR14: RetDoc1040000001 | DS14: 1 | DT14: RetDoc1040000001 | DU14: 1 | DV14: RetDoc1040000001 | DW14: 0 | DX14: RetDoc1040000001 | DY14: 0 | DZ14: RetDoc1040000001 | EA14: 1 | EB14: RetDoc1040000001 | EC14: 1 | ED14: RetDoc1040000001 | EE14: 0 | EF14: RetDoc1040000001 | EG14: 1 | EH14: RetDoc1040000001 | EI14: 1 | EJ14: RetDoc1040400001 | EK14: 0 | EL14: 1 | EM14: RetDoc1040500001 | EN14: 0 | EO14: RetDoc1040500001 | EP14: 0 | EQ14: RetDoc1040500001 | ER14: 0 | ES14: 0 | ET14: 0 | EU14: 0 | EV14: 1 | EW14: RetDoc1041900001 | EX14: 1 | EY14: RetDoc1041900001 | EZ14: 1 | FA14: RetDoc1042400001 | FB14: 1 | FC14: RetDoc1053100001 | FD14: 0 | FE14: 0 | FF14: 0 | FG14: 0 | FH14: 0 | FI14: 0 | FJ14: 0 | FK14: 0 | FL14: 0 | FM14: 0 | FN14: 1 | FO14: RetDoc1042900001 | FP14: 0 | FQ14: RetDoc1042900001 | FR14: 0 | FS14: 0 | FT14: 0 | FU14: RetDoc1043400001 | FV14: 1 | FW14: RetDoc1043400001 | FX14: 0 | FY14: 0 | FZ14: RetDoc1043400001 | GA14: 0 | GB14: RetDoc1043400001 | GC14: 1 | GD14: 146 | GE14: 0 | GF14: 1 | GG14: 961 | GH14: 0 | GI14: 1 | GJ14: 1 | GK14: 0 | GL14: 0 | GM14: 0 | GN14: 0 | GO14: 0 | GP14: 0 | GQ14: 0 | GR14: 0 | GS14: 0 | GT14: X | GU14: 31 | GV14: 31 | GW14: 0 | GX14: 0 | GY14: 0 | GZ14: 0 | HA14: 0 | HB14: 0 | HC14: 0 | HD14: 1 | HE14: 1 | HF14: 0 | HG14: 0 | HH14: 1 | HI14: 1 | HJ14: 1 | HK14: 1 | HL14: 1 | HM14: 1 | HN14: 1 | HO14: 1 | HP14: 0 | HR14: X | HS14: LAI CHAN CONTROLLER | HT14: 4044716308 | HU14: 141 EAST COLLEGE AVENUE | HV14: DECATUR | HW14: GA | HX14: 30030 | HY14: ELIZABETH KISS | HZ14: COLLEGE PRESIDENT & TRUSTEE | IA14: 40 | IB14: X | IC14: 261535 | ID14: 0 | IE14: 49152 | IF14: X | IH14: 1641191 | II14: 0 | IJ14: 324250 | IK14: 11 | IL14: 0 | IM14: 1 | IN14: 0 | IV14: 7 | IW14: 14657044 | IX14: 2568431 | IY14: 14657044 | IZ14: TUITION & FEE INCOME | JA14: 611600 | JB14: 30344801 | JC14: 30344801 | JD14: 30344801 | JE14: 3007830 | JF14: -760612 | JG14: 3768442 | JH14: 574009 | JI14: 233936 | JJ14: 340073 | JK14: 340073 | JL14: 340073 | JM14: 134733439 | JN14: 1255082 | JO14: 122880403 | JP14: 207570 | JQ14: 11853036 | JR14: 1047512 | JS14: 12900548 | JT14: 12900548 | JZ14: 69725 | KA14: 69725 | KB14: 8999877 | KC14: 70250173 | KD14: 38983371 | KE14: -399305 | KF14: 17009063 | KG14: 86874 | KH14: 86874 | KI14: 18716301 | KJ14: 18716301 | KK14: 992132 | KL14: 408768 | KM14: 430886 | KN14: 152478 | KO14: 16953243 | KP14: 12429905 | KQ14: 3233423 | KR14: 1289915 | KS14: 822868 | KT14: 574485 | KU14: 181441 | KV14: 66942 | KW14: 2252122 | KX14: 1311519 | KY14: 751957 | KZ14: 188646 | LA14: 1243094 | LB14: 893836 | LC14: 255371 | LD14: 93887 | LE14: 58849 | LF14: 58849 | LG14: 249260 | LH14: 249260 | LI14: 3831158 | LJ14: 3831158 | LK14: 5227678 | LL14: 1508386 | LM14: 3492122 | LN14: 227170 | LO14: 3139770 | LP14: 2090453 | LQ14: 839923 | LR14: 209394 | LS14: 162108 | LT14: 93180 | LU14: 50928 | LV14: 18000 | LW14: 1052126 | LX14: 908506 | LY14: 53608 | LZ14: 90012 | MA14: 316801 | MB14: 219125 | MC14: 93288 | MD14: 4388 | ME14: 1972010 | MF14: 1096440 | MG14: 875570 | MH14: 4336643 | MI14: 2411179 | MJ14: 1925464 | MK14: 1400404 | ML14: 890713 | MM14: 509691 | MS14: 340110 | MT14: 238654 | MU14: 101456 | MV14: 68502317 | MW14: 46758078 | MX14: 19282435 | MY14: 2461804 | MZ14: 12399014 | NA14: 15410504 | NB14: 3617523 | NC14: 7147632 | ND14: 231591 | NE14: 274481 | NF14: 1174150 | NG14: 1508180 | NH14: 180680364 | NI14: 74610457 | NJ14: 99297520 | NK14: 106069907 | NL14: 79194985 | NM14: 93071982 | NN14: 176273435 | NO14: 184164810 | NP14: 7674958 | NQ14: 7344837 | NR14: 379863176 | NS14: 414992333 | NT14: 4902704 | NU14: 7888947 | NV14: 891104 | NW14: 744547 | NX14: 66321787 | NY14: 63224623 | NZ14: 1058937 | OA14: 4603656 | OB14: 10946322 | OC14: 11068284 | OD14: 84120854 | OE14: 87530057 | OF14: X | OG14: 51043628 | OH14: 60064599 | OI14: 168083974 | OJ14: 188841091 | OK14: 76614720 | OL14: 78556586 | OM14: 295742322 | ON14: 327462276 | OO14: 379863176 | OP14: 414992333 | OQ14: X | OR14: 1747856 | OS14: 26040018 | OT14: 37161 | OU14: 3894919 | OV14: X | OW14: 0 | OX14: 1 | OY14: X | OZ14: 1 | PA14: 1 | PB14: 1 | PC14: RetDoc1039100001 | PD14: X | PE14: RetDoc1234500001 | PF14: RESTRICTED | PG14: RESTRICTED | PH14: RESTRICTED | PI14: RESTRICTED | PJ14: RESTRICTED | PK14: RESTRICTED | PL14: RESTRICTED | PM14: RESTRICTED | TN14: RetDoc1040500001 | TO14: N/A | TP14: 0 | TQ14: 0 | TR14: 0 | TS14: 0 | TT14: 0 | TU14: 0 | TV14: 0 | TW14: 0 | TX14: 0 | TY14: 1 | TZ14: 0 | UA14: 0 | UB14: 1 | UC14: 0 | UD14: 0
A15: 2013v4.0 | B15: 0 | C15: 2015-05-15T12:21:23-05:00 | D15: 2014-06-30 | E15: 581763439 | F15: WINDHAM BRANNON PC | G15: 3630 PEACHTREE RD NE SUITE 600 | H15: ATLANTA | I15: GA | J15: 30326 | K15: 990 | L15: 2013-07-01 | M15: 580566116 | N15: AGNES SCOTT COLLEGE | O15: AGNE | P15: 4044716308 | Q15: 141 EAST COLLEGE AVENUE | R15: DECATUR | S15: GA | T15: 30030 | U15: JOHN P HEGMAN | V15: VP FOR BUSINESS & FINANCE | W15: 4044716308 | X15: 2015-05-04 | Y15: 1 | Z15: CARLYE W DOOLEY | AA15: P00292964 | AB15: 4048982000 | AC15: 2015-05-04 | AD15: 2013 | AE15: 2016-02-25 16:41:14Z | AF15: 12 | AG15: RetDoc1038000001 | AH15: RetDoc1044400001 | AI15: ELIZABETH KISS | AJ15: 141 EAST COLLEGE AVENUE | AK15: DECATUR | AL15: GA | AM15: 30030 | AN15: 193572082 | AO15: 0 | AP15: X | AQ15: WWW.AGNESSCOTT.EDU | AR15: X | AS15: 1889 | AT15: GA | AU15: A PRIVATE LIBERAL ARTS COLLEGE WITH THE MISSION TO EDUCATE WOMEN TO THINK DEEPLY, LIVE HONORABLY AND ENGAGE THE INTELLECTUAL AND SOCIAL CHALLENGES OF THEIR TIMES. | AV15: 31 | AW15: 31 | AX15: 961 | AY15: 695 | AZ15: -399305 | BA15: -726713 | BB15: 6466087 | BC15: 14657044 | BD15: 28366057 | BE15: 30344801 | BF15: 15997222 | BG15: 15908378 | BH15: 9325491 | BI15: 9339950 | BJ15: 60154857 | BK15: 70250173 | BL15: 17611632 | BM15: 18803175 | BN15: 0 | BO15: 0 | BP15: 20405978 | BQ15: 22263459 | BR15: 0 | BS15: 0 | BT15: 2461804 | BU15: 27056111 | BV15: 27435683 | BW15: 65073721 | BX15: 68502317 | BY15: -4918864 | BZ15: 1747856 | CA15: 379863176 | CB15: 414992333 | CC15: 84120854 | CD15: 87530057 | CE15: 295742322 | CF15: 327462276 | CG15: FOUNDED IN 1889, AGNES SCOTT COLLEGE IS AN INDEPENDENT LIBERAL ARTS COLLEGE FOR WOMEN WHOSE MISSION IS TO EDUCATE WOMEN TO THINK DEEPLY, LIVE HONORABLY AND ENGAGE THE INTELLECTUAL AND SOCIAL CHALLENGES OF THEIR TIMES. | CH15: 0 | CI15: 0 | CJ15: 18716301 | CK15: 18716301 | CL15: STUDENT AID ENCOMPASSES DIRECT FINANCIAL AID PROVIDED BY THE COLLEGE TO FACILITATE ITS STUDENTS' PURSUIT OF A COLLEGE EDUCATION. | CM15: 13788795 | CN15: 0 | CO15: 30344801 | CP15: INSTRUCTION IS PROVIDED BY FULL-TIME FACULTY AND PART-TIME FACULTY MEMBERS REPRESENTING NUMEROUS ACADEMIC DEPARTMENTS. | CQ15: 6524141 | CR15: 0 | CS15: 0 | CT15: ACADEMIC SUPPORT COMPRISES INFORMATION TECHNOLOGY SERVICES, REGISTRAR, ACADEMIC ADVISING, FACULTY SERVICES, LIBRARY, ETC. THESE ADMINISTRATIVE OFFICES ASSIST THE COLLEGE IN ITS EDUCATIONAL MISSION. | CU15: 7728841 | CV15: 86874 | CW15: 9686083 | CX15: 7728841 | CY15: 86874 | CZ15: 9686083 | DA15: 46758078 | DB15: 1 | DC15: RetDoc1039100001 | DD15: 1 | DE15: RetDoc1234500001 | DF15: 0 | DG15: 0 | DH15: 0 | DI15: 0 | DJ15: RetDoc1040000001 | DK15: 0 | DL15: RetDoc1040000001 | DM15: 1 | DN15: RetDoc1040000001 | DO15: 0 | DP15: RetDoc1040000001 | DQ15: 1 | DR15: RetDoc1040000001 | DS15: 1 | DT15: RetDoc1040000001 | DU15: 1 | DV15: RetDoc1040000001 | DW15: 0 | DX15: RetDoc1040000001 | DY15: 0 | DZ15: RetDoc1040000001 | EA15: 1 | EB15: RetDoc1040000001 | EC15: 1 | ED15: RetDoc1040000001 | EE15: 0 | EF15: RetDoc1040000001 | EG15: 1 | EH15: RetDoc1040000001 | EI15: 1 | EJ15: RetDoc1040400001 | EK15: 0 | EL15: 1 | EM15: RetDoc1040500001 | EN15: 0 | EO15: RetDoc1040500001 | EP15: 0 | EQ15: RetDoc1040500001 | ER15: 0 | ES15: 0 | ET15: 0 | EU15: 0 | EV15: 1 | EW15: RetDoc1041900001 | EX15: 1 | EY15: RetDoc1041900001 | EZ15: 1 | FA15: RetDoc1042400001 | FB15: 1 | FC15: RetDoc1053100001 | FD15: 0 | FE15: 0 | FF15: 0 | FG15: 0 | FH15: 0 | FI15: 0 | FJ15: 0 | FK15: 0 | FL15: 0 | FM15: 0 | FN15: 1 | FO15: RetDoc1042900001 | FP15: 0 | FQ15: RetDoc1042900001 | FR15: 0 | FS15: 0 | FT15: 0 | FU15: RetDoc1043400001 | FV15: 1 | FW15: RetDoc1043400001 | FX15: 0 | FY15: 0 | FZ15: RetDoc1043400001 | GA15: 0 | GB15: RetDoc1043400001 | GC15: 1 | GD15: 146 | GE15: 0 | GF15: 1 | GG15: 961 | GH15: 0 | GI15: 1 | GJ15: 1 | GK15: 0 | GL15: 0 | GM15: 0 | GN15: 0 | GO15: 0 | GP15: 0 | GQ15: 0 | GR15: 0 | GS15: 0 | GT15: X | GU15: 31 | GV15: 31 | GW15: 0 | GX15: 0 | GY15: 0 | GZ15: 0 | HA15: 0 | HB15: 0 | HC15: 0 | HD15: 1 | HE15: 1 | HF15: 0 | HG15: 0 | HH15: 1 | HI15: 1 | HJ15: 1 | HK15: 1 | HL15: 1 | HM15: 1 | HN15: 1 | HO15: 1 | HP15: 0 | HR15: X | HS15: LAI CHAN CONTROLLER | HT15: 4044716308 | HU15: 141 EAST COLLEGE AVENUE | HV15: DECATUR | HW15: GA | HX15: 30030 | HY15: ELIZABETH MCGREGOR SIMMONS | HZ15: TRUSTEE | IA15: 2 | IB15: X | IC15: 0 | ID15: 0 | IE15: 0 | IH15: 1641191 | II15: 0 | IJ15: 324250 | IK15: 11 | IL15: 0 | IM15: 1 | IN15: 0 | IV15: 7 | IW15: 14657044 | IX15: 2568431 | IY15: 14657044 | IZ15: TUITION & FEE INCOME | JA15: 611600 | JB15: 30344801 | JC15: 30344801 | JD15: 30344801 | JE15: 3007830 | JF15: -760612 | JG15: 3768442 | JH15: 574009 | JI15: 233936 | JJ15: 340073 | JK15: 340073 | JL15: 340073 | JM15: 134733439 | JN15: 1255082 | JO15: 122880403 | JP15: 207570 | JQ15: 11853036 | JR15: 1047512 | JS15: 12900548 | JT15: 12900548 | JZ15: 69725 | KA15: 69725 | KB15: 8999877 | KC15: 70250173 | KD15: 38983371 | KE15: -399305 | KF15: 17009063 | KG15: 86874 | KH15: 86874 | KI15: 18716301 | KJ15: 18716301 | KK15: 992132 | KL15: 408768 | KM15: 430886 | KN15: 152478 | KO15: 16953243 | KP15: 12429905 | KQ15: 3233423 | KR15: 1289915 | KS15: 822868 | KT15: 574485 | KU15: 181441 | KV15: 66942 | KW15: 2252122 | KX15: 1311519 | KY15: 751957 | KZ15: 188646 | LA15: 1243094 | LB15: 893836 | LC15: 255371 | LD15: 93887 | LE15: 58849 | LF15: 58849 | LG15: 249260 | LH15: 249260 | LI15: 3831158 | LJ15: 3831158 | LK15: 5227678 | LL15: 1508386 | LM15: 3492122 | LN15: 227170 | LO15: 3139770 | LP15: 2090453 | LQ15: 839923 | LR15: 209394 | LS15: 162108 | LT15: 93180 | LU15: 50928 | LV15: 18000 | LW15: 1052126 | LX15: 908506 | LY15: 53608 | LZ15: 90012 | MA15: 316801 | MB15: 219125 | MC15: 93288 | MD15: 4388 | ME15: 1972010 | MF15: 1096440 | MG15: 875570 | MH15: 4336643 | MI15: 2411179 | MJ15: 1925464 | MK15: 1400404 | ML15: 890713 | MM15: 509691 | MS15: 340110 | MT15: 238654 | MU15: 101456 | MV15: 68502317 | MW15: 46758078 | MX15: 19282435 | MY15: 2461804 | MZ15: 12399014 | NA15: 15410504 | NB15: 3617523 | NC15: 7147632 | ND15: 231591 | NE15: 274481 | NF15: 1174150 | NG15: 1508180 | NH15: 180680364 | NI15: 74610457 | NJ15: 99297520 | NK15: 106069907 | NL15: 79194985 | NM15: 93071982 | NN15: 176273435 | NO15: 184164810 | NP15: 7674958 | NQ15: 7344837 | NR15: 379863176 | NS15: 414992333 | NT15: 4902704 | NU15: 7888947 | NV15: 891104 | NW15: 744547 | NX15: 66321787 | NY15: 63224623 | NZ15: 1058937 | OA15: 4603656 | OB15: 10946322 | OC15: 11068284 | OD15: 84120854 | OE15: 87530057 | OF15: X | OG15: 51043628 | OH15: 60064599 | OI15: 168083974 | OJ15: 188841091 | OK15: 76614720 | OL15: 78556586 | OM15: 295742322 | ON15: 327462276 | OO15: 379863176 | OP15: 414992333 | OQ15: X | OR15: 1747856 | OS15: 26040018 | OT15: 37161 | OU15: 3894919 | OV15: X | OW15: 0 | OX15: 1 | OY15: X | OZ15: 1 | PA15: 1 | PB15: 1 | PC15: RetDoc1039100001 | PD15: X | PE15: RetDoc1234500001 | PF15: RESTRICTED | PG15: RESTRICTED | PH15: RESTRICTED | PI15: RESTRICTED | PJ15: RESTRICTED | PK15: RESTRICTED | PL15: RESTRICTED | PM15: RESTRICTED | TN15: RetDoc1040500001 | TO15: N/A | TP15: 0 | TQ15: 0 | TR15: 0 | TS15: 0 | TT15: 0 | TU15: 0 | TV15: 0 | TW15: 0 | TX15: 0 | TY15: 1 | TZ15: 0 | UA15: 0 | UB15: 1 | UC15: 0 | UD15: 0
... 18 more rows

Sheet ALBION COLLEGE
A1: returnVersion | B1: binaryAttachmentCnt | C1: ns1:ReturnTs | D1: ns1:TaxPeriodEndDt | E1: ns1:PreparerFirmEIN | F1: ns1:BusinessNameLine1 | G1: ns1:AddressLine1 | H1: ns1:City | I1: ns1:State | J1: ns1:ZIPCode | K1: ns1:ReturnTypeCd | L1: ns1:TaxPeriodBeginDt | M1: ns1:EIN | N1: ns1:BusinessNameLine12 | O1: ns1:BusinessNameControlTxt | P1: ns1:PhoneNum | Q1: ns1:AddressLine13 | R1: ns1:City4 | S1: ns1:State5 | T1: ns1:ZIPCode6 | U1: ns1:PersonNm | V1: ns1:PersonTitleTxt | W1: ns1:PhoneNum7 | X1: ns1:SignatureDt | Y1: ns1:DiscussWithPaidPreparerInd | Z1: ns1:PreparerPersonNm | AA1: ns1:PTIN | AB1: ns1:PhoneNum8 | AC1: ns1:TaxYr | AD1: ns1:BuildTS | AE1: documentCount | AF1: documentId | AG1: referenceDocumentId | AH1: ns1:PrincipalOfficerNm | AI1: ns1:AddressLine19 | AJ1: ns1:City10 | AK1: ns1:State11 | AL1: ns1:ZIPCode12 | AM1: ns1:GrossReceiptsAmt | AN1: ns1:GroupReturnForAffiliatesInd | AO1: ns1:Organization501c3Ind | AP1: ns1:WebsiteAddressTxt | AQ1: ns1:TypeOfOrganizationCorpInd | AR1: ns1:FormationYr | AS1: ns1:LegalDomicileStateCd | AT1: ns1:ActivityOrMissionDesc | AU1: ns1:VotingMembersGoverningBodyCnt | AV1: ns1:VotingMembersIndependentCnt | AW1: ns1:TotalEmployeeCnt | AX1: ns1:TotalVolunteersCnt | AY1: ns1:TotalGrossUBIAmt | AZ1: ns1:NetUnrelatedBusTxblIncmAmt | BA1: ns1:PYContributionsGrantsAmt | BB1: ns1:CYContributionsGrantsAmt | BC1: ns1:PYProgramServiceRevenueAmt | BD1: ns1:CYProgramServiceRevenueAmt | BE1: ns1:PYInvestmentIncomeAmt | BF1: ns1:CYInvestmentIncomeAmt | BG1: ns1:PYOtherRevenueAmt | BH1: ns1:CYOtherRevenueAmt | BI1: ns1:PYTotalRevenueAmt | BJ1: ns1:CYTotalRevenueAmt | BK1: ns1:PYGrantsAndSimilarPaidAmt | BL1: ns1:CYGrantsAndSimilarPaidAmt | BM1: ns1:PYBenefitsPaidToMembersAmt | BN1: ns1:CYBenefitsPaidToMembersAmt | BO1: ns1:PYSalariesCompEmpBnftPaidAmt | BP1: ns1:CYSalariesCompEmpBnftPaidAmt | BQ1: ns1:PYTotalProfFndrsngExpnsAmt | BR1: ns1:CYTotalProfFndrsngExpnsAmt | BS1: ns1:CYTotalFundraisingExpenseAmt | BT1: ns1:PYOtherExpensesAmt | BU1: ns1:CYOtherExpensesAmt | BV1: ns1:PYTotalExpensesAmt | BW1: ns1:CYTotalExpensesAmt | BX1: ns1:PYRevenuesLessExpensesAmt | BY1: ns1:CYRevenuesLessExpensesAmt | BZ1: ns1:TotalAssetsBOYAmt | CA1: ns1:TotalAssetsEOYAmt | CB1: ns1:TotalLiabilitiesBOYAmt | CC1: ns1:TotalLiabilitiesEOYAmt | CD1: ns1:NetAssetsOrFundBalancesBOYAmt | CE1: ns1:NetAssetsOrFundBalancesEOYAmt | CF1: ns1:InfoInScheduleOPartIIIInd | CG1: ns1:MissionDesc | CH1: ns1:SignificantNewProgramSrvcInd | CI1: ns1:SignificantChangeInd | CJ1: ns1:ExpenseAmt | CK1: ns1:GrantAmt | CL1: ns1:RevenueAmt | CM1: ns1:Desc | CN1: ns1:ExpenseAmt13 | CO1: ns1:RevenueAmt14 | CP1: ns1:Desc15 | CQ1: ns1:ExpenseAmt16 | CR1: ns1:RevenueAmt17 | CS1: ns1:Desc18 | CT1: ns1:ExpenseAmt19 | CU1: ns1:RevenueAmt20 | CV1: ns1:Desc21 | CW1: ns1:TotalOtherProgSrvcExpenseAmt | CX1: ns1:TotalOtherProgSrvcRevenueAmt | CY1: ns1:TotalProgramServiceExpensesAmt | CZ1: ns1:DescribedInSection501c3Ind | DA1: referenceDocumentId22 | DB1: ns1:ScheduleBRequiredInd | DC1: referenceDocumentId23 | DD1: ns1:PoliticalCampaignActyInd | DE1: ns1:LobbyingActivitiesInd | DF1: ns1:SubjectToProxyTaxInd | DG1: ns1:DonorAdvisedFundInd | DH1: referenceDocumentId24 | DI1: ns1:ConservationEasementsInd | DJ1: referenceDocumentId25 | DK1: ns1:CollectionsOfArtInd | DL1: referenceDocumentId26 | DM1: ns1:CreditCounselingInd | DN1: referenceDocumentId27 | DO1: ns1:TempOrPermanentEndowmentsInd | DP1: referenceDocumentId28 | DQ1: ns1:ReportLandBuildingEquipmentInd | DR1: referenceDocumentId29 | DS1: ns1:ReportInvestmentsOtherSecInd | DT1: referenceDocumentId30 | DU1: ns1:ReportProgramRelatedInvstInd | DV1: referenceDocumentId31 | DW1: ns1:ReportOtherAssetsInd | DX1: referenceDocumentId32 | DY1: ns1:ReportOtherLiabilitiesInd | DZ1: referenceDocumentId33 | EA1: ns1:IncludeFIN48FootnoteInd | EB1: referenceDocumentId34 | EC1: ns1:IndependentAuditFinclStmtInd | ED1: referenceDocumentId35 | EE1: ns1:ConsolidatedAuditFinclStmtInd | EF1: referenceDocumentId36 | EG1: ns1:SchoolOperatingInd | EH1: referenceDocumentId37 | EI1: ns1:ForeignOfficeInd | EJ1: ns1:ForeignActivitiesInd | EK1: referenceDocumentId38 | EL1: ns1:MoreThan5000KToOrgInd | EM1: referenceDocumentId39 | EN1: ns1:MoreThan5000KToIndividualsInd | EO1: referenceDocumentId40 | EP1: ns1:ProfessionalFundraisingInd | EQ1: referenceDocumentId41 | ER1: ns1:FundraisingActivitiesInd | ES1: referenceDocumentId42 | ET1: ns1:GamingActivitiesInd | EU1: referenceDocumentId43 | EV1: ns1:OperateHospitalInd | EW1: ns1:GrantsToOrganizationsInd | EX1: referenceDocumentId44 | EY1: ns1:GrantsToIndividualsInd | EZ1: referenceDocumentId45 | FA1: ns1:ScheduleJRequiredInd | FB1: referenceDocumentId46 | FC1: ns1:TaxExemptBondsInd | FD1: referenceDocumentId47 | FE1: ns1:InvestTaxExemptBondsInd | FF1: ns1:EscrowAccountInd | FG1: ns1:OnBehalfOfIssuerInd | FH1: ns1:EngagedInExcessBenefitTransInd | FI1: ns1:PYExcessBenefitTransInd | FJ1: ns1:LoanOutstandingInd | FK1: ns1:GrantToRelatedPersonInd | FL1: ns1:BusinessRlnWithOrgMemInd | FM1: ns1:BusinessRlnWithFamMemInd | FN1: ns1:BusinessRlnWithOfficerEntInd | FO1: ns1:DeductibleNonCashContriInd | FP1: referenceDocumentId48 | FQ1: ns1:DeductibleArtContributionInd | FR1: referenceDocumentId49 | FS1: ns1:TerminateOperationsInd | FT1: ns1:PartialLiquidationInd | FU1: ns1:DisregardedEntityInd | FV1: referenceDocumentId50 | FW1: ns1:RelatedEntityInd | FX1: referenceDocumentId51 | FY1: ns1:RelatedOrganizationCtrlEntInd | FZ1: ns1:TransactionWithControlEntInd | GA1: referenceDocumentId52 | GB1: ns1:TrnsfrExmptNonChrtblRltdOrgInd | GC1: referenceDocumentId53 | GD1: ns1:ActivitiesConductedPrtshpInd | GE1: referenceDocumentId54 | GF1: ns1:ScheduleORequiredInd | GG1: ns1:IRPDocumentCnt | GH1: ns1:IRPDocumentW2GCnt | GI1: ns1:BackupWthldComplianceInd | GJ1: ns1:EmployeeCnt | GK1: ns1:EmploymentTaxReturnsFiledInd | GL1: ns1:UnrelatedBusIncmOverLimitInd | GM1: ns1:Form990TFiledInd | GN1: ns1:ForeignFinancialAccountInd | GO1: ns1:ProhibitedTaxShelterTransInd | GP1: ns1:TaxablePartyNotificationInd | GQ1: ns1:NondeductibleContributionsInd | GR1: ns1:QuidProQuoContributionsInd | GS1: ns1:QuidProQuoContriDisclInd | GT1: ns1:Form8282PropertyDisposedOfInd | GU1: ns1:RcvFndsToPayPrsnlBnftCntrctInd | GV1: ns1:PayPremiumsPrsnlBnftCntrctInd | GW1: ns1:IndoorTanningServicesInd | GX1: ns1:InfoInScheduleOPartVIInd | GY1: ns1:GoverningBodyVotingMembersCnt | GZ1: ns1:IndependentVotingMemberCnt | HA1: ns1:FamilyOrBusinessRlnInd | HB1: ns1:DelegationOfMgmtDutiesInd | HC1: ns1:ChangeToOrgDocumentsInd | HD1: ns1:MaterialDiversionOrMisuseInd | HE1: ns1:MembersOrStockholdersInd | HF1: ns1:ElectionOfBoardMembersInd | HG1: ns1:DecisionsSubjectToApprovaInd | HH1: ns1:MinutesOfGoverningBodyInd | HI1: ns1:MinutesOfCommitteesInd | HJ1: ns1:OfficerMailingAddressInd | HK1: ns1:LocalChaptersInd | HL1: ns1:Form990ProvidedToGvrnBodyInd | HM1: ns1:ConflictOfInterestPolicyInd | HN1: ns1:AnnualDisclosureCoveredPrsnInd | HO1: ns1:RegularMonitoringEnfrcInd | HP1: ns1:WhistleblowerPolicyInd | HQ1: ns1:DocumentRetentionPolicyInd | HR1: ns1:CompensationProcessCEOInd | HS1: ns1:CompensationProcessOtherInd | HT1: ns1:InvestmentInJointVentureInd | HU1: ns1:UponRequestInd | HV1: ns1:BusinessNameLine155 | HW1: ns1:PhoneNum56 | HX1: ns1:AddressLine157 | HY1: ns1:City58 | HZ1: ns1:State59 | IA1: ns1:ZIPCode60 | IB1: ns1:PersonNm61 | IC1: ns1:TitleTxt | ID1: ns1:AverageHoursPerWeekRt | IE1: ns1:AverageHoursPerWeekRltdOrgRt | IF1: ns1:IndividualTrusteeOrDirectorInd | IG1: ns1:OfficerInd | IH1: ns1:ReportableCompFromOrgAmt | II1: ns1:ReportableCompFromRltdOrgAmt | IJ1: ns1:OtherCompensationAmt | IK1: ns1:HighestCompensatedEmployeeInd | IL1: ns1:TotalReportableCompFromOrgAmt | IM1: ns1:TotReportableCompRltdOrgAmt | IN1: ns1:TotalOtherCompensationAmt | IO1: ns1:IndivRcvdGreaterThan100KCnt | IP1: ns1:FormerOfcrEmployeesListedInd | IQ1: ns1:TotalCompGreaterThan150KInd | IR1: ns1:CompensationFromOtherSrcsInd | IS1: ns1:BusinessNameLine162 | IT1: ns1:AddressLine163 | IU1: ns1:City64 | IV1: ns1:State65 | IW1: ns1:ZIPCode66 | IX1: ns1:ServicesDesc | IY1: ns1:CompensationAmt | IZ1: ns1:CntrctRcvdGreaterThan100KCnt | JA1: ns1:FundraisingAmt | JB1: ns1:GovernmentGrantsAmt | JC1: ns1:AllOtherContributionsAmt | JD1: ns1:NoncashContributionsAmt | JE1: ns1:TotalContributionsAmt | JF1: ns1:Desc67 | JG1: ns1:BusinessCd | JH1: ns1:TotalRevenueColumnAmt | JI1: ns1:RelatedOrExemptFuncIncomeAmt | JJ1: ns1:TotalProgramServiceRevenueAmt | JK1: ns1:TotalRevenueColumnAmt68 | JL1: ns1:ExclusionAmt | JM1: ns1:SecuritiesAmt | JN1: ns1:OtherAmt | JO1: ns1:SecuritiesAmt69 | JP1: ns1:OtherAmt70 | JQ1: ns1:SecuritiesAmt71 | JR1: ns1:OtherAmt72 | JS1: ns1:TotalRevenueColumnAmt73 | JT1: ns1:ExclusionAmt74 | JU1: ns1:FundraisingGrossIncomeAmt | JV1: ns1:ContriRptFundraisingEventAmt | JW1: ns1:FundraisingDirectExpensesAmt | JX1: ns1:TotalRevenueColumnAmt75 | JY1: ns1:ExclusionAmt76 | JZ1: ns1:GamingGrossIncomeAmt | KA1: ns1:GamingDirectExpensesAmt | KB1: ns1:TotalRevenueColumnAmt77 | KC1: ns1:ExclusionAmt78 | KD1: ns1:Desc79 | KE1: ns1:BusinessCd80 | KF1: ns1:TotalRevenueColumnAmt81 | KG1: ns1:ExclusionAmt82 | KH1: ns1:OtherRevenueTotalAmt | KI1: ns1:TotalRevenueColumnAmt83 | KJ1: ns1:RelatedOrExemptFuncIncomeAmt84 | KK1: ns1:UnrelatedBusinessRevenueAmt | KL1: ns1:ExclusionAmt85 | KM1: ns1:InfoInScheduleOPartIXInd | KN1: ns1:TotalAmt | KO1: ns1:ProgramServicesAmt | KP1: ns1:TotalAmt86 | KQ1: ns1:ProgramServicesAmt87 | KR1: ns1:TotalAmt88 | KS1: ns1:ProgramServicesAmt89 | KT1: ns1:TotalAmt90 | KU1: ns1:ProgramServicesAmt91 | KV1: ns1:ManagementAndGeneralAmt | KW1: ns1:FundraisingAmt92 | KX1: ns1:TotalAmt93 | KY1: ns1:ProgramServicesAmt94 | KZ1: ns1:ManagementAndGeneralAmt95 | LA1: ns1:FundraisingAmt96 | LB1: ns1:TotalAmt97 | LC1: ns1:ProgramServicesAmt98 | LD1: ns1:ManagementAndGeneralAmt99 | LE1: ns1:FundraisingAmt100 | LF1: ns1:TotalAmt101 | LG1: ns1:ProgramServicesAmt102 | LH1: ns1:ManagementAndGeneralAmt103 | LI1: ns1:FundraisingAmt104 | LJ1: ns1:TotalAmt105 | LK1: ns1:ProgramServicesAmt106 | LL1: ns1:ManagementAndGeneralAmt107 | LM1: ns1:FundraisingAmt108 | LN1: ns1:TotalAmt109 | LO1: ns1:ProgramServicesAmt110 | LP1: ns1:ManagementAndGeneralAmt111 | LQ1: ns1:FundraisingAmt112 | LR1: ns1:TotalAmt113 | LS1: ns1:ManagementAndGeneralAmt114 | LT1: ns1:TotalAmt115 | LU1: ns1:FundraisingAmt116 | LV1: ns1:TotalAmt117 | LW1: ns1:ProgramServicesAmt118 | LX1: ns1:ManagementAndGeneralAmt119 | LY1: ns1:FundraisingAmt120 | LZ1: ns1:TotalAmt121 | MA1: ns1:ProgramServicesAmt122 | MB1: ns1:ManagementAndGeneralAmt123 | MC1: ns1:FundraisingAmt124 | MD1: ns1:TotalAmt125 | ME1: ns1:ProgramServicesAmt126 | MF1: ns1:ManagementAndGeneralAmt127 | MG1: ns1:FundraisingAmt128 | MH1: ns1:TotalAmt129 | MI1: ns1:ProgramServicesAmt130 | MJ1: ns1:ManagementAndGeneralAmt131 | MK1: ns1:FundraisingAmt132 | ML1: ns1:TotalAmt133 | MM1: ns1:ProgramServicesAmt134 | MN1: ns1:ManagementAndGeneralAmt135 | MO1: ns1:FundraisingAmt136 | MP1: ns1:TotalAmt137 | MQ1: ns1:ProgramServicesAmt138 | MR1: ns1:ManagementAndGeneralAmt139 | MS1: ns1:FundraisingAmt140 | MT1: ns1:TotalAmt141 | MU1: ns1:ProgramServicesAmt142 | MV1: ns1:ManagementAndGeneralAmt143 | MW1: ns1:FundraisingAmt144 | MX1: ns1:TotalAmt145 | MY1: ns1:ProgramServicesAmt146 | MZ1: ns1:ManagementAndGeneralAmt147 | NA1: ns1:FundraisingAmt148 | NB1: ns1:TotalAmt149 | NC1: ns1:ProgramServicesAmt150 | ND1: ns1:ManagementAndGeneralAmt151 | NE1: ns1:FundraisingAmt152 | NF1: ns1:TotalAmt153 | NG1: ns1:ProgramServicesAmt154 | NH1: ns1:ManagementAndGeneralAmt155 | NI1: ns1:FundraisingAmt156 | NJ1: ns1:Desc157 | NK1: ns1:TotalAmt158 | NL1: ns1:ProgramServicesAmt159 | NM1: ns1:ManagementAndGeneralAmt160 | NN1: ns1:FundraisingAmt161 | NO1: ns1:TotalAmt162 | NP1: ns1:ProgramServicesAmt163 | NQ1: ns1:ManagementAndGeneralAmt164 | NR1: ns1:FundraisingAmt165 | NS1: ns1:TotalAmt166 | NT1: ns1:ProgramServicesAmt167 | NU1: ns1:ManagementAndGeneralAmt168 | NV1: ns1:FundraisingAmt169 | NW1: ns1:BOYAmt | NX1: ns1:EOYAmt | NY1: ns1:BOYAmt170 | NZ1: ns1:EOYAmt171 | OA1: ns1:BOYAmt172 | OB1: ns1:EOYAmt173 | OC1: ns1:BOYAmt174 | OD1: ns1:EOYAmt175 | OE1: ns1:BOYAmt176 | OF1: ns1:EOYAmt177 | OG1: ns1:BOYAmt178 | OH1: ns1:EOYAmt179 | OI1: ns1:LandBldgEquipCostOrOtherBssAmt | OJ1: ns1:LandBldgEquipAccumDeprecAmt | OK1: ns1:BOYAmt180 | OL1: ns1:EOYAmt181 | OM1: ns1:BOYAmt182 | ON1: ns1:EOYAmt183 | OO1: ns1:BOYAmt184 | OP1: ns1:EOYAmt185 | OQ1: ns1:BOYAmt186 | OR1: ns1:BOYAmt187 | OS1: ns1:EOYAmt188 | OT1: ns1:BOYAmt189 | OU1: ns1:EOYAmt190 | OV1: ns1:BOYAmt191 | OW1: ns1:EOYAmt192 | OX1: ns1:BOYAmt193 | OY1: ns1:EOYAmt194 | OZ1: ns1:BOYAmt195 | PA1: ns1:EOYAmt196 | PB1: ns1:BOYAmt197 | PC1: ns1:BOYAmt198 | PD1: ns1:EOYAmt199 | PE1: ns1:BOYAmt200 | PF1: ns1:EOYAmt201 | PG1: ns1:BOYAmt202 | PH1: ns1:EOYAmt203 | PI1: ns1:OrganizationFollowsSFAS117Ind | PJ1: ns1:BOYAmt204 | PK1: ns1:EOYAmt205 | PL1: ns1:BOYAmt206 | PM1: ns1:EOYAmt207 | PN1: ns1:BOYAmt208 | PO1: ns1:EOYAmt209 | PP1: ns1:BOYAmt210 | PQ1: ns1:EOYAmt211 | PR1: ns1:BOYAmt212 | PS1: ns1:EOYAmt213 | PT1: ns1:InfoInScheduleOPartXIInd | PU1: ns1:ReconcilationRevenueExpnssAmt | PV1: ns1:NetUnrlzdGainsLossesInvstAmt | PW1: ns1:OtherChangesInNetAssetsAmt | PX1: ns1:InfoInScheduleOPartXIIInd | PY1: ns1:MethodOfAccountingAccrualInd | PZ1: ns1:AccountantCompileOrReviewInd | QA1: ns1:FSAuditedInd | QB1: ns1:ConsolidatedBasisFinclStmtInd | QC1: ns1:AuditCommitteeInd | QD1: ns1:FederalGrantAuditRequiredInd | QE1: ns1:FederalGrantAuditPerformedInd | QF1: documentId214 | QG1: ns1:SchoolInd | QH1: documentId215 | QI1: ns1:ContributorNum | QJ1: ns1:BusinessNameLine1216 | QK1: ns1:AddressLine1217 | QL1: ns1:AddressLine2 | QM1: ns1:City218 | QN1: ns1:State219 | QO1: ns1:ZIPCode220 | QP1: ns1:TotalContributionsAmt221 | QQ1: documentId222 | QR1: ns1:CollectionUsedPubExhibitionInd | QS1: ns1:CollUsedScholarlyRsrchInd | QT1: ns1:CollectionUsedPreservationInd | QU1: ns1:CollUsedLoanOrExchProgInd | QV1: ns1:SolicitedAssetsSaleInd | QW1: ns1:BeginningYearBalanceAmt | QX1: ns1:ContributionsAmt | QY1: ns1:InvestmentEarningsOrLossesAmt | QZ1: ns1:GrantsOrScholarshipsAmt | RA1: ns1:OtherExpendituresAmt | RB1: ns1:AdministrativeExpensesAmt | RC1: ns1:EndYearBalanceAmt | RD1: ns1:BeginningYearBalanceAmt223 | RE1: ns1:ContributionsAmt224 | RF1: ns1:InvestmentEarningsOrLossesAmt225 | RG1: ns1:GrantsOrScholarshipsAmt226 | RH1: ns1:OtherExpendituresAmt227 | RI1: ns1:AdministrativeExpensesAmt228 | RJ1: ns1:EndYearBalanceAmt229 | RK1: ns1:BeginningYearBalanceAmt230 | RL1: ns1:ContributionsAmt231 | RM1: ns1:InvestmentEarningsOrLossesAmt232 | RN1: ns1:GrantsOrScholarshipsAmt233 | RO1: ns1:OtherExpendituresAmt234 | RP1: ns1:AdministrativeExpensesAmt235 | RQ1: ns1:EndYearBalanceAmt236 | RR1: ns1:BeginningYearBalanceAmt237 | RS1: ns1:ContributionsAmt238 | RT1: ns1:InvestmentEarningsOrLossesAmt239 | RU1: ns1:GrantsOrScholarshipsAmt240 | RV1: ns1:OtherExpendituresAmt241 | RW1: ns1:AdministrativeExpensesAmt242 | RX1: ns1:EndYearBalanceAmt243 | RY1: ns1:BeginningYearBalanceAmt244 | RZ1: ns1:ContributionsAmt245 | SA1: ns1:InvestmentEarningsOrLossesAmt246 | SB1: ns1:GrantsOrScholarshipsAmt247 | SC1: ns1:OtherExpendituresAmt248 | SD1: ns1:AdministrativeExpensesAmt249 | SE1: ns1:EndYearBalanceAmt250 | SF1: ns1:BoardDesignatedBalanceEOYPct | SG1: ns1:PrmnntEndowmentBalanceEOYPct | SH1: ns1:TermEndowmentBalanceEOYPct | SI1: ns1:EndowmentsHeldUnrelatedOrgInd | SJ1: ns1:EndowmentsHeldRelatedOrgInd | SK1: ns1:OtherCostOrOtherBasisAmt | SL1: ns1:BookValueAmt | SM1: ns1:OtherCostOrOtherBasisAmt251 | SN1: ns1:DepreciationAmt | SO1: ns1:BookValueAmt252 | SP1: ns1:OtherCostOrOtherBasisAmt253 | SQ1: ns1:DepreciationAmt254 | SR1: ns1:BookValueAmt255 | SS1: ns1:OtherCostOrOtherBasisAmt256 | ST1: ns1:DepreciationAmt257 | SU1: ns1:BookValueAmt258 | SV1: ns1:TotalBookValueLandBuildingsAmt | SW1: ns1:Desc259 | SX1: ns1:BookValueAmt260 | SY1: ns1:MethodValuationCd | SZ1: ns1:TotalBookValueSecuritiesAmt | TA1: ns1:Desc261 | TB1: ns1:Amt | TC1: ns1:TotalLiabilityAmt | TD1: ns1:FootnoteTextInd | TE1: ns1:TotalRevEtcAuditedFinclStmtAmt | TF1: ns1:NetUnrealizedGainsInvstAmt | TG1: ns1:OtherRevenueAmt | TH1: ns1:RevenueNotReportedAmt | TI1: ns1:RevenueSubtotalAmt | TJ1: ns1:OtherRevenuesNotIncludedAmt | TK1: ns1:RevenueNotReportedFinclStmtAmt | TL1: ns1:TotalRevenuePerForm990Amt | TM1: ns1:TotExpnsEtcAuditedFinclStmtAmt | TN1: ns1:OtherExpensesIncludedAmt | TO1: ns1:ExpensesNotReportedAmt | TP1: ns1:ExpensesSubtotalAmt | TQ1: ns1:OtherExpensesNotIncludedAmt | TR1: ns1:ExpensesNotRptFinclStmtAmt | TS1: ns1:TotalExpensesPerForm990Amt | TT1: ns1:FormAndLineReferenceDesc | TU1: ns1:ExplanationTxt | TV1: documentId262 | TW1: ns1:NondiscriminatoryPolicyStmtInd | TX1: ns1:PolicyStmtInBrochuresEtcInd | TY1: ns1:PlcyPblczdViaBroadcastMediaInd | TZ1: ns1:MaintainRacialCompRecsInd | UA1: ns1:MaintainScholarshipsRecsInd | UB1: ns1:MaintainCpyOfBrochuresEtcInd | UC1: ns1:MaintainCpyOfAllSolInd | UD1: ns1:DiscriminateRaceStdntsRghtsInd | UE1: ns1:DiscriminateRaceAdmissPlcyInd | UF1: ns1:DiscriminateRaceEmplmFcultyInd | UG1: ns1:DiscriminateRaceSchsInd | UH1: ns1:DiscriminateRaceEducPlcyInd | UI1: ns1:DiscriminateRaceUseOfFcltsInd | UJ1: ns1:DiscriminateRaceAthltProgInd | UK1: ns1:DiscriminateRaceOtherActyInd | UL1: ns1:GovernmentFinancialAidRcvdInd | UM1: ns1:GovernmentFinancialAidRvkdInd | UN1: ns1:ComplianceWithRevProc7550Ind | UO1: ns1:FormAndLineReferenceDesc263 | UP1: ns1:ExplanationTxt264 | UQ1: documentId265 | UR1: ns1:GrantRecordsMaintainedInd | US1: ns1:RegionTxt | UT1: ns1:OfficesCnt | UU1: ns1:EmployeeCnt266 | UV1: ns1:TypeOfActivitiesConductedTxt | UW1: ns1:SpecificServicesProvidedTxt | UX1: ns1:RegionTotalExpendituresAmt | UY1: ns1:SubtotalOfficesCnt | UZ1: ns1:SubtotalEmployeesCnt | VA1: ns1:ContinutationTotalOfficeCnt | VB1: ns1:ContinutationTotalEmployeeCnt | VC1: ns1:TotalOfficeCnt | VD1: ns1:TotalEmployeeCnt267 | VE1: ns1:SubtotalSpentAmt | VF1: ns1:ContinuationSpentAmt | VG1: ns1:TotalSpentAmt | VH1: ns1:RegionTxt268 | VI1: ns1:PurposeOfGrantTxt | VJ1: ns1:CashGrantAmt | VK1: ns1:MannerOfCashDisbursementTxt | VL1: ns1:DescriptionOfNonCashAsstTxt | VM1: ns1:ValuationMethodUsedDesc | VN1: ns1:Total501c3OrgCnt | VO1: ns1:TotalOtherOrgCnt | VP1: ns1:TransferToForeignCorpInd | VQ1: ns1:InterestInForeignTrustInd | VR1: ns1:ForeignCorpOwnershipInd | VS1: ns1:PassiveForeignInvestmestCoInd | VT1: ns1:ForeignPartnershipInd | VU1: ns1:BoycottCountriesInd | VV1: ns1:FormAndLineReferenceDesc269 | VW1: ns1:ExplanationTxt270 | VX1: documentId271 | VY1: ns1:MailSolicitationsInd | VZ1: ns1:EmailSolicitationsInd | WA1: ns1:PhoneSolicitationsInd | WB1: ns1:SpecialFundraisingEventsInd | WC1: ns1:AgrmtProfFundraisingActyInd | WD1: ns1:PersonNm272 | WE1: ns1:AddressLine1273 | WF1: ns1:City274 | WG1: ns1:State275 | WH1: ns1:ZIPCode276 | WI1: ns1:ActivityTxt | WJ1: ns1:FundraiserControlOfFundsInd | WK1: ns1:GrossReceiptsAmt277 | WL1: ns1:RetainedByContractorAmt | WM1: ns1:NetToOrganizationAmt | WN1: ns1:TotalGrossReceiptsAmt | WO1: ns1:TotalRetainedByContractorsAmt | WP1: ns1:TotalNetToOrganizationAmt | WQ1: ns1:NameOfEvent1Amt | WR1: ns1:GrossReceiptsEvent1Amt | WS1: ns1:CharitableContriEvent1Amt | WT1: ns1:OtherDirectExpensesEvent1Amt | WU1: ns1:NameOfEvent2Amt | WV1: ns1:GrossReceiptsEvent2Amt | WW1: ns1:CharitableContriEvent2Amt | WX1: ns1:GrossRevenueEvent2Amt | WY1: ns1:RentFacilityCostsEvent2Amt | WZ1: ns1:OtherDirectExpensesEvent2Amt | XA1: ns1:OtherEventsTotalCnt | XB1: ns1:GrossReceiptsOtherEventsAmt | XC1: ns1:CharitableContriOtherEventsAmt | XD1: ns1:OthDirectExpnssOtherEventsAmt | XE1: ns1:GrossReceiptsTotalAmt | XF1: ns1:CharitableContributionsTotAmt | XG1: ns1:GrossRevenueTotalEventsAmt | XH1: ns1:RentFcltyCostsTotalEventsAmt | XI1: ns1:OthDirectExpnssTotalEventsAmt | XJ1: ns1:DirectExpenseSummaryEventsAmt | XK1: ns1:NetIncomeSummaryAmt | XL1: ns1:GrossRevenueOtherGamingAmt | XM1: ns1:NonCashPrizesOtherGamingAmt | XN1: ns1:OthDirectExpnssOtherGamingAmt | XO1: ns1:VolunteerLaborOtherGamingInd | XP1: ns1:GrossRevenueTotalGamingAmt | XQ1: ns1:NonCashPrizesTotalGamingAmt | XR1: ns1:OthDirectExpnssTotalGamingAmt | XS1: ns1:DirectExpenseSummaryGamingAmt | XT1: ns1:NetGamingIncomeSummaryAmt | XU1: ns1:StatesWhereGamingConductedCd | XV1: ns1:LicensedInd | XW1: ns1:LicenseSuspendedEtcInd | XX1: ns1:GamingWithNonmembersInd | XY1: ns1:MemberOfOtherEntityInd | XZ1: ns1:GamingOwnFacilityPct | YA1: ns1:GamingOtherFacilityPct | YB1: ns1:BusinessNameLine1278 | YC1: ns1:AddressLine1279 | YD1: ns1:City280 | YE1: ns1:State281 | YF1: ns1:ZIPCode282 | YG1: ns1:CntrctWith3rdPrtyForGameRevInd | YH1: ns1:GamingManagerPersonNm | YI1: ns1:GamingManagerCompensationAmt | YJ1: ns1:GamingManagerServicesProvTxt | YK1: ns1:GamingManagerIsEmployeeInd | YL1: ns1:CharitableDistributionRqrInd | YM1: documentId283 | YN1: ns1:GrantRecordsMaintainedInd284 | YO1: ns1:BusinessNameLine1285 | YP1: ns1:AddressLine1286 | YQ1: ns1:City287 | YR1: ns1:State288 | YS1: ns1:ZIPCode289 | YT1: ns1:RecipientEIN | YU1: ns1:IRCSectionDesc | YV1: ns1:CashGrantAmt290 | YW1: ns1:NonCashAssistanceAmt | YX1: ns1:ValuationMethodUsedDesc291 | YY1: ns1:NonCashAssistanceDesc | YZ1: ns1:PurposeOfGrantTxt292 | ZA1: ns1:Total501c3OrgCnt293 | ZB1: ns1:TotalOtherOrgCnt294 | ZC1: ns1:GrantTypeTxt | ZD1: ns1:RecipientCnt | ZE1: ns1:CashGrantAmt295 | ZF1: ns1:NonCashAssistanceAmt296 | ZG1: ns1:ValuationMethodUsedDesc297 | ZH1: ns1:NonCashAssistanceDesc298 | ZI1: ns1:FormAndLineReferenceDesc299 | ZJ1: ns1:ExplanationTxt300 | ZK1: documentId301 | ZL1: ns1:SubstantiationRequiredInd | ZM1: ns1:IndependentConsultantInd | ZN1: ns1:Form990OfOtherOrganizationsInd | ZO1: ns1:CompensationSurveyInd | ZP1: ns1:BoardOrCommitteeApprovalInd | ZQ1: ns1:SeverancePaymentInd | ZR1: ns1:SupplementalNonqualRtrPlanInd | ZS1: ns1:EquityBasedCompArrngmInd | ZT1: ns1:CompBasedOnRevenueOfFlngOrgInd | ZU1: ns1:CompBsdOnRevRelatedOrgsInd | ZV1: ns1:CompBsdNetEarnsFlngOrgInd | ZW1: ns1:CompBsdNetEarnsRltdOrgsInd | ZX1: ns1:AnyNonFixedPaymentsInd | ZY1: ns1:InitialContractExceptionInd | ZZ1: ns1:PersonNm302 | AAA1: ns1:TitleTxt303 | AAB1: ns1:BaseCompensationFilingOrgAmt | AAC1: ns1:CompensationBasedOnRltdOrgsAmt | AAD1: ns1:BonusFilingOrganizationAmount | AAE1: ns1:BonusRelatedOrganizationsAmt | AAF1: ns1:OtherCompensationFilingOrgAmt | AAG1: ns1:OtherCompensationRltdOrgsAmt | AAH1: ns1:DeferredCompensationFlngOrgAmt | AAI1: ns1:DeferredCompRltdOrgsAmt | AAJ1: ns1:NontaxableBenefitsFilingOrgAmt | AAK1: ns1:NontaxableBenefitsRltdOrgsAmt | AAL1: ns1:TotalCompensationFilingOrgAmt | AAM1: ns1:TotalCompensationRltdOrgsAmt | AAN1: ns1:CompReportPrior990FilingOrgAmt | AAO1: ns1:CompReportPrior990RltdOrgsAmt | AAP1: ns1:FormAndLineReferenceDesc304 | AAQ1: ns1:ExplanationTxt305 | AAR1: documentId306 | AAS1: ns1:BondReferenceCd | AAT1: ns1:BusinessNameLine1307 | AAU1: ns1:BondIssuedDt | AAV1: ns1:IssuePriceAmt | AAW1: ns1:PurposeDesc | AAX1: ns1:DefeasedInd | AAY1: ns1:OnBehalfOfIssuerInd308 | AAZ1: ns1:PoolFinancingInd | ABA1: ns1:BondReferenceCd309 | ABB1: ns1:RetiredAmt | ABC1: ns1:TotalProceedsAmt | ABD1: ns1:InReserveFundAmt | ABE1: ns1:RefundingEscrowAmt | ABF1: ns1:IssuanceCostsFromProceedsAmt | ABG1: ns1:CapitalExpendituresAmt | ABH1: ns1:SubstantialCompletionYr | ABI1: ns1:CurrentRefundingInd | ABJ1: ns1:AdvanceRefundingInd | ABK1: ns1:FinalAllocationMadeInd | ABL1: ns1:AdequateBooksAndRecMaintInd | ABM1: ns1:BondReferenceCd310 | ABN1: ns1:OwningBondFinancedPropertyInd | ABO1: ns1:AnyLeaseArrangementsInd | ABP1: ns1:MgmtContractBondFincdPropInd | ABQ1: ns1:AnyResearchAgreementsInd | ABR1: ns1:BondIssMeetPrvtSecPymtTestInd | ABS1: ns1:ChangeInUseBondFinancedPropInd | ABT1: ns1:ProcsNonqualifiedBondRemdtdInd | ABU1: ns1:BondReferenceCd311 | ABV1: ns1:Form8038TFiledInd | ABW1: ns1:RebateNotDueYetInd | ABX1: ns1:ExceptionToRebateInd | ABY1: ns1:NoRebateDueInd | ABZ1: ns1:VariableRateIssueInd | ACA1: ns1:HedgeIdentifiedInBksAndRecInd | ACB1: ns1:BusinessNameLine1312 | ACC1: ns1:BusinessNameLine2 | ACD1: ns1:TermOfHedgePct | ACE1: ns1:SuperintegratedHedgeInd | ACF1: ns1:HedgeTerminatedInd | ACG1: ns1:GrossProceedsInvestedInGICInd | ACH1: ns1:GrossProceedsInvestedInd | ACI1: ns1:WrittenProcToMonitorReqsInd | ACJ1: ns1:BondReferenceCd313 | ACK1: ns1:ProceduresCorrectiveActionInd | ACL1: documentId314 | ACM1: ns1:NonCashCheckboxInd | ACN1: ns1:ContributionCnt | ACO1: ns1:NoncashContributionsRptF990Amt | ACP1: ns1:MethodOfDeterminingRevenuesTxt | ACQ1: ns1:NonCashCheckboxInd315 | ACR1: ns1:NoncashContributionsRptF990Amt316 | ACS1: ns1:MethodOfDeterminingRevenuesTxt317 | ACT1: ns1:NonCashCheckboxInd318 | ACU1: ns1:ContributionCnt319 | ACV1: ns1:NoncashContributionsRptF990Amt320 | ACW1: ns1:MethodOfDeterminingRevenuesTxt321 | ACX1: ns1:NonCashCheckboxInd322 | ACY1: ns1:Desc323 | ACZ1: ns1:ContributionCnt324 | ADA1: ns1:NoncashContributionsRptF990Amt325 | ADB1: ns1:MethodOfDeterminingRevenuesTxt326 | ADC1: ns1:Form8283ReceivedCnt | ADD1: ns1:AnyPropertyThatMustBeHeldInd | ADE1: ns1:ReviewProcessUnusualNCGiftsInd | ADF1: ns1:ThirdPartiesUsedInd | ADG1: ns1:FormAndLineReferenceDesc327 | ADH1: ns1:ExplanationTxt328 | ADI1: documentId329 | ADJ1: ns1:FormAndLineReferenceDesc330 | ADK1: ns1:ExplanationTxt331 | ADL1: documentId332 | ADM1: ns1:BusinessNameLine1333 | ADN1: ns1:AddressLine1334 | ADO1: ns1:City335 | ADP1: ns1:State336 | ADQ1: ns1:ZIPCode337 | ADR1: ns1:EIN338 | ADS1: ns1:PrimaryActivitiesTxt | ADT1: ns1:LegalDomicileStateCd339 | ADU1: ns1:BusinessNameLine1340 | ADV1: ns1:BusinessNameLine1341 | ADW1: ns1:AddressLine1342 | ADX1: ns1:City343 | ADY1: ns1:State344 | ADZ1: ns1:ZIPCode345 | AEA1: ns1:EIN346 | AEB1: ns1:PrimaryActivitiesTxt347 | AEC1: ns1:LegalDomicileStateCd348 | AED1: ns1:ExemptCodeSectionTxt | AEE1: ns1:BusinessNameLine1349 | AEF1: ns1:ControlledOrganizationInd | AEG1: ns1:PublicCharityStatusTxt | AEH1: ns1:BusinessNameLine1350 | AEI1: ns1:AddressLine1351 | AEJ1: ns1:City352 | AEK1: ns1:State353 | AEL1: ns1:ZIPCode354 | AEM1: ns1:EIN355 | AEN1: ns1:PrimaryActivitiesTxt356 | AEO1: ns1:LegalDomicileStateCd357 | AEP1: ns1:BusinessNameLine1358 | AEQ1: ns1:EntityTypeTxt | AER1: ns1:OwnershipPct | AES1: ns1:ControlledOrganizationInd359 | AET1: ns1:ReceiptOfIntAnntsRntsRyltsInd | AEU1: ns1:GiftGrntOrCapContriToOthOrgInd | AEV1: ns1:GiftGrntCapContriFromOthOrgInd | AEW1: ns1:LoansOrGuaranteesToOtherOrgInd | AEX1: ns1:LoansOrGuaranteesFromOthOrgInd | AEY1: ns1:DivRelatedOrganizationInd | AEZ1: ns1:AssetSaleToOtherOrgInd | AFA1: ns1:AssetPurchaseFromOtherOrgInd | AFB1: ns1:AssetExchangeInd | AFC1: ns1:RentalOfFacilitiesToOthOrgInd | AFD1: ns1:RentalOfFcltsFromOthOrgInd | AFE1: ns1:PerformOfServicesForOthOrgInd | AFF1: ns1:PerformOfServicesByOtherOrgInd | AFG1: ns1:SharingOfFacilitiesInd | AFH1: ns1:PaidEmployeesSharingInd | AFI1: ns1:ReimbursementPaidToOtherOrgInd | AFJ1: ns1:ReimbursementPaidByOtherOrgInd | AFK1: ns1:TransferToOtherOrgInd | AFL1: ns1:TransferFromOtherOrgInd | AFM1: ns1:BusinessNameLine1360 | AFN1: ns1:TransactionTypeTxt | AFO1: ns1:InvolvedAmt | AFP1: ns1:MethodOfAmountDeterminationTxt
A2: 2013v4.0 | B2: 0 | C2: 2015-05-15T13:27:25-05:00 | D2: 2014-06-30 | E2: 381357951 | F2: PLANTE & MORAN PLLC | G2: 750 TRADE CENTRE WAY STE 300 | H2: PORTAGE | I2: MI | J2: 49002 | K2: 990 | L2: 2013-07-01 | M2: 381359081 | N2: ALBION COLLEGE | O2: ALBI | P2: 5176290289 | Q2: 611 EAST PORTER STREET | R2: ALBION | S2: MI | T2: 49224 | U2: JERRY WHITE | V2: VP FOR FINANCE AND ADMINISTRATION | W2: 5176290289 | X2: 2015-05-07 | Y2: 1 | Z2: VICKI L VANDENBERG CPA | AA2: P00100422 | AB2: 2695674500 | AC2: 2013 | AD2: 2016-03-07 17:11:31Z | AE2: 13 | AF2: RetDoc1038000001 | AG2: RetDoc1044400001 | AH2: JERRY WHITE | AI2: 611 EAST PORTER STREET | AJ2: ALBION | AK2: MI | AL2: 49224 | AM2: 96824604 | AN2: 0 | AO2: X | AP2: WWW.ALBION.EDU | AQ2: X | AR2: 1835 | AS2: MI | AT2: ALBION COLLEGE IS AN UNDERGRADUATE, LIBERAL ARTS INSTITUTION COMMITTED TO ACADEMIC EXCELLENCE. WE ARE LEARNING-CENTERED AND RECOGNIZE THAT VALUABLE LEARNING TAKES PLACE IN AND OUTSIDE OF THE CLASSROOM, ON AND OFF THE CAMPUS. | AU2: 26 | AV2: 25 | AW2: 1435 | AX2: 15 | AY2: 0 | AZ2: 19888 | BA2: 5969161 | BB2: 6416340 | BC2: 56998355 | BD2: 57387277 | BE2: 3815854 | BF2: 5077838 | BG2: 481652 | BH2: 799266 | BI2: 67265022 | BJ2: 69680721 | BK2: 24127822 | BL2: 24469460 | BM2: 0 | BN2: 0 | BO2: 26876677 | BP2: 26573639 | BQ2: 40413 | BR2: 40414 | BS2: 3876395 | BT2: 25101910 | BU2: 26532361 | BV2: 76146822 | BW2: 77615874 | BX2: -8881800 | BY2: -7935153 | BZ2: 303428008 | CA2: 320016109 | CB2: 79989621 | CC2: 79346943 | CD2: 223438387 | CE2: 240669166 | CF2: X | CG2: ALBION COLLEGE IS AN UNDERGRADUATE, LIBERAL ARTS INSTITUTION COMMITTED TO ACADEMIC EXCELLENCE. WE ARE LEARNING-CENTERED AND RECOGNIZE THAT VALUABLE LEARNING TAKES PLACE IN AND OUTSIDE OF THE CLASSROOM, ON AND OFF THE CAMPUS. | CH2: 0 | CI2: 0 | CJ2: 47197761 | CK2: 24469460 | CL2: 46521102 | CM2: INSTRUCTIONAL - ALBION COLLEGE IS A PRIVATE, SELECTIVE, COEDUCATIONAL, RESIDENTIAL INSTITUTION OF HIGHER EDUCATION AFFILIATED WITH THE UNITED METHODIST CHURCH, BUT NON-SECTARIAN IN PRACTICE. THE COLLEGE PRINCIPALLY OFFERS ACADEMIC COURSES AND PROGRAMS LEADING TO A BACHELORS DEGREE IN LIBERAL ARTS. APPROXIMATELY 1,300 STUDENTS ARE ENROLLED IN THE COLLEGE. | CN2: 3778515 | CO2: 3961365 | CP2: AUXILIARY - DINING SERVICES - ALBION COLLEGE IS A RESIDENTIAL INSTITUTION AND THE PRIMARY FUNCTION OF THE DINING AND HOSPITALITY SERVICES, MANAGED BY BON APPETIT MANAGEMENT COMPANY, IS TO PROVIDE FOOD FOR OUR STUDENTS, FACULTY, STAFF, AND GUESTS. WE STRIVE TO PROVIDE A WIDE SELECTION OF HIGH QUALITY PRODUCTS AND SERVICES THROUGH A VARIETY OF EXPERIENCES. THESE EXPERIENCES REFLECT OUR COMMITMENT TO BEING RESPONSIVE TO THE CHANGING NEEDS AND DESIRES OF OUR DIVERSE AUDIENCE. OPERATIONS INCLUDE AN ALL-YOU-CAN-EAT DINING HALL, QUICK-SERVE RESTAURANT, A COFFEE SHOP, LODGING, CATERING SERVICES, FACULTY/STAFF LUNCH BUFFET AND CONFERENCE AND EVENT SERVICES. | CQ2: 3480854 | CR2: 6480942 | CS2: AUXILIARY - RESIDENCE HALLS - ALBION COLLEGE IS A COLLEGE COMMUNITY INSTITUTION THAT EMPHASIZES COMMUNITY THROUGH EDUCATION IN AND OUT OF THE CLASSROOM. ALBION COLLEGE STRIVES TO PROVIDE OUR STUDENTS WITH QUALITY HOUSING THAT ENHANCES A STUDENT'S LEARNING EXPERIENCE. | CT2: 12274804 | CU2: 423868 | CV2: VARIOUS OTHER PROGRAM SERVICES RELATING TO THE ORGANIZATION'S MISSION. | CW2: 12274804 | CX2: 423868 | CY2: 66731934 | CZ2: 1 | DA2: RetDoc1039100001 | DB2: 1 | DC2: RetDoc1234500001 | DD2: 0 | DE2: 0 | DF2: 0 | DG2: 0 | DH2: RetDoc1040000001 | DI2: 0 | DJ2: RetDoc1040000001 | DK2: 1 | DL2: RetDoc1040000001 | DM2: 0 | DN2: RetDoc1040000001 | DO2: 1 | DP2: RetDoc1040000001 | DQ2: 1 | DR2: RetDoc1040000001 | DS2: 1 | DT2: RetDoc1040000001 | DU2: 0 | DV2: RetDoc1040000001 | DW2: 0 | DX2: RetDoc1040000001 | DY2: 1 | DZ2: RetDoc1040000001 | EA2: 1 | EB2: RetDoc1040000001 | EC2: 0 | ED2: RetDoc1040000001 | EE2: 1 | EF2: RetDoc1040000001 | EG2: 1 | EH2: RetDoc1040400001 | EI2: 0 | EJ2: 1 | EK2: RetDoc1040500001 | EL2: 1 | EM2: RetDoc1040500001 | EN2: 0 | EO2: RetDoc1040500001 | EP2: 1 | EQ2: RetDoc1041200001 | ER2: 1 | ES2: RetDoc1041200001 | ET2: 1 | EU2: RetDoc1041200001 | EV2: 0 | EW2: 1 | EX2: RetDoc1041900001 | EY2: 1 | EZ2: RetDoc1041900001 | FA2: 1 | FB2: RetDoc1042400001 | FC2: 1 | FD2: RetDoc1053100001 | FE2: 0 | FF2: 0 | FG2: 0 | FH2: 0 | FI2: 0 | FJ2: 0 | FK2: 0 | FL2: 0 | FM2: 0 | FN2: 0 | FO2: 1 | FP2: RetDoc1042900001 | FQ2: 1 | FR2: RetDoc1042900001 | FS2: 0 | FT2: 0 | FU2: 1 | FV2: RetDoc1043400001 | FW2: 1 | FX2: RetDoc1043400001 | FY2: 1 | FZ2: 1 | GA2: RetDoc1043400001 | GB2: 0 | GC2: RetDoc1043400001 | GD2: 0 | GE2: RetDoc1043400001 | GF2: 1 | GG2: 188 | GH2: 0 | GI2: 1 | GJ2: 1435 | GK2: 1 | GL2: 1 | GM2: 1 | GN2: 0 | GO2: 0 | GP2: 0 | GQ2: 0 | GR2: 1 | GS2: 1 | GT2: 0 | GU2: 0 | GV2: 0 | GW2: 0 | GX2: X | GY2: 26 | GZ2: 25 | HA2: 1 | HB2: 0 | HC2: 0 | HD2: 0 | HE2: 0 | HF2: 0 | HG2: 0 | HH2: 1 | HI2: 1 | HJ2: 0 | HK2: 0 | HL2: 1 | HM2: 1 | HN2: 1 | HO2: 1 | HP2: 1 | HQ2: 1 | HR2: 1 | HS2: 1 | HT2: 0 | HU2: X | HV2: MARK S HOLBROOK CONTROLLER | HW2: 5176290289 | HX2: 611 EAST PORTER STREET | HY2: ALBION | HZ2: MI | IA2: 49224 | IB2: PAUL D TOBIAS | IC2: TRUSTEE | ID2: 1 | IE2: 0 | IF2: X | IG2: X | IH2: 0 | II2: 0 | IJ2: 0 | IL2: 1096085 | IM2: 0 | IN2: 143360 | IO2: 6 | IP2: 0 | IQ2: 1 | IR2: 0 | IZ2: 27 | JA2: 373044 | JB2: 459730 | JC2: 5583566 | JD2: 857050 | JE2: 6416340 | JJ2: 57387277 | JK2: 2137010 | JL2: 2137010 | JM2: 29974238 | JN2: 7001 | JO2: 26974656 | JP2: 65755 | JQ2: 2999582 | JR2: -58754 | JS2: 2940828 | JT2: 2940828 | JU2: 4060 | JV2: 373044 | JW2: 99373 | JX2: -95313 | JY2: -95313 | JZ2: 45370 | KA2: 4099 | KB2: 41271 | KC2: 41271 | KD2: MISCELLANEOUS INCOME | KE2: 900099 | KF2: 853308 | KG2: 853308 | KH2: 853308 | KI2: 69680721 | KJ2: 57387277 | KK2: 0 | KL2: 5877104 | KM2: X | KN2: 63000 | KO2: 63000 | KP2: 24273172 | KQ2: 24273172 | KR2: 133288 | KS2: 133288 | KT2: 1200757 | KU2: 179678 | KV2: 861702 | KW2: 159377 | KX2: 19356475 | KY2: 15708070 | KZ2: 2066695 | LA2: 1581710 | LB2: 1608926 | LC2: 1443204 | LD2: 4479 | LE2: 161243 | LF2: 3017294 | LG2: 2706505 | LH2: 8400 | LI2: 302389 | LJ2: 1390187 | LK2: 1246995 | LL2: 3869 | LM2: 139323 | LN2: 261083 | LO2: 16122 | LP2: 244219 | LQ2: 742 | LR2: 100628 | LS2: 100628 | LT2: 40414 | LU2: 40414 | LV2: 655305 | LW2: 350487 | LX2: 287203 | LY2: 17615 | LZ2: 9087967 | MA2: 7168709 | MB2: 1434260 | MC2: 484998 | MD2: 187077 | ME2: 1142 | MF2: 9695 | MG2: 176240 | MH2: 2983198 | MI2: 2613997 | MJ2: 106804 | MK2: 262397 | ML2: 4152425 | MM2: 3557252 | MN2: 464075 | MO2: 131098 | MP2: 1464850 | MQ2: 1136105 | MR2: 228878 | MS2: 99867 | MT2: 363762 | MU2: 197938 | MV2: 159050 | MW2: 6774 | MX2: 1352035 | MY2: 1174749 | MZ2: 119197 | NA2: 58089 | NB2: 4903739 | NC2: 4211964 | ND2: 543977 | NE2: 147798 | NF2: 564940 | NG2: 282470 | NH2: 254223 | NI2: 28247 | NO2: 223965 | NP2: 58974 | NQ2: 92860 | NR2: 72131 | NS2: 77615874 | NT2: 66731934 | NU2: 7007545 | NV2: 3876395 | NW2: 4584944 | NX2: 6973558 | NY2: 3129722 | NZ2: 2911080 | OA2: 2414171 | OB2: 4555248 | OC2: 3946309 | OD2: 1874764 | OE2: 113206 | OF2: 118172 | OG2: 974405 | OH2: 1043184 | OI2: 183073212 | OJ2: 93678885 | OK2: 91865959 | OL2: 89394327 | OM2: 49251964 | ON2: 56155174 | OO2: 138871779 | OP2: 150877804 | OQ2: 3166061 | OR2: 5109488 | OS2: 6112798 | OT2: 303428008 | OU2: 320016109 | OV2: 15310666 | OW2: 15593294 | OX2: 162416 | OY2: 515917 | OZ2: 59375000 | PA2: 57920000 | PB2: 412447 | PC2: 1977176 | PD2: 2794504 | PE2: 2751916 | PF2: 2523228 | PG2: 79989621 | PH2: 79346943 | PI2: X | PJ2: 74763459 | PK2: 77970365 | PL2: 75341769 | PM2: 88004745 | PN2: 73333159 | PO2: 74694056 | PP2: 223438387 | PQ2: 240669166 | PR2: 303428008 | PS2: 320016109 | PT2: X | PU2: -7935153 | PV2: 24311863 | PW2: 854068 | PX2: X | PY2: X | PZ2: 0 | QA2: 1 | QB2: X | QC2: 1 | QD2: 1 | QE2: 1 | QF2: RetDoc1039100001 | QG2: X | QH2: RetDoc1234500001 | QI2: RESTRICTED | QJ2: RESTRICTED | QK2: RESTRICTED | QL2: RESTRICTED | QM2: RESTRICTED | QN2: RESTRICTED | QO2: RESTRICTED | QP2: RESTRICTED | YM2: RetDoc1041900001 | YN2: 1 | YO2: COLCHESTER PROPERTIES | YP2: 611 EAST PORTER STREET | YQ2: ALBION | YR2: MI | YS2: 49224 | YT2: 382025320 | YU2: 501(C)(3) | YV2: 63000 | YW2: 0 | YX2: CASH | YY2: N/A | YZ2: PROGRAM SUPPORT | ZA2: 1 | ZB2: 0 | ZC2: SCHOLARSHIPS | ZD2: 1267 | ZE2: 24273172 | ZF2: 0 | ZG2: N/A | ZH2: N/A | ZI2: PART I, LINE 2: | ZJ2: GRANTS ARE PROCURED BY FACULTY WITH THE ASSISTANCE OF THE COLLEGE'S GRANT MANAGER. MONITORING IS DONE BY GRANTEE, GRANT MANAGER AND SENIOR ACCOUNTANT FOR COMPLIANCE. ACTIVITY IS AUDITED AND REPORTED ANNUALLY IN THE COLLEGE'S FINANCIAL STATEMENTS. | AAR2: RetDoc1053100001 | AAS2: A | AAT2: MICHIGAN HIGHER EDUCATION FACILITIES AUTHORITY | AAU2: 2006-11-01 | AAV2: 63385000 | AAW2: SCIENCE CENTER RENOVATION, REFINANCE OF 2004 BONDS AND OTHER | AAX2: 0 | AAY2: 0 | AAZ2: 0 | ABA2: A | ABB2: 5465000 | ABC2: 63385000 | ABD2: 22437251 | ABE2: 40546103 | ABF2: 401646 | ABG2: 22035605 | ABH2: 2008 | ABI2: 1 | ABJ2: 0 | ABK2: 1 | ABL2: 1 | ABM2: A | ABN2: 0 | ABO2: 0 | ABP2: 0 | ABQ2: 0 | ABR2: 0 | ABS2: 0 | ABT2: 0 | ABU2: A | ABV2: 0 | ABW2: 0 | ABX2: 0 | ABY2: 0 | ABZ2: 1 | ACA2: 1 | ACB2: JPMORGAN CHASE | ACC2: BANK NA | ACD2: 20 | ACE2: 0 | ACF2: 0 | ACG2: 0 | ACH2: 0 | ACI2: 0 | ACJ2: A | ACK2: 0
A3: 2013v4.0 | B3: 0 | C3: 2015-05-15T13:27:25-05:00 | D3: 2014-06-30 | E3: 381357951 | F3: PLANTE & MORAN PLLC | G3: 750 TRADE CENTRE WAY STE 300 | H3: PORTAGE | I3: MI | J3: 49002 | K3: 990 | L3: 2013-07-01 | M3: 381359081 | N3: ALBION COLLEGE | O3: ALBI | P3: 5176290289 | Q3: 611 EAST PORTER STREET | R3: ALBION | S3: MI | T3: 49224 | U3: JERRY WHITE | V3: VP FOR FINANCE AND ADMINISTRATION | W3: 5176290289 | X3: 2015-05-07 | Y3: 1 | Z3: VICKI L VANDENBERG CPA | AA3: P00100422 | AB3: 2695674500 | AC3: 2013 | AD3: 2016-03-07 17:11:31Z | AE3: 13 | AF3: RetDoc1038000001 | AG3: RetDoc1044400001 | AH3: JERRY WHITE | AI3: 611 EAST PORTER STREET | AJ3: ALBION | AK3: MI | AL3: 49224 | AM3: 96824604 | AN3: 0 | AO3: X | AP3: WWW.ALBION.EDU | AQ3: X | AR3: 1835 | AS3: MI | AT3: ALBION COLLEGE IS AN UNDERGRADUATE, LIBERAL ARTS INSTITUTION COMMITTED TO ACADEMIC EXCELLENCE. WE ARE LEARNING-CENTERED AND RECOGNIZE THAT VALUABLE LEARNING TAKES PLACE IN AND OUTSIDE OF THE CLASSROOM, ON AND OFF THE CAMPUS. | AU3: 26 | AV3: 25 | AW3: 1435 | AX3: 15 | AY3: 0 | AZ3: 19888 | BA3: 5969161 | BB3: 6416340 | BC3: 56998355 | BD3: 57387277 | BE3: 3815854 | BF3: 5077838 | BG3: 481652 | BH3: 799266 | BI3: 67265022 | BJ3: 69680721 | BK3: 24127822 | BL3: 24469460 | BM3: 0 | BN3: 0 | BO3: 26876677 | BP3: 26573639 | BQ3: 40413 | BR3: 40414 | BS3: 3876395 | BT3: 25101910 | BU3: 26532361 | BV3: 76146822 | BW3: 77615874 | BX3: -8881800 | BY3: -7935153 | BZ3: 303428008 | CA3: 320016109 | CB3: 79989621 | CC3: 79346943 | CD3: 223438387 | CE3: 240669166 | CF3: X | CG3: ALBION COLLEGE IS AN UNDERGRADUATE, LIBERAL ARTS INSTITUTION COMMITTED TO ACADEMIC EXCELLENCE. WE ARE LEARNING-CENTERED AND RECOGNIZE THAT VALUABLE LEARNING TAKES PLACE IN AND OUTSIDE OF THE CLASSROOM, ON AND OFF THE CAMPUS. | CH3: 0 | CI3: 0 | CJ3: 47197761 | CK3: 24469460 | CL3: 46521102 | CM3: INSTRUCTIONAL - ALBION COLLEGE IS A PRIVATE, SELECTIVE, COEDUCATIONAL, RESIDENTIAL INSTITUTION OF HIGHER EDUCATION AFFILIATED WITH THE UNITED METHODIST CHURCH, BUT NON-SECTARIAN IN PRACTICE. THE COLLEGE PRINCIPALLY OFFERS ACADEMIC COURSES AND PROGRAMS LEADING TO A BACHELORS DEGREE IN LIBERAL ARTS. APPROXIMATELY 1,300 STUDENTS ARE ENROLLED IN THE COLLEGE. | CN3: 3778515 | CO3: 3961365 | CP3: AUXILIARY - DINING SERVICES - ALBION COLLEGE IS A RESIDENTIAL INSTITUTION AND THE PRIMARY FUNCTION OF THE DINING AND HOSPITALITY SERVICES, MANAGED BY BON APPETIT MANAGEMENT COMPANY, IS TO PROVIDE FOOD FOR OUR STUDENTS, FACULTY, STAFF, AND GUESTS. WE STRIVE TO PROVIDE A WIDE SELECTION OF HIGH QUALITY PRODUCTS AND SERVICES THROUGH A VARIETY OF EXPERIENCES. THESE EXPERIENCES REFLECT OUR COMMITMENT TO BEING RESPONSIVE TO THE CHANGING NEEDS AND DESIRES OF OUR DIVERSE AUDIENCE. OPERATIONS INCLUDE AN ALL-YOU-CAN-EAT DINING HALL, QUICK-SERVE RESTAURANT, A COFFEE SHOP, LODGING, CATERING SERVICES, FACULTY/STAFF LUNCH BUFFET AND CONFERENCE AND EVENT SERVICES. | CQ3: 3480854 | CR3: 6480942 | CS3: AUXILIARY - RESIDENCE HALLS - ALBION COLLEGE IS A COLLEGE COMMUNITY INSTITUTION THAT EMPHASIZES COMMUNITY THROUGH EDUCATION IN AND OUT OF THE CLASSROOM. ALBION COLLEGE STRIVES TO PROVIDE OUR STUDENTS WITH QUALITY HOUSING THAT ENHANCES A STUDENT'S LEARNING EXPERIENCE. | CT3: 12274804 | CU3: 423868 | CV3: VARIOUS OTHER PROGRAM SERVICES RELATING TO THE ORGANIZATION'S MISSION. | CW3: 12274804 | CX3: 423868 | CY3: 66731934 | CZ3: 1 | DA3: RetDoc1039100001 | DB3: 1 | DC3: RetDoc1234500001 | DD3: 0 | DE3: 0 | DF3: 0 | DG3: 0 | DH3: RetDoc1040000001 | DI3: 0 | DJ3: RetDoc1040000001 | DK3: 1 | DL3: RetDoc1040000001 | DM3: 0 | DN3: RetDoc1040000001 | DO3: 1 | DP3: RetDoc1040000001 | DQ3: 1 | DR3: RetDoc1040000001 | DS3: 1 | DT3: RetDoc1040000001 | DU3: 0 | DV3: RetDoc1040000001 | DW3: 0 | DX3: RetDoc1040000001 | DY3: 1 | DZ3: RetDoc1040000001 | EA3: 1 | EB3: RetDoc1040000001 | EC3: 0 | ED3: RetDoc1040000001 | EE3: 1 | EF3: RetDoc1040000001 | EG3: 1 | EH3: RetDoc1040400001 | EI3: 0 | EJ3: 1 | EK3: RetDoc1040500001 | EL3: 1 | EM3: RetDoc1040500001 | EN3: 0 | EO3: RetDoc1040500001 | EP3: 1 | EQ3: RetDoc1041200001 | ER3: 1 | ES3: RetDoc1041200001 | ET3: 1 | EU3: RetDoc1041200001 | EV3: 0 | EW3: 1 | EX3: RetDoc1041900001 | EY3: 1 | EZ3: RetDoc1041900001 | FA3: 1 | FB3: RetDoc1042400001 | FC3: 1 | FD3: RetDoc1053100001 | FE3: 0 | FF3: 0 | FG3: 0 | FH3: 0 | FI3: 0 | FJ3: 0 | FK3: 0 | FL3: 0 | FM3: 0 | FN3: 0 | FO3: 1 | FP3: RetDoc1042900001 | FQ3: 1 | FR3: RetDoc1042900001 | FS3: 0 | FT3: 0 | FU3: 1 | FV3: RetDoc1043400001 | FW3: 1 | FX3: RetDoc1043400001 | FY3: 1 | FZ3: 1 | GA3: RetDoc1043400001 | GB3: 0 | GC3: RetDoc1043400001 | GD3: 0 | GE3: RetDoc1043400001 | GF3: 1 | GG3: 188 | GH3: 0 | GI3: 1 | GJ3: 1435 | GK3: 1 | GL3: 1 | GM3: 1 | GN3: 0 | GO3: 0 | GP3: 0 | GQ3: 0 | GR3: 1 | GS3: 1 | GT3: 0 | GU3: 0 | GV3: 0 | GW3: 0 | GX3: X | GY3: 26 | GZ3: 25 | HA3: 1 | HB3: 0 | HC3: 0 | HD3: 0 | HE3: 0 | HF3: 0 | HG3: 0 | HH3: 1 | HI3: 1 | HJ3: 0 | HK3: 0 | HL3: 1 | HM3: 1 | HN3: 1 | HO3: 1 | HP3: 1 | HQ3: 1 | HR3: 1 | HS3: 1 | HT3: 0 | HU3: X | HV3: MARK S HOLBROOK CONTROLLER | HW3: 5176290289 | HX3: 611 EAST PORTER STREET | HY3: ALBION | HZ3: MI | IA3: 49224 | IB3: MICHAEL L FRANDSEN | IC3: PRESIDENT - INTERIM | ID3: 40 | IE3: 4 | IF3: X | IG3: X | IH3: 202848 | II3: 0 | IJ3: 21957 | IL3: 1096085 | IM3: 0 | IN3: 143360 | IO3: 6 | IP3: 0 | IQ3: 1 | IR3: 0 | IZ3: 27 | JA3: 373044 | JB3: 459730 | JC3: 5583566 | JD3: 857050 | JE3: 6416340 | JJ3: 57387277 | JK3: 2137010 | JL3: 2137010 | JM3: 29974238 | JN3: 7001 | JO3: 26974656 | JP3: 65755 | JQ3: 2999582 | JR3: -58754 | JS3: 2940828 | JT3: 2940828 | JU3: 4060 | JV3: 373044 | JW3: 99373 | JX3: -95313 | JY3: -95313 | JZ3: 45370 | KA3: 4099 | KB3: 41271 | KC3: 41271 | KD3: MISCELLANEOUS INCOME | KE3: 900099 | KF3: 853308 | KG3: 853308 | KH3: 853308 | KI3: 69680721 | KJ3: 57387277 | KK3: 0 | KL3: 5877104 | KM3: X | KN3: 63000 | KO3: 63000 | KP3: 24273172 | KQ3: 24273172 | KR3: 133288 | KS3: 133288 | KT3: 1200757 | KU3: 179678 | KV3: 861702 | KW3: 159377 | KX3: 19356475 | KY3: 15708070 | KZ3: 2066695 | LA3: 1581710 | LB3: 1608926 | LC3: 1443204 | LD3: 4479 | LE3: 161243 | LF3: 3017294 | LG3: 2706505 | LH3: 8400 | LI3: 302389 | LJ3: 1390187 | LK3: 1246995 | LL3: 3869 | LM3: 139323 | LN3: 261083 | LO3: 16122 | LP3: 244219 | LQ3: 742 | LR3: 100628 | LS3: 100628 | LT3: 40414 | LU3: 40414 | LV3: 655305 | LW3: 350487 | LX3: 287203 | LY3: 17615 | LZ3: 9087967 | MA3: 7168709 | MB3: 1434260 | MC3: 484998 | MD3: 187077 | ME3: 1142 | MF3: 9695 | MG3: 176240 | MH3: 2983198 | MI3: 2613997 | MJ3: 106804 | MK3: 262397 | ML3: 4152425 | MM3: 3557252 | MN3: 464075 | MO3: 131098 | MP3: 1464850 | MQ3: 1136105 | MR3: 228878 | MS3: 99867 | MT3: 363762 | MU3: 197938 | MV3: 159050 | MW3: 6774 | MX3: 1352035 | MY3: 1174749 | MZ3: 119197 | NA3: 58089 | NB3: 4903739 | NC3: 4211964 | ND3: 543977 | NE3: 147798 | NF3: 564940 | NG3: 282470 | NH3: 254223 | NI3: 28247 | NO3: 223965 | NP3: 58974 | NQ3: 92860 | NR3: 72131 | NS3: 77615874 | NT3: 66731934 | NU3: 7007545 | NV3: 3876395 | NW3: 4584944 | NX3: 6973558 | NY3: 3129722 | NZ3: 2911080 | OA3: 2414171 | OB3: 4555248 | OC3: 3946309 | OD3: 1874764 | OE3: 113206 | OF3: 118172 | OG3: 974405 | OH3: 1043184 | OI3: 183073212 | OJ3: 93678885 | OK3: 91865959 | OL3: 89394327 | OM3: 49251964 | ON3: 56155174 | OO3: 138871779 | OP3: 150877804 | OQ3: 3166061 | OR3: 5109488 | OS3: 6112798 | OT3: 303428008 | OU3: 320016109 | OV3: 15310666 | OW3: 15593294 | OX3: 162416 | OY3: 515917 | OZ3: 59375000 | PA3: 57920000 | PB3: 412447 | PC3: 1977176 | PD3: 2794504 | PE3: 2751916 | PF3: 2523228 | PG3: 79989621 | PH3: 79346943 | PI3: X | PJ3: 74763459 | PK3: 77970365 | PL3: 75341769 | PM3: 88004745 | PN3: 73333159 | PO3: 74694056 | PP3: 223438387 | PQ3: 240669166 | PR3: 303428008 | PS3: 320016109 | PT3: X | PU3: -7935153 | PV3: 24311863 | PW3: 854068 | PX3: X | PY3: X | PZ3: 0 | QA3: 1 | QB3: X | QC3: 1 | QD3: 1 | QE3: 1 | QF3: RetDoc1039100001 | QG3: X | QH3: RetDoc1234500001 | QI3: RESTRICTED | QJ3: RESTRICTED | QK3: RESTRICTED | QL3: RESTRICTED | QM3: RESTRICTED | QN3: RESTRICTED | QO3: RESTRICTED | QP3: RESTRICTED | YM3: RetDoc1041900001 | YN3: 1 | YO3: COLCHESTER PROPERTIES | YP3: 611 EAST PORTER STREET | YQ3: ALBION | YR3: MI | YS3: 49224 | YT3: 382025320 | YU3: 501(C)(3) | YV3: 63000 | YW3: 0 | YX3: CASH | YY3: N/A | YZ3: PROGRAM SUPPORT | ZA3: 1 | ZB3: 0 | ZC3: SCHOLARSHIPS | ZD3: 1267 | ZE3: 24273172 | ZF3: 0 | ZG3: N/A | ZH3: N/A | ZI3: PART I, LINE 2: | ZJ3: GRANTS ARE PROCURED BY FACULTY WITH THE ASSISTANCE OF THE COLLEGE'S GRANT MANAGER. MONITORING IS DONE BY GRANTEE, GRANT MANAGER AND SENIOR ACCOUNTANT FOR COMPLIANCE. ACTIVITY IS AUDITED AND REPORTED ANNUALLY IN THE COLLEGE'S FINANCIAL STATEMENTS. | AAR3: RetDoc1053100001 | AAS3: A | AAT3: MICHIGAN HIGHER EDUCATION FACILITIES AUTHORITY | AAU3: 2006-11-01 | AAV3: 63385000 | AAW3: SCIENCE CENTER RENOVATION, REFINANCE OF 2004 BONDS AND OTHER | AAX3: 0 | AAY3: 0 | AAZ3: 0 | ABA3: A | ABB3: 5465000 | ABC3: 63385000 | ABD3: 22437251 | ABE3: 40546103 | ABF3: 401646 | ABG3: 22035605 | ABH3: 2008 | ABI3: 1 | ABJ3: 0 | ABK3: 1 | ABL3: 1 | ABM3: A | ABN3: 0 | ABO3: 0 | ABP3: 0 | ABQ3: 0 | ABR3: 0 | ABS3: 0 | ABT3: 0 | ABU3: A | ABV3: 0 | ABW3: 0 | ABX3: 0 | ABY3: 0 | ABZ3: 1 | ACA3: 1 | ACB3: JPMORGAN CHASE | ACC3: BANK NA | ACD3: 20 | ACE3: 0 | ACF3: 0 | ACG3: 0 | ACH3: 0 | ACI3: 0 | ACJ3: A | ACK3: 0
A4: 2013v4.0 | B4: 0 | C4: 2015-05-15T13:27:25-05:00 | D4: 2014-06-30 | E4: 381357951 | F4: PLANTE & MORAN PLLC | G4: 750 TRADE CENTRE WAY STE 300 | H4: PORTAGE | I4: MI | J4: 49002 | K4: 990 | L4: 2013-07-01 | M4: 381359081 | N4: ALBION COLLEGE | O4: ALBI | P4: 5176290289 | Q4: 611 EAST PORTER STREET | R4: ALBION | S4: MI | T4: 49224 | U4: JERRY WHITE | V4: VP FOR FINANCE AND ADMINISTRATION | W4: 5176290289 | X4: 2015-05-07 | Y4: 1 | Z4: VICKI L VANDENBERG CPA | AA4: P00100422 | AB4: 2695674500 | AC4: 2013 | AD4: 2016-03-07 17:11:31Z | AE4: 13 | AF4: RetDoc1038000001 | AG4: RetDoc1044400001 | AH4: JERRY WHITE | AI4: 611 EAST PORTER STREET | AJ4: ALBION | AK4: MI | AL4: 49224 | AM4: 96824604 | AN4: 0 | AO4: X | AP4: WWW.ALBION.EDU | AQ4: X | AR4: 1835 | AS4: MI | AT4: ALBION COLLEGE IS AN UNDERGRADUATE, LIBERAL ARTS INSTITUTION COMMITTED TO ACADEMIC EXCELLENCE. WE ARE LEARNING-CENTERED AND RECOGNIZE THAT VALUABLE LEARNING TAKES PLACE IN AND OUTSIDE OF THE CLASSROOM, ON AND OFF THE CAMPUS. | AU4: 26 | AV4: 25 | AW4: 1435 | AX4: 15 | AY4: 0 | AZ4: 19888 | BA4: 5969161 | BB4: 6416340 | BC4: 56998355 | BD4: 57387277 | BE4: 3815854 | BF4: 5077838 | BG4: 481652 | BH4: 799266 | BI4: 67265022 | BJ4: 69680721 | BK4: 24127822 | BL4: 24469460 | BM4: 0 | BN4: 0 | BO4: 26876677 | BP4: 26573639 | BQ4: 40413 | BR4: 40414 | BS4: 3876395 | BT4: 25101910 | BU4: 26532361 | BV4: 76146822 | BW4: 77615874 | BX4: -8881800 | BY4: -7935153 | BZ4: 303428008 | CA4: 320016109 | CB4: 79989621 | CC4: 79346943 | CD4: 223438387 | CE4: 240669166 | CF4: X | CG4: ALBION COLLEGE IS AN UNDERGRADUATE, LIBERAL ARTS INSTITUTION COMMITTED TO ACADEMIC EXCELLENCE. WE ARE LEARNING-CENTERED AND RECOGNIZE THAT VALUABLE LEARNING TAKES PLACE IN AND OUTSIDE OF THE CLASSROOM, ON AND OFF THE CAMPUS. | CH4: 0 | CI4: 0 | CJ4: 47197761 | CK4: 24469460 | CL4: 46521102 | CM4: INSTRUCTIONAL - ALBION COLLEGE IS A PRIVATE, SELECTIVE, COEDUCATIONAL, RESIDENTIAL INSTITUTION OF HIGHER EDUCATION AFFILIATED WITH THE UNITED METHODIST CHURCH, BUT NON-SECTARIAN IN PRACTICE. THE COLLEGE PRINCIPALLY OFFERS ACADEMIC COURSES AND PROGRAMS LEADING TO A BACHELORS DEGREE IN LIBERAL ARTS. APPROXIMATELY 1,300 STUDENTS ARE ENROLLED IN THE COLLEGE. | CN4: 3778515 | CO4: 3961365 | CP4: AUXILIARY - DINING SERVICES - ALBION COLLEGE IS A RESIDENTIAL INSTITUTION AND THE PRIMARY FUNCTION OF THE DINING AND HOSPITALITY SERVICES, MANAGED BY BON APPETIT MANAGEMENT COMPANY, IS TO PROVIDE FOOD FOR OUR STUDENTS, FACULTY, STAFF, AND GUESTS. WE STRIVE TO PROVIDE A WIDE SELECTION OF HIGH QUALITY PRODUCTS AND SERVICES THROUGH A VARIETY OF EXPERIENCES. THESE EXPERIENCES REFLECT OUR COMMITMENT TO BEING RESPONSIVE TO THE CHANGING NEEDS AND DESIRES OF OUR DIVERSE AUDIENCE. OPERATIONS INCLUDE AN ALL-YOU-CAN-EAT DINING HALL, QUICK-SERVE RESTAURANT, A COFFEE SHOP, LODGING, CATERING SERVICES, FACULTY/STAFF LUNCH BUFFET AND CONFERENCE AND EVENT SERVICES. | CQ4: 3480854 | CR4: 6480942 | CS4: AUXILIARY - RESIDENCE HALLS - ALBION COLLEGE IS A COLLEGE COMMUNITY INSTITUTION THAT EMPHASIZES COMMUNITY THROUGH EDUCATION IN AND OUT OF THE CLASSROOM. ALBION COLLEGE STRIVES TO PROVIDE OUR STUDENTS WITH QUALITY HOUSING THAT ENHANCES A STUDENT'S LEARNING EXPERIENCE. | CT4: 12274804 | CU4: 423868 | CV4: VARIOUS OTHER PROGRAM SERVICES RELATING TO THE ORGANIZATION'S MISSION. | CW4: 12274804 | CX4: 423868 | CY4: 66731934 | CZ4: 1 | DA4: RetDoc1039100001 | DB4: 1 | DC4: RetDoc1234500001 | DD4: 0 | DE4: 0 | DF4: 0 | DG4: 0 | DH4: RetDoc1040000001 | DI4: 0 | DJ4: RetDoc1040000001 | DK4: 1 | DL4: RetDoc1040000001 | DM4: 0 | DN4: RetDoc1040000001 | DO4: 1 | DP4: RetDoc1040000001 | DQ4: 1 | DR4: RetDoc1040000001 | DS4: 1 | DT4: RetDoc1040000001 | DU4: 0 | DV4: RetDoc1040000001 | DW4: 0 | DX4: RetDoc1040000001 | DY4: 1 | DZ4: RetDoc1040000001 | EA4: 1 | EB4: RetDoc1040000001 | EC4: 0 | ED4: RetDoc1040000001 | EE4: 1 | EF4: RetDoc1040000001 | EG4: 1 | EH4: RetDoc1040400001 | EI4: 0 | EJ4: 1 | EK4: RetDoc1040500001 | EL4: 1 | EM4: RetDoc1040500001 | EN4: 0 | EO4: RetDoc1040500001 | EP4: 1 | EQ4: RetDoc1041200001 | ER4: 1 | ES4: RetDoc1041200001 | ET4: 1 | EU4: RetDoc1041200001 | EV4: 0 | EW4: 1 | EX4: RetDoc1041900001 | EY4: 1 | EZ4: RetDoc1041900001 | FA4: 1 | FB4: RetDoc1042400001 | FC4: 1 | FD4: RetDoc1053100001 | FE4: 0 | FF4: 0 | FG4: 0 | FH4: 0 | FI4: 0 | FJ4: 0 | FK4: 0 | FL4: 0 | FM4: 0 | FN4: 0 | FO4: 1 | FP4: RetDoc1042900001 | FQ4: 1 | FR4: RetDoc1042900001 | FS4: 0 | FT4: 0 | FU4: 1 | FV4: RetDoc1043400001 | FW4: 1 | FX4: RetDoc1043400001 | FY4: 1 | FZ4: 1 | GA4: RetDoc1043400001 | GB4: 0 | GC4: RetDoc1043400001 | GD4: 0 | GE4: RetDoc1043400001 | GF4: 1 | GG4: 188 | GH4: 0 | GI4: 1 | GJ4: 1435 | GK4: 1 | GL4: 1 | GM4: 1 | GN4: 0 | GO4: 0 | GP4: 0 | GQ4: 0 | GR4: 1 | GS4: 1 | GT4: 0 | GU4: 0 | GV4: 0 | GW4: 0 | GX4: X | GY4: 26 | GZ4: 25 | HA4: 1 | HB4: 0 | HC4: 0 | HD4: 0 | HE4: 0 | HF4: 0 | HG4: 0 | HH4: 1 | HI4: 1 | HJ4: 0 | HK4: 0 | HL4: 1 | HM4: 1 | HN4: 1 | HO4: 1 | HP4: 1 | HQ4: 1 | HR4: 1 | HS4: 1 | HT4: 0 | HU4: X | HV4: MARK S HOLBROOK CONTROLLER | HW4: 5176290289 | HX4: 611 EAST PORTER STREET | HY4: ALBION | HZ4: MI | IA4: 49224 | IB4: HOLLIS WILLIAMS | IC4: TRUSTEE | ID4: 1 | IE4: 0 | IF4: X | IH4: 0 | II4: 0 | IJ4: 0 | IL4: 1096085 | IM4: 0 | IN4: 143360 | IO4: 6 | IP4: 0 | IQ4: 1 | IR4: 0 | IZ4: 27 | JA4: 373044 | JB4: 459730 | JC4: 5583566 | JD4: 857050 | JE4: 6416340 | JJ4: 57387277 | JK4: 2137010 | JL4: 2137010 | JM4: 29974238 | JN4: 7001 | JO4: 26974656 | JP4: 65755 | JQ4: 2999582 | JR4: -58754 | JS4: 2940828 | JT4: 2940828 | JU4: 4060 | JV4: 373044 | JW4: 99373 | JX4: -95313 | JY4: -95313 | JZ4: 45370 | KA4: 4099 | KB4: 41271 | KC4: 41271 | KD4: MISCELLANEOUS INCOME | KE4: 900099 | KF4: 853308 | KG4: 853308 | KH4: 853308 | KI4: 69680721 | KJ4: 57387277 | KK4: 0 | KL4: 5877104 | KM4: X | KN4: 63000 | KO4: 63000 | KP4: 24273172 | KQ4: 24273172 | KR4: 133288 | KS4: 133288 | KT4: 1200757 | KU4: 179678 | KV4: 861702 | KW4: 159377 | KX4: 19356475 | KY4: 15708070 | KZ4: 2066695 | LA4: 1581710 | LB4: 1608926 | LC4: 1443204 | LD4: 4479 | LE4: 161243 | LF4: 3017294 | LG4: 2706505 | LH4: 8400 | LI4: 302389 | LJ4: 1390187 | LK4: 1246995 | LL4: 3869 | LM4: 139323 | LN4: 261083 | LO4: 16122 | LP4: 244219 | LQ4: 742 | LR4: 100628 | LS4: 100628 | LT4: 40414 | LU4: 40414 | LV4: 655305 | LW4: 350487 | LX4: 287203 | LY4: 17615 | LZ4: 9087967 | MA4: 7168709 | MB4: 1434260 | MC4: 484998 | MD4: 187077 | ME4: 1142 | MF4: 9695 | MG4: 176240 | MH4: 2983198 | MI4: 2613997 | MJ4: 106804 | MK4: 262397 | ML4: 4152425 | MM4: 3557252 | MN4: 464075 | MO4: 131098 | MP4: 1464850 | MQ4: 1136105 | MR4: 228878 | MS4: 99867 | MT4: 363762 | MU4: 197938 | MV4: 159050 | MW4: 6774 | MX4: 1352035 | MY4: 1174749 | MZ4: 119197 | NA4: 58089 | NB4: 4903739 | NC4: 4211964 | ND4: 543977 | NE4: 147798 | NF4: 564940 | NG4: 282470 | NH4: 254223 | NI4: 28247 | NO4: 223965 | NP4: 58974 | NQ4: 92860 | NR4: 72131 | NS4: 77615874 | NT4: 66731934 | NU4: 7007545 | NV4: 3876395 | NW4: 4584944 | NX4: 6973558 | NY4: 3129722 | NZ4: 2911080 | OA4: 2414171 | OB4: 4555248 | OC4: 3946309 | OD4: 1874764 | OE4: 113206 | OF4: 118172 | OG4: 974405 | OH4: 1043184 | OI4: 183073212 | OJ4: 93678885 | OK4: 91865959 | OL4: 89394327 | OM4: 49251964 | ON4: 56155174 | OO4: 138871779 | OP4: 150877804 | OQ4: 3166061 | OR4: 5109488 | OS4: 6112798 | OT4: 303428008 | OU4: 320016109 | OV4: 15310666 | OW4: 15593294 | OX4: 162416 | OY4: 515917 | OZ4: 59375000 | PA4: 57920000 | PB4: 412447 | PC4: 1977176 | PD4: 2794504 | PE4: 2751916 | PF4: 2523228 | PG4: 79989621 | PH4: 79346943 | PI4: X | PJ4: 74763459 | PK4: 77970365 | PL4: 75341769 | PM4: 88004745 | PN4: 73333159 | PO4: 74694056 | PP4: 223438387 | PQ4: 240669166 | PR4: 303428008 | PS4: 320016109 | PT4: X | PU4: -7935153 | PV4: 24311863 | PW4: 854068 | PX4: X | PY4: X | PZ4: 0 | QA4: 1 | QB4: X | QC4: 1 | QD4: 1 | QE4: 1 | QF4: RetDoc1039100001 | QG4: X | QH4: RetDoc1234500001 | QI4: RESTRICTED | QJ4: RESTRICTED | QK4: RESTRICTED | QL4: RESTRICTED | QM4: RESTRICTED | QN4: RESTRICTED | QO4: RESTRICTED | QP4: RESTRICTED | YM4: RetDoc1041900001 | YN4: 1 | YO4: COLCHESTER PROPERTIES | YP4: 611 EAST PORTER STREET | YQ4: ALBION | YR4: MI | YS4: 49224 | YT4: 382025320 | YU4: 501(C)(3) | YV4: 63000 | YW4: 0 | YX4: CASH | YY4: N/A | YZ4: PROGRAM SUPPORT | ZA4: 1 | ZB4: 0 | ZC4: SCHOLARSHIPS | ZD4: 1267 | ZE4: 24273172 | ZF4: 0 | ZG4: N/A | ZH4: N/A | ZI4: PART I, LINE 2: | ZJ4: GRANTS ARE PROCURED BY FACULTY WITH THE ASSISTANCE OF THE COLLEGE'S GRANT MANAGER. MONITORING IS DONE BY GRANTEE, GRANT MANAGER AND SENIOR ACCOUNTANT FOR COMPLIANCE. ACTIVITY IS AUDITED AND REPORTED ANNUALLY IN THE COLLEGE'S FINANCIAL STATEMENTS. | AAR4: RetDoc1053100001 | AAS4: A | AAT4: MICHIGAN HIGHER EDUCATION FACILITIES AUTHORITY | AAU4: 2006-11-01 | AAV4: 63385000 | AAW4: SCIENCE CENTER RENOVATION, REFINANCE OF 2004 BONDS AND OTHER | AAX4: 0 | AAY4: 0 | AAZ4: 0 | ABA4: A | ABB4: 5465000 | ABC4: 63385000 | ABD4: 22437251 | ABE4: 40546103 | ABF4: 401646 | ABG4: 22035605 | ABH4: 2008 | ABI4: 1 | ABJ4: 0 | ABK4: 1 | ABL4: 1 | ABM4: A | ABN4: 0 | ABO4: 0 | ABP4: 0 | ABQ4: 0 | ABR4: 0 | ABS4: 0 | ABT4: 0 | ABU4: A | ABV4: 0 | ABW4: 0 | ABX4: 0 | ABY4: 0 | ABZ4: 1 | ACA4: 1 | ACB4: JPMORGAN CHASE | ACC4: BANK NA | ACD4: 20 | ACE4: 0 | ACF4: 0 | ACG4: 0 | ACH4: 0 | ACI4: 0 | ACJ4: A | ACK4: 0
A5: 2013v4.0 | B5: 0 | C5: 2015-05-15T13:27:25-05:00 | D5: 2014-06-30 | E5: 381357951 | F5: PLANTE & MORAN PLLC | G5: 750 TRADE CENTRE WAY STE 300 | H5: PORTAGE | I5: MI | J5: 49002 | K5: 990 | L5: 2013-07-01 | M5: 381359081 | N5: ALBION COLLEGE | O5: ALBI | P5: 5176290289 | Q5: 611 EAST PORTER STREET | R5: ALBION | S5: MI | T5: 49224 | U5: JERRY WHITE | V5: VP FOR FINANCE AND ADMINISTRATION | W5: 5176290289 | X5: 2015-05-07 | Y5: 1 | Z5: VICKI L VANDENBERG CPA | AA5: P00100422 | AB5: 2695674500 | AC5: 2013 | AD5: 2016-03-07 17:11:31Z | AE5: 13 | AF5: RetDoc1038000001 | AG5: RetDoc1044400001 | AH5: JERRY WHITE | AI5: 611 EAST PORTER STREET | AJ5: ALBION | AK5: MI | AL5: 49224 | AM5: 96824604 | AN5: 0 | AO5: X | AP5: WWW.ALBION.EDU | AQ5: X | AR5: 1835 | AS5: MI | AT5: ALBION COLLEGE IS AN UNDERGRADUATE, LIBERAL ARTS INSTITUTION COMMITTED TO ACADEMIC EXCELLENCE. WE ARE LEARNING-CENTERED AND RECOGNIZE THAT VALUABLE LEARNING TAKES PLACE IN AND OUTSIDE OF THE CLASSROOM, ON AND OFF THE CAMPUS. | AU5: 26 | AV5: 25 | AW5: 1435 | AX5: 15 | AY5: 0 | AZ5: 19888 | BA5: 5969161 | BB5: 6416340 | BC5: 56998355 | BD5: 57387277 | BE5: 3815854 | BF5: 5077838 | BG5: 481652 | BH5: 799266 | BI5: 67265022 | BJ5: 69680721 | BK5: 24127822 | BL5: 24469460 | BM5: 0 | BN5: 0 | BO5: 26876677 | BP5: 26573639 | BQ5: 40413 | BR5: 40414 | BS5: 3876395 | BT5: 25101910 | BU5: 26532361 | BV5: 76146822 | BW5: 77615874 | BX5: -8881800 | BY5: -7935153 | BZ5: 303428008 | CA5: 320016109 | CB5: 79989621 | CC5: 79346943 | CD5: 223438387 | CE5: 240669166 | CF5: X | CG5: ALBION COLLEGE IS AN UNDERGRADUATE, LIBERAL ARTS INSTITUTION COMMITTED TO ACADEMIC EXCELLENCE. WE ARE LEARNING-CENTERED AND RECOGNIZE THAT VALUABLE LEARNING TAKES PLACE IN AND OUTSIDE OF THE CLASSROOM, ON AND OFF THE CAMPUS. | CH5: 0 | CI5: 0 | CJ5: 47197761 | CK5: 24469460 | CL5: 46521102 | CM5: INSTRUCTIONAL - ALBION COLLEGE IS A PRIVATE, SELECTIVE, COEDUCATIONAL, RESIDENTIAL INSTITUTION OF HIGHER EDUCATION AFFILIATED WITH THE UNITED METHODIST CHURCH, BUT NON-SECTARIAN IN PRACTICE. THE COLLEGE PRINCIPALLY OFFERS ACADEMIC COURSES AND PROGRAMS LEADING TO A BACHELORS DEGREE IN LIBERAL ARTS. APPROXIMATELY 1,300 STUDENTS ARE ENROLLED IN THE COLLEGE. | CN5: 3778515 | CO5: 3961365 | CP5: AUXILIARY - DINING SERVICES - ALBION COLLEGE IS A RESIDENTIAL INSTITUTION AND THE PRIMARY FUNCTION OF THE DINING AND HOSPITALITY SERVICES, MANAGED BY BON APPETIT MANAGEMENT COMPANY, IS TO PROVIDE FOOD FOR OUR STUDENTS, FACULTY, STAFF, AND GUESTS. WE STRIVE TO PROVIDE A WIDE SELECTION OF HIGH QUALITY PRODUCTS AND SERVICES THROUGH A VARIETY OF EXPERIENCES. THESE EXPERIENCES REFLECT OUR COMMITMENT TO BEING RESPONSIVE TO THE CHANGING NEEDS AND DESIRES OF OUR DIVERSE AUDIENCE. OPERATIONS INCLUDE AN ALL-YOU-CAN-EAT DINING HALL, QUICK-SERVE RESTAURANT, A COFFEE SHOP, LODGING, CATERING SERVICES, FACULTY/STAFF LUNCH BUFFET AND CONFERENCE AND EVENT SERVICES. | CQ5: 3480854 | CR5: 6480942 | CS5: AUXILIARY - RESIDENCE HALLS - ALBION COLLEGE IS A COLLEGE COMMUNITY INSTITUTION THAT EMPHASIZES COMMUNITY THROUGH EDUCATION IN AND OUT OF THE CLASSROOM. ALBION COLLEGE STRIVES TO PROVIDE OUR STUDENTS WITH QUALITY HOUSING THAT ENHANCES A STUDENT'S LEARNING EXPERIENCE. | CT5: 12274804 | CU5: 423868 | CV5: VARIOUS OTHER PROGRAM SERVICES RELATING TO THE ORGANIZATION'S MISSION. | CW5: 12274804 | CX5: 423868 | CY5: 66731934 | CZ5: 1 | DA5: RetDoc1039100001 | DB5: 1 | DC5: RetDoc1234500001 | DD5: 0 | DE5: 0 | DF5: 0 | DG5: 0 | DH5: RetDoc1040000001 | DI5: 0 | DJ5: RetDoc1040000001 | DK5: 1 | DL5: RetDoc1040000001 | DM5: 0 | DN5: RetDoc1040000001 | DO5: 1 | DP5: RetDoc1040000001 | DQ5: 1 | DR5: RetDoc1040000001 | DS5: 1 | DT5: RetDoc1040000001 | DU5: 0 | DV5: RetDoc1040000001 | DW5: 0 | DX5: RetDoc1040000001 | DY5: 1 | DZ5: RetDoc1040000001 | EA5: 1 | EB5: RetDoc1040000001 | EC5: 0 | ED5: RetDoc1040000001 | EE5: 1 | EF5: RetDoc1040000001 | EG5: 1 | EH5: RetDoc1040400001 | EI5: 0 | EJ5: 1 | EK5: RetDoc1040500001 | EL5: 1 | EM5: RetDoc1040500001 | EN5: 0 | EO5: RetDoc1040500001 | EP5: 1 | EQ5: RetDoc1041200001 | ER5: 1 | ES5: RetDoc1041200001 | ET5: 1 | EU5: RetDoc1041200001 | EV5: 0 | EW5: 1 | EX5: RetDoc1041900001 | EY5: 1 | EZ5: RetDoc1041900001 | FA5: 1 | FB5: RetDoc1042400001 | FC5: 1 | FD5: RetDoc1053100001 | FE5: 0 | FF5: 0 | FG5: 0 | FH5: 0 | FI5: 0 | FJ5: 0 | FK5: 0 | FL5: 0 | FM5: 0 | FN5: 0 | FO5: 1 | FP5: RetDoc1042900001 | FQ5: 1 | FR5: RetDoc1042900001 | FS5: 0 | FT5: 0 | FU5: 1 | FV5: RetDoc1043400001 | FW5: 1 | FX5: RetDoc1043400001 | FY5: 1 | FZ5: 1 | GA5: RetDoc1043400001 | GB5: 0 | GC5: RetDoc1043400001 | GD5: 0 | GE5: RetDoc1043400001 | GF5: 1 | GG5: 188 | GH5: 0 | GI5: 1 | GJ5: 1435 | GK5: 1 | GL5: 1 | GM5: 1 | GN5: 0 | GO5: 0 | GP5: 0 | GQ5: 0 | GR5: 1 | GS5: 1 | GT5: 0 | GU5: 0 | GV5: 0 | GW5: 0 | GX5: X | GY5: 26 | GZ5: 25 | HA5: 1 | HB5: 0 | HC5: 0 | HD5: 0 | HE5: 0 | HF5: 0 | HG5: 0 | HH5: 1 | HI5: 1 | HJ5: 0 | HK5: 0 | HL5: 1 | HM5: 1 | HN5: 1 | HO5: 1 | HP5: 1 | HQ5: 1 | HR5: 1 | HS5: 1 | HT5: 0 | HU5: X | HV5: MARK S HOLBROOK CONTROLLER | HW5: 5176290289 | HX5: 611 EAST PORTER STREET | HY5: ALBION | HZ5: MI | IA5: 49224 | IB5: JOSEPH S CALVARUSO | IC5: TRUSTEE | ID5: 1 | IE5: 0 | IF5: X | IH5: 0 | II5: 0 | IJ5: 0 | IL5: 1096085 | IM5: 0 | IN5: 143360 | IO5: 6 | IP5: 0 | IQ5: 1 | IR5: 0 | IZ5: 27 | JA5: 373044 | JB5: 459730 | JC5: 5583566 | JD5: 857050 | JE5: 6416340 | JJ5: 57387277 | JK5: 2137010 | JL5: 2137010 | JM5: 29974238 | JN5: 7001 | JO5: 26974656 | JP5: 65755 | JQ5: 2999582 | JR5: -58754 | JS5: 2940828 | JT5: 2940828 | JU5: 4060 | JV5: 373044 | JW5: 99373 | JX5: -95313 | JY5: -95313 | JZ5: 45370 | KA5: 4099 | KB5: 41271 | KC5: 41271 | KD5: MISCELLANEOUS INCOME | KE5: 900099 | KF5: 853308 | KG5: 853308 | KH5: 853308 | KI5: 69680721 | KJ5: 57387277 | KK5: 0 | KL5: 5877104 | KM5: X | KN5: 63000 | KO5: 63000 | KP5: 24273172 | KQ5: 24273172 | KR5: 133288 | KS5: 133288 | KT5: 1200757 | KU5: 179678 | KV5: 861702 | KW5: 159377 | KX5: 19356475 | KY5: 15708070 | KZ5: 2066695 | LA5: 1581710 | LB5: 1608926 | LC5: 1443204 | LD5: 4479 | LE5: 161243 | LF5: 3017294 | LG5: 2706505 | LH5: 8400 | LI5: 302389 | LJ5: 1390187 | LK5: 1246995 | LL5: 3869 | LM5: 139323 | LN5: 261083 | LO5: 16122 | LP5: 244219 | LQ5: 742 | LR5: 100628 | LS5: 100628 | LT5: 40414 | LU5: 40414 | LV5: 655305 | LW5: 350487 | LX5: 287203 | LY5: 17615 | LZ5: 9087967 | MA5: 7168709 | MB5: 1434260 | MC5: 484998 | MD5: 187077 | ME5: 1142 | MF5: 9695 | MG5: 176240 | MH5: 2983198 | MI5: 2613997 | MJ5: 106804 | MK5: 262397 | ML5: 4152425 | MM5: 3557252 | MN5: 464075 | MO5: 131098 | MP5: 1464850 | MQ5: 1136105 | MR5: 228878 | MS5: 99867 | MT5: 363762 | MU5: 197938 | MV5: 159050 | MW5: 6774 | MX5: 1352035 | MY5: 1174749 | MZ5: 119197 | NA5: 58089 | NB5: 4903739 | NC5: 4211964 | ND5: 543977 | NE5: 147798 | NF5: 564940 | NG5: 282470 | NH5: 254223 | NI5: 28247 | NO5: 223965 | NP5: 58974 | NQ5: 92860 | NR5: 72131 | NS5: 77615874 | NT5: 66731934 | NU5: 7007545 | NV5: 3876395 | NW5: 4584944 | NX5: 6973558 | NY5: 3129722 | NZ5: 2911080 | OA5: 2414171 | OB5: 4555248 | OC5: 3946309 | OD5: 1874764 | OE5: 113206 | OF5: 118172 | OG5: 974405 | OH5: 1043184 | OI5: 183073212 | OJ5: 93678885 | OK5: 91865959 | OL5: 89394327 | OM5: 49251964 | ON5: 56155174 | OO5: 138871779 | OP5: 150877804 | OQ5: 3166061 | OR5: 5109488 | OS5: 6112798 | OT5: 303428008 | OU5: 320016109 | OV5: 15310666 | OW5: 15593294 | OX5: 162416 | OY5: 515917 | OZ5: 59375000 | PA5: 57920000 | PB5: 412447 | PC5: 1977176 | PD5: 2794504 | PE5: 2751916 | PF5: 2523228 | PG5: 79989621 | PH5: 79346943 | PI5: X | PJ5: 74763459 | PK5: 77970365 | PL5: 75341769 | PM5: 88004745 | PN5: 73333159 | PO5: 74694056 | PP5: 223438387 | PQ5: 240669166 | PR5: 303428008 | PS5: 320016109 | PT5: X | PU5: -7935153 | PV5: 24311863 | PW5: 854068 | PX5: X | PY5: X | PZ5: 0 | QA5: 1 | QB5: X | QC5: 1 | QD5: 1 | QE5: 1 | QF5: RetDoc1039100001 | QG5: X | QH5: RetDoc1234500001 | QI5: RESTRICTED | QJ5: RESTRICTED | QK5: RESTRICTED | QL5: RESTRICTED | QM5: RESTRICTED | QN5: RESTRICTED | QO5: RESTRICTED | QP5: RESTRICTED | YM5: RetDoc1041900001 | YN5: 1 | YO5: COLCHESTER PROPERTIES | YP5: 611 EAST PORTER STREET | YQ5: ALBION | YR5: MI | YS5: 49224 | YT5: 382025320 | YU5: 501(C)(3) | YV5: 63000 | YW5: 0 | YX5: CASH | YY5: N/A | YZ5: PROGRAM SUPPORT | ZA5: 1 | ZB5: 0 | ZC5: SCHOLARSHIPS | ZD5: 1267 | ZE5: 24273172 | ZF5: 0 | ZG5: N/A | ZH5: N/A | ZI5: PART I, LINE 2: | ZJ5: GRANTS ARE PROCURED BY FACULTY WITH THE ASSISTANCE OF THE COLLEGE'S GRANT MANAGER. MONITORING IS DONE BY GRANTEE, GRANT MANAGER AND SENIOR ACCOUNTANT FOR COMPLIANCE. ACTIVITY IS AUDITED AND REPORTED ANNUALLY IN THE COLLEGE'S FINANCIAL STATEMENTS. | AAR5: RetDoc1053100001 | AAS5: A | AAT5: MICHIGAN HIGHER EDUCATION FACILITIES AUTHORITY | AAU5: 2006-11-01 | AAV5: 63385000 | AAW5: SCIENCE CENTER RENOVATION, REFINANCE OF 2004 BONDS AND OTHER | AAX5: 0 | AAY5: 0 | AAZ5: 0 | ABA5: A | ABB5: 5465000 | ABC5: 63385000 | ABD5: 22437251 | ABE5: 40546103 | ABF5: 401646 | ABG5: 22035605 | ABH5: 2008 | ABI5: 1 | ABJ5: 0 | ABK5: 1 | ABL5: 1 | ABM5: A | ABN5: 0 | ABO5: 0 | ABP5: 0 | ABQ5: 0 | ABR5: 0 | ABS5: 0 | ABT5: 0 | ABU5: A | ABV5: 0 | ABW5: 0 | ABX5: 0 | ABY5: 0 | ABZ5: 1 | ACA5: 1 | ACB5: JPMORGAN CHASE | ACC5: BANK NA | ACD5: 20 | ACE5: 0 | ACF5: 0 | ACG5: 0 | ACH5: 0 | ACI5: 0 | ACJ5: A | ACK5: 0
A6: 2013v4.0 | B6: 0 | C6: 2015-05-15T13:27:25-05:00 | D6: 2014-06-30 | E6: 381357951 | F6: PLANTE & MORAN PLLC | G6: 750 TRADE CENTRE WAY STE 300 | H6: PORTAGE | I6: MI | J6: 49002 | K6: 990 | L6: 2013-07-01 | M6: 381359081 | N6: ALBION COLLEGE | O6: ALBI | P6: 5176290289 | Q6: 611 EAST PORTER STREET | R6: ALBION | S6: MI | T6: 49224 | U6: JERRY WHITE | V6: VP FOR FINANCE AND ADMINISTRATION | W6: 5176290289 | X6: 2015-05-07 | Y6: 1 | Z6: VICKI L VANDENBERG CPA | AA6: P00100422 | AB6: 2695674500 | AC6: 2013 | AD6: 2016-03-07 17:11:31Z | AE6: 13 | AF6: RetDoc1038000001 | AG6: RetDoc1044400001 | AH6: JERRY WHITE | AI6: 611 EAST PORTER STREET | AJ6: ALBION | AK6: MI | AL6: 49224 | AM6: 96824604 | AN6: 0 | AO6: X | AP6: WWW.ALBION.EDU | AQ6: X | AR6: 1835 | AS6: MI | AT6: ALBION COLLEGE IS AN UNDERGRADUATE, LIBERAL ARTS INSTITUTION COMMITTED TO ACADEMIC EXCELLENCE. WE ARE LEARNING-CENTERED AND RECOGNIZE THAT VALUABLE LEARNING TAKES PLACE IN AND OUTSIDE OF THE CLASSROOM, ON AND OFF THE CAMPUS. | AU6: 26 | AV6: 25 | AW6: 1435 | AX6: 15 | AY6: 0 | AZ6: 19888 | BA6: 5969161 | BB6: 6416340 | BC6: 56998355 | BD6: 57387277 | BE6: 3815854 | BF6: 5077838 | BG6: 481652 | BH6: 799266 | BI6: 67265022 | BJ6: 69680721 | BK6: 24127822 | BL6: 24469460 | BM6: 0 | BN6: 0 | BO6: 26876677 | BP6: 26573639 | BQ6: 40413 | BR6: 40414 | BS6: 3876395 | BT6: 25101910 | BU6: 26532361 | BV6: 76146822 | BW6: 77615874 | BX6: -8881800 | BY6: -7935153 | BZ6: 303428008 | CA6: 320016109 | CB6: 79989621 | CC6: 79346943 | CD6: 223438387 | CE6: 240669166 | CF6: X | CG6: ALBION COLLEGE IS AN UNDERGRADUATE, LIBERAL ARTS INSTITUTION COMMITTED TO ACADEMIC EXCELLENCE. WE ARE LEARNING-CENTERED AND RECOGNIZE THAT VALUABLE LEARNING TAKES PLACE IN AND OUTSIDE OF THE CLASSROOM, ON AND OFF THE CAMPUS. | CH6: 0 | CI6: 0 | CJ6: 47197761 | CK6: 24469460 | CL6: 46521102 | CM6: INSTRUCTIONAL - ALBION COLLEGE IS A PRIVATE, SELECTIVE, COEDUCATIONAL, RESIDENTIAL INSTITUTION OF HIGHER EDUCATION AFFILIATED WITH THE UNITED METHODIST CHURCH, BUT NON-SECTARIAN IN PRACTICE. THE COLLEGE PRINCIPALLY OFFERS ACADEMIC COURSES AND PROGRAMS LEADING TO A BACHELORS DEGREE IN LIBERAL ARTS. APPROXIMATELY 1,300 STUDENTS ARE ENROLLED IN THE COLLEGE. | CN6: 3778515 | CO6: 3961365 | CP6: AUXILIARY - DINING SERVICES - ALBION COLLEGE IS A RESIDENTIAL INSTITUTION AND THE PRIMARY FUNCTION OF THE DINING AND HOSPITALITY SERVICES, MANAGED BY BON APPETIT MANAGEMENT COMPANY, IS TO PROVIDE FOOD FOR OUR STUDENTS, FACULTY, STAFF, AND GUESTS. WE STRIVE TO PROVIDE A WIDE SELECTION OF HIGH QUALITY PRODUCTS AND SERVICES THROUGH A VARIETY OF EXPERIENCES. THESE EXPERIENCES REFLECT OUR COMMITMENT TO BEING RESPONSIVE TO THE CHANGING NEEDS AND DESIRES OF OUR DIVERSE AUDIENCE. OPERATIONS INCLUDE AN ALL-YOU-CAN-EAT DINING HALL, QUICK-SERVE RESTAURANT, A COFFEE SHOP, LODGING, CATERING SERVICES, FACULTY/STAFF LUNCH BUFFET AND CONFERENCE AND EVENT SERVICES. | CQ6: 3480854 | CR6: 6480942 | CS6: AUXILIARY - RESIDENCE HALLS - ALBION COLLEGE IS A COLLEGE COMMUNITY INSTITUTION THAT EMPHASIZES COMMUNITY THROUGH EDUCATION IN AND OUT OF THE CLASSROOM. ALBION COLLEGE STRIVES TO PROVIDE OUR STUDENTS WITH QUALITY HOUSING THAT ENHANCES A STUDENT'S LEARNING EXPERIENCE. | CT6: 12274804 | CU6: 423868 | CV6: VARIOUS OTHER PROGRAM SERVICES RELATING TO THE ORGANIZATION'S MISSION. | CW6: 12274804 | CX6: 423868 | CY6: 66731934 | CZ6: 1 | DA6: RetDoc1039100001 | DB6: 1 | DC6: RetDoc1234500001 | DD6: 0 | DE6: 0 | DF6: 0 | DG6: 0 | DH6: RetDoc1040000001 | DI6: 0 | DJ6: RetDoc1040000001 | DK6: 1 | DL6: RetDoc1040000001 | DM6: 0 | DN6: RetDoc1040000001 | DO6: 1 | DP6: RetDoc1040000001 | DQ6: 1 | DR6: RetDoc1040000001 | DS6: 1 | DT6: RetDoc1040000001 | DU6: 0 | DV6: RetDoc1040000001 | DW6: 0 | DX6: RetDoc1040000001 | DY6: 1 | DZ6: RetDoc1040000001 | EA6: 1 | EB6: RetDoc1040000001 | EC6: 0 | ED6: RetDoc1040000001 | EE6: 1 | EF6: RetDoc1040000001 | EG6: 1 | EH6: RetDoc1040400001 | EI6: 0 | EJ6: 1 | EK6: RetDoc1040500001 | EL6: 1 | EM6: RetDoc1040500001 | EN6: 0 | EO6: RetDoc1040500001 | EP6: 1 | EQ6: RetDoc1041200001 | ER6: 1 | ES6: RetDoc1041200001 | ET6: 1 | EU6: RetDoc1041200001 | EV6: 0 | EW6: 1 | EX6: RetDoc1041900001 | EY6: 1 | EZ6: RetDoc1041900001 | FA6: 1 | FB6: RetDoc1042400001 | FC6: 1 | FD6: RetDoc1053100001 | FE6: 0 | FF6: 0 | FG6: 0 | FH6: 0 | FI6: 0 | FJ6: 0 | FK6: 0 | FL6: 0 | FM6: 0 | FN6: 0 | FO6: 1 | FP6: RetDoc1042900001 | FQ6: 1 | FR6: RetDoc1042900001 | FS6: 0 | FT6: 0 | FU6: 1 | FV6: RetDoc1043400001 | FW6: 1 | FX6: RetDoc1043400001 | FY6: 1 | FZ6: 1 | GA6: RetDoc1043400001 | GB6: 0 | GC6: RetDoc1043400001 | GD6: 0 | GE6: RetDoc1043400001 | GF6: 1 | GG6: 188 | GH6: 0 | GI6: 1 | GJ6: 1435 | GK6: 1 | GL6: 1 | GM6: 1 | GN6: 0 | GO6: 0 | GP6: 0 | GQ6: 0 | GR6: 1 | GS6: 1 | GT6: 0 | GU6: 0 | GV6: 0 | GW6: 0 | GX6: X | GY6: 26 | GZ6: 25 | HA6: 1 | HB6: 0 | HC6: 0 | HD6: 0 | HE6: 0 | HF6: 0 | HG6: 0 | HH6: 1 | HI6: 1 | HJ6: 0 | HK6: 0 | HL6: 1 | HM6: 1 | HN6: 1 | HO6: 1 | HP6: 1 | HQ6: 1 | HR6: 1 | HS6: 1 | HT6: 0 | HU6: X | HV6: MARK S HOLBROOK CONTROLLER | HW6: 5176290289 | HX6: 611 EAST PORTER STREET | HY6: ALBION | HZ6: MI | IA6: 49224 | IB6: DIANE S CARR | IC6: TRUSTEE | ID6: 1 | IE6: 0 | IF6: X | IH6: 0 | II6: 0 | IJ6: 0 | IL6: 1096085 | IM6: 0 | IN6: 143360 | IO6: 6 | IP6: 0 | IQ6: 1 | IR6: 0 | IZ6: 27 | JA6: 373044 | JB6: 459730 | JC6: 5583566 | JD6: 857050 | JE6: 6416340 | JJ6: 57387277 | JK6: 2137010 | JL6: 2137010 | JM6: 29974238 | JN6: 7001 | JO6: 26974656 | JP6: 65755 | JQ6: 2999582 | JR6: -58754 | JS6: 2940828 | JT6: 2940828 | JU6: 4060 | JV6: 373044 | JW6: 99373 | JX6: -95313 | JY6: -95313 | JZ6: 45370 | KA6: 4099 | KB6: 41271 | KC6: 41271 | KD6: MISCELLANEOUS INCOME | KE6: 900099 | KF6: 853308 | KG6: 853308 | KH6: 853308 | KI6: 69680721 | KJ6: 57387277 | KK6: 0 | KL6: 5877104 | KM6: X | KN6: 63000 | KO6: 63000 | KP6: 24273172 | KQ6: 24273172 | KR6: 133288 | KS6: 133288 | KT6: 1200757 | KU6: 179678 | KV6: 861702 | KW6: 159377 | KX6: 19356475 | KY6: 15708070 | KZ6: 2066695 | LA6: 1581710 | LB6: 1608926 | LC6: 1443204 | LD6: 4479 | LE6: 161243 | LF6: 3017294 | LG6: 2706505 | LH6: 8400 | LI6: 302389 | LJ6: 1390187 | LK6: 1246995 | LL6: 3869 | LM6: 139323 | LN6: 261083 | LO6: 16122 | LP6: 244219 | LQ6: 742 | LR6: 100628 | LS6: 100628 | LT6: 40414 | LU6: 40414 | LV6: 655305 | LW6: 350487 | LX6: 287203 | LY6: 17615 | LZ6: 9087967 | MA6: 7168709 | MB6: 1434260 | MC6: 484998 | MD6: 187077 | ME6: 1142 | MF6: 9695 | MG6: 176240 | MH6: 2983198 | MI6: 2613997 | MJ6: 106804 | MK6: 262397 | ML6: 4152425 | MM6: 3557252 | MN6: 464075 | MO6: 131098 | MP6: 1464850 | MQ6: 1136105 | MR6: 228878 | MS6: 99867 | MT6: 363762 | MU6: 197938 | MV6: 159050 | MW6: 6774 | MX6: 1352035 | MY6: 1174749 | MZ6: 119197 | NA6: 58089 | NB6: 4903739 | NC6: 4211964 | ND6: 543977 | NE6: 147798 | NF6: 564940 | NG6: 282470 | NH6: 254223 | NI6: 28247 | NO6: 223965 | NP6: 58974 | NQ6: 92860 | NR6: 72131 | NS6: 77615874 | NT6: 66731934 | NU6: 7007545 | NV6: 3876395 | NW6: 4584944 | NX6: 6973558 | NY6: 3129722 | NZ6: 2911080 | OA6: 2414171 | OB6: 4555248 | OC6: 3946309 | OD6: 1874764 | OE6: 113206 | OF6: 118172 | OG6: 974405 | OH6: 1043184 | OI6: 183073212 | OJ6: 93678885 | OK6: 91865959 | OL6: 89394327 | OM6: 49251964 | ON6: 56155174 | OO6: 138871779 | OP6: 150877804 | OQ6: 3166061 | OR6: 5109488 | OS6: 6112798 | OT6: 303428008 | OU6: 320016109 | OV6: 15310666 | OW6: 15593294 | OX6: 162416 | OY6: 515917 | OZ6: 59375000 | PA6: 57920000 | PB6: 412447 | PC6: 1977176 | PD6: 2794504 | PE6: 2751916 | PF6: 2523228 | PG6: 79989621 | PH6: 79346943 | PI6: X | PJ6: 74763459 | PK6: 77970365 | PL6: 75341769 | PM6: 88004745 | PN6: 73333159 | PO6: 74694056 | PP6: 223438387 | PQ6: 240669166 | PR6: 303428008 | PS6: 320016109 | PT6: X | PU6: -7935153 | PV6: 24311863 | PW6: 854068 | PX6: X | PY6: X | PZ6: 0 | QA6: 1 | QB6: X | QC6: 1 | QD6: 1 | QE6: 1 | QF6: RetDoc1039100001 | QG6: X | QH6: RetDoc1234500001 | QI6: RESTRICTED | QJ6: RESTRICTED | QK6: RESTRICTED | QL6: RESTRICTED | QM6: RESTRICTED | QN6: RESTRICTED | QO6: RESTRICTED | QP6: RESTRICTED | YM6: RetDoc1041900001 | YN6: 1 | YO6: COLCHESTER PROPERTIES | YP6: 611 EAST PORTER STREET | YQ6: ALBION | YR6: MI | YS6: 49224 | YT6: 382025320 | YU6: 501(C)(3) | YV6: 63000 | YW6: 0 | YX6: CASH | YY6: N/A | YZ6: PROGRAM SUPPORT | ZA6: 1 | ZB6: 0 | ZC6: SCHOLARSHIPS | ZD6: 1267 | ZE6: 24273172 | ZF6: 0 | ZG6: N/A | ZH6: N/A | ZI6: PART I, LINE 2: | ZJ6: GRANTS ARE PROCURED BY FACULTY WITH THE ASSISTANCE OF THE COLLEGE'S GRANT MANAGER. MONITORING IS DONE BY GRANTEE, GRANT MANAGER AND SENIOR ACCOUNTANT FOR COMPLIANCE. ACTIVITY IS AUDITED AND REPORTED ANNUALLY IN THE COLLEGE'S FINANCIAL STATEMENTS. | AAR6: RetDoc1053100001 | AAS6: A | AAT6: MICHIGAN HIGHER EDUCATION FACILITIES AUTHORITY | AAU6: 2006-11-01 | AAV6: 63385000 | AAW6: SCIENCE CENTER RENOVATION, REFINANCE OF 2004 BONDS AND OTHER | AAX6: 0 | AAY6: 0 | AAZ6: 0 | ABA6: A | ABB6: 5465000 | ABC6: 63385000 | ABD6: 22437251 | ABE6: 40546103 | ABF6: 401646 | ABG6: 22035605 | ABH6: 2008 | ABI6: 1 | ABJ6: 0 | ABK6: 1 | ABL6: 1 | ABM6: A | ABN6: 0 | ABO6: 0 | ABP6: 0 | ABQ6: 0 | ABR6: 0 | ABS6: 0 | ABT6: 0 | ABU6: A | ABV6: 0 | ABW6: 0 | ABX6: 0 | ABY6: 0 | ABZ6: 1 | ACA6: 1 | ACB6: JPMORGAN CHASE | ACC6: BANK NA | ACD6: 20 | ACE6: 0 | ACF6: 0 | ACG6: 0 | ACH6: 0 | ACI6: 0 | ACJ6: A | ACK6: 0
A7: 2013v4.0 | B7: 0 | C7: 2015-05-15T13:27:25-05:00 | D7: 2014-06-30 | E7: 381357951 | F7: PLANTE & MORAN PLLC | G7: 750 TRADE CENTRE WAY STE 300 | H7: PORTAGE | I7: MI | J7: 49002 | K7: 990 | L7: 2013-07-01 | M7: 381359081 | N7: ALBION COLLEGE | O7: ALBI | P7: 5176290289 | Q7: 611 EAST PORTER STREET | R7: ALBION | S7: MI | T7: 49224 | U7: JERRY WHITE | V7: VP FOR FINANCE AND ADMINISTRATION | W7: 5176290289 | X7: 2015-05-07 | Y7: 1 | Z7: VICKI L VANDENBERG CPA | AA7: P00100422 | AB7: 2695674500 | AC7: 2013 | AD7: 2016-03-07 17:11:31Z | AE7: 13 | AF7: RetDoc1038000001 | AG7: RetDoc1044400001 | AH7: JERRY WHITE | AI7: 611 EAST PORTER STREET | AJ7: ALBION | AK7: MI | AL7: 49224 | AM7: 96824604 | AN7: 0 | AO7: X | AP7: WWW.ALBION.EDU | AQ7: X | AR7: 1835 | AS7: MI | AT7: ALBION COLLEGE IS AN UNDERGRADUATE, LIBERAL ARTS INSTITUTION COMMITTED TO ACADEMIC EXCELLENCE. WE ARE LEARNING-CENTERED AND RECOGNIZE THAT VALUABLE LEARNING TAKES PLACE IN AND OUTSIDE OF THE CLASSROOM, ON AND OFF THE CAMPUS. | AU7: 26 | AV7: 25 | AW7: 1435 | AX7: 15 | AY7: 0 | AZ7: 19888 | BA7: 5969161 | BB7: 6416340 | BC7: 56998355 | BD7: 57387277 | BE7: 3815854 | BF7: 5077838 | BG7: 481652 | BH7: 799266 | BI7: 67265022 | BJ7: 69680721 | BK7: 24127822 | BL7: 24469460 | BM7: 0 | BN7: 0 | BO7: 26876677 | BP7: 26573639 | BQ7: 40413 | BR7: 40414 | BS7: 3876395 | BT7: 25101910 | BU7: 26532361 | BV7: 76146822 | BW7: 77615874 | BX7: -8881800 | BY7: -7935153 | BZ7: 303428008 | CA7: 320016109 | CB7: 79989621 | CC7: 79346943 | CD7: 223438387 | CE7: 240669166 | CF7: X | CG7: ALBION COLLEGE IS AN UNDERGRADUATE, LIBERAL ARTS INSTITUTION COMMITTED TO ACADEMIC EXCELLENCE. WE ARE LEARNING-CENTERED AND RECOGNIZE THAT VALUABLE LEARNING TAKES PLACE IN AND OUTSIDE OF THE CLASSROOM, ON AND OFF THE CAMPUS. | CH7: 0 | CI7: 0 | CJ7: 47197761 | CK7: 24469460 | CL7: 46521102 | CM7: INSTRUCTIONAL - ALBION COLLEGE IS A PRIVATE, SELECTIVE, COEDUCATIONAL, RESIDENTIAL INSTITUTION OF HIGHER EDUCATION AFFILIATED WITH THE UNITED METHODIST CHURCH, BUT NON-SECTARIAN IN PRACTICE. THE COLLEGE PRINCIPALLY OFFERS ACADEMIC COURSES AND PROGRAMS LEADING TO A BACHELORS DEGREE IN LIBERAL ARTS. APPROXIMATELY 1,300 STUDENTS ARE ENROLLED IN THE COLLEGE. | CN7: 3778515 | CO7: 3961365 | CP7: AUXILIARY - DINING SERVICES - ALBION COLLEGE IS A RESIDENTIAL INSTITUTION AND THE PRIMARY FUNCTION OF THE DINING AND HOSPITALITY SERVICES, MANAGED BY BON APPETIT MANAGEMENT COMPANY, IS TO PROVIDE FOOD FOR OUR STUDENTS, FACULTY, STAFF, AND GUESTS. WE STRIVE TO PROVIDE A WIDE SELECTION OF HIGH QUALITY PRODUCTS AND SERVICES THROUGH A VARIETY OF EXPERIENCES. THESE EXPERIENCES REFLECT OUR COMMITMENT TO BEING RESPONSIVE TO THE CHANGING NEEDS AND DESIRES OF OUR DIVERSE AUDIENCE. OPERATIONS INCLUDE AN ALL-YOU-CAN-EAT DINING HALL, QUICK-SERVE RESTAURANT, A COFFEE SHOP, LODGING, CATERING SERVICES, FACULTY/STAFF LUNCH BUFFET AND CONFERENCE AND EVENT SERVICES. | CQ7: 3480854 | CR7: 6480942 | CS7: AUXILIARY - RESIDENCE HALLS - ALBION COLLEGE IS A COLLEGE COMMUNITY INSTITUTION THAT EMPHASIZES COMMUNITY THROUGH EDUCATION IN AND OUT OF THE CLASSROOM. ALBION COLLEGE STRIVES TO PROVIDE OUR STUDENTS WITH QUALITY HOUSING THAT ENHANCES A STUDENT'S LEARNING EXPERIENCE. | CT7: 12274804 | CU7: 423868 | CV7: VARIOUS OTHER PROGRAM SERVICES RELATING TO THE ORGANIZATION'S MISSION. | CW7: 12274804 | CX7: 423868 | CY7: 66731934 | CZ7: 1 | DA7: RetDoc1039100001 | DB7: 1 | DC7: RetDoc1234500001 | DD7: 0 | DE7: 0 | DF7: 0 | DG7: 0 | DH7: RetDoc1040000001 | DI7: 0 | DJ7: RetDoc1040000001 | DK7: 1 | DL7: RetDoc1040000001 | DM7: 0 | DN7: RetDoc1040000001 | DO7: 1 | DP7: RetDoc1040000001 | DQ7: 1 | DR7: RetDoc1040000001 | DS7: 1 | DT7: RetDoc1040000001 | DU7: 0 | DV7: RetDoc1040000001 | DW7: 0 | DX7: RetDoc1040000001 | DY7: 1 | DZ7: RetDoc1040000001 | EA7: 1 | EB7: RetDoc1040000001 | EC7: 0 | ED7: RetDoc1040000001 | EE7: 1 | EF7: RetDoc1040000001 | EG7: 1 | EH7: RetDoc1040400001 | EI7: 0 | EJ7: 1 | EK7: RetDoc1040500001 | EL7: 1 | EM7: RetDoc1040500001 | EN7: 0 | EO7: RetDoc1040500001 | EP7: 1 | EQ7: RetDoc1041200001 | ER7: 1 | ES7: RetDoc1041200001 | ET7: 1 | EU7: RetDoc1041200001 | EV7: 0 | EW7: 1 | EX7: RetDoc1041900001 | EY7: 1 | EZ7: RetDoc1041900001 | FA7: 1 | FB7: RetDoc1042400001 | FC7: 1 | FD7: RetDoc1053100001 | FE7: 0 | FF7: 0 | FG7: 0 | FH7: 0 | FI7: 0 | FJ7: 0 | FK7: 0 | FL7: 0 | FM7: 0 | FN7: 0 | FO7: 1 | FP7: RetDoc1042900001 | FQ7: 1 | FR7: RetDoc1042900001 | FS7: 0 | FT7: 0 | FU7: 1 | FV7: RetDoc1043400001 | FW7: 1 | FX7: RetDoc1043400001 | FY7: 1 | FZ7: 1 | GA7: RetDoc1043400001 | GB7: 0 | GC7: RetDoc1043400001 | GD7: 0 | GE7: RetDoc1043400001 | GF7: 1 | GG7: 188 | GH7: 0 | GI7: 1 | GJ7: 1435 | GK7: 1 | GL7: 1 | GM7: 1 | GN7: 0 | GO7: 0 | GP7: 0 | GQ7: 0 | GR7: 1 | GS7: 1 | GT7: 0 | GU7: 0 | GV7: 0 | GW7: 0 | GX7: X | GY7: 26 | GZ7: 25 | HA7: 1 | HB7: 0 | HC7: 0 | HD7: 0 | HE7: 0 | HF7: 0 | HG7: 0 | HH7: 1 | HI7: 1 | HJ7: 0 | HK7: 0 | HL7: 1 | HM7: 1 | HN7: 1 | HO7: 1 | HP7: 1 | HQ7: 1 | HR7: 1 | HS7: 1 | HT7: 0 | HU7: X | HV7: MARK S HOLBROOK CONTROLLER | HW7: 5176290289 | HX7: 611 EAST PORTER STREET | HY7: ALBION | HZ7: MI | IA7: 49224 | IB7: STEVEN MG CHARNLEY | IC7: TRUSTEE | ID7: 1 | IE7: 0 | IF7: X | IH7: 0 | II7: 0 | IJ7: 0 | IL7: 1096085 | IM7: 0 | IN7: 143360 | IO7: 6 | IP7: 0 | IQ7: 1 | IR7: 0 | IZ7: 27 | JA7: 373044 | JB7: 459730 | JC7: 5583566 | JD7: 857050 | JE7: 6416340 | JJ7: 57387277 | JK7: 2137010 | JL7: 2137010 | JM7: 29974238 | JN7: 7001 | JO7: 26974656 | JP7: 65755 | JQ7: 2999582 | JR7: -58754 | JS7: 2940828 | JT7: 2940828 | JU7: 4060 | JV7: 373044 | JW7: 99373 | JX7: -95313 | JY7: -95313 | JZ7: 45370 | KA7: 4099 | KB7: 41271 | KC7: 41271 | KD7: MISCELLANEOUS INCOME | KE7: 900099 | KF7: 853308 | KG7: 853308 | KH7: 853308 | KI7: 69680721 | KJ7: 57387277 | KK7: 0 | KL7: 5877104 | KM7: X | KN7: 63000 | KO7: 63000 | KP7: 24273172 | KQ7: 24273172 | KR7: 133288 | KS7: 133288 | KT7: 1200757 | KU7: 179678 | KV7: 861702 | KW7: 159377 | KX7: 19356475 | KY7: 15708070 | KZ7: 2066695 | LA7: 1581710 | LB7: 1608926 | LC7: 1443204 | LD7: 4479 | LE7: 161243 | LF7: 3017294 | LG7: 2706505 | LH7: 8400 | LI7: 302389 | LJ7: 1390187 | LK7: 1246995 | LL7: 3869 | LM7: 139323 | LN7: 261083 | LO7: 16122 | LP7: 244219 | LQ7: 742 | LR7: 100628 | LS7: 100628 | LT7: 40414 | LU7: 40414 | LV7: 655305 | LW7: 350487 | LX7: 287203 | LY7: 17615 | LZ7: 9087967 | MA7: 7168709 | MB7: 1434260 | MC7: 484998 | MD7: 187077 | ME7: 1142 | MF7: 9695 | MG7: 176240 | MH7: 2983198 | MI7: 2613997 | MJ7: 106804 | MK7: 262397 | ML7: 4152425 | MM7: 3557252 | MN7: 464075 | MO7: 131098 | MP7: 1464850 | MQ7: 1136105 | MR7: 228878 | MS7: 99867 | MT7: 363762 | MU7: 197938 | MV7: 159050 | MW7: 6774 | MX7: 1352035 | MY7: 1174749 | MZ7: 119197 | NA7: 58089 | NB7: 4903739 | NC7: 4211964 | ND7: 543977 | NE7: 147798 | NF7: 564940 | NG7: 282470 | NH7: 254223 | NI7: 28247 | NO7: 223965 | NP7: 58974 | NQ7: 92860 | NR7: 72131 | NS7: 77615874 | NT7: 66731934 | NU7: 7007545 | NV7: 3876395 | NW7: 4584944 | NX7: 6973558 | NY7: 3129722 | NZ7: 2911080 | OA7: 2414171 | OB7: 4555248 | OC7: 3946309 | OD7: 1874764 | OE7: 113206 | OF7: 118172 | OG7: 974405 | OH7: 1043184 | OI7: 183073212 | OJ7: 93678885 | OK7: 91865959 | OL7: 89394327 | OM7: 49251964 | ON7: 56155174 | OO7: 138871779 | OP7: 150877804 | OQ7: 3166061 | OR7: 5109488 | OS7: 6112798 | OT7: 303428008 | OU7: 320016109 | OV7: 15310666 | OW7: 15593294 | OX7: 162416 | OY7: 515917 | OZ7: 59375000 | PA7: 57920000 | PB7: 412447 | PC7: 1977176 | PD7: 2794504 | PE7: 2751916 | PF7: 2523228 | PG7: 79989621 | PH7: 79346943 | PI7: X | PJ7: 74763459 | PK7: 77970365 | PL7: 75341769 | PM7: 88004745 | PN7: 73333159 | PO7: 74694056 | PP7: 223438387 | PQ7: 240669166 | PR7: 303428008 | PS7: 320016109 | PT7: X | PU7: -7935153 | PV7: 24311863 | PW7: 854068 | PX7: X | PY7: X | PZ7: 0 | QA7: 1 | QB7: X | QC7: 1 | QD7: 1 | QE7: 1 | QF7: RetDoc1039100001 | QG7: X | QH7: RetDoc1234500001 | QI7: RESTRICTED | QJ7: RESTRICTED | QK7: RESTRICTED | QL7: RESTRICTED | QM7: RESTRICTED | QN7: RESTRICTED | QO7: RESTRICTED | QP7: RESTRICTED | YM7: RetDoc1041900001 | YN7: 1 | YO7: COLCHESTER PROPERTIES | YP7: 611 EAST PORTER STREET | YQ7: ALBION | YR7: MI | YS7: 49224 | YT7: 382025320 | YU7: 501(C)(3) | YV7: 63000 | YW7: 0 | YX7: CASH | YY7: N/A | YZ7: PROGRAM SUPPORT | ZA7: 1 | ZB7: 0 | ZC7: SCHOLARSHIPS | ZD7: 1267 | ZE7: 24273172 | ZF7: 0 | ZG7: N/A | ZH7: N/A | ZI7: PART I, LINE 2: | ZJ7: GRANTS ARE PROCURED BY FACULTY WITH THE ASSISTANCE OF THE COLLEGE'S GRANT MANAGER. MONITORING IS DONE BY GRANTEE, GRANT MANAGER AND SENIOR ACCOUNTANT FOR COMPLIANCE. ACTIVITY IS AUDITED AND REPORTED ANNUALLY IN THE COLLEGE'S FINANCIAL STATEMENTS. | AAR7: RetDoc1053100001 | AAS7: A | AAT7: MICHIGAN HIGHER EDUCATION FACILITIES AUTHORITY | AAU7: 2006-11-01 | AAV7: 63385000 | AAW7: SCIENCE CENTER RENOVATION, REFINANCE OF 2004 BONDS AND OTHER | AAX7: 0 | AAY7: 0 | AAZ7: 0 | ABA7: A | ABB7: 5465000 | ABC7: 63385000 | ABD7: 22437251 | ABE7: 40546103 | ABF7: 401646 | ABG7: 22035605 | ABH7: 2008 | ABI7: 1 | ABJ7: 0 | ABK7: 1 | ABL7: 1 | ABM7: A | ABN7: 0 | ABO7: 0 | ABP7: 0 | ABQ7: 0 | ABR7: 0 | ABS7: 0 | ABT7: 0 | ABU7: A | ABV7: 0 | ABW7: 0 | ABX7: 0 | ABY7: 0 | ABZ7: 1 | ACA7: 1 | ACB7: JPMORGAN CHASE | ACC7: BANK NA | ACD7: 20 | ACE7: 0 | ACF7: 0 | ACG7: 0 | ACH7: 0 | ACI7: 0 | ACJ7: A | ACK7: 0
A8: 2013v4.0 | B8: 0 | C8: 2015-05-15T13:27:25-05:00 | D8: 2014-06-30 | E8: 381357951 | F8: PLANTE & MORAN PLLC | G8: 750 TRADE CENTRE WAY STE 300 | H8: PORTAGE | I8: MI | J8: 49002 | K8: 990 | L8: 2013-07-01 | M8: 381359081 | N8: ALBION COLLEGE | O8: ALBI | P8: 5176290289 | Q8: 611 EAST PORTER STREET | R8: ALBION | S8: MI | T8: 49224 | U8: JERRY WHITE | V8: VP FOR FINANCE AND ADMINISTRATION | W8: 5176290289 | X8: 2015-05-07 | Y8: 1 | Z8: VICKI L VANDENBERG CPA | AA8: P00100422 | AB8: 2695674500 | AC8: 2013 | AD8: 2016-03-07 17:11:31Z | AE8: 13 | AF8: RetDoc1038000001 | AG8: RetDoc1044400001 | AH8: JERRY WHITE | AI8: 611 EAST PORTER STREET | AJ8: ALBION | AK8: MI | AL8: 49224 | AM8: 96824604 | AN8: 0 | AO8: X | AP8: WWW.ALBION.EDU | AQ8: X | AR8: 1835 | AS8: MI | AT8: ALBION COLLEGE IS AN UNDERGRADUATE, LIBERAL ARTS INSTITUTION COMMITTED TO ACADEMIC EXCELLENCE. WE ARE LEARNING-CENTERED AND RECOGNIZE THAT VALUABLE LEARNING TAKES PLACE IN AND OUTSIDE OF THE CLASSROOM, ON AND OFF THE CAMPUS. | AU8: 26 | AV8: 25 | AW8: 1435 | AX8: 15 | AY8: 0 | AZ8: 19888 | BA8: 5969161 | BB8: 6416340 | BC8: 56998355 | BD8: 57387277 | BE8: 3815854 | BF8: 5077838 | BG8: 481652 | BH8: 799266 | BI8: 67265022 | BJ8: 69680721 | BK8: 24127822 | BL8: 24469460 | BM8: 0 | BN8: 0 | BO8: 26876677 | BP8: 26573639 | BQ8: 40413 | BR8: 40414 | BS8: 3876395 | BT8: 25101910 | BU8: 26532361 | BV8: 76146822 | BW8: 77615874 | BX8: -8881800 | BY8: -7935153 | BZ8: 303428008 | CA8: 320016109 | CB8: 79989621 | CC8: 79346943 | CD8: 223438387 | CE8: 240669166 | CF8: X | CG8: ALBION COLLEGE IS AN UNDERGRADUATE, LIBERAL ARTS INSTITUTION COMMITTED TO ACADEMIC EXCELLENCE. WE ARE LEARNING-CENTERED AND RECOGNIZE THAT VALUABLE LEARNING TAKES PLACE IN AND OUTSIDE OF THE CLASSROOM, ON AND OFF THE CAMPUS. | CH8: 0 | CI8: 0 | CJ8: 47197761 | CK8: 24469460 | CL8: 46521102 | CM8: INSTRUCTIONAL - ALBION COLLEGE IS A PRIVATE, SELECTIVE, COEDUCATIONAL, RESIDENTIAL INSTITUTION OF HIGHER EDUCATION AFFILIATED WITH THE UNITED METHODIST CHURCH, BUT NON-SECTARIAN IN PRACTICE. THE COLLEGE PRINCIPALLY OFFERS ACADEMIC COURSES AND PROGRAMS LEADING TO A BACHELORS DEGREE IN LIBERAL ARTS. APPROXIMATELY 1,300 STUDENTS ARE ENROLLED IN THE COLLEGE. | CN8: 3778515 | CO8: 3961365 | CP8: AUXILIARY - DINING SERVICES - ALBION COLLEGE IS A RESIDENTIAL INSTITUTION AND THE PRIMARY FUNCTION OF THE DINING AND HOSPITALITY SERVICES, MANAGED BY BON APPETIT MANAGEMENT COMPANY, IS TO PROVIDE FOOD FOR OUR STUDENTS, FACULTY, STAFF, AND GUESTS. WE STRIVE TO PROVIDE A WIDE SELECTION OF HIGH QUALITY PRODUCTS AND SERVICES THROUGH A VARIETY OF EXPERIENCES. THESE EXPERIENCES REFLECT OUR COMMITMENT TO BEING RESPONSIVE TO THE CHANGING NEEDS AND DESIRES OF OUR DIVERSE AUDIENCE. OPERATIONS INCLUDE AN ALL-YOU-CAN-EAT DINING HALL, QUICK-SERVE RESTAURANT, A COFFEE SHOP, LODGING, CATERING SERVICES, FACULTY/STAFF LUNCH BUFFET AND CONFERENCE AND EVENT SERVICES. | CQ8: 3480854 | CR8: 6480942 | CS8: AUXILIARY - RESIDENCE HALLS - ALBION COLLEGE IS A COLLEGE COMMUNITY INSTITUTION THAT EMPHASIZES COMMUNITY THROUGH EDUCATION IN AND OUT OF THE CLASSROOM. ALBION COLLEGE STRIVES TO PROVIDE OUR STUDENTS WITH QUALITY HOUSING THAT ENHANCES A STUDENT'S LEARNING EXPERIENCE. | CT8: 12274804 | CU8: 423868 | CV8: VARIOUS OTHER PROGRAM SERVICES RELATING TO THE ORGANIZATION'S MISSION. | CW8: 12274804 | CX8: 423868 | CY8: 66731934 | CZ8: 1 | DA8: RetDoc1039100001 | DB8: 1 | DC8: RetDoc1234500001 | DD8: 0 | DE8: 0 | DF8: 0 | DG8: 0 | DH8: RetDoc1040000001 | DI8: 0 | DJ8: RetDoc1040000001 | DK8: 1 | DL8: RetDoc1040000001 | DM8: 0 | DN8: RetDoc1040000001 | DO8: 1 | DP8: RetDoc1040000001 | DQ8: 1 | DR8: RetDoc1040000001 | DS8: 1 | DT8: RetDoc1040000001 | DU8: 0 | DV8: RetDoc1040000001 | DW8: 0 | DX8: RetDoc1040000001 | DY8: 1 | DZ8: RetDoc1040000001 | EA8: 1 | EB8: RetDoc1040000001 | EC8: 0 | ED8: RetDoc1040000001 | EE8: 1 | EF8: RetDoc1040000001 | EG8: 1 | EH8: RetDoc1040400001 | EI8: 0 | EJ8: 1 | EK8: RetDoc1040500001 | EL8: 1 | EM8: RetDoc1040500001 | EN8: 0 | EO8: RetDoc1040500001 | EP8: 1 | EQ8: RetDoc1041200001 | ER8: 1 | ES8: RetDoc1041200001 | ET8: 1 | EU8: RetDoc1041200001 | EV8: 0 | EW8: 1 | EX8: RetDoc1041900001 | EY8: 1 | EZ8: RetDoc1041900001 | FA8: 1 | FB8: RetDoc1042400001 | FC8: 1 | FD8: RetDoc1053100001 | FE8: 0 | FF8: 0 | FG8: 0 | FH8: 0 | FI8: 0 | FJ8: 0 | FK8: 0 | FL8: 0 | FM8: 0 | FN8: 0 | FO8: 1 | FP8: RetDoc1042900001 | FQ8: 1 | FR8: RetDoc1042900001 | FS8: 0 | FT8: 0 | FU8: 1 | FV8: RetDoc1043400001 | FW8: 1 | FX8: RetDoc1043400001 | FY8: 1 | FZ8: 1 | GA8: RetDoc1043400001 | GB8: 0 | GC8: RetDoc1043400001 | GD8: 0 | GE8: RetDoc1043400001 | GF8: 1 | GG8: 188 | GH8: 0 | GI8: 1 | GJ8: 1435 | GK8: 1 | GL8: 1 | GM8: 1 | GN8: 0 | GO8: 0 | GP8: 0 | GQ8: 0 | GR8: 1 | GS8: 1 | GT8: 0 | GU8: 0 | GV8: 0 | GW8: 0 | GX8: X | GY8: 26 | GZ8: 25 | HA8: 1 | HB8: 0 | HC8: 0 | HD8: 0 | HE8: 0 | HF8: 0 | HG8: 0 | HH8: 1 | HI8: 1 | HJ8: 0 | HK8: 0 | HL8: 1 | HM8: 1 | HN8: 1 | HO8: 1 | HP8: 1 | HQ8: 1 | HR8: 1 | HS8: 1 | HT8: 0 | HU8: X | HV8: MARK S HOLBROOK CONTROLLER | HW8: 5176290289 | HX8: 611 EAST PORTER STREET | HY8: ALBION | HZ8: MI | IA8: 49224 | IB8: GEORGE S CHAVEL | IC8: TRUSTEE | ID8: 1 | IE8: 0 | IF8: X | IH8: 0 | II8: 0 | IJ8: 0 | IL8: 1096085 | IM8: 0 | IN8: 143360 | IO8: 6 | IP8: 0 | IQ8: 1 | IR8: 0 | IZ8: 27 | JA8: 373044 | JB8: 459730 | JC8: 5583566 | JD8: 857050 | JE8: 6416340 | JJ8: 57387277 | JK8: 2137010 | JL8: 2137010 | JM8: 29974238 | JN8: 7001 | JO8: 26974656 | JP8: 65755 | JQ8: 2999582 | JR8: -58754 | JS8: 2940828 | JT8: 2940828 | JU8: 4060 | JV8: 373044 | JW8: 99373 | JX8: -95313 | JY8: -95313 | JZ8: 45370 | KA8: 4099 | KB8: 41271 | KC8: 41271 | KD8: MISCELLANEOUS INCOME | KE8: 900099 | KF8: 853308 | KG8: 853308 | KH8: 853308 | KI8: 69680721 | KJ8: 57387277 | KK8: 0 | KL8: 5877104 | KM8: X | KN8: 63000 | KO8: 63000 | KP8: 24273172 | KQ8: 24273172 | KR8: 133288 | KS8: 133288 | KT8: 1200757 | KU8: 179678 | KV8: 861702 | KW8: 159377 | KX8: 19356475 | KY8: 15708070 | KZ8: 2066695 | LA8: 1581710 | LB8: 1608926 | LC8: 1443204 | LD8: 4479 | LE8: 161243 | LF8: 3017294 | LG8: 2706505 | LH8: 8400 | LI8: 302389 | LJ8: 1390187 | LK8: 1246995 | LL8: 3869 | LM8: 139323 | LN8: 261083 | LO8: 16122 | LP8: 244219 | LQ8: 742 | LR8: 100628 | LS8: 100628 | LT8: 40414 | LU8: 40414 | LV8: 655305 | LW8: 350487 | LX8: 287203 | LY8: 17615 | LZ8: 9087967 | MA8: 7168709 | MB8: 1434260 | MC8: 484998 | MD8: 187077 | ME8: 1142 | MF8: 9695 | MG8: 176240 | MH8: 2983198 | MI8: 2613997 | MJ8: 106804 | MK8: 262397 | ML8: 4152425 | MM8: 3557252 | MN8: 464075 | MO8: 131098 | MP8: 1464850 | MQ8: 1136105 | MR8: 228878 | MS8: 99867 | MT8: 363762 | MU8: 197938 | MV8: 159050 | MW8: 6774 | MX8: 1352035 | MY8: 1174749 | MZ8: 119197 | NA8: 58089 | NB8: 4903739 | NC8: 4211964 | ND8: 543977 | NE8: 147798 | NF8: 564940 | NG8: 282470 | NH8: 254223 | NI8: 28247 | NO8: 223965 | NP8: 58974 | NQ8: 92860 | NR8: 72131 | NS8: 77615874 | NT8: 66731934 | NU8: 7007545 | NV8: 3876395 | NW8: 4584944 | NX8: 6973558 | NY8: 3129722 | NZ8: 2911080 | OA8: 2414171 | OB8: 4555248 | OC8: 3946309 | OD8: 1874764 | OE8: 113206 | OF8: 118172 | OG8: 974405 | OH8: 1043184 | OI8: 183073212 | OJ8: 93678885 | OK8: 91865959 | OL8: 89394327 | OM8: 49251964 | ON8: 56155174 | OO8: 138871779 | OP8: 150877804 | OQ8: 3166061 | OR8: 5109488 | OS8: 6112798 | OT8: 303428008 | OU8: 320016109 | OV8: 15310666 | OW8: 15593294 | OX8: 162416 | OY8: 515917 | OZ8: 59375000 | PA8: 57920000 | PB8: 412447 | PC8: 1977176 | PD8: 2794504 | PE8: 2751916 | PF8: 2523228 | PG8: 79989621 | PH8: 79346943 | PI8: X | PJ8: 74763459 | PK8: 77970365 | PL8: 75341769 | PM8: 88004745 | PN8: 73333159 | PO8: 74694056 | PP8: 223438387 | PQ8: 240669166 | PR8: 303428008 | PS8: 320016109 | PT8: X | PU8: -7935153 | PV8: 24311863 | PW8: 854068 | PX8: X | PY8: X | PZ8: 0 | QA8: 1 | QB8: X | QC8: 1 | QD8: 1 | QE8: 1 | QF8: RetDoc1039100001 | QG8: X | QH8: RetDoc1234500001 | QI8: RESTRICTED | QJ8: RESTRICTED | QK8: RESTRICTED | QL8: RESTRICTED | QM8: RESTRICTED | QN8: RESTRICTED | QO8: RESTRICTED | QP8: RESTRICTED | YM8: RetDoc1041900001 | YN8: 1 | YO8: COLCHESTER PROPERTIES | YP8: 611 EAST PORTER STREET | YQ8: ALBION | YR8: MI | YS8: 49224 | YT8: 382025320 | YU8: 501(C)(3) | YV8: 63000 | YW8: 0 | YX8: CASH | YY8: N/A | YZ8: PROGRAM SUPPORT | ZA8: 1 | ZB8: 0 | ZC8: SCHOLARSHIPS | ZD8: 1267 | ZE8: 24273172 | ZF8: 0 | ZG8: N/A | ZH8: N/A | ZI8: PART I, LINE 2: | ZJ8: GRANTS ARE PROCURED BY FACULTY WITH THE ASSISTANCE OF THE COLLEGE'S GRANT MANAGER. MONITORING IS DONE BY GRANTEE, GRANT MANAGER AND SENIOR ACCOUNTANT FOR COMPLIANCE. ACTIVITY IS AUDITED AND REPORTED ANNUALLY IN THE COLLEGE'S FINANCIAL STATEMENTS. | AAR8: RetDoc1053100001 | AAS8: A | AAT8: MICHIGAN HIGHER EDUCATION FACILITIES AUTHORITY | AAU8: 2006-11-01 | AAV8: 63385000 | AAW8: SCIENCE CENTER RENOVATION, REFINANCE OF 2004 BONDS AND OTHER | AAX8: 0 | AAY8: 0 | AAZ8: 0 | ABA8: A | ABB8: 5465000 | ABC8: 63385000 | ABD8: 22437251 | ABE8: 40546103 | ABF8: 401646 | ABG8: 22035605 | ABH8: 2008 | ABI8: 1 | ABJ8: 0 | ABK8: 1 | ABL8: 1 | ABM8: A | ABN8: 0 | ABO8: 0 | ABP8: 0 | ABQ8: 0 | ABR8: 0 | ABS8: 0 | ABT8: 0 | ABU8: A | ABV8: 0 | ABW8: 0 | ABX8: 0 | ABY8: 0 | ABZ8: 1 | ACA8: 1 | ACB8: JPMORGAN CHASE | ACC8: BANK NA | ACD8: 20 | ACE8: 0 | ACF8: 0 | ACG8: 0 | ACH8: 0 | ACI8: 0 | ACJ8: A | ACK8: 0
A9: 2013v4.0 | B9: 0 | C9: 2015-05-15T13:27:25-05:00 | D9: 2014-06-30 | E9: 381357951 | F9: PLANTE & MORAN PLLC | G9: 750 TRADE CENTRE WAY STE 300 | H9: PORTAGE | I9: MI | J9: 49002 | K9: 990 | L9: 2013-07-01 | M9: 381359081 | N9: ALBION COLLEGE | O9: ALBI | P9: 5176290289 | Q9: 611 EAST PORTER STREET | R9: ALBION | S9: MI | T9: 49224 | U9: JERRY WHITE | V9: VP FOR FINANCE AND ADMINISTRATION | W9: 5176290289 | X9: 2015-05-07 | Y9: 1 | Z9: VICKI L VANDENBERG CPA | AA9: P00100422 | AB9: 2695674500 | AC9: 2013 | AD9: 2016-03-07 17:11:31Z | AE9: 13 | AF9: RetDoc1038000001 | AG9: RetDoc1044400001 | AH9: JERRY WHITE | AI9: 611 EAST PORTER STREET | AJ9: ALBION | AK9: MI | AL9: 49224 | AM9: 96824604 | AN9: 0 | AO9: X | AP9: WWW.ALBION.EDU | AQ9: X | AR9: 1835 | AS9: MI | AT9: ALBION COLLEGE IS AN UNDERGRADUATE, LIBERAL ARTS INSTITUTION COMMITTED TO ACADEMIC EXCELLENCE. WE ARE LEARNING-CENTERED AND RECOGNIZE THAT VALUABLE LEARNING TAKES PLACE IN AND OUTSIDE OF THE CLASSROOM, ON AND OFF THE CAMPUS. | AU9: 26 | AV9: 25 | AW9: 1435 | AX9: 15 | AY9: 0 | AZ9: 19888 | BA9: 5969161 | BB9: 6416340 | BC9: 56998355 | BD9: 57387277 | BE9: 3815854 | BF9: 5077838 | BG9: 481652 | BH9: 799266 | BI9: 67265022 | BJ9: 69680721 | BK9: 24127822 | BL9: 24469460 | BM9: 0 | BN9: 0 | BO9: 26876677 | BP9: 26573639 | BQ9: 40413 | BR9: 40414 | BS9: 3876395 | BT9: 25101910 | BU9: 26532361 | BV9: 76146822 | BW9: 77615874 | BX9: -8881800 | BY9: -7935153 | BZ9: 303428008 | CA9: 320016109 | CB9: 79989621 | CC9: 79346943 | CD9: 223438387 | CE9: 240669166 | CF9: X | CG9: ALBION COLLEGE IS AN UNDERGRADUATE, LIBERAL ARTS INSTITUTION COMMITTED TO ACADEMIC EXCELLENCE. WE ARE LEARNING-CENTERED AND RECOGNIZE THAT VALUABLE LEARNING TAKES PLACE IN AND OUTSIDE OF THE CLASSROOM, ON AND OFF THE CAMPUS. | CH9: 0 | CI9: 0 | CJ9: 47197761 | CK9: 24469460 | CL9: 46521102 | CM9: INSTRUCTIONAL - ALBION COLLEGE IS A PRIVATE, SELECTIVE, COEDUCATIONAL, RESIDENTIAL INSTITUTION OF HIGHER EDUCATION AFFILIATED WITH THE UNITED METHODIST CHURCH, BUT NON-SECTARIAN IN PRACTICE. THE COLLEGE PRINCIPALLY OFFERS ACADEMIC COURSES AND PROGRAMS LEADING TO A BACHELORS DEGREE IN LIBERAL ARTS. APPROXIMATELY 1,300 STUDENTS ARE ENROLLED IN THE COLLEGE. | CN9: 3778515 | CO9: 3961365 | CP9: AUXILIARY - DINING SERVICES - ALBION COLLEGE IS A RESIDENTIAL INSTITUTION AND THE PRIMARY FUNCTION OF THE DINING AND HOSPITALITY SERVICES, MANAGED BY BON APPETIT MANAGEMENT COMPANY, IS TO PROVIDE FOOD FOR OUR STUDENTS, FACULTY, STAFF, AND GUESTS. WE STRIVE TO PROVIDE A WIDE SELECTION OF HIGH QUALITY PRODUCTS AND SERVICES THROUGH A VARIETY OF EXPERIENCES. THESE EXPERIENCES REFLECT OUR COMMITMENT TO BEING RESPONSIVE TO THE CHANGING NEEDS AND DESIRES OF OUR DIVERSE AUDIENCE. OPERATIONS INCLUDE AN ALL-YOU-CAN-EAT DINING HALL, QUICK-SERVE RESTAURANT, A COFFEE SHOP, LODGING, CATERING SERVICES, FACULTY/STAFF LUNCH BUFFET AND CONFERENCE AND EVENT SERVICES. | CQ9: 3480854 | CR9: 6480942 | CS9: AUXILIARY - RESIDENCE HALLS - ALBION COLLEGE IS A COLLEGE COMMUNITY INSTITUTION THAT EMPHASIZES COMMUNITY THROUGH EDUCATION IN AND OUT OF THE CLASSROOM. ALBION COLLEGE STRIVES TO PROVIDE OUR STUDENTS WITH QUALITY HOUSING THAT ENHANCES A STUDENT'S LEARNING EXPERIENCE. | CT9: 12274804 | CU9: 423868 | CV9: VARIOUS OTHER PROGRAM SERVICES RELATING TO THE ORGANIZATION'S MISSION. | CW9: 12274804 | CX9: 423868 | CY9: 66731934 | CZ9: 1 | DA9: RetDoc1039100001 | DB9: 1 | DC9: RetDoc1234500001 | DD9: 0 | DE9: 0 | DF9: 0 | DG9: 0 | DH9: RetDoc1040000001 | DI9: 0 | DJ9: RetDoc1040000001 | DK9: 1 | DL9: RetDoc1040000001 | DM9: 0 | DN9: RetDoc1040000001 | DO9: 1 | DP9: RetDoc1040000001 | DQ9: 1 | DR9: RetDoc1040000001 | DS9: 1 | DT9: RetDoc1040000001 | DU9: 0 | DV9: RetDoc1040000001 | DW9: 0 | DX9: RetDoc1040000001 | DY9: 1 | DZ9: RetDoc1040000001 | EA9: 1 | EB9: RetDoc1040000001 | EC9: 0 | ED9: RetDoc1040000001 | EE9: 1 | EF9: RetDoc1040000001 | EG9: 1 | EH9: RetDoc1040400001 | EI9: 0 | EJ9: 1 | EK9: RetDoc1040500001 | EL9: 1 | EM9: RetDoc1040500001 | EN9: 0 | EO9: RetDoc1040500001 | EP9: 1 | EQ9: RetDoc1041200001 | ER9: 1 | ES9: RetDoc1041200001 | ET9: 1 | EU9: RetDoc1041200001 | EV9: 0 | EW9: 1 | EX9: RetDoc1041900001 | EY9: 1 | EZ9: RetDoc1041900001 | FA9: 1 | FB9: RetDoc1042400001 | FC9: 1 | FD9: RetDoc1053100001 | FE9: 0 | FF9: 0 | FG9: 0 | FH9: 0 | FI9: 0 | FJ9: 0 | FK9: 0 | FL9: 0 | FM9: 0 | FN9: 0 | FO9: 1 | FP9: RetDoc1042900001 | FQ9: 1 | FR9: RetDoc1042900001 | FS9: 0 | FT9: 0 | FU9: 1 | FV9: RetDoc1043400001 | FW9: 1 | FX9: RetDoc1043400001 | FY9: 1 | FZ9: 1 | GA9: RetDoc1043400001 | GB9: 0 | GC9: RetDoc1043400001 | GD9: 0 | GE9: RetDoc1043400001 | GF9: 1 | GG9: 188 | GH9: 0 | GI9: 1 | GJ9: 1435 | GK9: 1 | GL9: 1 | GM9: 1 | GN9: 0 | GO9: 0 | GP9: 0 | GQ9: 0 | GR9: 1 | GS9: 1 | GT9: 0 | GU9: 0 | GV9: 0 | GW9: 0 | GX9: X | GY9: 26 | GZ9: 25 | HA9: 1 | HB9: 0 | HC9: 0 | HD9: 0 | HE9: 0 | HF9: 0 | HG9: 0 | HH9: 1 | HI9: 1 | HJ9: 0 | HK9: 0 | HL9: 1 | HM9: 1 | HN9: 1 | HO9: 1 | HP9: 1 | HQ9: 1 | HR9: 1 | HS9: 1 | HT9: 0 | HU9: X | HV9: MARK S HOLBROOK CONTROLLER | HW9: 5176290289 | HX9: 611 EAST PORTER STREET | HY9: ALBION | HZ9: MI | IA9: 49224 | IB9: STEPHEN I GREENHALGH | IC9: TRUSTEE | ID9: 1 | IE9: 0 | IF9: X | IH9: 0 | II9: 0 | IJ9: 0 | IL9: 1096085 | IM9: 0 | IN9: 143360 | IO9: 6 | IP9: 0 | IQ9: 1 | IR9: 0 | IZ9: 27 | JA9: 373044 | JB9: 459730 | JC9: 5583566 | JD9: 857050 | JE9: 6416340 | JJ9: 57387277 | JK9: 2137010 | JL9: 2137010 | JM9: 29974238 | JN9: 7001 | JO9: 26974656 | JP9: 65755 | JQ9: 2999582 | JR9: -58754 | JS9: 2940828 | JT9: 2940828 | JU9: 4060 | JV9: 373044 | JW9: 99373 | JX9: -95313 | JY9: -95313 | JZ9: 45370 | KA9: 4099 | KB9: 41271 | KC9: 41271 | KD9: MISCELLANEOUS INCOME | KE9: 900099 | KF9: 853308 | KG9: 853308 | KH9: 853308 | KI9: 69680721 | KJ9: 57387277 | KK9: 0 | KL9: 5877104 | KM9: X | KN9: 63000 | KO9: 63000 | KP9: 24273172 | KQ9: 24273172 | KR9: 133288 | KS9: 133288 | KT9: 1200757 | KU9: 179678 | KV9: 861702 | KW9: 159377 | KX9: 19356475 | KY9: 15708070 | KZ9: 2066695 | LA9: 1581710 | LB9: 1608926 | LC9: 1443204 | LD9: 4479 | LE9: 161243 | LF9: 3017294 | LG9: 2706505 | LH9: 8400 | LI9: 302389 | LJ9: 1390187 | LK9: 1246995 | LL9: 3869 | LM9: 139323 | LN9: 261083 | LO9: 16122 | LP9: 244219 | LQ9: 742 | LR9: 100628 | LS9: 100628 | LT9: 40414 | LU9: 40414 | LV9: 655305 | LW9: 350487 | LX9: 287203 | LY9: 17615 | LZ9: 9087967 | MA9: 7168709 | MB9: 1434260 | MC9: 484998 | MD9: 187077 | ME9: 1142 | MF9: 9695 | MG9: 176240 | MH9: 2983198 | MI9: 2613997 | MJ9: 106804 | MK9: 262397 | ML9: 4152425 | MM9: 3557252 | MN9: 464075 | MO9: 131098 | MP9: 1464850 | MQ9: 1136105 | MR9: 228878 | MS9: 99867 | MT9: 363762 | MU9: 197938 | MV9: 159050 | MW9: 6774 | MX9: 1352035 | MY9: 1174749 | MZ9: 119197 | NA9: 58089 | NB9: 4903739 | NC9: 4211964 | ND9: 543977 | NE9: 147798 | NF9: 564940 | NG9: 282470 | NH9: 254223 | NI9: 28247 | NO9: 223965 | NP9: 58974 | NQ9: 92860 | NR9: 72131 | NS9: 77615874 | NT9: 66731934 | NU9: 7007545 | NV9: 3876395 | NW9: 4584944 | NX9: 6973558 | NY9: 3129722 | NZ9: 2911080 | OA9: 2414171 | OB9: 4555248 | OC9: 3946309 | OD9: 1874764 | OE9: 113206 | OF9: 118172 | OG9: 974405 | OH9: 1043184 | OI9: 183073212 | OJ9: 93678885 | OK9: 91865959 | OL9: 89394327 | OM9: 49251964 | ON9: 56155174 | OO9: 138871779 | OP9: 150877804 | OQ9: 3166061 | OR9: 5109488 | OS9: 6112798 | OT9: 303428008 | OU9: 320016109 | OV9: 15310666 | OW9: 15593294 | OX9: 162416 | OY9: 515917 | OZ9: 59375000 | PA9: 57920000 | PB9: 412447 | PC9: 1977176 | PD9: 2794504 | PE9: 2751916 | PF9: 2523228 | PG9: 79989621 | PH9: 79346943 | PI9: X | PJ9: 74763459 | PK9: 77970365 | PL9: 75341769 | PM9: 88004745 | PN9: 73333159 | PO9: 74694056 | PP9: 223438387 | PQ9: 240669166 | PR9: 303428008 | PS9: 320016109 | PT9: X | PU9: -7935153 | PV9: 24311863 | PW9: 854068 | PX9: X | PY9: X | PZ9: 0 | QA9: 1 | QB9: X | QC9: 1 | QD9: 1 | QE9: 1 | QF9: RetDoc1039100001 | QG9: X | QH9: RetDoc1234500001 | QI9: RESTRICTED | QJ9: RESTRICTED | QK9: RESTRICTED | QL9: RESTRICTED | QM9: RESTRICTED | QN9: RESTRICTED | QO9: RESTRICTED | QP9: RESTRICTED | YM9: RetDoc1041900001 | YN9: 1 | YO9: COLCHESTER PROPERTIES | YP9: 611 EAST PORTER STREET | YQ9: ALBION | YR9: MI | YS9: 49224 | YT9: 382025320 | YU9: 501(C)(3) | YV9: 63000 | YW9: 0 | YX9: CASH | YY9: N/A | YZ9: PROGRAM SUPPORT | ZA9: 1 | ZB9: 0 | ZC9: SCHOLARSHIPS | ZD9: 1267 | ZE9: 24273172 | ZF9: 0 | ZG9: N/A | ZH9: N/A | ZI9: PART I, LINE 2: | ZJ9: GRANTS ARE PROCURED BY FACULTY WITH THE ASSISTANCE OF THE COLLEGE'S GRANT MANAGER. MONITORING IS DONE BY GRANTEE, GRANT MANAGER AND SENIOR ACCOUNTANT FOR COMPLIANCE. ACTIVITY IS AUDITED AND REPORTED ANNUALLY IN THE COLLEGE'S FINANCIAL STATEMENTS. | AAR9: RetDoc1053100001 | AAS9: A | AAT9: MICHIGAN HIGHER EDUCATION FACILITIES AUTHORITY | AAU9: 2006-11-01 | AAV9: 63385000 | AAW9: SCIENCE CENTER RENOVATION, REFINANCE OF 2004 BONDS AND OTHER | AAX9: 0 | AAY9: 0 | AAZ9: 0 | ABA9: A | ABB9: 5465000 | ABC9: 63385000 | ABD9: 22437251 | ABE9: 40546103 | ABF9: 401646 | ABG9: 22035605 | ABH9: 2008 | ABI9: 1 | ABJ9: 0 | ABK9: 1 | ABL9: 1 | ABM9: A | ABN9: 0 | ABO9: 0 | ABP9: 0 | ABQ9: 0 | ABR9: 0 | ABS9: 0 | ABT9: 0 | ABU9: A | ABV9: 0 | ABW9: 0 | ABX9: 0 | ABY9: 0 | ABZ9: 1 | ACA9: 1 | ACB9: JPMORGAN CHASE | ACC9: BANK NA | ACD9: 20 | ACE9: 0 | ACF9: 0 | ACG9: 0 | ACH9: 0 | ACI9: 0 | ACJ9: A | ACK9: 0
A10: 2013v4.0 | B10: 0 | C10: 2015-05-15T13:27:25-05:00 | D10: 2014-06-30 | E10: 381357951 | F10: PLANTE & MORAN PLLC | G10: 750 TRADE CENTRE WAY STE 300 | H10: PORTAGE | I10: MI | J10: 49002 | K10: 990 | L10: 2013-07-01 | M10: 381359081 | N10: ALBION COLLEGE | O10: ALBI | P10: 5176290289 | Q10: 611 EAST PORTER STREET | R10: ALBION | S10: MI | T10: 49224 | U10: JERRY WHITE | V10: VP FOR FINANCE AND ADMINISTRATION | W10: 5176290289 | X10: 2015-05-07 | Y10: 1 | Z10: VICKI L VANDENBERG CPA | AA10: P00100422 | AB10: 2695674500 | AC10: 2013 | AD10: 2016-03-07 17:11:31Z | AE10: 13 | AF10: RetDoc1038000001 | AG10: RetDoc1044400001 | AH10: JERRY WHITE | AI10: 611 EAST PORTER STREET | AJ10: ALBION | AK10: MI | AL10: 49224 | AM10: 96824604 | AN10: 0 | AO10: X | AP10: WWW.ALBION.EDU | AQ10: X | AR10: 1835 | AS10: MI | AT10: ALBION COLLEGE IS AN UNDERGRADUATE, LIBERAL ARTS INSTITUTION COMMITTED TO ACADEMIC EXCELLENCE. WE ARE LEARNING-CENTERED AND RECOGNIZE THAT VALUABLE LEARNING TAKES PLACE IN AND OUTSIDE OF THE CLASSROOM, ON AND OFF THE CAMPUS. | AU10: 26 | AV10: 25 | AW10: 1435 | AX10: 15 | AY10: 0 | AZ10: 19888 | BA10: 5969161 | BB10: 6416340 | BC10: 56998355 | BD10: 57387277 | BE10: 3815854 | BF10: 5077838 | BG10: 481652 | BH10: 799266 | BI10: 67265022 | BJ10: 69680721 | BK10: 24127822 | BL10: 24469460 | BM10: 0 | BN10: 0 | BO10: 26876677 | BP10: 26573639 | BQ10: 40413 | BR10: 40414 | BS10: 3876395 | BT10: 25101910 | BU10: 26532361 | BV10: 76146822 | BW10: 77615874 | BX10: -8881800 | BY10: -7935153 | BZ10: 303428008 | CA10: 320016109 | CB10: 79989621 | CC10: 79346943 | CD10: 223438387 | CE10: 240669166 | CF10: X | CG10: ALBION COLLEGE IS AN UNDERGRADUATE, LIBERAL ARTS INSTITUTION COMMITTED TO ACADEMIC EXCELLENCE. WE ARE LEARNING-CENTERED AND RECOGNIZE THAT VALUABLE LEARNING TAKES PLACE IN AND OUTSIDE OF THE CLASSROOM, ON AND OFF THE CAMPUS. | CH10: 0 | CI10: 0 | CJ10: 47197761 | CK10: 24469460 | CL10: 46521102 | CM10: INSTRUCTIONAL - ALBION COLLEGE IS A PRIVATE, SELECTIVE, COEDUCATIONAL, RESIDENTIAL INSTITUTION OF HIGHER EDUCATION AFFILIATED WITH THE UNITED METHODIST CHURCH, BUT NON-SECTARIAN IN PRACTICE. THE COLLEGE PRINCIPALLY OFFERS ACADEMIC COURSES AND PROGRAMS LEADING TO A BACHELORS DEGREE IN LIBERAL ARTS. APPROXIMATELY 1,300 STUDENTS ARE ENROLLED IN THE COLLEGE. | CN10: 3778515 | CO10: 3961365 | CP10: AUXILIARY - DINING SERVICES - ALBION COLLEGE IS A RESIDENTIAL INSTITUTION AND THE PRIMARY FUNCTION OF THE DINING AND HOSPITALITY SERVICES, MANAGED BY BON APPETIT MANAGEMENT COMPANY, IS TO PROVIDE FOOD FOR OUR STUDENTS, FACULTY, STAFF, AND GUESTS. WE STRIVE TO PROVIDE A WIDE SELECTION OF HIGH QUALITY PRODUCTS AND SERVICES THROUGH A VARIETY OF EXPERIENCES. THESE EXPERIENCES REFLECT OUR COMMITMENT TO BEING RESPONSIVE TO THE CHANGING NEEDS AND DESIRES OF OUR DIVERSE AUDIENCE. OPERATIONS INCLUDE AN ALL-YOU-CAN-EAT DINING HALL, QUICK-SERVE RESTAURANT, A COFFEE SHOP, LODGING, CATERING SERVICES, FACULTY/STAFF LUNCH BUFFET AND CONFERENCE AND EVENT SERVICES. | CQ10: 3480854 | CR10: 6480942 | CS10: AUXILIARY - RESIDENCE HALLS - ALBION COLLEGE IS A COLLEGE COMMUNITY INSTITUTION THAT EMPHASIZES COMMUNITY THROUGH EDUCATION IN AND OUT OF THE CLASSROOM. ALBION COLLEGE STRIVES TO PROVIDE OUR STUDENTS WITH QUALITY HOUSING THAT ENHANCES A STUDENT'S LEARNING EXPERIENCE. | CT10: 12274804 | CU10: 423868 | CV10: VARIOUS OTHER PROGRAM SERVICES RELATING TO THE ORGANIZATION'S MISSION. | CW10: 12274804 | CX10: 423868 | CY10: 66731934 | CZ10: 1 | DA10: RetDoc1039100001 | DB10: 1 | DC10: RetDoc1234500001 | DD10: 0 | DE10: 0 | DF10: 0 | DG10: 0 | DH10: RetDoc1040000001 | DI10: 0 | DJ10: RetDoc1040000001 | DK10: 1 | DL10: RetDoc1040000001 | DM10: 0 | DN10: RetDoc1040000001 | DO10: 1 | DP10: RetDoc1040000001 | DQ10: 1 | DR10: RetDoc1040000001 | DS10: 1 | DT10: RetDoc1040000001 | DU10: 0 | DV10: RetDoc1040000001 | DW10: 0 | DX10: RetDoc1040000001 | DY10: 1 | DZ10: RetDoc1040000001 | EA10: 1 | EB10: RetDoc1040000001 | EC10: 0 | ED10: RetDoc1040000001 | EE10: 1 | EF10: RetDoc1040000001 | EG10: 1 | EH10: RetDoc1040400001 | EI10: 0 | EJ10: 1 | EK10: RetDoc1040500001 | EL10: 1 | EM10: RetDoc1040500001 | EN10: 0 | EO10: RetDoc1040500001 | EP10: 1 | EQ10: RetDoc1041200001 | ER10: 1 | ES10: RetDoc1041200001 | ET10: 1 | EU10: RetDoc1041200001 | EV10: 0 | EW10: 1 | EX10: RetDoc1041900001 | EY10: 1 | EZ10: RetDoc1041900001 | FA10: 1 | FB10: RetDoc1042400001 | FC10: 1 | FD10: RetDoc1053100001 | FE10: 0 | FF10: 0 | FG10: 0 | FH10: 0 | FI10: 0 | FJ10: 0 | FK10: 0 | FL10: 0 | FM10: 0 | FN10: 0 | FO10: 1 | FP10: RetDoc1042900001 | FQ10: 1 | FR10: RetDoc1042900001 | FS10: 0 | FT10: 0 | FU10: 1 | FV10: RetDoc1043400001 | FW10: 1 | FX10: RetDoc1043400001 | FY10: 1 | FZ10: 1 | GA10: RetDoc1043400001 | GB10: 0 | GC10: RetDoc1043400001 | GD10: 0 | GE10: RetDoc1043400001 | GF10: 1 | GG10: 188 | GH10: 0 | GI10: 1 | GJ10: 1435 | GK10: 1 | GL10: 1 | GM10: 1 | GN10: 0 | GO10: 0 | GP10: 0 | GQ10: 0 | GR10: 1 | GS10: 1 | GT10: 0 | GU10: 0 | GV10: 0 | GW10: 0 | GX10: X | GY10: 26 | GZ10: 25 | HA10: 1 | HB10: 0 | HC10: 0 | HD10: 0 | HE10: 0 | HF10: 0 | HG10: 0 | HH10: 1 | HI10: 1 | HJ10: 0 | HK10: 0 | HL10: 1 | HM10: 1 | HN10: 1 | HO10: 1 | HP10: 1 | HQ10: 1 | HR10: 1 | HS10: 1 | HT10: 0 | HU10: X | HV10: MARK S HOLBROOK CONTROLLER | HW10: 5176290289 | HX10: 611 EAST PORTER STREET | HY10: ALBION | HZ10: MI | IA10: 49224 | IB10: MICHAEL J HARRINGTON | IC10: TRUSTEE | ID10: 1 | IE10: 0 | IF10: X | IH10: 0 | II10: 0 | IJ10: 0 | IL10: 1096085 | IM10: 0 | IN10: 143360 | IO10: 6 | IP10: 0 | IQ10: 1 | IR10: 0 | IZ10: 27 | JA10: 373044 | JB10: 459730 | JC10: 5583566 | JD10: 857050 | JE10: 6416340 | JJ10: 57387277 | JK10: 2137010 | JL10: 2137010 | JM10: 29974238 | JN10: 7001 | JO10: 26974656 | JP10: 65755 | JQ10: 2999582 | JR10: -58754 | JS10: 2940828 | JT10: 2940828 | JU10: 4060 | JV10: 373044 | JW10: 99373 | JX10: -95313 | JY10: -95313 | JZ10: 45370 | KA10: 4099 | KB10: 41271 | KC10: 41271 | KD10: MISCELLANEOUS INCOME | KE10: 900099 | KF10: 853308 | KG10: 853308 | KH10: 853308 | KI10: 69680721 | KJ10: 57387277 | KK10: 0 | KL10: 5877104 | KM10: X | KN10: 63000 | KO10: 63000 | KP10: 24273172 | KQ10: 24273172 | KR10: 133288 | KS10: 133288 | KT10: 1200757 | KU10: 179678 | KV10: 861702 | KW10: 159377 | KX10: 19356475 | KY10: 15708070 | KZ10: 2066695 | LA10: 1581710 | LB10: 1608926 | LC10: 1443204 | LD10: 4479 | LE10: 161243 | LF10: 3017294 | LG10: 2706505 | LH10: 8400 | LI10: 302389 | LJ10: 1390187 | LK10: 1246995 | LL10: 3869 | LM10: 139323 | LN10: 261083 | LO10: 16122 | LP10: 244219 | LQ10: 742 | LR10: 100628 | LS10: 100628 | LT10: 40414 | LU10: 40414 | LV10: 655305 | LW10: 350487 | LX10: 287203 | LY10: 17615 | LZ10: 9087967 | MA10: 7168709 | MB10: 1434260 | MC10: 484998 | MD10: 187077 | ME10: 1142 | MF10: 9695 | MG10: 176240 | MH10: 2983198 | MI10: 2613997 | MJ10: 106804 | MK10: 262397 | ML10: 4152425 | MM10: 3557252 | MN10: 464075 | MO10: 131098 | MP10: 1464850 | MQ10: 1136105 | MR10: 228878 | MS10: 99867 | MT10: 363762 | MU10: 197938 | MV10: 159050 | MW10: 6774 | MX10: 1352035 | MY10: 1174749 | MZ10: 119197 | NA10: 58089 | NB10: 4903739 | NC10: 4211964 | ND10: 543977 | NE10: 147798 | NF10: 564940 | NG10: 282470 | NH10: 254223 | NI10: 28247 | NO10: 223965 | NP10: 58974 | NQ10: 92860 | NR10: 72131 | NS10: 77615874 | NT10: 66731934 | NU10: 7007545 | NV10: 3876395 | NW10: 4584944 | NX10: 6973558 | NY10: 3129722 | NZ10: 2911080 | OA10: 2414171 | OB10: 4555248 | OC10: 3946309 | OD10: 1874764 | OE10: 113206 | OF10: 118172 | OG10: 974405 | OH10: 1043184 | OI10: 183073212 | OJ10: 93678885 | OK10: 91865959 | OL10: 89394327 | OM10: 49251964 | ON10: 56155174 | OO10: 138871779 | OP10: 150877804 | OQ10: 3166061 | OR10: 5109488 | OS10: 6112798 | OT10: 303428008 | OU10: 320016109 | OV10: 15310666 | OW10: 15593294 | OX10: 162416 | OY10: 515917 | OZ10: 59375000 | PA10: 57920000 | PB10: 412447 | PC10: 1977176 | PD10: 2794504 | PE10: 2751916 | PF10: 2523228 | PG10: 79989621 | PH10: 79346943 | PI10: X | PJ10: 74763459 | PK10: 77970365 | PL10: 75341769 | PM10: 88004745 | PN10: 73333159 | PO10: 74694056 | PP10: 223438387 | PQ10: 240669166 | PR10: 303428008 | PS10: 320016109 | PT10: X | PU10: -7935153 | PV10: 24311863 | PW10: 854068 | PX10: X | PY10: X | PZ10: 0 | QA10: 1 | QB10: X | QC10: 1 | QD10: 1 | QE10: 1 | QF10: RetDoc1039100001 | QG10: X | QH10: RetDoc1234500001 | QI10: RESTRICTED | QJ10: RESTRICTED | QK10: RESTRICTED | QL10: RESTRICTED | QM10: RESTRICTED | QN10: RESTRICTED | QO10: RESTRICTED | QP10: RESTRICTED | YM10: RetDoc1041900001 | YN10: 1 | YO10: COLCHESTER PROPERTIES | YP10: 611 EAST PORTER STREET | YQ10: ALBION | YR10: MI | YS10: 49224 | YT10: 382025320 | YU10: 501(C)(3) | YV10: 63000 | YW10: 0 | YX10: CASH | YY10: N/A | YZ10: PROGRAM SUPPORT | ZA10: 1 | ZB10: 0 | ZC10: SCHOLARSHIPS | ZD10: 1267 | ZE10: 24273172 | ZF10: 0 | ZG10: N/A | ZH10: N/A | ZI10: PART I, LINE 2: | ZJ10: GRANTS ARE PROCURED BY FACULTY WITH THE ASSISTANCE OF THE COLLEGE'S GRANT MANAGER. MONITORING IS DONE BY GRANTEE, GRANT MANAGER AND SENIOR ACCOUNTANT FOR COMPLIANCE. ACTIVITY IS AUDITED AND REPORTED ANNUALLY IN THE COLLEGE'S FINANCIAL STATEMENTS. | AAR10: RetDoc1053100001 | AAS10: A | AAT10: MICHIGAN HIGHER EDUCATION FACILITIES AUTHORITY | AAU10: 2006-11-01 | AAV10: 63385000 | AAW10: SCIENCE CENTER RENOVATION, REFINANCE OF 2004 BONDS AND OTHER | AAX10: 0 | AAY10: 0 | AAZ10: 0 | ABA10: A | ABB10: 5465000 | ABC10: 63385000 | ABD10: 22437251 | ABE10: 40546103 | ABF10: 401646 | ABG10: 22035605 | ABH10: 2008 | ABI10: 1 | ABJ10: 0 | ABK10: 1 | ABL10: 1 | ABM10: A | ABN10: 0 | ABO10: 0 | ABP10: 0 | ABQ10: 0 | ABR10: 0 | ABS10: 0 | ABT10: 0 | ABU10: A | ABV10: 0 | ABW10: 0 | ABX10: 0 | ABY10: 0 | ABZ10: 1 | ACA10: 1 | ACB10: JPMORGAN CHASE | ACC10: BANK NA | ACD10: 20 | ACE10: 0 | ACF10: 0 | ACG10: 0 | ACH10: 0 | ACI10: 0 | ACJ10: A | ACK10: 0
A11: 2013v4.0 | B11: 0 | C11: 2015-05-15T13:27:25-05:00 | D11: 2014-06-30 | E11: 381357951 | F11: PLANTE & MORAN PLLC | G11: 750 TRADE CENTRE WAY STE 300 | H11: PORTAGE | I11: MI | J11: 49002 | K11: 990 | L11: 2013-07-01 | M11: 381359081 | N11: ALBION COLLEGE | O11: ALBI | P11: 5176290289 | Q11: 611 EAST PORTER STREET | R11: ALBION | S11: MI | T11: 49224 | U11: JERRY WHITE | V11: VP FOR FINANCE AND ADMINISTRATION | W11: 5176290289 | X11: 2015-05-07 | Y11: 1 | Z11: VICKI L VANDENBERG CPA | AA11: P00100422 | AB11: 2695674500 | AC11: 2013 | AD11: 2016-03-07 17:11:31Z | AE11: 13 | AF11: RetDoc1038000001 | AG11: RetDoc1044400001 | AH11: JERRY WHITE | AI11: 611 EAST PORTER STREET | AJ11: ALBION | AK11: MI | AL11: 49224 | AM11: 96824604 | AN11: 0 | AO11: X | AP11: WWW.ALBION.EDU | AQ11: X | AR11: 1835 | AS11: MI | AT11: ALBION COLLEGE IS AN UNDERGRADUATE, LIBERAL ARTS INSTITUTION COMMITTED TO ACADEMIC EXCELLENCE. WE ARE LEARNING-CENTERED AND RECOGNIZE THAT VALUABLE LEARNING TAKES PLACE IN AND OUTSIDE OF THE CLASSROOM, ON AND OFF THE CAMPUS. | AU11: 26 | AV11: 25 | AW11: 1435 | AX11: 15 | AY11: 0 | AZ11: 19888 | BA11: 5969161 | BB11: 6416340 | BC11: 56998355 | BD11: 57387277 | BE11: 3815854 | BF11: 5077838 | BG11: 481652 | BH11: 799266 | BI11: 67265022 | BJ11: 69680721 | BK11: 24127822 | BL11: 24469460 | BM11: 0 | BN11: 0 | BO11: 26876677 | BP11: 26573639 | BQ11: 40413 | BR11: 40414 | BS11: 3876395 | BT11: 25101910 | BU11: 26532361 | BV11: 76146822 | BW11: 77615874 | BX11: -8881800 | BY11: -7935153 | BZ11: 303428008 | CA11: 320016109 | CB11: 79989621 | CC11: 79346943 | CD11: 223438387 | CE11: 240669166 | CF11: X | CG11: ALBION COLLEGE IS AN UNDERGRADUATE, LIBERAL ARTS INSTITUTION COMMITTED TO ACADEMIC EXCELLENCE. WE ARE LEARNING-CENTERED AND RECOGNIZE THAT VALUABLE LEARNING TAKES PLACE IN AND OUTSIDE OF THE CLASSROOM, ON AND OFF THE CAMPUS. | CH11: 0 | CI11: 0 | CJ11: 47197761 | CK11: 24469460 | CL11: 46521102 | CM11: INSTRUCTIONAL - ALBION COLLEGE IS A PRIVATE, SELECTIVE, COEDUCATIONAL, RESIDENTIAL INSTITUTION OF HIGHER EDUCATION AFFILIATED WITH THE UNITED METHODIST CHURCH, BUT NON-SECTARIAN IN PRACTICE. THE COLLEGE PRINCIPALLY OFFERS ACADEMIC COURSES AND PROGRAMS LEADING TO A BACHELORS DEGREE IN LIBERAL ARTS. APPROXIMATELY 1,300 STUDENTS ARE ENROLLED IN THE COLLEGE. | CN11: 3778515 | CO11: 3961365 | CP11: AUXILIARY - DINING SERVICES - ALBION COLLEGE IS A RESIDENTIAL INSTITUTION AND THE PRIMARY FUNCTION OF THE DINING AND HOSPITALITY SERVICES, MANAGED BY BON APPETIT MANAGEMENT COMPANY, IS TO PROVIDE FOOD FOR OUR STUDENTS, FACULTY, STAFF, AND GUESTS. WE STRIVE TO PROVIDE A WIDE SELECTION OF HIGH QUALITY PRODUCTS AND SERVICES THROUGH A VARIETY OF EXPERIENCES. THESE EXPERIENCES REFLECT OUR COMMITMENT TO BEING RESPONSIVE TO THE CHANGING NEEDS AND DESIRES OF OUR DIVERSE AUDIENCE. OPERATIONS INCLUDE AN ALL-YOU-CAN-EAT DINING HALL, QUICK-SERVE RESTAURANT, A COFFEE SHOP, LODGING, CATERING SERVICES, FACULTY/STAFF LUNCH BUFFET AND CONFERENCE AND EVENT SERVICES. | CQ11: 3480854 | CR11: 6480942 | CS11: AUXILIARY - RESIDENCE HALLS - ALBION COLLEGE IS A COLLEGE COMMUNITY INSTITUTION THAT EMPHASIZES COMMUNITY THROUGH EDUCATION IN AND OUT OF THE CLASSROOM. ALBION COLLEGE STRIVES TO PROVIDE OUR STUDENTS WITH QUALITY HOUSING THAT ENHANCES A STUDENT'S LEARNING EXPERIENCE. | CT11: 12274804 | CU11: 423868 | CV11: VARIOUS OTHER PROGRAM SERVICES RELATING TO THE ORGANIZATION'S MISSION. | CW11: 12274804 | CX11: 423868 | CY11: 66731934 | CZ11: 1 | DA11: RetDoc1039100001 | DB11: 1 | DC11: RetDoc1234500001 | DD11: 0 | DE11: 0 | DF11: 0 | DG11: 0 | DH11: RetDoc1040000001 | DI11: 0 | DJ11: RetDoc1040000001 | DK11: 1 | DL11: RetDoc1040000001 | DM11: 0 | DN11: RetDoc1040000001 | DO11: 1 | DP11: RetDoc1040000001 | DQ11: 1 | DR11: RetDoc1040000001 | DS11: 1 | DT11: RetDoc1040000001 | DU11: 0 | DV11: RetDoc1040000001 | DW11: 0 | DX11: RetDoc1040000001 | DY11: 1 | DZ11: RetDoc1040000001 | EA11: 1 | EB11: RetDoc1040000001 | EC11: 0 | ED11: RetDoc1040000001 | EE11: 1 | EF11: RetDoc1040000001 | EG11: 1 | EH11: RetDoc1040400001 | EI11: 0 | EJ11: 1 | EK11: RetDoc1040500001 | EL11: 1 | EM11: RetDoc1040500001 | EN11: 0 | EO11: RetDoc1040500001 | EP11: 1 | EQ11: RetDoc1041200001 | ER11: 1 | ES11: RetDoc1041200001 | ET11: 1 | EU11: RetDoc1041200001 | EV11: 0 | EW11: 1 | EX11: RetDoc1041900001 | EY11: 1 | EZ11: RetDoc1041900001 | FA11: 1 | FB11: RetDoc1042400001 | FC11: 1 | FD11: RetDoc1053100001 | FE11: 0 | FF11: 0 | FG11: 0 | FH11: 0 | FI11: 0 | FJ11: 0 | FK11: 0 | FL11: 0 | FM11: 0 | FN11: 0 | FO11: 1 | FP11: RetDoc1042900001 | FQ11: 1 | FR11: RetDoc1042900001 | FS11: 0 | FT11: 0 | FU11: 1 | FV11: RetDoc1043400001 | FW11: 1 | FX11: RetDoc1043400001 | FY11: 1 | FZ11: 1 | GA11: RetDoc1043400001 | GB11: 0 | GC11: RetDoc1043400001 | GD11: 0 | GE11: RetDoc1043400001 | GF11: 1 | GG11: 188 | GH11: 0 | GI11: 1 | GJ11: 1435 | GK11: 1 | GL11: 1 | GM11: 1 | GN11: 0 | GO11: 0 | GP11: 0 | GQ11: 0 | GR11: 1 | GS11: 1 | GT11: 0 | GU11: 0 | GV11: 0 | GW11: 0 | GX11: X | GY11: 26 | GZ11: 25 | HA11: 1 | HB11: 0 | HC11: 0 | HD11: 0 | HE11: 0 | HF11: 0 | HG11: 0 | HH11: 1 | HI11: 1 | HJ11: 0 | HK11: 0 | HL11: 1 | HM11: 1 | HN11: 1 | HO11: 1 | HP11: 1 | HQ11: 1 | HR11: 1 | HS11: 1 | HT11: 0 | HU11: X | HV11: MARK S HOLBROOK CONTROLLER | HW11: 5176290289 | HX11: 611 EAST PORTER STREET | HY11: ALBION | HZ11: MI | IA11: 49224 | IB11: ROBERT B HETLER | IC11: TRUSTEE | ID11: 1 | IE11: 0 | IF11: X | IH11: 0 | II11: 0 | IJ11: 0 | IL11: 1096085 | IM11: 0 | IN11: 143360 | IO11: 6 | IP11: 0 | IQ11: 1 | IR11: 0 | IZ11: 27 | JA11: 373044 | JB11: 459730 | JC11: 5583566 | JD11: 857050 | JE11: 6416340 | JJ11: 57387277 | JK11: 2137010 | JL11: 2137010 | JM11: 29974238 | JN11: 7001 | JO11: 26974656 | JP11: 65755 | JQ11: 2999582 | JR11: -58754 | JS11: 2940828 | JT11: 2940828 | JU11: 4060 | JV11: 373044 | JW11: 99373 | JX11: -95313 | JY11: -95313 | JZ11: 45370 | KA11: 4099 | KB11: 41271 | KC11: 41271 | KD11: MISCELLANEOUS INCOME | KE11: 900099 | KF11: 853308 | KG11: 853308 | KH11: 853308 | KI11: 69680721 | KJ11: 57387277 | KK11: 0 | KL11: 5877104 | KM11: X | KN11: 63000 | KO11: 63000 | KP11: 24273172 | KQ11: 24273172 | KR11: 133288 | KS11: 133288 | KT11: 1200757 | KU11: 179678 | KV11: 861702 | KW11: 159377 | KX11: 19356475 | KY11: 15708070 | KZ11: 2066695 | LA11: 1581710 | LB11: 1608926 | LC11: 1443204 | LD11: 4479 | LE11: 161243 | LF11: 3017294 | LG11: 2706505 | LH11: 8400 | LI11: 302389 | LJ11: 1390187 | LK11: 1246995 | LL11: 3869 | LM11: 139323 | LN11: 261083 | LO11: 16122 | LP11: 244219 | LQ11: 742 | LR11: 100628 | LS11: 100628 | LT11: 40414 | LU11: 40414 | LV11: 655305 | LW11: 350487 | LX11: 287203 | LY11: 17615 | LZ11: 9087967 | MA11: 7168709 | MB11: 1434260 | MC11: 484998 | MD11: 187077 | ME11: 1142 | MF11: 9695 | MG11: 176240 | MH11: 2983198 | MI11: 2613997 | MJ11: 106804 | MK11: 262397 | ML11: 4152425 | MM11: 3557252 | MN11: 464075 | MO11: 131098 | MP11: 1464850 | MQ11: 1136105 | MR11: 228878 | MS11: 99867 | MT11: 363762 | MU11: 197938 | MV11: 159050 | MW11: 6774 | MX11: 1352035 | MY11: 1174749 | MZ11: 119197 | NA11: 58089 | NB11: 4903739 | NC11: 4211964 | ND11: 543977 | NE11: 147798 | NF11: 564940 | NG11: 282470 | NH11: 254223 | NI11: 28247 | NO11: 223965 | NP11: 58974 | NQ11: 92860 | NR11: 72131 | NS11: 77615874 | NT11: 66731934 | NU11: 7007545 | NV11: 3876395 | NW11: 4584944 | NX11: 6973558 | NY11: 3129722 | NZ11: 2911080 | OA11: 2414171 | OB11: 4555248 | OC11: 3946309 | OD11: 1874764 | OE11: 113206 | OF11: 118172 | OG11: 974405 | OH11: 1043184 | OI11: 183073212 | OJ11: 93678885 | OK11: 91865959 | OL11: 89394327 | OM11: 49251964 | ON11: 56155174 | OO11: 138871779 | OP11: 150877804 | OQ11: 3166061 | OR11: 5109488 | OS11: 6112798 | OT11: 303428008 | OU11: 320016109 | OV11: 15310666 | OW11: 15593294 | OX11: 162416 | OY11: 515917 | OZ11: 59375000 | PA11: 57920000 | PB11: 412447 | PC11: 1977176 | PD11: 2794504 | PE11: 2751916 | PF11: 2523228 | PG11: 79989621 | PH11: 79346943 | PI11: X | PJ11: 74763459 | PK11: 77970365 | PL11: 75341769 | PM11: 88004745 | PN11: 73333159 | PO11: 74694056 | PP11: 223438387 | PQ11: 240669166 | PR11: 303428008 | PS11: 320016109 | PT11: X | PU11: -7935153 | PV11: 24311863 | PW11: 854068 | PX11: X | PY11: X | PZ11: 0 | QA11: 1 | QB11: X | QC11: 1 | QD11: 1 | QE11: 1 | QF11: RetDoc1039100001 | QG11: X | QH11: RetDoc1234500001 | QI11: RESTRICTED | QJ11: RESTRICTED | QK11: RESTRICTED | QL11: RESTRICTED | QM11: RESTRICTED | QN11: RESTRICTED | QO11: RESTRICTED | QP11: RESTRICTED | YM11: RetDoc1041900001 | YN11: 1 | YO11: COLCHESTER PROPERTIES | YP11: 611 EAST PORTER STREET | YQ11: ALBION | YR11: MI | YS11: 49224 | YT11: 382025320 | YU11: 501(C)(3) | YV11: 63000 | YW11: 0 | YX11: CASH | YY11: N/A | YZ11: PROGRAM SUPPORT | ZA11: 1 | ZB11: 0 | ZC11: SCHOLARSHIPS | ZD11: 1267 | ZE11: 24273172 | ZF11: 0 | ZG11: N/A | ZH11: N/A | ZI11: PART I, LINE 2: | ZJ11: GRANTS ARE PROCURED BY FACULTY WITH THE ASSISTANCE OF THE COLLEGE'S GRANT MANAGER. MONITORING IS DONE BY GRANTEE, GRANT MANAGER AND SENIOR ACCOUNTANT FOR COMPLIANCE. ACTIVITY IS AUDITED AND REPORTED ANNUALLY IN THE COLLEGE'S FINANCIAL STATEMENTS. | AAR11: RetDoc1053100001 | AAS11: A | AAT11: MICHIGAN HIGHER EDUCATION FACILITIES AUTHORITY | AAU11: 2006-11-01 | AAV11: 63385000 | AAW11: SCIENCE CENTER RENOVATION, REFINANCE OF 2004 BONDS AND OTHER | AAX11: 0 | AAY11: 0 | AAZ11: 0 | ABA11: A | ABB11: 5465000 | ABC11: 63385000 | ABD11: 22437251 | ABE11: 40546103 | ABF11: 401646 | ABG11: 22035605 | ABH11: 2008 | ABI11: 1 | ABJ11: 0 | ABK11: 1 | ABL11: 1 | ABM11: A | ABN11: 0 | ABO11: 0 | ABP11: 0 | ABQ11: 0 | ABR11: 0 | ABS11: 0 | ABT11: 0 | ABU11: A | ABV11: 0 | ABW11: 0 | ABX11: 0 | ABY11: 0 | ABZ11: 1 | ACA11: 1 | ACB11: JPMORGAN CHASE | ACC11: BANK NA | ACD11: 20 | ACE11: 0 | ACF11: 0 | ACG11: 0 | ACH11: 0 | ACI11: 0 | ACJ11: A | ACK11: 0
A12: 2013v4.0 | B12: 0 | C12: 2015-05-15T13:27:25-05:00 | D12: 2014-06-30 | E12: 381357951 | F12: PLANTE & MORAN PLLC | G12: 750 TRADE CENTRE WAY STE 300 | H12: PORTAGE | I12: MI | J12: 49002 | K12: 990 | L12: 2013-07-01 | M12: 381359081 | N12: ALBION COLLEGE | O12: ALBI | P12: 5176290289 | Q12: 611 EAST PORTER STREET | R12: ALBION | S12: MI | T12: 49224 | U12: JERRY WHITE | V12: VP FOR FINANCE AND ADMINISTRATION | W12: 5176290289 | X12: 2015-05-07 | Y12: 1 | Z12: VICKI L VANDENBERG CPA | AA12: P00100422 | AB12: 2695674500 | AC12: 2013 | AD12: 2016-03-07 17:11:31Z | AE12: 13 | AF12: RetDoc1038000001 | AG12: RetDoc1044400001 | AH12: JERRY WHITE | AI12: 611 EAST PORTER STREET | AJ12: ALBION | AK12: MI | AL12: 49224 | AM12: 96824604 | AN12: 0 | AO12: X | AP12: WWW.ALBION.EDU | AQ12: X | AR12: 1835 | AS12: MI | AT12: ALBION COLLEGE IS AN UNDERGRADUATE, LIBERAL ARTS INSTITUTION COMMITTED TO ACADEMIC EXCELLENCE. WE ARE LEARNING-CENTERED AND RECOGNIZE THAT VALUABLE LEARNING TAKES PLACE IN AND OUTSIDE OF THE CLASSROOM, ON AND OFF THE CAMPUS. | AU12: 26 | AV12: 25 | AW12: 1435 | AX12: 15 | AY12: 0 | AZ12: 19888 | BA12: 5969161 | BB12: 6416340 | BC12: 56998355 | BD12: 57387277 | BE12: 3815854 | BF12: 5077838 | BG12: 481652 | BH12: 799266 | BI12: 67265022 | BJ12: 69680721 | BK12: 24127822 | BL12: 24469460 | BM12: 0 | BN12: 0 | BO12: 26876677 | BP12: 26573639 | BQ12: 40413 | BR12: 40414 | BS12: 3876395 | BT12: 25101910 | BU12: 26532361 | BV12: 76146822 | BW12: 77615874 | BX12: -8881800 | BY12: -7935153 | BZ12: 303428008 | CA12: 320016109 | CB12: 79989621 | CC12: 79346943 | CD12: 223438387 | CE12: 240669166 | CF12: X | CG12: ALBION COLLEGE IS AN UNDERGRADUATE, LIBERAL ARTS INSTITUTION COMMITTED TO ACADEMIC EXCELLENCE. WE ARE LEARNING-CENTERED AND RECOGNIZE THAT VALUABLE LEARNING TAKES PLACE IN AND OUTSIDE OF THE CLASSROOM, ON AND OFF THE CAMPUS. | CH12: 0 | CI12: 0 | CJ12: 47197761 | CK12: 24469460 | CL12: 46521102 | CM12: INSTRUCTIONAL - ALBION COLLEGE IS A PRIVATE, SELECTIVE, COEDUCATIONAL, RESIDENTIAL INSTITUTION OF HIGHER EDUCATION AFFILIATED WITH THE UNITED METHODIST CHURCH, BUT NON-SECTARIAN IN PRACTICE. THE COLLEGE PRINCIPALLY OFFERS ACADEMIC COURSES AND PROGRAMS LEADING TO A BACHELORS DEGREE IN LIBERAL ARTS. APPROXIMATELY 1,300 STUDENTS ARE ENROLLED IN THE COLLEGE. | CN12: 3778515 | CO12: 3961365 | CP12: AUXILIARY - DINING SERVICES - ALBION COLLEGE IS A RESIDENTIAL INSTITUTION AND THE PRIMARY FUNCTION OF THE DINING AND HOSPITALITY SERVICES, MANAGED BY BON APPETIT MANAGEMENT COMPANY, IS TO PROVIDE FOOD FOR OUR STUDENTS, FACULTY, STAFF, AND GUESTS. WE STRIVE TO PROVIDE A WIDE SELECTION OF HIGH QUALITY PRODUCTS AND SERVICES THROUGH A VARIETY OF EXPERIENCES. THESE EXPERIENCES REFLECT OUR COMMITMENT TO BEING RESPONSIVE TO THE CHANGING NEEDS AND DESIRES OF OUR DIVERSE AUDIENCE. OPERATIONS INCLUDE AN ALL-YOU-CAN-EAT DINING HALL, QUICK-SERVE RESTAURANT, A COFFEE SHOP, LODGING, CATERING SERVICES, FACULTY/STAFF LUNCH BUFFET AND CONFERENCE AND EVENT SERVICES. | CQ12: 3480854 | CR12: 6480942 | CS12: AUXILIARY - RESIDENCE HALLS - ALBION COLLEGE IS A COLLEGE COMMUNITY INSTITUTION THAT EMPHASIZES COMMUNITY THROUGH EDUCATION IN AND OUT OF THE CLASSROOM. ALBION COLLEGE STRIVES TO PROVIDE OUR STUDENTS WITH QUALITY HOUSING THAT ENHANCES A STUDENT'S LEARNING EXPERIENCE. | CT12: 12274804 | CU12: 423868 | CV12: VARIOUS OTHER PROGRAM SERVICES RELATING TO THE ORGANIZATION'S MISSION. | CW12: 12274804 | CX12: 423868 | CY12: 66731934 | CZ12: 1 | DA12: RetDoc1039100001 | DB12: 1 | DC12: RetDoc1234500001 | DD12: 0 | DE12: 0 | DF12: 0 | DG12: 0 | DH12: RetDoc1040000001 | DI12: 0 | DJ12: RetDoc1040000001 | DK12: 1 | DL12: RetDoc1040000001 | DM12: 0 | DN12: RetDoc1040000001 | DO12: 1 | DP12: RetDoc1040000001 | DQ12: 1 | DR12: RetDoc1040000001 | DS12: 1 | DT12: RetDoc1040000001 | DU12: 0 | DV12: RetDoc1040000001 | DW12: 0 | DX12: RetDoc1040000001 | DY12: 1 | DZ12: RetDoc1040000001 | EA12: 1 | EB12: RetDoc1040000001 | EC12: 0 | ED12: RetDoc1040000001 | EE12: 1 | EF12: RetDoc1040000001 | EG12: 1 | EH12: RetDoc1040400001 | EI12: 0 | EJ12: 1 | EK12: RetDoc1040500001 | EL12: 1 | EM12: RetDoc1040500001 | EN12: 0 | EO12: RetDoc1040500001 | EP12: 1 | EQ12: RetDoc1041200001 | ER12: 1 | ES12: RetDoc1041200001 | ET12: 1 | EU12: RetDoc1041200001 | EV12: 0 | EW12: 1 | EX12: RetDoc1041900001 | EY12: 1 | EZ12: RetDoc1041900001 | FA12: 1 | FB12: RetDoc1042400001 | FC12: 1 | FD12: RetDoc1053100001 | FE12: 0 | FF12: 0 | FG12: 0 | FH12: 0 | FI12: 0 | FJ12: 0 | FK12: 0 | FL12: 0 | FM12: 0 | FN12: 0 | FO12: 1 | FP12: RetDoc1042900001 | FQ12: 1 | FR12: RetDoc1042900001 | FS12: 0 | FT12: 0 | FU12: 1 | FV12: RetDoc1043400001 | FW12: 1 | FX12: RetDoc1043400001 | FY12: 1 | FZ12: 1 | GA12: RetDoc1043400001 | GB12: 0 | GC12: RetDoc1043400001 | GD12: 0 | GE12: RetDoc1043400001 | GF12: 1 | GG12: 188 | GH12: 0 | GI12: 1 | GJ12: 1435 | GK12: 1 | GL12: 1 | GM12: 1 | GN12: 0 | GO12: 0 | GP12: 0 | GQ12: 0 | GR12: 1 | GS12: 1 | GT12: 0 | GU12: 0 | GV12: 0 | GW12: 0 | GX12: X | GY12: 26 | GZ12: 25 | HA12: 1 | HB12: 0 | HC12: 0 | HD12: 0 | HE12: 0 | HF12: 0 | HG12: 0 | HH12: 1 | HI12: 1 | HJ12: 0 | HK12: 0 | HL12: 1 | HM12: 1 | HN12: 1 | HO12: 1 | HP12: 1 | HQ12: 1 | HR12: 1 | HS12: 1 | HT12: 0 | HU12: X | HV12: MARK S HOLBROOK CONTROLLER | HW12: 5176290289 | HX12: 611 EAST PORTER STREET | HY12: ALBION | HZ12: MI | IA12: 49224 | IB12: CASEY C HOFFMAN | IC12: TRUSTEE | ID12: 1 | IE12: 0 | IF12: X | IH12: 0 | II12: 0 | IJ12: 0 | IL12: 1096085 | IM12: 0 | IN12: 143360 | IO12: 6 | IP12: 0 | IQ12: 1 | IR12: 0 | IZ12: 27 | JA12: 373044 | JB12: 459730 | JC12: 5583566 | JD12: 857050 | JE12: 6416340 | JJ12: 57387277 | JK12: 2137010 | JL12: 2137010 | JM12: 29974238 | JN12: 7001 | JO12: 26974656 | JP12: 65755 | JQ12: 2999582 | JR12: -58754 | JS12: 2940828 | JT12: 2940828 | JU12: 4060 | JV12: 373044 | JW12: 99373 | JX12: -95313 | JY12: -95313 | JZ12: 45370 | KA12: 4099 | KB12: 41271 | KC12: 41271 | KD12: MISCELLANEOUS INCOME | KE12: 900099 | KF12: 853308 | KG12: 853308 | KH12: 853308 | KI12: 69680721 | KJ12: 57387277 | KK12: 0 | KL12: 5877104 | KM12: X | KN12: 63000 | KO12: 63000 | KP12: 24273172 | KQ12: 24273172 | KR12: 133288 | KS12: 133288 | KT12: 1200757 | KU12: 179678 | KV12: 861702 | KW12: 159377 | KX12: 19356475 | KY12: 15708070 | KZ12: 2066695 | LA12: 1581710 | LB12: 1608926 | LC12: 1443204 | LD12: 4479 | LE12: 161243 | LF12: 3017294 | LG12: 2706505 | LH12: 8400 | LI12: 302389 | LJ12: 1390187 | LK12: 1246995 | LL12: 3869 | LM12: 139323 | LN12: 261083 | LO12: 16122 | LP12: 244219 | LQ12: 742 | LR12: 100628 | LS12: 100628 | LT12: 40414 | LU12: 40414 | LV12: 655305 | LW12: 350487 | LX12: 287203 | LY12: 17615 | LZ12: 9087967 | MA12: 7168709 | MB12: 1434260 | MC12: 484998 | MD12: 187077 | ME12: 1142 | MF12: 9695 | MG12: 176240 | MH12: 2983198 | MI12: 2613997 | MJ12: 106804 | MK12: 262397 | ML12: 4152425 | MM12: 3557252 | MN12: 464075 | MO12: 131098 | MP12: 1464850 | MQ12: 1136105 | MR12: 228878 | MS12: 99867 | MT12: 363762 | MU12: 197938 | MV12: 159050 | MW12: 6774 | MX12: 1352035 | MY12: 1174749 | MZ12: 119197 | NA12: 58089 | NB12: 4903739 | NC12: 4211964 | ND12: 543977 | NE12: 147798 | NF12: 564940 | NG12: 282470 | NH12: 254223 | NI12: 28247 | NO12: 223965 | NP12: 58974 | NQ12: 92860 | NR12: 72131 | NS12: 77615874 | NT12: 66731934 | NU12: 7007545 | NV12: 3876395 | NW12: 4584944 | NX12: 6973558 | NY12: 3129722 | NZ12: 2911080 | OA12: 2414171 | OB12: 4555248 | OC12: 3946309 | OD12: 1874764 | OE12: 113206 | OF12: 118172 | OG12: 974405 | OH12: 1043184 | OI12: 183073212 | OJ12: 93678885 | OK12: 91865959 | OL12: 89394327 | OM12: 49251964 | ON12: 56155174 | OO12: 138871779 | OP12: 150877804 | OQ12: 3166061 | OR12: 5109488 | OS12: 6112798 | OT12: 303428008 | OU12: 320016109 | OV12: 15310666 | OW12: 15593294 | OX12: 162416 | OY12: 515917 | OZ12: 59375000 | PA12: 57920000 | PB12: 412447 | PC12: 1977176 | PD12: 2794504 | PE12: 2751916 | PF12: 2523228 | PG12: 79989621 | PH12: 79346943 | PI12: X | PJ12: 74763459 | PK12: 77970365 | PL12: 75341769 | PM12: 88004745 | PN12: 73333159 | PO12: 74694056 | PP12: 223438387 | PQ12: 240669166 | PR12: 303428008 | PS12: 320016109 | PT12: X | PU12: -7935153 | PV12: 24311863 | PW12: 854068 | PX12: X | PY12: X | PZ12: 0 | QA12: 1 | QB12: X | QC12: 1 | QD12: 1 | QE12: 1 | QF12: RetDoc1039100001 | QG12: X | QH12: RetDoc1234500001 | QI12: RESTRICTED | QJ12: RESTRICTED | QK12: RESTRICTED | QL12: RESTRICTED | QM12: RESTRICTED | QN12: RESTRICTED | QO12: RESTRICTED | QP12: RESTRICTED | YM12: RetDoc1041900001 | YN12: 1 | YO12: COLCHESTER PROPERTIES | YP12: 611 EAST PORTER STREET | YQ12: ALBION | YR12: MI | YS12: 49224 | YT12: 382025320 | YU12: 501(C)(3) | YV12: 63000 | YW12: 0 | YX12: CASH | YY12: N/A | YZ12: PROGRAM SUPPORT | ZA12: 1 | ZB12: 0 | ZC12: SCHOLARSHIPS | ZD12: 1267 | ZE12: 24273172 | ZF12: 0 | ZG12: N/A | ZH12: N/A | ZI12: PART I, LINE 2: | ZJ12: GRANTS ARE PROCURED BY FACULTY WITH THE ASSISTANCE OF THE COLLEGE'S GRANT MANAGER. MONITORING IS DONE BY GRANTEE, GRANT MANAGER AND SENIOR ACCOUNTANT FOR COMPLIANCE. ACTIVITY IS AUDITED AND REPORTED ANNUALLY IN THE COLLEGE'S FINANCIAL STATEMENTS. | AAR12: RetDoc1053100001 | AAS12: A | AAT12: MICHIGAN HIGHER EDUCATION FACILITIES AUTHORITY | AAU12: 2006-11-01 | AAV12: 63385000 | AAW12: SCIENCE CENTER RENOVATION, REFINANCE OF 2004 BONDS AND OTHER | AAX12: 0 | AAY12: 0 | AAZ12: 0 | ABA12: A | ABB12: 5465000 | ABC12: 63385000 | ABD12: 22437251 | ABE12: 40546103 | ABF12: 401646 | ABG12: 22035605 | ABH12: 2008 | ABI12: 1 | ABJ12: 0 | ABK12: 1 | ABL12: 1 | ABM12: A | ABN12: 0 | ABO12: 0 | ABP12: 0 | ABQ12: 0 | ABR12: 0 | ABS12: 0 | ABT12: 0 | ABU12: A | ABV12: 0 | ABW12: 0 | ABX12: 0 | ABY12: 0 | ABZ12: 1 | ACA12: 1 | ACB12: JPMORGAN CHASE | ACC12: BANK NA | ACD12: 20 | ACE12: 0 | ACF12: 0 | ACG12: 0 | ACH12: 0 | ACI12: 0 | ACJ12: A | ACK12: 0
A13: 2013v4.0 | B13: 0 | C13: 2015-05-15T13:27:25-05:00 | D13: 2014-06-30 | E13: 381357951 | F13: PLANTE & MORAN PLLC | G13: 750 TRADE CENTRE WAY STE 300 | H13: PORTAGE | I13: MI | J13: 49002 | K13: 990 | L13: 2013-07-01 | M13: 381359081 | N13: ALBION COLLEGE | O13: ALBI | P13: 5176290289 | Q13: 611 EAST PORTER STREET | R13: ALBION | S13: MI | T13: 49224 | U13: JERRY WHITE | V13: VP FOR FINANCE AND ADMINISTRATION | W13: 5176290289 | X13: 2015-05-07 | Y13: 1 | Z13: VICKI L VANDENBERG CPA | AA13: P00100422 | AB13: 2695674500 | AC13: 2013 | AD13: 2016-03-07 17:11:31Z | AE13: 13 | AF13: RetDoc1038000001 | AG13: RetDoc1044400001 | AH13: JERRY WHITE | AI13: 611 EAST PORTER STREET | AJ13: ALBION | AK13: MI | AL13: 49224 | AM13: 96824604 | AN13: 0 | AO13: X | AP13: WWW.ALBION.EDU | AQ13: X | AR13: 1835 | AS13: MI | AT13: ALBION COLLEGE IS AN UNDERGRADUATE, LIBERAL ARTS INSTITUTION COMMITTED TO ACADEMIC EXCELLENCE. WE ARE LEARNING-CENTERED AND RECOGNIZE THAT VALUABLE LEARNING TAKES PLACE IN AND OUTSIDE OF THE CLASSROOM, ON AND OFF THE CAMPUS. | AU13: 26 | AV13: 25 | AW13: 1435 | AX13: 15 | AY13: 0 | AZ13: 19888 | BA13: 5969161 | BB13: 6416340 | BC13: 56998355 | BD13: 57387277 | BE13: 3815854 | BF13: 5077838 | BG13: 481652 | BH13: 799266 | BI13: 67265022 | BJ13: 69680721 | BK13: 24127822 | BL13: 24469460 | BM13: 0 | BN13: 0 | BO13: 26876677 | BP13: 26573639 | BQ13: 40413 | BR13: 40414 | BS13: 3876395 | BT13: 25101910 | BU13: 26532361 | BV13: 76146822 | BW13: 77615874 | BX13: -8881800 | BY13: -7935153 | BZ13: 303428008 | CA13: 320016109 | CB13: 79989621 | CC13: 79346943 | CD13: 223438387 | CE13: 240669166 | CF13: X | CG13: ALBION COLLEGE IS AN UNDERGRADUATE, LIBERAL ARTS INSTITUTION COMMITTED TO ACADEMIC EXCELLENCE. WE ARE LEARNING-CENTERED AND RECOGNIZE THAT VALUABLE LEARNING TAKES PLACE IN AND OUTSIDE OF THE CLASSROOM, ON AND OFF THE CAMPUS. | CH13: 0 | CI13: 0 | CJ13: 47197761 | CK13: 24469460 | CL13: 46521102 | CM13: INSTRUCTIONAL - ALBION COLLEGE IS A PRIVATE, SELECTIVE, COEDUCATIONAL, RESIDENTIAL INSTITUTION OF HIGHER EDUCATION AFFILIATED WITH THE UNITED METHODIST CHURCH, BUT NON-SECTARIAN IN PRACTICE. THE COLLEGE PRINCIPALLY OFFERS ACADEMIC COURSES AND PROGRAMS LEADING TO A BACHELORS DEGREE IN LIBERAL ARTS. APPROXIMATELY 1,300 STUDENTS ARE ENROLLED IN THE COLLEGE. | CN13: 3778515 | CO13: 3961365 | CP13: AUXILIARY - DINING SERVICES - ALBION COLLEGE IS A RESIDENTIAL INSTITUTION AND THE PRIMARY FUNCTION OF THE DINING AND HOSPITALITY SERVICES, MANAGED BY BON APPETIT MANAGEMENT COMPANY, IS TO PROVIDE FOOD FOR OUR STUDENTS, FACULTY, STAFF, AND GUESTS. WE STRIVE TO PROVIDE A WIDE SELECTION OF HIGH QUALITY PRODUCTS AND SERVICES THROUGH A VARIETY OF EXPERIENCES. THESE EXPERIENCES REFLECT OUR COMMITMENT TO BEING RESPONSIVE TO THE CHANGING NEEDS AND DESIRES OF OUR DIVERSE AUDIENCE. OPERATIONS INCLUDE AN ALL-YOU-CAN-EAT DINING HALL, QUICK-SERVE RESTAURANT, A COFFEE SHOP, LODGING, CATERING SERVICES, FACULTY/STAFF LUNCH BUFFET AND CONFERENCE AND EVENT SERVICES. | CQ13: 3480854 | CR13: 6480942 | CS13: AUXILIARY - RESIDENCE HALLS - ALBION COLLEGE IS A COLLEGE COMMUNITY INSTITUTION THAT EMPHASIZES COMMUNITY THROUGH EDUCATION IN AND OUT OF THE CLASSROOM. ALBION COLLEGE STRIVES TO PROVIDE OUR STUDENTS WITH QUALITY HOUSING THAT ENHANCES A STUDENT'S LEARNING EXPERIENCE. | CT13: 12274804 | CU13: 423868 | CV13: VARIOUS OTHER PROGRAM SERVICES RELATING TO THE ORGANIZATION'S MISSION. | CW13: 12274804 | CX13: 423868 | CY13: 66731934 | CZ13: 1 | DA13: RetDoc1039100001 | DB13: 1 | DC13: RetDoc1234500001 | DD13: 0 | DE13: 0 | DF13: 0 | DG13: 0 | DH13: RetDoc1040000001 | DI13: 0 | DJ13: RetDoc1040000001 | DK13: 1 | DL13: RetDoc1040000001 | DM13: 0 | DN13: RetDoc1040000001 | DO13: 1 | DP13: RetDoc1040000001 | DQ13: 1 | DR13: RetDoc1040000001 | DS13: 1 | DT13: RetDoc1040000001 | DU13: 0 | DV13: RetDoc1040000001 | DW13: 0 | DX13: RetDoc1040000001 | DY13: 1 | DZ13: RetDoc1040000001 | EA13: 1 | EB13: RetDoc1040000001 | EC13: 0 | ED13: RetDoc1040000001 | EE13: 1 | EF13: RetDoc1040000001 | EG13: 1 | EH13: RetDoc1040400001 | EI13: 0 | EJ13: 1 | EK13: RetDoc1040500001 | EL13: 1 | EM13: RetDoc1040500001 | EN13: 0 | EO13: RetDoc1040500001 | EP13: 1 | EQ13: RetDoc1041200001 | ER13: 1 | ES13: RetDoc1041200001 | ET13: 1 | EU13: RetDoc1041200001 | EV13: 0 | EW13: 1 | EX13: RetDoc1041900001 | EY13: 1 | EZ13: RetDoc1041900001 | FA13: 1 | FB13: RetDoc1042400001 | FC13: 1 | FD13: RetDoc1053100001 | FE13: 0 | FF13: 0 | FG13: 0 | FH13: 0 | FI13: 0 | FJ13: 0 | FK13: 0 | FL13: 0 | FM13: 0 | FN13: 0 | FO13: 1 | FP13: RetDoc1042900001 | FQ13: 1 | FR13: RetDoc1042900001 | FS13: 0 | FT13: 0 | FU13: 1 | FV13: RetDoc1043400001 | FW13: 1 | FX13: RetDoc1043400001 | FY13: 1 | FZ13: 1 | GA13: RetDoc1043400001 | GB13: 0 | GC13: RetDoc1043400001 | GD13: 0 | GE13: RetDoc1043400001 | GF13: 1 | GG13: 188 | GH13: 0 | GI13: 1 | GJ13: 1435 | GK13: 1 | GL13: 1 | GM13: 1 | GN13: 0 | GO13: 0 | GP13: 0 | GQ13: 0 | GR13: 1 | GS13: 1 | GT13: 0 | GU13: 0 | GV13: 0 | GW13: 0 | GX13: X | GY13: 26 | GZ13: 25 | HA13: 1 | HB13: 0 | HC13: 0 | HD13: 0 | HE13: 0 | HF13: 0 | HG13: 0 | HH13: 1 | HI13: 1 | HJ13: 0 | HK13: 0 | HL13: 1 | HM13: 1 | HN13: 1 | HO13: 1 | HP13: 1 | HQ13: 1 | HR13: 1 | HS13: 1 | HT13: 0 | HU13: X | HV13: MARK S HOLBROOK CONTROLLER | HW13: 5176290289 | HX13: 611 EAST PORTER STREET | HY13: ALBION | HZ13: MI | IA13: 49224 | IB13: ANNE H HUNTER | IC13: TRUSTEE | ID13: 1 | IE13: 0 | IF13: X | IH13: 0 | II13: 0 | IJ13: 0 | IL13: 1096085 | IM13: 0 | IN13: 143360 | IO13: 6 | IP13: 0 | IQ13: 1 | IR13: 0 | IZ13: 27 | JA13: 373044 | JB13: 459730 | JC13: 5583566 | JD13: 857050 | JE13: 6416340 | JJ13: 57387277 | JK13: 2137010 | JL13: 2137010 | JM13: 29974238 | JN13: 7001 | JO13: 26974656 | JP13: 65755 | JQ13: 2999582 | JR13: -58754 | JS13: 2940828 | JT13: 2940828 | JU13: 4060 | JV13: 373044 | JW13: 99373 | JX13: -95313 | JY13: -95313 | JZ13: 45370 | KA13: 4099 | KB13: 41271 | KC13: 41271 | KD13: MISCELLANEOUS INCOME | KE13: 900099 | KF13: 853308 | KG13: 853308 | KH13: 853308 | KI13: 69680721 | KJ13: 57387277 | KK13: 0 | KL13: 5877104 | KM13: X | KN13: 63000 | KO13: 63000 | KP13: 24273172 | KQ13: 24273172 | KR13: 133288 | KS13: 133288 | KT13: 1200757 | KU13: 179678 | KV13: 861702 | KW13: 159377 | KX13: 19356475 | KY13: 15708070 | KZ13: 2066695 | LA13: 1581710 | LB13: 1608926 | LC13: 1443204 | LD13: 4479 | LE13: 161243 | LF13: 3017294 | LG13: 2706505 | LH13: 8400 | LI13: 302389 | LJ13: 1390187 | LK13: 1246995 | LL13: 3869 | LM13: 139323 | LN13: 261083 | LO13: 16122 | LP13: 244219 | LQ13: 742 | LR13: 100628 | LS13: 100628 | LT13: 40414 | LU13: 40414 | LV13: 655305 | LW13: 350487 | LX13: 287203 | LY13: 17615 | LZ13: 9087967 | MA13: 7168709 | MB13: 1434260 | MC13: 484998 | MD13: 187077 | ME13: 1142 | MF13: 9695 | MG13: 176240 | MH13: 2983198 | MI13: 2613997 | MJ13: 106804 | MK13: 262397 | ML13: 4152425 | MM13: 3557252 | MN13: 464075 | MO13: 131098 | MP13: 1464850 | MQ13: 1136105 | MR13: 228878 | MS13: 99867 | MT13: 363762 | MU13: 197938 | MV13: 159050 | MW13: 6774 | MX13: 1352035 | MY13: 1174749 | MZ13: 119197 | NA13: 58089 | NB13: 4903739 | NC13: 4211964 | ND13: 543977 | NE13: 147798 | NF13: 564940 | NG13: 282470 | NH13: 254223 | NI13: 28247 | NO13: 223965 | NP13: 58974 | NQ13: 92860 | NR13: 72131 | NS13: 77615874 | NT13: 66731934 | NU13: 7007545 | NV13: 3876395 | NW13: 4584944 | NX13: 6973558 | NY13: 3129722 | NZ13: 2911080 | OA13: 2414171 | OB13: 4555248 | OC13: 3946309 | OD13: 1874764 | OE13: 113206 | OF13: 118172 | OG13: 974405 | OH13: 1043184 | OI13: 183073212 | OJ13: 93678885 | OK13: 91865959 | OL13: 89394327 | OM13: 49251964 | ON13: 56155174 | OO13: 138871779 | OP13: 150877804 | OQ13: 3166061 | OR13: 5109488 | OS13: 6112798 | OT13: 303428008 | OU13: 320016109 | OV13: 15310666 | OW13: 15593294 | OX13: 162416 | OY13: 515917 | OZ13: 59375000 | PA13: 57920000 | PB13: 412447 | PC13: 1977176 | PD13: 2794504 | PE13: 2751916 | PF13: 2523228 | PG13: 79989621 | PH13: 79346943 | PI13: X | PJ13: 74763459 | PK13: 77970365 | PL13: 75341769 | PM13: 88004745 | PN13: 73333159 | PO13: 74694056 | PP13: 223438387 | PQ13: 240669166 | PR13: 303428008 | PS13: 320016109 | PT13: X | PU13: -7935153 | PV13: 24311863 | PW13: 854068 | PX13: X | PY13: X | PZ13: 0 | QA13: 1 | QB13: X | QC13: 1 | QD13: 1 | QE13: 1 | QF13: RetDoc1039100001 | QG13: X | QH13: RetDoc1234500001 | QI13: RESTRICTED | QJ13: RESTRICTED | QK13: RESTRICTED | QL13: RESTRICTED | QM13: RESTRICTED | QN13: RESTRICTED | QO13: RESTRICTED | QP13: RESTRICTED | YM13: RetDoc1041900001 | YN13: 1 | YO13: COLCHESTER PROPERTIES | YP13: 611 EAST PORTER STREET | YQ13: ALBION | YR13: MI | YS13: 49224 | YT13: 382025320 | YU13: 501(C)(3) | YV13: 63000 | YW13: 0 | YX13: CASH | YY13: N/A | YZ13: PROGRAM SUPPORT | ZA13: 1 | ZB13: 0 | ZC13: SCHOLARSHIPS | ZD13: 1267 | ZE13: 24273172 | ZF13: 0 | ZG13: N/A | ZH13: N/A | ZI13: PART I, LINE 2: | ZJ13: GRANTS ARE PROCURED BY FACULTY WITH THE ASSISTANCE OF THE COLLEGE'S GRANT MANAGER. MONITORING IS DONE BY GRANTEE, GRANT MANAGER AND SENIOR ACCOUNTANT FOR COMPLIANCE. ACTIVITY IS AUDITED AND REPORTED ANNUALLY IN THE COLLEGE'S FINANCIAL STATEMENTS. | AAR13: RetDoc1053100001 | AAS13: A | AAT13: MICHIGAN HIGHER EDUCATION FACILITIES AUTHORITY | AAU13: 2006-11-01 | AAV13: 63385000 | AAW13: SCIENCE CENTER RENOVATION, REFINANCE OF 2004 BONDS AND OTHER | AAX13: 0 | AAY13: 0 | AAZ13: 0 | ABA13: A | ABB13: 5465000 | ABC13: 63385000 | ABD13: 22437251 | ABE13: 40546103 | ABF13: 401646 | ABG13: 22035605 | ABH13: 2008 | ABI13: 1 | ABJ13: 0 | ABK13: 1 | ABL13: 1 | ABM13: A | ABN13: 0 | ABO13: 0 | ABP13: 0 | ABQ13: 0 | ABR13: 0 | ABS13: 0 | ABT13: 0 | ABU13: A | ABV13: 0 | ABW13: 0 | ABX13: 0 | ABY13: 0 | ABZ13: 1 | ACA13: 1 | ACB13: JPMORGAN CHASE | ACC13: BANK NA | ACD13: 20 | ACE13: 0 | ACF13: 0 | ACG13: 0 | ACH13: 0 | ACI13: 0 | ACJ13: A | ACK13: 0
A14: 2013v4.0 | B14: 0 | C14: 2015-05-15T13:27:25-05:00 | D14: 2014-06-30 | E14: 381357951 | F14: PLANTE & MORAN PLLC | G14: 750 TRADE CENTRE WAY STE 300 | H14: PORTAGE | I14: MI | J14: 49002 | K14: 990 | L14: 2013-07-01 | M14: 381359081 | N14: ALBION COLLEGE | O14: ALBI | P14: 5176290289 | Q14: 611 EAST PORTER STREET | R14: ALBION | S14: MI | T14: 49224 | U14: JERRY WHITE | V14: VP FOR FINANCE AND ADMINISTRATION | W14: 5176290289 | X14: 2015-05-07 | Y14: 1 | Z14: VICKI L VANDENBERG CPA | AA14: P00100422 | AB14: 2695674500 | AC14: 2013 | AD14: 2016-03-07 17:11:31Z | AE14: 13 | AF14: RetDoc1038000001 | AG14: RetDoc1044400001 | AH14: JERRY WHITE | AI14: 611 EAST PORTER STREET | AJ14: ALBION | AK14: MI | AL14: 49224 | AM14: 96824604 | AN14: 0 | AO14: X | AP14: WWW.ALBION.EDU | AQ14: X | AR14: 1835 | AS14: MI | AT14: ALBION COLLEGE IS AN UNDERGRADUATE, LIBERAL ARTS INSTITUTION COMMITTED TO ACADEMIC EXCELLENCE. WE ARE LEARNING-CENTERED AND RECOGNIZE THAT VALUABLE LEARNING TAKES PLACE IN AND OUTSIDE OF THE CLASSROOM, ON AND OFF THE CAMPUS. | AU14: 26 | AV14: 25 | AW14: 1435 | AX14: 15 | AY14: 0 | AZ14: 19888 | BA14: 5969161 | BB14: 6416340 | BC14: 56998355 | BD14: 57387277 | BE14: 3815854 | BF14: 5077838 | BG14: 481652 | BH14: 799266 | BI14: 67265022 | BJ14: 69680721 | BK14: 24127822 | BL14: 24469460 | BM14: 0 | BN14: 0 | BO14: 26876677 | BP14: 26573639 | BQ14: 40413 | BR14: 40414 | BS14: 3876395 | BT14: 25101910 | BU14: 26532361 | BV14: 76146822 | BW14: 77615874 | BX14: -8881800 | BY14: -7935153 | BZ14: 303428008 | CA14: 320016109 | CB14: 79989621 | CC14: 79346943 | CD14: 223438387 | CE14: 240669166 | CF14: X | CG14: ALBION COLLEGE IS AN UNDERGRADUATE, LIBERAL ARTS INSTITUTION COMMITTED TO ACADEMIC EXCELLENCE. WE ARE LEARNING-CENTERED AND RECOGNIZE THAT VALUABLE LEARNING TAKES PLACE IN AND OUTSIDE OF THE CLASSROOM, ON AND OFF THE CAMPUS. | CH14: 0 | CI14: 0 | CJ14: 47197761 | CK14: 24469460 | CL14: 46521102 | CM14: INSTRUCTIONAL - ALBION COLLEGE IS A PRIVATE, SELECTIVE, COEDUCATIONAL, RESIDENTIAL INSTITUTION OF HIGHER EDUCATION AFFILIATED WITH THE UNITED METHODIST CHURCH, BUT NON-SECTARIAN IN PRACTICE. THE COLLEGE PRINCIPALLY OFFERS ACADEMIC COURSES AND PROGRAMS LEADING TO A BACHELORS DEGREE IN LIBERAL ARTS. APPROXIMATELY 1,300 STUDENTS ARE ENROLLED IN THE COLLEGE. | CN14: 3778515 | CO14: 3961365 | CP14: AUXILIARY - DINING SERVICES - ALBION COLLEGE IS A RESIDENTIAL INSTITUTION AND THE PRIMARY FUNCTION OF THE DINING AND HOSPITALITY SERVICES, MANAGED BY BON APPETIT MANAGEMENT COMPANY, IS TO PROVIDE FOOD FOR OUR STUDENTS, FACULTY, STAFF, AND GUESTS. WE STRIVE TO PROVIDE A WIDE SELECTION OF HIGH QUALITY PRODUCTS AND SERVICES THROUGH A VARIETY OF EXPERIENCES. THESE EXPERIENCES REFLECT OUR COMMITMENT TO BEING RESPONSIVE TO THE CHANGING NEEDS AND DESIRES OF OUR DIVERSE AUDIENCE. OPERATIONS INCLUDE AN ALL-YOU-CAN-EAT DINING HALL, QUICK-SERVE RESTAURANT, A COFFEE SHOP, LODGING, CATERING SERVICES, FACULTY/STAFF LUNCH BUFFET AND CONFERENCE AND EVENT SERVICES. | CQ14: 3480854 | CR14: 6480942 | CS14: AUXILIARY - RESIDENCE HALLS - ALBION COLLEGE IS A COLLEGE COMMUNITY INSTITUTION THAT EMPHASIZES COMMUNITY THROUGH EDUCATION IN AND OUT OF THE CLASSROOM. ALBION COLLEGE STRIVES TO PROVIDE OUR STUDENTS WITH QUALITY HOUSING THAT ENHANCES A STUDENT'S LEARNING EXPERIENCE. | CT14: 12274804 | CU14: 423868 | CV14: VARIOUS OTHER PROGRAM SERVICES RELATING TO THE ORGANIZATION'S MISSION. | CW14: 12274804 | CX14: 423868 | CY14: 66731934 | CZ14: 1 | DA14: RetDoc1039100001 | DB14: 1 | DC14: RetDoc1234500001 | DD14: 0 | DE14: 0 | DF14: 0 | DG14: 0 | DH14: RetDoc1040000001 | DI14: 0 | DJ14: RetDoc1040000001 | DK14: 1 | DL14: RetDoc1040000001 | DM14: 0 | DN14: RetDoc1040000001 | DO14: 1 | DP14: RetDoc1040000001 | DQ14: 1 | DR14: RetDoc1040000001 | DS14: 1 | DT14: RetDoc1040000001 | DU14: 0 | DV14: RetDoc1040000001 | DW14: 0 | DX14: RetDoc1040000001 | DY14: 1 | DZ14: RetDoc1040000001 | EA14: 1 | EB14: RetDoc1040000001 | EC14: 0 | ED14: RetDoc1040000001 | EE14: 1 | EF14: RetDoc1040000001 | EG14: 1 | EH14: RetDoc1040400001 | EI14: 0 | EJ14: 1 | EK14: RetDoc1040500001 | EL14: 1 | EM14: RetDoc1040500001 | EN14: 0 | EO14: RetDoc1040500001 | EP14: 1 | EQ14: RetDoc1041200001 | ER14: 1 | ES14: RetDoc1041200001 | ET14: 1 | EU14: RetDoc1041200001 | EV14: 0 | EW14: 1 | EX14: RetDoc1041900001 | EY14: 1 | EZ14: RetDoc1041900001 | FA14: 1 | FB14: RetDoc1042400001 | FC14: 1 | FD14: RetDoc1053100001 | FE14: 0 | FF14: 0 | FG14: 0 | FH14: 0 | FI14: 0 | FJ14: 0 | FK14: 0 | FL14: 0 | FM14: 0 | FN14: 0 | FO14: 1 | FP14: RetDoc1042900001 | FQ14: 1 | FR14: RetDoc1042900001 | FS14: 0 | FT14: 0 | FU14: 1 | FV14: RetDoc1043400001 | FW14: 1 | FX14: RetDoc1043400001 | FY14: 1 | FZ14: 1 | GA14: RetDoc1043400001 | GB14: 0 | GC14: RetDoc1043400001 | GD14: 0 | GE14: RetDoc1043400001 | GF14: 1 | GG14: 188 | GH14: 0 | GI14: 1 | GJ14: 1435 | GK14: 1 | GL14: 1 | GM14: 1 | GN14: 0 | GO14: 0 | GP14: 0 | GQ14: 0 | GR14: 1 | GS14: 1 | GT14: 0 | GU14: 0 | GV14: 0 | GW14: 0 | GX14: X | GY14: 26 | GZ14: 25 | HA14: 1 | HB14: 0 | HC14: 0 | HD14: 0 | HE14: 0 | HF14: 0 | HG14: 0 | HH14: 1 | HI14: 1 | HJ14: 0 | HK14: 0 | HL14: 1 | HM14: 1 | HN14: 1 | HO14: 1 | HP14: 1 | HQ14: 1 | HR14: 1 | HS14: 1 | HT14: 0 | HU14: X | HV14: MARK S HOLBROOK CONTROLLER | HW14: 5176290289 | HX14: 611 EAST PORTER STREET | HY14: ALBION | HZ14: MI | IA14: 49224 | IB14: DAVID K JOHNSON | IC14: TRUSTEE | ID14: 1 | IE14: 0 | IF14: X | IH14: 0 | II14: 0 | IJ14: 0 | IL14: 1096085 | IM14: 0 | IN14: 143360 | IO14: 6 | IP14: 0 | IQ14: 1 | IR14: 0 | IZ14: 27 | JA14: 373044 | JB14: 459730 | JC14: 5583566 | JD14: 857050 | JE14: 6416340 | JJ14: 57387277 | JK14: 2137010 | JL14: 2137010 | JM14: 29974238 | JN14: 7001 | JO14: 26974656 | JP14: 65755 | JQ14: 2999582 | JR14: -58754 | JS14: 2940828 | JT14: 2940828 | JU14: 4060 | JV14: 373044 | JW14: 99373 | JX14: -95313 | JY14: -95313 | JZ14: 45370 | KA14: 4099 | KB14: 41271 | KC14: 41271 | KD14: MISCELLANEOUS INCOME | KE14: 900099 | KF14: 853308 | KG14: 853308 | KH14: 853308 | KI14: 69680721 | KJ14: 57387277 | KK14: 0 | KL14: 5877104 | KM14: X | KN14: 63000 | KO14: 63000 | KP14: 24273172 | KQ14: 24273172 | KR14: 133288 | KS14: 133288 | KT14: 1200757 | KU14: 179678 | KV14: 861702 | KW14: 159377 | KX14: 19356475 | KY14: 15708070 | KZ14: 2066695 | LA14: 1581710 | LB14: 1608926 | LC14: 1443204 | LD14: 4479 | LE14: 161243 | LF14: 3017294 | LG14: 2706505 | LH14: 8400 | LI14: 302389 | LJ14: 1390187 | LK14: 1246995 | LL14: 3869 | LM14: 139323 | LN14: 261083 | LO14: 16122 | LP14: 244219 | LQ14: 742 | LR14: 100628 | LS14: 100628 | LT14: 40414 | LU14: 40414 | LV14: 655305 | LW14: 350487 | LX14: 287203 | LY14: 17615 | LZ14: 9087967 | MA14: 7168709 | MB14: 1434260 | MC14: 484998 | MD14: 187077 | ME14: 1142 | MF14: 9695 | MG14: 176240 | MH14: 2983198 | MI14: 2613997 | MJ14: 106804 | MK14: 262397 | ML14: 4152425 | MM14: 3557252 | MN14: 464075 | MO14: 131098 | MP14: 1464850 | MQ14: 1136105 | MR14: 228878 | MS14: 99867 | MT14: 363762 | MU14: 197938 | MV14: 159050 | MW14: 6774 | MX14: 1352035 | MY14: 1174749 | MZ14: 119197 | NA14: 58089 | NB14: 4903739 | NC14: 4211964 | ND14: 543977 | NE14: 147798 | NF14: 564940 | NG14: 282470 | NH14: 254223 | NI14: 28247 | NO14: 223965 | NP14: 58974 | NQ14: 92860 | NR14: 72131 | NS14: 77615874 | NT14: 66731934 | NU14: 7007545 | NV14: 3876395 | NW14: 4584944 | NX14: 6973558 | NY14: 3129722 | NZ14: 2911080 | OA14: 2414171 | OB14: 4555248 | OC14: 3946309 | OD14: 1874764 | OE14: 113206 | OF14: 118172 | OG14: 974405 | OH14: 1043184 | OI14: 183073212 | OJ14: 93678885 | OK14: 91865959 | OL14: 89394327 | OM14: 49251964 | ON14: 56155174 | OO14: 138871779 | OP14: 150877804 | OQ14: 3166061 | OR14: 5109488 | OS14: 6112798 | OT14: 303428008 | OU14: 320016109 | OV14: 15310666 | OW14: 15593294 | OX14: 162416 | OY14: 515917 | OZ14: 59375000 | PA14: 57920000 | PB14: 412447 | PC14: 1977176 | PD14: 2794504 | PE14: 2751916 | PF14: 2523228 | PG14: 79989621 | PH14: 79346943 | PI14: X | PJ14: 74763459 | PK14: 77970365 | PL14: 75341769 | PM14: 88004745 | PN14: 73333159 | PO14: 74694056 | PP14: 223438387 | PQ14: 240669166 | PR14: 303428008 | PS14: 320016109 | PT14: X | PU14: -7935153 | PV14: 24311863 | PW14: 854068 | PX14: X | PY14: X | PZ14: 0 | QA14: 1 | QB14: X | QC14: 1 | QD14: 1 | QE14: 1 | QF14: RetDoc1039100001 | QG14: X | QH14: RetDoc1234500001 | QI14: RESTRICTED | QJ14: RESTRICTED | QK14: RESTRICTED | QL14: RESTRICTED | QM14: RESTRICTED | QN14: RESTRICTED | QO14: RESTRICTED | QP14: RESTRICTED | YM14: RetDoc1041900001 | YN14: 1 | YO14: COLCHESTER PROPERTIES | YP14: 611 EAST PORTER STREET | YQ14: ALBION | YR14: MI | YS14: 49224 | YT14: 382025320 | YU14: 501(C)(3) | YV14: 63000 | YW14: 0 | YX14: CASH | YY14: N/A | YZ14: PROGRAM SUPPORT | ZA14: 1 | ZB14: 0 | ZC14: SCHOLARSHIPS | ZD14: 1267 | ZE14: 24273172 | ZF14: 0 | ZG14: N/A | ZH14: N/A | ZI14: PART I, LINE 2: | ZJ14: GRANTS ARE PROCURED BY FACULTY WITH THE ASSISTANCE OF THE COLLEGE'S GRANT MANAGER. MONITORING IS DONE BY GRANTEE, GRANT MANAGER AND SENIOR ACCOUNTANT FOR COMPLIANCE. ACTIVITY IS AUDITED AND REPORTED ANNUALLY IN THE COLLEGE'S FINANCIAL STATEMENTS. | AAR14: RetDoc1053100001 | AAS14: A | AAT14: MICHIGAN HIGHER EDUCATION FACILITIES AUTHORITY | AAU14: 2006-11-01 | AAV14: 63385000 | AAW14: SCIENCE CENTER RENOVATION, REFINANCE OF 2004 BONDS AND OTHER | AAX14: 0 | AAY14: 0 | AAZ14: 0 | ABA14: A | ABB14: 5465000 | ABC14: 63385000 | ABD14: 22437251 | ABE14: 40546103 | ABF14: 401646 | ABG14: 22035605 | ABH14: 2008 | ABI14: 1 | ABJ14: 0 | ABK14: 1 | ABL14: 1 | ABM14: A | ABN14: 0 | ABO14: 0 | ABP14: 0 | ABQ14: 0 | ABR14: 0 | ABS14: 0 | ABT14: 0 | ABU14: A | ABV14: 0 | ABW14: 0 | ABX14: 0 | ABY14: 0 | ABZ14: 1 | ACA14: 1 | ACB14: JPMORGAN CHASE | ACC14: BANK NA | ACD14: 20 | ACE14: 0 | ACF14: 0 | ACG14: 0 | ACH14: 0 | ACI14: 0 | ACJ14: A | ACK14: 0
